Workbook

Sheet Sheet1
A1: Total Emissions Regional | B1: FY2004 | C1: FY2005 | D1: FY2006 | E1: FY2007 | F1: FY2008 | G1: FY2009 | H1: FY2010 | I1: FY2011 | J1: FY2012 | K1: FY2014
A2: Scope 1 | B2: 29938.39799 | C2: 26253.09453 | D2: 25563.00472 | E2: 24927.11127 | F2: 26745.34536 | G2: 25875.45558 | H2: 23864.43385 | I2: 22788.6 | J2: 24235
A3: Scope 2 | B3: 18188.1 | C3: 18848.1 | D3: 21380.6 | E3: 27173 | F3: 27656.3 | G3: 26429.3 | H3: 27420.8 | I3: 28633.7 | J3: 29421
A4: Scope 3 | B4: 30125.71285 | C4: 31551.31285 | D4: 29446.81285 | E4: 31602.91285 | F4: 33296.71285 | G4: 39214.61285 | H4: 36461.78177 | I4: 37485.87423 | J4: 39769.1
C35: FY2004 | D35: FY2005 | E35: FY2006 | F35: FY2007 | G35: FY2008 | H35: FY2009 | I35: FY2010 | J35: FY2011 | K35: FY2012 | L35: FY2014
A36: Total Gross GHG Emissions | B36: Metric Tons Carbon Dioxide Equivalent (MTCDE) | C36: 78252.21083 | D36: 76652.50737 | E36: 76390.41757 | F36: 83703.02412 | G36: 87698.35821 | H36: 91519.36843 | I36: 87747.01562 | J36: 88908.17423 | K36: 93425.1
B37: GSF | C37: 5930710 | D37: 6004131 | E37: 6327716 | F37: 6352151 | G37: 6441734 | H37: 6298056 | I37: 6507873 | J37: 7374796 | K37: 7800628
B38: MTCDE/GSF | C38: =C36/C37 -> 0.01319440857 | D38: =D36/D37 -> 0.01276662807 | E38: 0.01207235242 | F38: 0.01317711498 | G38: 0.01361409183 | H38: 0.01453136784 | I38: 0.01348320959 | J38: 0.01205567913 | K38: 0.01197661265
B39: FTE | C39: 23677.8 | D39: 24178.86287 | E39: 24195.71607 | F39: 24131.57237 | G39: 23860.5 | H39: 24779 | I39: 25751.5 | J39: 27967 | K39: 28867
B40: MTCDE/FTE | C40: =C36/C39 -> 3.304876755 | D40: =D36/D39 -> 3.170227971 | E40: 3.157187717 | F40: 3.46861045 | G40: 3.675461881 | H40: 3.693424611 | I40: 3.4074526 | J40: 3.179038661 | K40: 3.236397963
E62: FY2004 | F62: FY2005 | G62: FY2006 | H62: FY2007 | I62: FY2008 | J62: FY2009 | K62: FY2010 | L62: FY2011 | M62: FY2012 | N62: FY2014
C63: Purchased Electricity | E63: 34544.60584 | F63: 35358.52765 | G63: 38058.6429 | H63: 37356.92714 | I63: 37538.19621 | J63: 38500.93366 | K63: 38670.20053 | L63: 35697.58968 | M63: 34094.78784
C64: Stationary Sources | E64: 90564.90166 | F64: 77851.98757 | G64: 71844.77906 | H64: 70919.92806 | I64: 75238.80193 | J64: 74762.17923 | K64: 67437.95108 | L64: 56759.77637 | M64: 56935.44053
E66: =SUM(E63:E64) -> 125109.5075 | F66: =SUM(F63:F64) -> 113210.5152 | G66: 109903.422 | H66: 108276.8552 | I66: 112776.9981 | J66: 113263.1129 | K66: 106108.1516 | L66: 92457.36605 | M66: 91030.22837
E82: FY2004 | F82: FY2005 | G82: FY2006 | H82: FY2007 | I82: FY2008 | J82: FY2009 | K82: FY2010 | L82: FY2011 | M82: FY2012 | N82: FY2014
D83: Purchased Electricity | E83: =E86/E89 -> 10.03710591 | F83: =F86/F89 -> 10.27650849 | G83: 11.06098448 | H83: 10.84205948 | I83: 10.85820332 | J83: 11.0802612 | K83: 11.11787765 | L83: 10.19060256 | M83: 9.830549925
D84: Cogenerated Electricity | E84: =E88/E89 -> 1.256510603 | F84: =F88/F89 -> 0.9836560861 | G84: 0.6526907971 | H84: 0.7879031843 | I84: 0.6506866008 | J84: 0.7329483892 | K84: 0.2526124895 | L84: 0 | M84: 0
E86: 59527164.41 | F86: 61701503.22 | G86: 69990768.48 | H86: 68870398.97 | I86: 69945657.53 | J86: 69784105.51 | K86: 72353735.77 | L86: 75153615 | M86: 76684463
E88: 7452000 | F88: 5906000 | G88: 4130042 | H88: 5004880 | I88: 4191550 | J88: 4616150 | K88: 1643970 | L88: 0 | M88: 0
E89: 5930710 | F89: 6004131 | G89: 6327716 | H89: 6352151 | I89: 6441734 | J89: 6298056 | K89: 6507873 | L89: 7374796 | M89: 7800628
A92: Total Emissions Local | B92: FY2004 | C92: FY2005 | D92: FY2006 | E92: FY2007 | F92: FY2008 | G92: FY2009 | H92: FY2010 | I92: FY2011 | J92: FY2012 | K92: FY2014
A93: Scope 1 | B93: 28528.05878 | C93: 25130.3298 | D93: 24759.65629 | E93: 24123.23703 | F93: 25881.79048 | G93: 25106.13982 | H93: 23511.89452 | I93: 21275.4 | J93: 24235
A94: Scope 2 | B94: 3849.882778 | C94: 4038.734086 | D94: 4439.770262 | E94: 4390.831489 | F94: 4401.153439 | G94: 4418.595766 | H94: 4311.078219 | I94: 3614.13397 | J94: 2252.6
A95: Scope 3 | B95: 27783.41285 | C95: 29156.11285 | D95: 26797.41285 | E95: 28405.21285 | F95: 30071.81285 | G95: 36141.21285 | H95: 33381.88177 | I95: 36009.27423 | J95: 35582.1
B96: =SUM(B93:B95) -> 60161.35441 | C96: =SUM(C93:C95) -> 58325.17674 | D96: 55996.8394 | E96: 56919.28137 | F96: 60354.75677 | G96: 65665.94843 | H96: 61204.85452 | I96: 60898.8082 | J96: 62069.7
B99: FY2004 | C99: FY2005 | D99: FY2006 | E99: FY2007 | F99: FY2008 | G99: FY2009 | H99: FY2010 | I99: FY2011 | J99: FY2012 | K99: FY2014
B100: 60029.77331 | C100: 58186.88577 | D100: 55906.41779 | E100: 56820.70327 | F100: 60262.80389 | G100: 65017.45173 | H100: 59961.38272 | I100: 60229.33081 | J100: 60900.6116
A101: FTE | B101: 23677.8 | C101: 24178.86287 | D101: 24195.71607 | E101: 24131.57237 | F101: 23860.5 | G101: 24779 | H101: 25751.5 | I101: 27967 | J101: 28867
A102: MTCDE/FTE | B102: =B100/B101 -> 2.535276643 | C102: 2.406518705 | D102: 2.310591579 | E102: 2.354620842 | F102: 2.525630389 | G102: 2.623893286 | H102: 2.328461749 | I102: 2.153585683 | J102: 2.109696595
A103: GSF | B103: 5930710 | C103: 6004131 | D103: 6327716 | E103: 6352151 | F103: 6441734 | G103: 6298056 | H103: 6507873 | I103: 7374796 | J103: 7800628
A104: MTCDE/GSF | B104: =B100/B103 -> 0.01012185275 | C104: =C100/C103 -> 0.009691141944 | D104: 0.008835165451 | E104: 0.008945112179 | F104: 0.00935505935 | G104: 0.01032341594 | H104: 0.009213668232 | I104: 0.008166914828 | J104: 0.007807142143
B106: FY2004 | C106: FY2005 | D106: FY2006 | E106: FY2007 | F106: FY2008 | G106: FY2009 | H106: FY2010 | I106: FY2011 | J106: FY2012
B107: =B102 -> 2.535276643 | C107: =C102 -> 2.406518705 | D107: 2.310591579 | E107: 2.354620842 | F107: 2.525630389 | G107: 2.623893286 | H107: 2.328461749 | I107: 2.153585683 | J107: 2.109696595
B108: FY2004 | C108: FY2005 | D108: FY2006 | E108: FY2007 | F108: FY2008 | G108: FY2009 | H108: FY2010 | I108: FY2011 | J108: FY2012
B109: =B104 -> 0.01012185275 | C109: =C104 -> 0.009691141944 | D109: 0.008835165451 | E109: 0.008945112179 | F109: 0.00935505935 | G109: 0.01032341594 | H109: 0.009213668232 | I109: 0.008166914828 | J109: 0.007807142143
B135: FY2004 | C135: FY2005 | D135: FY2006 | E135: FY2007 | F135: FY2008 | G135: FY2009 | H135: FY2010 | I135: FY2011 | J135: FY2012 | K135: FY2014
B136: 3.311468624 | C136: 3.131377577 | D136: 3.018174554 | E136: 3.106843712 | F136: 3.342663605 | G136: 3.347879019 | H136: 2.98018783 | I136: 2.693335365 | J136: 2.699067134
A142: Scope 1 | B142: =J93 -> 24235
A143: Scope 2 | B143: 2252.6
A144: Scope 3 | B144: =J95 -> 35582.1

Sheet Data Collection Notes_Sheena
A1: ='Institutional Data'!D8 -> University of Oregon
A2: Go-Green Measurement, Benchmarking and Analysis Summary
C4: Received Data From | D4: File Names | E4: File Format | F4: Assumptions or Calculations | G4: Notes and Future Issues
B5: Institutional Data
B6: Population | G6: ROPA numberes
B10: Physical Size | G10: From ROPA building inventory; but including entire campus
B14: Scope 1
B15: On Campus Stationary Sources | E15: multiple | G15: All base data of fossil fuels in the scope 1 file in the fossil fuel folder. Multiple sources and are listed in the Data collect Process and Update in the base data folder. Conversion from Therms to mmbtu is in the U of O Fossil Fuel Conversions FY10 most recent document
C16: Multiple Sources- listed in base data data contact and collection
B19: University Fleet | D19: DAS report; FY2010#s from email from Evan; Email: RE;Ground travel expl + more fuel data | E19: PDF and excel, Email PDFed | G19: Split out of the athletics vehicle in Ground Travel e-mail. Not including the DAS report because on concern that it is double counted with Carolyn's numbers for the Reimbursement motorpool numbers
C20: OUS - DAS report
C21: Evan Lewis - from Bill Kasper and Athletics
B23: Refrigerants & Chemicals | G23: N/A
B27: Fertilizer Application | D27: FY 2010 Fertilizer Usage; FY10 Fertilizer Data | E27: PDF and excel | G27: All pounds and nitrogen % provided
C28: Evan - from Jeff Ziglinski
B31: Animal Husbandry
B35: Scope 2
B36: Purchased Electric | E36: multiple | G36: All base data of fossil fuels in the scope 2 file in the electricity folder. Multiple sources and are listed in the Data collect Process and Update in the base data folder
C37: Multiple Sources- listed in base data data contact and collection
B40: Purchased Steam
C41: Baker - in base data folder
B44: Purchased Chilled Water
B48: Scope 3
B49: Faculty/Staff Commuting | G49: Used last years numbers
C50: Steve Mital
B53: Student Commuting | G53: Used last years numbers
C54: Steve Mital
B57: Faculty/Staff Air Travel
C58: Evan -
B61: Student Air Travel
B65: Other Travel/ Motorpool | C65: Justin Fleming - OSU | D65: UofO Carbon | E65: Excel
B69: Study Abroad Travel
B73: Solid Waste | D73: campus Reycling total | E73: Excel | G73: In the Chart number tab
C74: Evan
B77: Wastewater | D77: Wastewater and Water FY10 Facilities Services Input
C78: Trafton Bean & Teri Jones
B81: Paper | C81: Tim Gray | D81: RE_U of O - paper purchases; Paper calucations 2_fy10 | E81: PDF of e-mail and excel | F81: calculations in the excel calculation sheet, using the base data as 60% of entire purchases | G81: data contact from Office max, used in Fy09. confirmed from purchasing department and Office Max that they sell 60% of campuses paper a year.
B85: Offsets
B86: Offsets - Additionality | D86: offsets/ WARM; FY10 #s | E86: PDF
C87: Steve Mital / Evan
B90: Offsets - Non Additionality
C92: Steve Mital / Evan
B94: Miscellaneous
B95: LEED / Green Building | G95: Same as last year
B99: Personal Water Use | D99: Wastewater and Water FY10 Facilities Services Input; OIMB - Utilities Track fo UO III | E99: Excel | F99: Calculations made in the spreadsheet and adds in the OIMB water consumption | G99: OIMB data in the Scope 1&2 folder in the electricity folder.
C100: Trafton Bean & Teri Jones
C101: Joyce Croes
B103: Recycling | D103: campus Reycling total | E103: Excel | G103: In the Chart number tab
C104: Evan

Sheet Data Collection Notes_Evan
A1: Scope 1 | B1: Original File Name | C1: Data Source | D1: Notes
A2: Cogen Electric GHG | B2: Scope 1.xlsx | C2: ??? (contact Sheena Salsberry)
A3: Cogen Steam GHG | B3: Scope 1.xlsx | C3: ??? (contact Sheena Salsberry)
A4: Other On-Campus Stationary GHG | B4: Scope 1 distillate oils and propane.xlsx | C4: ??? (contact Sheena Salsberry)
A5: Direct Transportation GHG | B5: Other scope 1 fleet.xlsx | C5: FY04-FY09: Oregon DAS Reports + fleet fuel data from Bill Kasper. FY10 data came from Bill Kasper and Ryan Stock. | D5: See notes about data collection. FY 06 Totals extrapolated back to FY04. All years except FY10 included gasoline totals from DAS reports. FY10 only included gasoline data from UO Facilities and Athletics. Large decline in fuel consumption is due to the way data was tracked, not due to actual decline in consumption.
A6: Agriculture GHG | B6: Scope 1.xlsx | C6: Jeff Ziglinski, UO Campus Operations
A9: Scope 2
A10: Purchased Electricity | B10: Scope 2 raw data by bill.xlsx
A11: Purchased Steam | B11: Scope 2 raw data by bill.xlsx
A13: Scope 2 Contacts
A14: Energy Type | B14: Inventory needed | C14: FY010Utility | D14: FY10 Data Tab | E14: FY10 Orignial Data | F14: Contact | G14: Contact Number | H14: Contact Email | I14: FY04-FY10 Data Name | J14: FY04-FY10 Orginial File | K14: Date received | L14: Additional Notes | M14: Source
A15: Electricity | B15: FY04-FY10 | C15: Athletics | D15: Athletics | E15: All athletic documents in Atheltics folder | F15: Teri | G15: 541-346-6859 | H15: terij@uoregon.edu | I15: Athletics | J15: UO49201; UO80022; UO80062; UO80113 | K15: 2010-09-09 | M15: EWEB
A16: Electricity | B16: FY10 | C16: Baker | D16: Baker | F16: Teri | G16: 541-346-6859 | H16: terij@uoregon.edu | I16: In tab | J16: Uo 3953; UO 5293
A17: Electricity | B17: FY04-FY10 | C17: East Campus | D17: Spence-Ugrad-East C | E17: 230 tab | F17: Teri | G17: 541-346-6859 | H17: terij@uoregon.edu | I17: UO Housing Master Bill | J17: UO Housing Master Bill | K17: 2010-09-27 | M17: EWEB
A18: Electricity | B18: FY10 | C18: EC Cares | D18: EC Cares | F18: Teri | G18: 541-346-6859 | H18: terij@uoregon.edu | I18: EC Cares | J18: EC Cares - mark numbers
A19: Electricity | B19: FY10 | C19: EWEB HV | D19: EWEB HV | F19: Teri | G19: 541-346-6859 | H19: terij@uoregon.edu | I19: EWEB HV Master Input | J19: EWEB HV Master Input | K19: 2010-09-08
A20: Electricity | B20: FY10 | C20: EWEB Unified | D20: EWEB Unified | E20: in unified tab | F20: Teri | G20: 541-346-6859 | H20: terij@uoregon.edu | I20: EWEB HV Master Input | J20: EWEB HV Master Input | K20: 2010-09-08
A21: Electricity | B21: FY04-FY10 | C21: Graduate Village | D21: Spence-Ugrad-East C | E21: 217 tab | F21: Teri | G21: 541-346-6859 | H21: terij@uoregon.edu | I21: UO Housing Master Bill | J21: UO Housing Master bill | K21: 2010-09-27 | M21: EWEB
A22: Electricity | B22: FY04-FY10 | C22: Housing Department EWEB Bill | D22: Eletricity 2009-10 | E22: Housing | F22: Allen Gidley Received from Teri Jones | G22: 541-346-6859 | H22: agidley@uoregon.edu | I22: Housing Combined - in tab | J22: UO3953 (Barnhart); UO5293 (Riley) | K22: 2010-09-09
A23: Electricity | B23: FY10 | C23: OIMB | D23: OIMB- Utilities Tracking for UO Key | F23: Joyce Croes | H23: jcroes@uoregon.edu | I23: OIMB- utilities Track for UO III | J23: OIMB- utilities Track for UO III | K23: Sept.
A24: Electricity | B24: FY10 | C24: Pine Mt. Observatory | D24: Pine Mt. Observatory_SS | E24: 1706_013; 1706_023, 1706_001 | F24: Deanna Tarango | H24: dtarango@uoregon.edu | I24: Pine Mt. 1 of 2, Pine Mt. 2 of 2 | J24: 2344_013; 2344_001 | K24: 2010-07-13
A25: Electricity | B25: FY04-FY10 | C25: Rainer Building | D25: Rainer Building | F25: Teri | G25: 541-346-6859 | H25: terij@uoregon.edu | I25: Rainier Building Combined | J25: 54582, 54583, 54584 | K25: 2010-08-18
A26: Electricity | B26: FY04-FY10 | C26: River Front | D26: RiverFront_Combined documents | E26: all riverfront documents (1600 Millrace) in RiverFront Folder combioned in 1600 millrace_SS | F26: Deneane Southern - EWEB | G26: 801.583.8811/ 541-685-7000 Customer Serivce # | H26: deneanesouthern@rpa.utah.edu | I26: data was hand processed. Didn't have electronic version. Information is in this tab | J26: Information on contact number in Riverfront - EWEB info message 7-15 | L26: ***54.17% is owned by U of O -- only Jul 13 - Was only able to provide charges. Will ask if I can have permission to gather the information directly from EWEB. Jul 15- received permission to contact EWEB by phone only. Additional meter notes in other tab. 8/5 Contacted and will send data
A27: Electricity | B27: FY04-FY10 | C27: Spencer View | D27: Housing | E27: 286 tab | F27: Teri | G27: 541-346-6859 | H27: terij@uoregon.edu | I27: UO Housing Master Bill | K27: 2010-09-27 | M27: EWEB
A28: Electricity | B28: FY10 | C28: White Stag Building | D28: White Stag Building _SS | E28: PGE_white Stag (PDF) | F28: Margaret Teasdale | G28: 503-943-6095 | H28: margaret@venerableproperties.com | I28: Combined PGE FY10 | J28: PDF copy of billing - White Stag PGE | K28: 2010-07-28
A29: Natural Gas | B29: FY04-FY10 | C29: White Stag Block | D29: White Stag Building _SS | E29: NW Tab | F29: Margaret Teasdale | G29: 503-943-6095 | H29: margaret@venerableproperties.com | I29: Combined NWNatural FY10 | J29: PDF copy of billing - White Stag NW Natural | K29: 2010-07-28
A30: Natural Gas | B30: FY10 | C30: Northwest Natural Gas to CPS | D30: NWN Transportation Input | F30: Teri | H30: terij@uoregon.edu | L30: Received FY10 report
A31: Natural Gas | B31: FY10 | C31: NWN Individual Input | D31: NWN Individual Output Sightlines | F31: Teri | H31: terij@uoregon.edu | L31: Received FY10 report
A32: Natural Gas | B32: FY04-FY10 | C32: Erb Memorial Building | D32: EMU | E32: EMUNatgas | F32: Teri | H32: terij@uoregon.edu | I32: NWN - housing and EMU combined | J32: Doc.PDF | K32: 2010-09-09 | L32: Followed up on data collection 7/28. Scheduled time to meet on 8/19 during FMB&A campus visit | M32: NWN
A33: Natural Gas | B33: FY04-FY10 | C33: Athletics Department Northwest Natural Bill | D33: Athletics NW Natural Gas FY04-FY09 | F33: Teri | H33: terij@uoregon.edu | L33: Followed up on data collection 7/28. Scheduled time to meet on 8/19 during FMB&A campus visit
A34: Natural Gas | B34: FY04-FY10 | C34: Housing NWNG | D34: Housing | E34: Gas tab | F34: Teri | H34: terij@uoregon.edu | I34: NWN - housing and EMU combined | J34: Doc.PDF | K34: 2010-09-09 | L34: Followed up on data collection 7/28. Scheduled time to meet on 8/19 during FMB&A campus visit | M34: NWN
A35: Propane | B35: FY10 | C35: OIMB | D35: OIMB- Utilities Tracking for UO Key | E35: propane pivot tab | F35: Joyce Croes | H35: jcroes@uoregon.edu | I35: OIMB- utilities Track for UO III | J35: OIMB- utilities Track for UO III | K35: Sept. | L35: Jul13 - says it might take next fall. Emailed back to see if she needed help gathering the data
A36: Oil | B36: FY10 | C36: OIMB | D36: OIMB- Utilities Tracking for UO Key | E36: oil pivot tab | F36: Joyce Croes | H36: jcroes@uoregon.edu | I36: OIMB- utilities Track for UO III | J36: OIMB- utilities Track for UO III | K36: Sept. | L36: Jul13 - says it might take next fall. Emailed back to see if she needed help gathering the data
A37: Electricity | B37: FY04-FY07 | C37: Westmoreland | F37: Allen Gidley | H37: agidley@uoregon.edu | L37: Data wasn't available. Used kwh/GSF comparable to spencer village and applied to total space.
A38: Natural Gas | B38: FY04-FY08 | C38: Willamette Block Building | G38: Angela Mercer 503-412-3744 | H38: mercer@uoregon.edu | I38: Energy consumption | K38: 2010-09-24
A39: Electricity | B39: FY04-FY08 | C39: Willamette Block Building | G39: Angela Mercer 503-412-3744 | H39: mercer@uoregon.edu | I39: Energy consumption | J39: Energy consumption | K39: 2010-09-24
A40: Fuel Oil | C40: CPS NWNG | J40: 6/1/2010 LRAPA Report 25
A42: Scope 3 | B42: Original File Name | C42: Contact | D42: Contact # | E42: Contact Email | F42: Notes | G42: Source
A43: Faculty and Staff Commuting | B43: Scope 3 | C43: Steve Mital (2009 Commute Survey)
A44: Student Commuting | B44: Scope 3 | C44: Steve Mital (2009 Commute Survey)
A45: Outsourced Travel: Directly Financed Air Travel | B45: Scope 3 | C45: Carolyn Wooley (reimburesements, travel egency reports, charter planes), Lynn Harrel (procurement cards) | D45: Carolyn Wooley: 541-346-3158, Lynn Harrell: 541-346-3220 | E45: Carolyn Wooley: cwooley@uoregon.edu, Lynn Harrell: lharrell@uoregon.edu | F45: Travel booked through 4 travel agencies, reimburesements, and procurement cards, + charter flights for athletics (get through Carolyn- Colleen Minard in Athletics Business Office is Original Source of charter data). See air travel ghg collection summary for more detail | G45: UO Business Office and UO Procurement and Contracting Services
A46: Other Directly Financed Travel | B46: Scope 3 | C46: Carolyn Wooley (reimburesements) , Justin Flemming for Motor Pool: | D46: Carolyn Wooley: 541-346-3158, Justin Flemming: 541-346-2000 | E46: Carolyn Wooley: cwooley@uoregon.edu, Justin Flemming: justin.fleming@oregonstate.edu | F46: FY10 motor pool totals included Enterprise rental vehicles- these will not be included in the future. | G46: UO Business Office and OSU Motor Pool- Eugene
A47: Solid Waste | B47: Scope 3 | C47: Karyn Kaplan | D47: Karyn Kaplan: (541) 346-1545 | E47: Karyn Kaplan: knowaste@uoregon.edu | F47: Contact Karyn for updated spreadsheet on landfileld vs. recycled waste in FY11 | G47: UO Campus Recycling
A48: Wastewater | B48: Scope 3 | C48: Teri Jones, UO Facilities Services
A49: Paper | B49: Scope 3 | C49: Tim Gray (Office Max) | D49: Tim Gray: 877-969-6629 | E49: Tim Gray: timgray@officemax.com | F49: Get updated data from Mark Dixon (UO Printing and Mailing Services) for FY11 | G49: Office Max

Sheet GHG Summary_local
A1: ='Institutional Data'!$D$8 -> University of Oregon
A2: ='Water and Waste'!A2 -> Go-Green Measurement, Benchmarking and Analysis Summary
A4: GHG Summary
B6: Total Emissions | E6: FY1995 | F6: FY1996 | G6: FY1997 | H6: FY1998 | I6: FY1999 | J6: FY2000 | K6: FY2001 | L6: FY2002 | M6: FY2003 | N6: FY2004 | O6: FY2005 | P6: FY2006 | Q6: FY2007 | R6: FY2008 | S6: FY2009 | T6: FY2010 | U6: FY2011 | V6: FY2012 | W6: FY2014
B7: Scope 1
C8: Scope 1 Utilities | D8: MTCDE | E8: ='Scope 1 Utilities'!E50 -> 0 | F8: ='Scope 1 Utilities'!F50 -> 0 | G8: ='Scope 1 Utilities'!G50 -> 0 | H8: ='Scope 1 Utilities'!H50 -> 0 | I8: ='Scope 1 Utilities'!I50 -> 0 | J8: ='Scope 1 Utilities'!J50 -> 0 | K8: ='Scope 1 Utilities'!K50 -> 0 | L8: ='Scope 1 Utilities'!L50 -> 0 | M8: ='Scope 1 Utilities'!M50 -> 0 | N8: 27189.48332 | O8: 23775.25434 | P8: 23422.88082 | Q8: 23215.8192 | R8: 24993.75738 | S8: 24185.37252 | T8: 23078.66959 | U8: 20790.6 | V8: ='Scope 1 Utilities'!V46 -> 23677 | W8: ='Scope 1 Utilities'!W46 -> 50311
C9: Vehicle Fleet | D9: MTCDE | E9: ='Other Scope 1'!E50 -> 0 | F9: ='Other Scope 1'!F50 -> 0 | G9: ='Other Scope 1'!G50 -> 0 | H9: ='Other Scope 1'!H50 -> 0 | I9: ='Other Scope 1'!I50 -> 0 | J9: ='Other Scope 1'!J50 -> 0 | K9: ='Other Scope 1'!K50 -> 0 | L9: ='Other Scope 1'!L50 -> 0 | M9: ='Other Scope 1'!M50 -> 0 | N9: ='Other Scope 1'!N50 -> 1316.1 | O9: ='Other Scope 1'!O50 -> 1332.6 | P9: ='Other Scope 1'!P50 -> 1314.3 | Q9: ='Other Scope 1'!Q50 -> 883.7 | R9: ='Other Scope 1'!R50 -> 866.8 | S9: ='Other Scope 1'!S50 -> 890.9 | T9: ='Other Scope 1'!T50 -> 426 | U9: ='Other Scope 1'!U50 -> 477.4 | V9: ='Other Scope 1'!V50 -> 553 | W9: ='Other Scope 1'!W50 -> 537
C10: Refrigerants and Chemicals | D10: MTCDE | E10: ='Other Scope 1'!E51 -> 0 | F10: ='Other Scope 1'!F51 -> 0 | G10: ='Other Scope 1'!G51 -> 0 | H10: ='Other Scope 1'!H51 -> 0 | I10: ='Other Scope 1'!I51 -> 0 | J10: ='Other Scope 1'!J51 -> 0 | K10: ='Other Scope 1'!K51 -> 0 | L10: ='Other Scope 1'!L51 -> 0 | M10: ='Other Scope 1'!M51 -> 0 | N10: ='Other Scope 1'!N51 -> 0 | O10: ='Other Scope 1'!O51 -> 0 | P10: ='Other Scope 1'!P51 -> 0 | Q10: ='Other Scope 1'!Q51 -> 0 | R10: ='Other Scope 1'!R51 -> 0 | S10: ='Other Scope 1'!S51 -> 0 | T10: ='Other Scope 1'!T51 -> 0 | U10: ='Other Scope 1'!U51 -> 0 | V10: ='Other Scope 1'!V51 -> 0 | W10: ='Other Scope 1'!W51 -> 0
C11: Agricutlure | D11: MTCDE | E11: ='Other Scope 1'!E52 -> 0 | F11: ='Other Scope 1'!F52 -> 0 | G11: ='Other Scope 1'!G52 -> 0 | H11: ='Other Scope 1'!H52 -> 0 | I11: ='Other Scope 1'!I52 -> 0 | J11: ='Other Scope 1'!J52 -> 0 | K11: ='Other Scope 1'!K52 -> 0 | L11: ='Other Scope 1'!L52 -> 0 | M11: ='Other Scope 1'!M52 -> 0 | N11: ='Other Scope 1'!N52 -> 22.47546342 | O11: ='Other Scope 1'!O52 -> 22.47546342 | P11: ='Other Scope 1'!P52 -> 22.47546342 | Q11: ='Other Scope 1'!Q52 -> 23.71783239 | R11: ='Other Scope 1'!R52 -> 21.23309446 | S11: ='Other Scope 1'!S52 -> 29.86729333 | T11: ='Other Scope 1'!T52 -> 7.224933033 | U11: ='Other Scope 1'!U52 -> 7.4 | V11: ='Other Scope 1'!V52 -> 5 | W11: ='Other Scope 1'!W52 -> 3
C12: Total Scope 1 | D12: MTCDE | E12: =SUM(E8:E11) -> 0 | F12: =SUM(F8:F11) -> 0 | G12: 0 | H12: 0 | I12: 0 | J12: 0 | K12: 0 | L12: 0 | M12: 0 | N12: 28528.05878 | O12: 25130.3298 | P12: 24759.65629 | Q12: 24123.23703 | R12: 25881.79048 | S12: 25106.13982 | T12: 23511.89452 | U12: =SUM(U8:U11) -> 21275.4 | V12: =SUM(V8:V11) -> 24235 | W12: =SUM(W8:W11) -> 50851
B13: Scope 2
C14: Purchased Electricity | D14: MTCDE | E14: ='Scope 2 Utilities'!E46 -> 0 | F14: ='Scope 2 Utilities'!F46 -> 0 | G14: ='Scope 2 Utilities'!G46 -> 0 | H14: ='Scope 2 Utilities'!H46 -> 0 | I14: ='Scope 2 Utilities'!I46 -> 0 | J14: ='Scope 2 Utilities'!J46 -> 0 | K14: ='Scope 2 Utilities'!K46 -> 0 | L14: ='Scope 2 Utilities'!L46 -> 0 | M14: ='Scope 2 Utilities'!M46 -> 0 | N14: 3729.582778 | O14: 3918.434086 | P14: 4302.870262 | Q14: 4232.231489 | R14: 4181.053439 | S14: 4109.295766 | T14: 3972.078219 | U14: 3126.13397 | V14: 1949 | W14: 1339
C15: Purchased Steam | D15: MTCDE | E15: ='Scope 2 Utilities'!E47 -> 0 | F15: ='Scope 2 Utilities'!F47 -> 0 | G15: ='Scope 2 Utilities'!G47 -> 0 | H15: ='Scope 2 Utilities'!H47 -> 0 | I15: ='Scope 2 Utilities'!I47 -> 0 | J15: ='Scope 2 Utilities'!J47 -> 0 | K15: ='Scope 2 Utilities'!K47 -> 0 | L15: ='Scope 2 Utilities'!L47 -> 0 | M15: ='Scope 2 Utilities'!M47 -> 0 | N15: ='Scope 2 Utilities'!N47 -> 120.3 | O15: ='Scope 2 Utilities'!O47 -> 120.3 | P15: ='Scope 2 Utilities'!P47 -> 136.9 | Q15: ='Scope 2 Utilities'!Q47 -> 158.6 | R15: ='Scope 2 Utilities'!R47 -> 220.1 | S15: ='Scope 2 Utilities'!S47 -> 309.3 | T15: ='Scope 2 Utilities'!T47 -> 339 | U15: ='Scope 2 Utilities'!U47 -> 488 | V15: ='Scope 2 Utilities'!V47 -> 303.6 | W15: 0
C16: Purchased Chilled Water | D16: MTCDE | E16: ='Scope 2 Utilities'!E48 -> 0 | F16: ='Scope 2 Utilities'!F48 -> 0 | G16: ='Scope 2 Utilities'!G48 -> 0 | H16: ='Scope 2 Utilities'!H48 -> 0 | I16: ='Scope 2 Utilities'!I48 -> 0 | J16: ='Scope 2 Utilities'!J48 -> 0 | K16: ='Scope 2 Utilities'!K48 -> 0 | L16: ='Scope 2 Utilities'!L48 -> 0 | M16: ='Scope 2 Utilities'!M48 -> 0 | N16: ='Scope 2 Utilities'!N48 -> 0 | O16: ='Scope 2 Utilities'!O48 -> 0 | P16: ='Scope 2 Utilities'!P48 -> 0 | Q16: ='Scope 2 Utilities'!Q48 -> 0 | R16: ='Scope 2 Utilities'!R48 -> 0 | S16: ='Scope 2 Utilities'!S48 -> 0 | T16: ='Scope 2 Utilities'!T48 -> 0 | U16: ='Scope 2 Utilities'!U48 -> 0 | V16: ='Scope 2 Utilities'!V48 -> 0 | W16: ='Scope 2 Utilities'!W48 -> 0
C17: Total Scope 2 | D17: MTCDE | E17: =SUM(E14:E16) -> 0 | F17: 0 | G17: 0 | H17: 0 | I17: 0 | J17: 0 | K17: 0 | L17: 0 | M17: 0 | N17: 3849.882778 | O17: 4038.734086 | P17: 4439.770262 | Q17: 4390.831489 | R17: 4401.153439 | S17: 4418.595766 | T17: 4311.078219 | U17: =SUM(U14:U16) -> 3614.13397 | V17: =SUM(V14:V16) -> 2252.6 | W17: =SUM(W14:W16) -> 1339
B18: Scope 3
C19: Faculty / Staff Commuting | D19: MTCDE | E19: ='Scope 3 Commuting'!E125 -> 0 | F19: ='Scope 3 Commuting'!F125 -> 0 | G19: ='Scope 3 Commuting'!G125 -> 0 | H19: ='Scope 3 Commuting'!H125 -> 0 | I19: ='Scope 3 Commuting'!I125 -> 0 | J19: ='Scope 3 Commuting'!J125 -> 0 | K19: ='Scope 3 Commuting'!K125 -> 0 | L19: ='Scope 3 Commuting'!L125 -> 0 | M19: ='Scope 3 Commuting'!M125 -> 0 | N19: ='Scope 3 Commuting'!N125 -> 1230.6 | O19: ='Scope 3 Commuting'!O125 -> 1285.5 | P19: ='Scope 3 Commuting'!P125 -> 1272.1 | Q19: ='Scope 3 Commuting'!Q125 -> 1244.6 | R19: ='Scope 3 Commuting'!R125 -> 1440.2 | S19: ='Scope 3 Commuting'!S125 -> 2529.1 | T19: ='Scope 3 Commuting'!T125 -> 2739.9 | U19: ='Scope 3 Commuting'!U125 -> 2838.3 | V19: ='Scope 3 Commuting'!V125 -> 2895.9 | W19: ='Scope 3 Commuting'!W125 -> 2903.7
C20: Student Commuting | D20: MTCDE | E20: ='Scope 3 Commuting'!E126 -> 0 | F20: ='Scope 3 Commuting'!F126 -> 0 | G20: ='Scope 3 Commuting'!G126 -> 0 | H20: ='Scope 3 Commuting'!H126 -> 0 | I20: ='Scope 3 Commuting'!I126 -> 0 | J20: ='Scope 3 Commuting'!J126 -> 0 | K20: ='Scope 3 Commuting'!K126 -> 0 | L20: ='Scope 3 Commuting'!L126 -> 0 | M20: ='Scope 3 Commuting'!M126 -> 0 | N20: ='Scope 3 Commuting'!N126 -> 4801.2 | O20: ='Scope 3 Commuting'!O126 -> 4899.4 | P20: ='Scope 3 Commuting'!P126 -> 4375.7 | Q20: ='Scope 3 Commuting'!Q126 -> 4247 | R20: ='Scope 3 Commuting'!R126 -> 4351.6 | S20: ='Scope 3 Commuting'!S126 -> 5318.8 | T20: ='Scope 3 Commuting'!T126 -> 5243.1 | U20: ='Scope 3 Commuting'!U126 -> 5734.3 | V20: ='Scope 3 Commuting'!V126 -> 3163.5 | W20: ='Scope 3 Commuting'!W126 -> 2903.7
C21: Directly Financed Air Travel | D21: MTCDE | E21: ='Other Scope 3 Sources'!E65 -> 0 | F21: ='Other Scope 3 Sources'!F65 -> 0 | G21: ='Other Scope 3 Sources'!G65 -> 0 | H21: ='Other Scope 3 Sources'!H65 -> 0 | I21: ='Other Scope 3 Sources'!I65 -> 0 | J21: ='Other Scope 3 Sources'!J65 -> 0 | K21: ='Other Scope 3 Sources'!K65 -> 0 | L21: ='Other Scope 3 Sources'!L65 -> 0 | M21: ='Other Scope 3 Sources'!M65 -> 0 | N21: ='Other Scope 3 Sources'!N65 -> 14520.3 | O21: ='Other Scope 3 Sources'!O65 -> 14478.6 | P21: ='Other Scope 3 Sources'!P65 -> 13082.7 | Q21: ='Other Scope 3 Sources'!Q65 -> 15317.6 | R21: ='Other Scope 3 Sources'!R65 -> 16527 | S21: ='Other Scope 3 Sources'!S65 -> 20580.6 | T21: ='Other Scope 3 Sources'!T65 -> 18243 | U21: ='Other Scope 3 Sources'!U65 -> 18055.4 | V21: ='Other Scope 3 Sources'!V65 -> 19841 | W21: ='Other Scope 3 Sources'!W65 -> 26201 | Y21: =SUM(V19:V20) -> 6059.4
C22: Other Directly Financed Travel | D22: MTCDE | E22: ='Other Scope 3 Sources'!E66 -> 0 | F22: ='Other Scope 3 Sources'!F66 -> 0 | G22: ='Other Scope 3 Sources'!G66 -> 0 | H22: ='Other Scope 3 Sources'!H66 -> 0 | I22: ='Other Scope 3 Sources'!I66 -> 0 | J22: ='Other Scope 3 Sources'!J66 -> 0 | K22: ='Other Scope 3 Sources'!K66 -> 0 | L22: ='Other Scope 3 Sources'!L66 -> 0 | M22: ='Other Scope 3 Sources'!M66 -> 0 | N22: ='Other Scope 3 Sources'!N66 -> 1327.6 | O22: ='Other Scope 3 Sources'!O66 -> 1343.4 | P22: ='Other Scope 3 Sources'!P66 -> 1321.5 | Q22: ='Other Scope 3 Sources'!Q66 -> 1290.2 | R22: ='Other Scope 3 Sources'!R66 -> 1276.7 | S22: ='Other Scope 3 Sources'!S66 -> 1281 | T22: ='Other Scope 3 Sources'!T66 -> 1155 | U22: ='Other Scope 3 Sources'!U66 -> 1113.6 | V22: ='Other Scope 3 Sources'!V66 -> 1071 | W22: ='Other Scope 3 Sources'!W66 -> 870.1
C23: Study Abroad Air Travel | D23: MTCDE | E23: ='Other Scope 3 Sources'!E67 -> 0 | F23: ='Other Scope 3 Sources'!F67 -> 0 | G23: ='Other Scope 3 Sources'!G67 -> 0 | H23: ='Other Scope 3 Sources'!H67 -> 0 | I23: ='Other Scope 3 Sources'!I67 -> 0 | J23: ='Other Scope 3 Sources'!J67 -> 0 | K23: ='Other Scope 3 Sources'!K67 -> 0 | L23: ='Other Scope 3 Sources'!L67 -> 0 | M23: ='Other Scope 3 Sources'!M67 -> 0 | N23: ='Other Scope 3 Sources'!N67 -> 4084.5 | O23: ='Other Scope 3 Sources'!O67 -> 5325.7 | P23: ='Other Scope 3 Sources'!P67 -> 4920.9 | Q23: ='Other Scope 3 Sources'!Q67 -> 4467.5 | R23: ='Other Scope 3 Sources'!R67 -> 4638.1 | S23: ='Other Scope 3 Sources'!S67 -> 4578.5 | T23: ='Other Scope 3 Sources'!T67 -> 4281.6 | U23: 6401 | V23: ='Other Scope 3 Sources'!V67 -> 4946.8 | W23: ='Other Scope 3 Sources'!W67 -> 6693.9
C24: Solid Waste | D24: MTCDE | E24: ='Other Scope 3 Sources'!E69 -> 0 | F24: ='Other Scope 3 Sources'!F69 -> 0 | G24: ='Other Scope 3 Sources'!G69 -> 0 | H24: ='Other Scope 3 Sources'!H69 -> 0 | I24: ='Other Scope 3 Sources'!I69 -> 0 | J24: ='Other Scope 3 Sources'!J69 -> 0 | K24: ='Other Scope 3 Sources'!K69 -> 0 | L24: ='Other Scope 3 Sources'!L69 -> 0 | M24: ='Other Scope 3 Sources'!M69 -> 0 | N24: ='Other Scope 3 Sources'!N69 -> 333.0681 | O24: ='Other Scope 3 Sources'!O69 -> 328.1623 | P24: ='Other Scope 3 Sources'!P69 -> 331.512 | Q24: ='Other Scope 3 Sources'!Q69 -> 325.4871 | R24: ='Other Scope 3 Sources'!R69 -> 314.5697 | S24: ='Other Scope 3 Sources'!S69 -> 307.8057 | T24: ='Other Scope 3 Sources'!T69 -> 298.3 | U24: ='Other Scope 3 Sources'!U69 -> 293.0351 | V24: ='Other Scope 3 Sources'!V69 -> 284.24 | W24: ='Other Scope 3 Sources'!W69 -> 427.5
C25: Wastewater | D25: MTCDE | E25: ='Other Scope 3 Sources'!E70 -> 0 | F25: ='Other Scope 3 Sources'!F70 -> 0 | G25: ='Other Scope 3 Sources'!G70 -> 0 | H25: ='Other Scope 3 Sources'!H70 -> 0 | I25: ='Other Scope 3 Sources'!I70 -> 0 | J25: ='Other Scope 3 Sources'!J70 -> 0 | K25: ='Other Scope 3 Sources'!K70 -> 0 | L25: ='Other Scope 3 Sources'!L70 -> 0 | M25: ='Other Scope 3 Sources'!M70 -> 0 | N25: ='Other Scope 3 Sources'!N70 -> 1588.512848 | O25: ='Other Scope 3 Sources'!O70 -> 1588.512848 | P25: ='Other Scope 3 Sources'!P70 -> 1588.512848 | Q25: ='Other Scope 3 Sources'!Q70 -> 1588.512848 | R25: ='Other Scope 3 Sources'!R70 -> 1588.512848 | S25: ='Other Scope 3 Sources'!S70 -> 1588.512848 | T25: ='Other Scope 3 Sources'!T70 -> 1346.481773 | U25: ='Other Scope 3 Sources'!U70 -> 1271.57423 | V25: ='Other Scope 3 Sources'!V70 -> 1254.5 | W25: ='Other Scope 3 Sources'!W70 -> 1319
C26: Paper | D26: MTCDE | E26: ='Other Scope 3 Sources'!E71 -> 0 | F26: ='Other Scope 3 Sources'!F71 -> 0 | G26: ='Other Scope 3 Sources'!G71 -> 0 | H26: ='Other Scope 3 Sources'!H71 -> 0 | I26: ='Other Scope 3 Sources'!I71 -> 0 | J26: ='Other Scope 3 Sources'!J71 -> 0 | K26: ='Other Scope 3 Sources'!K71 -> 0 | L26: ='Other Scope 3 Sources'!L71 -> 0 | M26: ='Other Scope 3 Sources'!M71 -> 0 | N26: ='Other Scope 3 Sources'!N71 -> 236.3 | O26: ='Other Scope 3 Sources'!O71 -> 236.3 | P26: ='Other Scope 3 Sources'!P71 -> 236.3 | Q26: ='Other Scope 3 Sources'!Q71 -> 236.3 | R26: ='Other Scope 3 Sources'!R71 -> 236.3 | S26: ='Other Scope 3 Sources'!S71 -> 236.3 | T26: ='Other Scope 3 Sources'!T71 -> 329.9 | U26: ='Other Scope 3 Sources'!U71 -> 549.7 | V26: ='Other Scope 3 Sources'!V71 -> 595 | W26: ='Other Scope 3 Sources'!W71 -> 403.5
C27: Scope 2 T&D Losses | D27: MTCDE | E27: ='Other Scope 3 Sources'!E72 -> 0 | F27: ='Other Scope 3 Sources'!F72 -> 0 | G27: ='Other Scope 3 Sources'!G72 -> 0 | H27: ='Other Scope 3 Sources'!H72 -> 0 | I27: ='Other Scope 3 Sources'!I72 -> 0 | J27: ='Other Scope 3 Sources'!J72 -> 0 | K27: ='Other Scope 3 Sources'!K72 -> 0 | L27: ='Other Scope 3 Sources'!L72 -> 0 | M27: ='Other Scope 3 Sources'!M72 -> 0 | N27: 47 | O27: 50.5 | P27: 52 | Q27: 64.9 | R27: 63.1 | S27: 77 | T27: 84.2 | U27: 91.7 | V27: 78.1 | W27: ='Scope 2 Utilities'!W55 -> 1569.7
C28: Other Scope 3 | D28: MTCDE | E28: ='Other Scope 3 Sources'!E73 -> 0 | F28: ='Other Scope 3 Sources'!F73 -> 0 | G28: ='Other Scope 3 Sources'!G73 -> 0 | H28: ='Other Scope 3 Sources'!H73 -> 0 | I28: ='Other Scope 3 Sources'!I73 -> 0 | J28: ='Other Scope 3 Sources'!J73 -> 0 | K28: ='Other Scope 3 Sources'!K73 -> 0 | L28: ='Other Scope 3 Sources'!L73 -> 0 | M28: ='Other Scope 3 Sources'!M73 -> 0 | N28: ='Other Scope 3 Sources'!N73 -> 0 | O28: ='Other Scope 3 Sources'!O73 -> 0 | P28: ='Other Scope 3 Sources'!P73 -> 0 | Q28: ='Other Scope 3 Sources'!Q73 -> 0 | R28: ='Other Scope 3 Sources'!R73 -> 0 | S28: ='Other Scope 3 Sources'!S73 -> 0 | T28: ='Other Scope 3 Sources'!T73 -> 0 | U28: ='Other Scope 3 Sources'!U73 -> 0 | V28: ='Other Scope 3 Sources'!V73 -> 0 | W28: ='Other Scope 3 Sources'!W73 -> 0
C29: Total Scope 3 | D29: MTCDE | E29: =SUM(E19:E28) -> 0 | F29: =SUM(F19:F28) -> 0 | G29: 0 | H29: 0 | I29: 0 | J29: 0 | K29: 0 | L29: 0 | M29: 0 | N29: 28169.08095 | O29: 29536.07515 | P29: 27181.22485 | Q29: 28782.09995 | R29: 30436.08255 | S29: 36497.61855 | T29: 33721.48177 | U29: =SUM(U19:U28) -> 36348.60933 | V29: =SUM(V19:V28) -> 34130.04 | W29: =SUM(W19:W28) -> 43292.1
B31: Total Gross GHG Emissions | E31: FY1995 | F31: FY1996 | G31: FY1997 | H31: FY1998 | I31: FY1999 | J31: FY2000 | K31: FY2001 | L31: FY2002 | M31: FY2003 | N31: FY2004 | O31: FY2005 | P31: FY2006 | Q31: FY2007 | R31: FY2008 | S31: FY2009 | T31: FY2010 | U31: FY2011 | V31: FY2012 | W31: FY2014
C32: Total Gross GHG Emissions | D32: MTCDE | E32: =E12+E17+E29 -> 0 | F32: =F12+F17+F29 -> 0 | G32: 0 | H32: 0 | I32: 0 | J32: 0 | K32: 0 | L32: 0 | M32: 0 | N32: 60547.02251 | O32: 58705.13904 | P32: 56380.6514 | Q32: 57296.16847 | R32: 60719.02647 | S32: 66022.35413 | T32: =T12+T17+T29 -> 61544.45452 | U32: =U12+U17+U29 -> 61238.1433 | V32: =V12+V17+V29 -> 60617.64 | W32: =W12+W17+W29 -> 95482.1
B34: Offsets | E34: FY1995 | F34: FY1996 | G34: FY1997 | H34: FY1998 | I34: FY1999 | J34: FY2000 | K34: FY2001 | L34: FY2002 | M34: FY2003 | N34: FY2004 | O34: FY2005 | P34: FY2006 | Q34: FY2007 | R34: FY2008 | S34: FY2009 | T34: FY2010 | U34: FY2011 | V34: FY2012 | W34: FY2014 | AE34: Total Air Travel
C35: Total Additional | D35: MTCDE | E35: =Offsets!E29 -> 0 | F35: =Offsets!F29 -> 0 | G35: =Offsets!G29 -> 0 | H35: =Offsets!H29 -> 0 | I35: =Offsets!I29 -> 0 | J35: =Offsets!J29 -> 0 | K35: =Offsets!K29 -> 0 | L35: =Offsets!L29 -> 0 | M35: =Offsets!M29 -> 0 | N35: =Offsets!N29 -> -131.5811022 | O35: =Offsets!O29 -> -138.290969 | P35: =Offsets!P29 -> -90.42161008 | Q35: =Offsets!Q29 -> -98.57809945 | R35: =Offsets!R29 -> -91.95287554 | S35: =Offsets!S29 -> -648.4966983 | T35: =Offsets!T29 -> -1243.471797 | U35: =Offsets!U29 -> -669.4773929 | V35: =Offsets!V29 -> -1259.088396 | W35: =Offsets!W29 -> -647.2
C36: Total Non-Additional | D36: MTCDE | E36: =Offsets!E30 -> 0 | F36: =Offsets!F30 -> 0 | G36: =Offsets!G30 -> 0 | H36: =Offsets!H30 -> 0 | I36: =Offsets!I30 -> 0 | J36: =Offsets!J30 -> 0 | K36: =Offsets!K30 -> 0 | L36: =Offsets!L30 -> 0 | M36: =Offsets!M30 -> 0 | N36: =Offsets!N30 -> 0 | O36: =Offsets!O30 -> 0 | P36: =Offsets!P30 -> 0 | Q36: =Offsets!Q30 -> 0 | R36: =Offsets!R30 -> 0 | S36: =Offsets!S30 -> 0 | T36: =Offsets!T30 -> 0 | U36: =Offsets!U30 -> 0 | V36: =Offsets!V30 -> 0 | W36: =Offsets!W30 -> 700 | AE36: FY2004 | AF36: FY2005 | AG36: FY2006 | AH36: FY2007 | AI36: FY2008 | AJ36: FY2009 | AK36: FY2010 | AL36: FY2011 | AM36: FY2012
C37: Total Offsets | D37: MTCDE | E37: =SUM(E35:E36) -> 0 | F37: =SUM(F35:F36) -> 0 | G37: 0 | H37: 0 | I37: 0 | J37: 0 | K37: 0 | L37: 0 | M37: 0 | N37: -131.5811022 | O37: -138.290969 | P37: -90.42161008 | Q37: -98.57809945 | R37: -91.95287554 | S37: -648.4966983 | T37: -1243.471797 | U37: =SUM(U35:U36) -> -669.4773929 | V37: =SUM(V35:V36) -> -1259.088396 | W37: =SUM(W35:W36) -> 52.8 | AE37: 14520.3 | AF37: 14478.6 | AG37: 13082.7 | AH37: 15317.6 | AI37: 16527 | AJ37: 20580.6 | AK37: 18243 | AL37: 18055.4 | AM37: 19732
AE38: 4084.5 | AF38: 5325.7 | AG38: 4920.9 | AH38: 4467.5 | AI38: 4638.1 | AJ38: 4578.5 | AK38: 4281.6 | AL38: 6401 | AM38: 4946.8
B39: Total Net GHG Emissions | E39: FY1995 | F39: FY1996 | G39: FY1997 | H39: FY1998 | I39: FY1999 | J39: FY2000 | K39: FY2001 | L39: FY2002 | M39: FY2003 | N39: FY2004 | O39: FY2005 | P39: FY2006 | Q39: FY2007 | R39: FY2008 | S39: FY2009 | T39: FY2010 | U39: FY2011 | V39: FY2012 | W39: FY2014 | AE39: =SUM(AE37:AE38) -> 18604.8 | AF39: 19804.3 | AG39: 18003.6 | AH39: 19785.1 | AI39: 21165.1 | AJ39: 25159.1 | AK39: 22524.6 | AL39: 24456.4 | AM39: 24678.8
C40: Total Net GHG Emissions | D40: MTCDE | E40: =E32+E37 -> 0 | F40: 0 | G40: 0 | H40: 0 | I40: 0 | J40: 0 | K40: 0 | L40: 0 | M40: 0 | N40: 60415.44141 | O40: 58566.84807 | P40: 56290.22979 | Q40: 57197.59037 | R40: 60627.07359 | S40: 65373.85743 | T40: =T32+T37 -> 60300.98272 | U40: =U32+U37 -> 60568.66591 | V40: =V32+V37 -> 59358.5516 | W40: =W32+W37 -> 95534.9
AE41: =AE39/N40 -> 0.3079477625 | AF41: 0.3381486396 | AG41: 0.319835255 | AH41: 0.3459079285 | AI41: 0.349103111 | AJ41: 0.3848495559 | AK41: 0.373536201 | AL41: =AL39/U40 -> 0.4037797372 | AM41: =AM39/V40 -> 0.415758123
C42: GSF | N42: 5930710 | O42: 6004131 | P42: 6327716 | Q42: 6352151 | R42: 6441734 | S42: 6298056 | T42: 6507873 | U42: ='Institutional Data'!Y8 -> 7374796 | V42: 7800628 | W42: 7800628
C44: Stationary/1000GSF | N44: =N8/N42*1000 -> 4.584524167 | O44: =O8/O42*1000 -> 3.959816057 | P44: 3.701632757 | Q44: 3.654796494 | R44: 3.879973526 | S44: 3.840132975 | T44: 3.546269202 | U44: =U8/U42*1000 -> 2.819142387 | V44: =V8/V42*1000 -> 3.035268442 | W44: =W8/W42*1000 -> 6.449608929
C45: Electricityi/1000gsf | N45: =N14/N42*1000 -> 0.6288594077 | O45: =O14/O42*1000 -> 0.6526230166 | P45: 0.6800036952 | Q45: 0.6662674563 | R45: 0.6490571388 | S45: 0.652470503 | T45: 0.6103496824 | U45: =U14/U42*1000 -> 0.4238942976 | V45: =V14/V42*1000 -> 0.2498516786 | W45: =W14/W42*1000 -> 0.1716528464
N46: =SUM(N44:N45) -> 5.213383574 | O46: =SUM(O44:O45) -> 4.612439074 | P46: 4.381636452 | Q46: 4.32106395 | R46: 4.529030665 | S46: 4.492603478 | T46: 4.156618884 | U46: =SUM(U44:U45) -> 3.243036685 | V46: =SUM(V44:V45) -> 3.285120121 | W46: =SUM(W44:W45) -> 6.621261775
T48: =N46-T46 -> 1.05676469 | U48: =O46-U46 -> 1.369402389 | V48: =P46-V46 -> 1.096516331 | W48: =Q46-W46 -> -2.300197825
T49: =T42/1000 -> 6507.873 | U49: =U42/1000 -> 7374.796 | V49: =V42/1000 -> 7800.628 | W49: =W42/1000 -> 7800.628
T50: =T49*T48 -> 6877.290392 | U50: =U49*U48 -> 10099.06326 | V50: =V49*V48 -> 8553.515994 | W50: =W49*W48 -> -17942.98756
N53: =N40/N42*1000 -> 10.18688174 | O53: 9.754425423 | P53: 8.895821144 | Q53: 9.00444438 | R53: 9.411607743 | S53: 10.38000574 | T53: 9.26585118 | U53: 8.21292764 | V53: 7.60945806 | W53: 12.24707806
C55: Students | N55: 19300.8 | O55: 19749.5 | P55: 19697.2 | Q55: 19608.6 | R55: 19279 | S55: 20762 | T55: 21689 | U55: ='Institutional Data'!Y21 -> 23721 | V55: ='Institutional Data'!Z21 -> 24548 | W55: ='Institutional Data'!AA21 -> 23771
N56: =N40/N55 -> 3.130204002 | O56: 2.965485104 | P56: 2.857778252 | Q56: 2.916964514 | R56: 3.144720867 | S56: 3.148726396 | T56: 2.780256477 | U56: 2.553377425 | V56: 2.4180606 | W56: 4.018968491 | AU56: =48+1+8+1 -> 58
D59: MTCDE/1000GSF
D60: Scope 1 | N60: =N12/N$42*1000 -> 4.810226564 | O60: =O12/O$42*1000 -> 4.18550658 | P60: 3.912889941 | Q60: 3.79764855 | R60: 4.017829746 | S60: 3.986331626 | T60: 3.612838561 | U60: =U12/U$42*1000 -> 2.884879799 | V60: =V12/V$42*1000 -> 3.106801145 | W60: =W12/W$42*1000 -> 6.518834125
D61: scope 2 | N61: =N17/N$42*1000 -> 0.649143657 | O61: =O17/O$42*1000 -> 0.6726592217 | P61: 0.7016386737 | Q61: 0.6912353767 | R61: 0.6832249576 | S61: 0.7015808951 | T61: 0.6624404346 | U61: =U17/U$42*1000 -> 0.4900656195 | V61: =V17/V$42*1000 -> 0.288771622 | W61: =W17/W$42*1000 -> 0.1716528464
D62: scope 3 | N62: =N29/N42*1000 -> 4.749697919 | O62: =O29/O42*1000 -> 4.919292259 | P62: 4.2955823 | Q62: 4.531079306 | R62: 4.724827593 | S62: 5.795060976 | T62: 5.181644106 | U62: =U29/U42*1000 -> 4.928761328 | V62: =V29/V42*1000 -> 4.375293887 | W62: =W29/W42*1000 -> 5.549822399
N63: =SUM(N60:N62) -> 10.20906814 | O63: =SUM(O60:O62) -> 9.77745806 | P63: 8.910110914 | Q63: 9.019963233 | R63: 9.425882296 | S63: 10.4829735 | T63: 9.456923102 | U63: =SUM(U60:U62) -> 8.303706747 | V63: =SUM(V60:V62) -> 7.770866653 | W63: =SUM(W60:W62) -> 12.24030937
D65: MTCDE/Students
D66: Scope 1 | N66: =N12/N55 -> 1.478076493 | O66: =O12/O55 -> 1.272453976 | P66: 1.257014006 | Q66: 1.230237602 | R66: 1.34248615 | S66: 1.209235132 | T66: 1.08404696 | U66: =U12/U55 -> 0.8969014797 | V66: =V12/V55 -> 0.9872494704 | W66: =W12/W55 -> 2.139203231
D67: scope 2 | N67: =N17/N55 -> 0.1994675235 | O67: =O17/O55 -> 0.2044980423 | P67: 0.2254010855 | Q67: 0.2239237625 | R67: 0.2282874339 | S67: 0.2128212969 | T67: 0.198767957 | U67: =U17/U55 -> 0.1523601016 | V67: =V17/V55 -> 0.09176307642 | W67: =W17/W55 -> 0.05632914055
D68: scope 3 | N68: =N29/N55 -> 1.459477376 | O68: =O29/O55 -> 1.495535337 | P68: 1.379953742 | Q68: 1.467830439 | R68: 1.578716871 | S68: 1.757904756 | T68: 1.554773469 | U68: =U29/U55 -> 1.532338828 | V68: =V29/V55 -> 1.390338928 | W68: =W29/W55 -> 1.821214926
C71: net/1000GSF | N71: =N40/N42*1000 -> 10.18688174 | O71: 9.754425423 | P71: 8.895821144 | Q71: 9.00444438 | R71: 9.411607743 | S71: 10.38000574 | T71: 9.26585118 | U71: 8.21292764 | V71: 7.60945806 | W71: 12.24707806
C72: Net /Student | N72: =N40/N55 -> 3.130204002 | O72: 2.965485104 | P72: 2.857778252 | Q72: 2.916964514 | R72: 3.144720867 | S72: 3.148726396 | T72: 2.780256477 | U72: 2.553377425 | V72: 2.4180606 | W72: 4.018968491

Sheet GHG Summary_regional
A1: ='Institutional Data'!$D$8 -> University of Oregon
A2: ='Water and Waste'!A2 -> Go-Green Measurement, Benchmarking and Analysis Summary
A4: GHG Summary
B6: Total Emissions | E6: FY1995 | F6: FY1996 | G6: FY1997 | H6: FY1998 | I6: FY1999 | J6: FY2000 | K6: FY2001 | L6: FY2002 | M6: FY2003 | N6: FY2004 | O6: FY2005 | P6: FY2006 | Q6: FY2007 | R6: FY2008 | S6: FY2009 | T6: FY2010 | U6: FY2011 | V6: FY2012 | W6: FY2014
B7: Scope 1
C8: Scope 1 Utilities | D8: MTCDE | E8: ='Scope 1 Utilities'!E50 -> 0 | F8: ='Scope 1 Utilities'!F50 -> 0 | G8: ='Scope 1 Utilities'!G50 -> 0 | H8: ='Scope 1 Utilities'!H50 -> 0 | I8: ='Scope 1 Utilities'!I50 -> 0 | J8: ='Scope 1 Utilities'!J50 -> 0 | K8: ='Scope 1 Utilities'!K50 -> 0 | L8: ='Scope 1 Utilities'!L50 -> 0 | M8: ='Scope 1 Utilities'!M50 -> 0 | N8: ='Scope 1 Utilities'!N50 -> 28599.82252 | O8: ='Scope 1 Utilities'!O50 -> 24898.01906 | P8: ='Scope 1 Utilities'!P50 -> 24226.22926 | Q8: ='Scope 1 Utilities'!Q50 -> 24019.69344 | R8: ='Scope 1 Utilities'!R50 -> 25857.31227 | S8: ='Scope 1 Utilities'!S50 -> 24954.68829 | T8: ='Scope 1 Utilities'!T50 -> 23431.20891 | U8: ='Scope 1 Utilities'!U50 -> 22303.8 | V8: ='Scope 1 Utilities'!V50 -> 23677 | W8: ='Scope 1 Utilities'!W50 -> 68919.5
C9: Vehicle Fleet | D9: MTCDE | E9: ='Other Scope 1'!E50 -> 0 | F9: ='Other Scope 1'!F50 -> 0 | G9: ='Other Scope 1'!G50 -> 0 | H9: ='Other Scope 1'!H50 -> 0 | I9: ='Other Scope 1'!I50 -> 0 | J9: ='Other Scope 1'!J50 -> 0 | K9: ='Other Scope 1'!K50 -> 0 | L9: ='Other Scope 1'!L50 -> 0 | M9: ='Other Scope 1'!M50 -> 0 | N9: ='Other Scope 1'!N50 -> 1316.1 | O9: ='Other Scope 1'!O50 -> 1332.6 | P9: ='Other Scope 1'!P50 -> 1314.3 | Q9: ='Other Scope 1'!Q50 -> 883.7 | R9: ='Other Scope 1'!R50 -> 866.8 | S9: ='Other Scope 1'!S50 -> 890.9 | T9: ='Other Scope 1'!T50 -> 426 | U9: ='Other Scope 1'!U50 -> 477.4 | V9: ='Other Scope 1'!V50 -> 553 | W9: ='Other Scope 1'!W50 -> 537
C10: Refrigerants and Chemicals | D10: MTCDE | E10: ='Other Scope 1'!E51 -> 0 | F10: ='Other Scope 1'!F51 -> 0 | G10: ='Other Scope 1'!G51 -> 0 | H10: ='Other Scope 1'!H51 -> 0 | I10: ='Other Scope 1'!I51 -> 0 | J10: ='Other Scope 1'!J51 -> 0 | K10: ='Other Scope 1'!K51 -> 0 | L10: ='Other Scope 1'!L51 -> 0 | M10: ='Other Scope 1'!M51 -> 0 | N10: ='Other Scope 1'!N51 -> 0 | O10: ='Other Scope 1'!O51 -> 0 | P10: ='Other Scope 1'!P51 -> 0 | Q10: ='Other Scope 1'!Q51 -> 0 | R10: ='Other Scope 1'!R51 -> 0 | S10: ='Other Scope 1'!S51 -> 0 | T10: ='Other Scope 1'!T51 -> 0 | U10: ='Other Scope 1'!U51 -> 0 | V10: ='Other Scope 1'!V51 -> 0 | W10: ='Other Scope 1'!W51 -> 0
C11: Agricutlure | D11: MTCDE | E11: ='Other Scope 1'!E52 -> 0 | F11: ='Other Scope 1'!F52 -> 0 | G11: ='Other Scope 1'!G52 -> 0 | H11: ='Other Scope 1'!H52 -> 0 | I11: ='Other Scope 1'!I52 -> 0 | J11: ='Other Scope 1'!J52 -> 0 | K11: ='Other Scope 1'!K52 -> 0 | L11: ='Other Scope 1'!L52 -> 0 | M11: ='Other Scope 1'!M52 -> 0 | N11: ='Other Scope 1'!N52 -> 22.47546342 | O11: ='Other Scope 1'!O52 -> 22.47546342 | P11: ='Other Scope 1'!P52 -> 22.47546342 | Q11: ='Other Scope 1'!Q52 -> 23.71783239 | R11: ='Other Scope 1'!R52 -> 21.23309446 | S11: ='Other Scope 1'!S52 -> 29.86729333 | T11: ='Other Scope 1'!T52 -> 7.224933033 | U11: ='Other Scope 1'!U52 -> 7.4 | V11: ='Other Scope 1'!V52 -> 5 | W11: ='Other Scope 1'!W52 -> 3
C12: Total Scope 1 | D12: MTCDE | E12: =SUM(E8:E11) -> 0 | F12: =SUM(F8:F11) -> 0 | G12: 0 | H12: 0 | I12: 0 | J12: 0 | K12: 0 | L12: 0 | M12: 0 | N12: 29938.39799 | O12: 26253.09453 | P12: 25563.00472 | Q12: 24927.11127 | R12: 26745.34536 | S12: 25875.45558 | T12: =SUM(T8:T11) -> 23864.43385 | U12: =SUM(U8:U11) -> 22788.6 | V12: =SUM(V8:V11) -> 24235 | W12: =SUM(W8:W11) -> 69459.5
B13: Scope 2
C14: Purchased Electricity | D14: MTCDE | E14: ='Scope 2 Utilities'!E46 -> 0 | F14: ='Scope 2 Utilities'!F46 -> 0 | G14: ='Scope 2 Utilities'!G46 -> 0 | H14: ='Scope 2 Utilities'!H46 -> 0 | I14: ='Scope 2 Utilities'!I46 -> 0 | J14: ='Scope 2 Utilities'!J46 -> 0 | K14: ='Scope 2 Utilities'!K46 -> 0 | L14: ='Scope 2 Utilities'!L46 -> 0 | M14: ='Scope 2 Utilities'!M46 -> 0 | N14: ='Scope 2 Utilities'!N46 -> 18067.8 | O14: ='Scope 2 Utilities'!O46 -> 18727.8 | P14: ='Scope 2 Utilities'!P46 -> 21243.7 | Q14: ='Scope 2 Utilities'!Q46 -> 27014.4 | R14: ='Scope 2 Utilities'!R46 -> 27436.2 | S14: ='Scope 2 Utilities'!S46 -> 26120 | T14: ='Scope 2 Utilities'!T46 -> 27081.8 | U14: ='Scope 2 Utilities'!U46 -> 28129.7 | V14: ='Scope 2 Utilities'!V46 -> 28917 | W14: ='Scope 2 Utilities'!W46 -> 21379
C15: Purchased Steam | D15: MTCDE | E15: ='Scope 2 Utilities'!E47 -> 0 | F15: ='Scope 2 Utilities'!F47 -> 0 | G15: ='Scope 2 Utilities'!G47 -> 0 | H15: ='Scope 2 Utilities'!H47 -> 0 | I15: ='Scope 2 Utilities'!I47 -> 0 | J15: ='Scope 2 Utilities'!J47 -> 0 | K15: ='Scope 2 Utilities'!K47 -> 0 | L15: ='Scope 2 Utilities'!L47 -> 0 | M15: ='Scope 2 Utilities'!M47 -> 0 | N15: ='Scope 2 Utilities'!N47 -> 120.3 | O15: ='Scope 2 Utilities'!O47 -> 120.3 | P15: ='Scope 2 Utilities'!P47 -> 136.9 | Q15: ='Scope 2 Utilities'!Q47 -> 158.6 | R15: ='Scope 2 Utilities'!R47 -> 220.1 | S15: ='Scope 2 Utilities'!S47 -> 309.3 | T15: ='Scope 2 Utilities'!T47 -> 339 | U15: 504 | V15: 504 | W15: ='Scope 2 Utilities'!W47 -> 0
C16: Purchased Chilled Water | D16: MTCDE | E16: ='Scope 2 Utilities'!E48 -> 0 | F16: ='Scope 2 Utilities'!F48 -> 0 | G16: ='Scope 2 Utilities'!G48 -> 0 | H16: ='Scope 2 Utilities'!H48 -> 0 | I16: ='Scope 2 Utilities'!I48 -> 0 | J16: ='Scope 2 Utilities'!J48 -> 0 | K16: ='Scope 2 Utilities'!K48 -> 0 | L16: ='Scope 2 Utilities'!L48 -> 0 | M16: ='Scope 2 Utilities'!M48 -> 0 | N16: ='Scope 2 Utilities'!N48 -> 0 | O16: ='Scope 2 Utilities'!O48 -> 0 | P16: ='Scope 2 Utilities'!P48 -> 0 | Q16: ='Scope 2 Utilities'!Q48 -> 0 | R16: ='Scope 2 Utilities'!R48 -> 0 | S16: ='Scope 2 Utilities'!S48 -> 0 | T16: ='Scope 2 Utilities'!T48 -> 0 | U16: ='Scope 2 Utilities'!U48 -> 0 | V16: ='Scope 2 Utilities'!V48 -> 0 | W16: ='Scope 2 Utilities'!W48 -> 0
C17: Total Scope 2 | D17: MTCDE | E17: =SUM(E14:E16) -> 0 | F17: 0 | G17: 0 | H17: 0 | I17: 0 | J17: 0 | K17: 0 | L17: 0 | M17: 0 | N17: 18188.1 | O17: 18848.1 | P17: 21380.6 | Q17: 27173 | R17: 27656.3 | S17: 26429.3 | T17: =SUM(T14:T16) -> 27420.8 | U17: =SUM(U14:U16) -> 28633.7 | V17: =SUM(V14:V16) -> 29421 | W17: =SUM(W14:W16) -> 21379
B18: Scope 3
C19: Faculty / Staff Commuting | D19: MTCDE | E19: ='Scope 3 Commuting'!E125 -> 0 | F19: ='Scope 3 Commuting'!F125 -> 0 | G19: ='Scope 3 Commuting'!G125 -> 0 | H19: ='Scope 3 Commuting'!H125 -> 0 | I19: ='Scope 3 Commuting'!I125 -> 0 | J19: ='Scope 3 Commuting'!J125 -> 0 | K19: ='Scope 3 Commuting'!K125 -> 0 | L19: ='Scope 3 Commuting'!L125 -> 0 | M19: ='Scope 3 Commuting'!M125 -> 0 | N19: ='Scope 3 Commuting'!N125 -> 1230.6 | O19: ='Scope 3 Commuting'!O125 -> 1285.5 | P19: ='Scope 3 Commuting'!P125 -> 1272.1 | Q19: ='Scope 3 Commuting'!Q125 -> 1244.6 | R19: ='Scope 3 Commuting'!R125 -> 1440.2 | S19: ='Scope 3 Commuting'!S125 -> 2529.1 | T19: ='Scope 3 Commuting'!T125 -> 2739.9 | U19: ='Scope 3 Commuting'!U125 -> 2838.3 | V19: ='Scope 3 Commuting'!V125 -> 2895.9 | W19: ='Scope 3 Commuting'!W125 -> 2903.7 | X19: =SUM(V19:V20) -> 6059.4
C20: Student Commuting | D20: MTCDE | E20: ='Scope 3 Commuting'!E126 -> 0 | F20: ='Scope 3 Commuting'!F126 -> 0 | G20: ='Scope 3 Commuting'!G126 -> 0 | H20: ='Scope 3 Commuting'!H126 -> 0 | I20: ='Scope 3 Commuting'!I126 -> 0 | J20: ='Scope 3 Commuting'!J126 -> 0 | K20: ='Scope 3 Commuting'!K126 -> 0 | L20: ='Scope 3 Commuting'!L126 -> 0 | M20: ='Scope 3 Commuting'!M126 -> 0 | N20: ='Scope 3 Commuting'!N126 -> 4801.2 | O20: ='Scope 3 Commuting'!O126 -> 4899.4 | P20: ='Scope 3 Commuting'!P126 -> 4375.7 | Q20: ='Scope 3 Commuting'!Q126 -> 4247 | R20: ='Scope 3 Commuting'!R126 -> 4351.6 | S20: ='Scope 3 Commuting'!S126 -> 5318.8 | T20: ='Scope 3 Commuting'!T126 -> 5243.1 | U20: ='Scope 3 Commuting'!U126 -> 5734.3 | V20: ='Scope 3 Commuting'!V126 -> 3163.5 | W20: ='Scope 3 Commuting'!W126 -> 2903.7
C21: Directly Financed Air Travel | D21: MTCDE | E21: ='Other Scope 3 Sources'!E65 -> 0 | F21: ='Other Scope 3 Sources'!F65 -> 0 | G21: ='Other Scope 3 Sources'!G65 -> 0 | H21: ='Other Scope 3 Sources'!H65 -> 0 | I21: ='Other Scope 3 Sources'!I65 -> 0 | J21: ='Other Scope 3 Sources'!J65 -> 0 | K21: ='Other Scope 3 Sources'!K65 -> 0 | L21: ='Other Scope 3 Sources'!L65 -> 0 | M21: ='Other Scope 3 Sources'!M65 -> 0 | N21: ='Other Scope 3 Sources'!N65 -> 14520.3 | O21: ='Other Scope 3 Sources'!O65 -> 14478.6 | P21: ='Other Scope 3 Sources'!P65 -> 13082.7 | Q21: ='Other Scope 3 Sources'!Q65 -> 15317.6 | R21: ='Other Scope 3 Sources'!R65 -> 16527 | S21: ='Other Scope 3 Sources'!S65 -> 20580.6 | T21: ='Other Scope 3 Sources'!T65 -> 18243 | U21: ='Other Scope 3 Sources'!U65 -> 18055.4 | V21: ='Other Scope 3 Sources'!V65 -> 19841 | W21: ='Other Scope 3 Sources'!W65 -> 26201 | X21: =SUM(V21:V22) -> 20912
C22: Other Directly Financed Travel | D22: MTCDE | E22: ='Other Scope 3 Sources'!E66 -> 0 | F22: ='Other Scope 3 Sources'!F66 -> 0 | G22: ='Other Scope 3 Sources'!G66 -> 0 | H22: ='Other Scope 3 Sources'!H66 -> 0 | I22: ='Other Scope 3 Sources'!I66 -> 0 | J22: ='Other Scope 3 Sources'!J66 -> 0 | K22: ='Other Scope 3 Sources'!K66 -> 0 | L22: ='Other Scope 3 Sources'!L66 -> 0 | M22: ='Other Scope 3 Sources'!M66 -> 0 | N22: ='Other Scope 3 Sources'!N66 -> 1327.6 | O22: ='Other Scope 3 Sources'!O66 -> 1343.4 | P22: ='Other Scope 3 Sources'!P66 -> 1321.5 | Q22: ='Other Scope 3 Sources'!Q66 -> 1290.2 | R22: ='Other Scope 3 Sources'!R66 -> 1276.7 | S22: ='Other Scope 3 Sources'!S66 -> 1281 | T22: ='Other Scope 3 Sources'!T66 -> 1155 | U22: ='Other Scope 3 Sources'!U66 -> 1113.6 | V22: ='Other Scope 3 Sources'!V66 -> 1071 | W22: ='Other Scope 3 Sources'!W66 -> 870.1 | Z22: =(V19+V20)/V32 -> 0.06689272612
C23: Study Abroad Air Travel | D23: MTCDE | E23: ='Other Scope 3 Sources'!E67 -> 0 | F23: ='Other Scope 3 Sources'!F67 -> 0 | G23: ='Other Scope 3 Sources'!G67 -> 0 | H23: ='Other Scope 3 Sources'!H67 -> 0 | I23: ='Other Scope 3 Sources'!I67 -> 0 | J23: ='Other Scope 3 Sources'!J67 -> 0 | K23: ='Other Scope 3 Sources'!K67 -> 0 | L23: ='Other Scope 3 Sources'!L67 -> 0 | M23: ='Other Scope 3 Sources'!M67 -> 0 | N23: ='Other Scope 3 Sources'!N67 -> 4084.5 | O23: ='Other Scope 3 Sources'!O67 -> 5325.7 | P23: ='Other Scope 3 Sources'!P67 -> 4920.9 | Q23: ='Other Scope 3 Sources'!Q67 -> 4467.5 | R23: ='Other Scope 3 Sources'!R67 -> 4638.1 | S23: ='Other Scope 3 Sources'!S67 -> 4578.5 | T23: ='Other Scope 3 Sources'!T67 -> 4281.6 | U23: ='Other Scope 3 Sources'!U67 -> 4502.8 | V23: ='Other Scope 3 Sources'!V67 -> 4946.8 | W23: ='Other Scope 3 Sources'!W67 -> 6693.9 | X23: =SUM(V23,V25:V28) -> 9672.2
C24: Solid Waste | D24: MTCDE | E24: ='Other Scope 3 Sources'!E69 -> 0 | F24: ='Other Scope 3 Sources'!F69 -> 0 | G24: ='Other Scope 3 Sources'!G69 -> 0 | H24: ='Other Scope 3 Sources'!H69 -> 0 | I24: ='Other Scope 3 Sources'!I69 -> 0 | J24: ='Other Scope 3 Sources'!J69 -> 0 | K24: ='Other Scope 3 Sources'!K69 -> 0 | L24: ='Other Scope 3 Sources'!L69 -> 0 | M24: ='Other Scope 3 Sources'!M69 -> 0 | N24: ='Other Scope 3 Sources'!N69 -> 333.0681 | O24: ='Other Scope 3 Sources'!O69 -> 328.1623 | P24: ='Other Scope 3 Sources'!P69 -> 331.512 | Q24: ='Other Scope 3 Sources'!Q69 -> 325.4871 | R24: ='Other Scope 3 Sources'!R69 -> 314.5697 | S24: ='Other Scope 3 Sources'!S69 -> 307.8057 | T24: ='Other Scope 3 Sources'!T69 -> 298.3 | U24: ='Other Scope 3 Sources'!U69 -> 293.0351 | V24: ='Other Scope 3 Sources'!V69 -> 284.24 | W24: ='Other Scope 3 Sources'!W69 -> 427.5
C25: Wastewater | D25: MTCDE | E25: ='Other Scope 3 Sources'!E70 -> 0 | F25: ='Other Scope 3 Sources'!F70 -> 0 | G25: ='Other Scope 3 Sources'!G70 -> 0 | H25: ='Other Scope 3 Sources'!H70 -> 0 | I25: ='Other Scope 3 Sources'!I70 -> 0 | J25: ='Other Scope 3 Sources'!J70 -> 0 | K25: ='Other Scope 3 Sources'!K70 -> 0 | L25: ='Other Scope 3 Sources'!L70 -> 0 | M25: ='Other Scope 3 Sources'!M70 -> 0 | N25: ='Other Scope 3 Sources'!N70 -> 1588.512848 | O25: ='Other Scope 3 Sources'!O70 -> 1588.512848 | P25: ='Other Scope 3 Sources'!P70 -> 1588.512848 | Q25: ='Other Scope 3 Sources'!Q70 -> 1588.512848 | R25: ='Other Scope 3 Sources'!R70 -> 1588.512848 | S25: ='Other Scope 3 Sources'!S70 -> 1588.512848 | T25: ='Other Scope 3 Sources'!T70 -> 1346.481773 | U25: ='Other Scope 3 Sources'!U70 -> 1271.57423 | V25: ='Other Scope 3 Sources'!V70 -> 1254.5 | W25: ='Other Scope 3 Sources'!W70 -> 1319
C26: Paper | D26: MTCDE | E26: ='Other Scope 3 Sources'!E71 -> 0 | F26: ='Other Scope 3 Sources'!F71 -> 0 | G26: ='Other Scope 3 Sources'!G71 -> 0 | H26: ='Other Scope 3 Sources'!H71 -> 0 | I26: ='Other Scope 3 Sources'!I71 -> 0 | J26: ='Other Scope 3 Sources'!J71 -> 0 | K26: ='Other Scope 3 Sources'!K71 -> 0 | L26: ='Other Scope 3 Sources'!L71 -> 0 | M26: ='Other Scope 3 Sources'!M71 -> 0 | N26: ='Other Scope 3 Sources'!N71 -> 236.3 | O26: ='Other Scope 3 Sources'!O71 -> 236.3 | P26: ='Other Scope 3 Sources'!P71 -> 236.3 | Q26: ='Other Scope 3 Sources'!Q71 -> 236.3 | R26: ='Other Scope 3 Sources'!R71 -> 236.3 | S26: ='Other Scope 3 Sources'!S71 -> 236.3 | T26: ='Other Scope 3 Sources'!T71 -> 329.9 | U26: ='Other Scope 3 Sources'!U71 -> 549.7 | V26: ='Other Scope 3 Sources'!V71 -> 595 | W26: ='Other Scope 3 Sources'!W71 -> 403.5
C27: Scope 2 T&D Losses | D27: MTCDE | E27: ='Other Scope 3 Sources'!E72 -> 0 | F27: ='Other Scope 3 Sources'!F72 -> 0 | G27: ='Other Scope 3 Sources'!G72 -> 0 | H27: ='Other Scope 3 Sources'!H72 -> 0 | I27: ='Other Scope 3 Sources'!I72 -> 0 | J27: ='Other Scope 3 Sources'!J72 -> 0 | K27: ='Other Scope 3 Sources'!K72 -> 0 | L27: ='Other Scope 3 Sources'!L72 -> 0 | M27: ='Other Scope 3 Sources'!M72 -> 0 | N27: ='Other Scope 3 Sources'!N72 -> 1793.3 | O27: ='Other Scope 3 Sources'!O72 -> 1858.5 | P27: ='Other Scope 3 Sources'!P72 -> 2108.2 | Q27: ='Other Scope 3 Sources'!Q72 -> 2680.1 | R27: ='Other Scope 3 Sources'!R72 -> 2725.1 | S27: ='Other Scope 3 Sources'!S72 -> 2599.6 | T27: ='Other Scope 3 Sources'!T72 -> 2696.3 | U27: 2942.1 | V27: 2875.9 | W27: ='Scope 2 Utilities'!W55 -> 1569.7
C28: Other Scope 3 | D28: MTCDE | E28: ='Other Scope 3 Sources'!E73 -> 0 | F28: ='Other Scope 3 Sources'!F73 -> 0 | G28: ='Other Scope 3 Sources'!G73 -> 0 | H28: ='Other Scope 3 Sources'!H73 -> 0 | I28: ='Other Scope 3 Sources'!I73 -> 0 | J28: ='Other Scope 3 Sources'!J73 -> 0 | K28: ='Other Scope 3 Sources'!K73 -> 0 | L28: ='Other Scope 3 Sources'!L73 -> 0 | M28: ='Other Scope 3 Sources'!M73 -> 0 | N28: ='Other Scope 3 Sources'!N73 -> 0 | O28: ='Other Scope 3 Sources'!O73 -> 0 | P28: ='Other Scope 3 Sources'!P73 -> 0 | Q28: ='Other Scope 3 Sources'!Q73 -> 0 | R28: ='Other Scope 3 Sources'!R73 -> 0 | S28: ='Other Scope 3 Sources'!S73 -> 0 | T28: ='Other Scope 3 Sources'!T73 -> 0 | U28: ='Other Scope 3 Sources'!U73 -> 0 | V28: ='Other Scope 3 Sources'!V73 -> 0 | W28: ='Other Scope 3 Sources'!W73 -> 0
C29: Total Scope 3 | D29: MTCDE | E29: =SUM(E19:E28) -> 0 | F29: =SUM(F19:F28) -> 0 | G29: 0 | H29: 0 | I29: 0 | J29: 0 | K29: 0 | L29: 0 | M29: 0 | N29: 29915.38095 | O29: 31344.07515 | P29: 29237.42485 | Q29: 31397.29995 | R29: 33098.08255 | S29: 39020.21855 | T29: =SUM(T19:T28) -> 36333.58177 | U29: =SUM(U19:U28) -> 37300.80933 | V29: =SUM(V19:V28) -> 36927.84 | W29: =SUM(W19:W28) -> 43292.1
B31: Total Gross GHG Emissions | E31: FY1995 | F31: FY1996 | G31: FY1997 | H31: FY1998 | I31: FY1999 | J31: FY2000 | K31: FY2001 | L31: FY2002 | M31: FY2003 | N31: FY2004 | O31: FY2005 | P31: FY2006 | Q31: FY2007 | R31: FY2008 | S31: FY2009 | T31: FY2010 | U31: FY2011 | V31: FY2012 | W31: FY2014
C32: Total Gross GHG Emissions | D32: MTCDE | E32: =E12+E17+E29 -> 0 | F32: =F12+F17+F29 -> 0 | G32: 0 | H32: 0 | I32: 0 | J32: 0 | K32: 0 | L32: 0 | M32: 0 | N32: 78041.87893 | O32: 76445.26967 | P32: 76181.02957 | Q32: 83497.41122 | R32: 87499.72791 | S32: 91324.97413 | T32: =T12+T17+T29 -> 87618.81562 | U32: =U12+U17+U29 -> 88723.10933 | V32: =V12+V17+V29 -> 90583.84 | W32: =W12+W17+W29 -> 134130.6
Z33: =5/V32 -> 5.519748335e-05
B34: Offsets | E34: FY1995 | F34: FY1996 | G34: FY1997 | H34: FY1998 | I34: FY1999 | J34: FY2000 | K34: FY2001 | L34: FY2002 | M34: FY2003 | N34: FY2004 | O34: FY2005 | P34: FY2006 | Q34: FY2007 | R34: FY2008 | S34: FY2009 | T34: FY2010 | U34: FY2011 | V34: FY2012 | W34: FY2014
C35: Total Additional | D35: MTCDE | E35: =Offsets!E29 -> 0 | F35: =Offsets!F29 -> 0 | G35: =Offsets!G29 -> 0 | H35: =Offsets!H29 -> 0 | I35: =Offsets!I29 -> 0 | J35: =Offsets!J29 -> 0 | K35: =Offsets!K29 -> 0 | L35: =Offsets!L29 -> 0 | M35: =Offsets!M29 -> 0 | N35: =Offsets!N29 -> -131.5811022 | O35: =Offsets!O29 -> -138.290969 | P35: =Offsets!P29 -> -90.42161008 | Q35: =Offsets!Q29 -> -98.57809945 | R35: =Offsets!R29 -> -91.95287554 | S35: =Offsets!S29 -> -648.4966983 | T35: =Offsets!T29 -> -1243.471797 | U35: =Offsets!U29 -> -669.4773929 | V35: =Offsets!V29 -> -1259.088396 | W35: =Offsets!W29 -> -647.2
C36: Total Non-Additional | D36: MTCDE | E36: =Offsets!E30 -> 0 | F36: =Offsets!F30 -> 0 | G36: =Offsets!G30 -> 0 | H36: =Offsets!H30 -> 0 | I36: =Offsets!I30 -> 0 | J36: =Offsets!J30 -> 0 | K36: =Offsets!K30 -> 0 | L36: =Offsets!L30 -> 0 | M36: =Offsets!M30 -> 0 | N36: =Offsets!N30 -> 0 | O36: =Offsets!O30 -> 0 | P36: =Offsets!P30 -> 0 | Q36: =Offsets!Q30 -> 0 | R36: =Offsets!R30 -> 0 | S36: =Offsets!S30 -> 0 | T36: =Offsets!T30 -> 0 | U36: =Offsets!U30 -> 0 | V36: =Offsets!V30 -> 0 | W36: =Offsets!W30 -> 700
C37: Total Offsets | D37: MTCDE | E37: =SUM(E35:E36) -> 0 | F37: =SUM(F35:F36) -> 0 | G37: 0 | H37: 0 | I37: 0 | J37: 0 | K37: 0 | L37: 0 | M37: 0 | N37: -131.5811022 | O37: -138.290969 | P37: -90.42161008 | Q37: -98.57809945 | R37: -91.95287554 | S37: -648.4966983 | T37: =SUM(T35:T36) -> -1243.471797 | U37: =SUM(U35:U36) -> -669.4773929 | V37: =SUM(V35:V36) -> -1259.088396 | W37: =SUM(W35:W36) -> 52.8
B39: Total Net GHG Emissions | E39: FY1995 | F39: FY1996 | G39: FY1997 | H39: FY1998 | I39: FY1999 | J39: FY2000 | K39: FY2001 | L39: FY2002 | M39: FY2003 | N39: FY2004 | O39: FY2005 | P39: FY2006 | Q39: FY2007 | R39: FY2008 | S39: FY2009 | T39: FY2010 | U39: FY2011 | V39: FY2012 | W39: FY2014
C40: Total Net GHG Emissions | D40: MTCDE | E40: =E32+E37 -> 0 | F40: 0 | G40: 0 | H40: 0 | I40: 0 | J40: 0 | K40: 0 | L40: 0 | M40: 0 | N40: 77910.29783 | O40: 76306.97871 | P40: 76090.60796 | Q40: 83398.83312 | R40: 87407.77503 | S40: 90676.47743 | T40: =T32+T37 -> 86375.34382 | U40: =U32+U37 -> 88053.63194 | V40: =V32+V37 -> 89324.7516 | W40: =W32+W37 -> 134183.4
M42: Notes

Sheet Scope 1 Utilities
A1: ='Institutional Data'!$D$8 -> University of Oregon
A2: ='Data Collection Notes_Sheena'!A2 -> Go-Green Measurement, Benchmarking and Analysis Summary
A4: Scope 1: Utilities
B6: On-Campus Cogeneration Plant | E6: FY1995 | F6: FY1996 | G6: FY1997 | H6: FY1998 | I6: FY1999 | J6: FY2000 | K6: FY2001 | L6: FY2002 | M6: FY2003 | N6: FY2004 | O6: FY2005 | P6: FY2006 | Q6: FY2007 | R6: FY2008 | S6: FY2009 | T6: FY2010 | U6: FY2011 | V6: FY2012 | W6: FY2014
B7: Input
C8: Residual Oil #5 and #6 | D8: Gallons | N8: 0 | O8: 0 | P8: 0 | Q8: 0 | R8: 0 | S8: 0 | T8: 0 | U8: 0 | V8: 0 | W8: 0
C9: Distilate Oil #1 - #4 | D9: Gallons | N9: 0 | O9: 0 | P9: 0 | Q9: 0 | R9: 0 | S9: 0 | T9: 0 | U9: 0 | V9: 0 | W9: 0
C10: Natural Gas | D10: MMBTU | N10: 25441 | O10: 20163 | P10: 14158 | Q10: 14158 | R10: 14309.9517 | S10: 15759.5361 | T10: 5612.51358 | U10: 0 | V10: 0 | W10: 350311
C11: LPG Propane | D11: Gallons | N11: 0 | O11: 0 | P11: 0 | Q11: 0 | R11: 0 | S11: 0 | T11: 0 | U11: 0 | V11: 0 | W11: 0
C12: Coal (Steam Coal) | D12: Short Tons | N12: 0 | O12: 0 | P12: 0 | Q12: 0 | R12: 0 | S12: 0 | T12: 0 | U12: 0 | V12: 0 | W12: 0
C13: Incinerated Waste | D13: Short Tons | N13: 0 | O13: 0 | P13: 0 | Q13: 0 | R13: 0 | S13: 0 | T13: 0 | U13: 0 | V13: 0 | W13: 0
C14: Wood Chips | D14: Short Tons | N14: 0 | O14: 0 | P14: 0 | Q14: 0 | R14: 0 | S14: 0 | T14: 0 | U14: 0 | V14: 0 | W14: 0
C15: Wood Pellets | D15: Short Tons | N15: 0 | O15: 0 | P15: 0 | Q15: 0 | R15: 0 | S15: 0 | T15: 0 | U15: 0 | V15: 0 | W15: 0
C16: Grass Pellets | D16: Short Tons | N16: 0 | O16: 0 | P16: 0 | Q16: 0 | R16: 0 | S16: 0 | T16: 0 | U16: 0 | V16: 0 | W16: 0
C17: Residual BioHeat | D17: Gallons | N17: 0 | O17: 0 | P17: 0 | Q17: 0 | R17: 0 | S17: 0 | T17: 0 | U17: 0 | V17: 0 | W17: 0
C18: Distilate BioHeat | D18: Gallons | N18: 0 | O18: 0 | P18: 0 | Q18: 0 | R18: 0 | S18: 0 | T18: 0 | U18: 0 | V18: 0 | W18: 0
C19: Other | D19: MMBTU | N19: 0 | O19: 0 | P19: 0 | Q19: 0 | R19: 0 | S19: 0 | T19: 0 | U19: 0 | V19: 0 | W19: 0
B20: Output
C21: Electricity | D21: kWh | N21: 7452000 | O21: 5906000 | P21: 4130042 | Q21: 5004880 | R21: 4191550 | S21: 4616150 | T21: 1643970 | U21: 0 | V21: 0 | W21: 28339972
C22: Steam/Heat | D22: MMBTU | N22: 1 | O22: 1 | P22: 1 | Q22: 1 | R22: 1 | S22: 1 | T22: 1 | U22: 0 | V22: 0 | W22: 1
C23: Electric Efficiency | D23: % | N23: 0.8 | O23: 0.8 | P23: 0.8 | Q23: 0.8 | R23: 0.8 | S23: 0.8 | T23: 0.8 | U23: 0 | V23: 0 | W23: 0.85
C24: Steam Efficiency | D24: % | N24: 0.01 | O24: 0.01 | P24: 0.01 | Q24: 0.01 | R24: 0.01 | S24: 0.01 | T24: 0.01 | U24: 0 | V24: 0 | W24: 0.01
B27: Other On-Campus Stationary Sources | E27: FY1995 | F27: FY1996 | G27: FY1997 | H27: FY1998 | I27: FY1999 | J27: FY2000 | K27: FY2001 | L27: FY2002 | M27: FY2003 | N27: FY2004 | O27: FY2005 | P27: FY2006 | Q27: FY2007 | R27: FY2008 | S27: FY2009 | T27: FY2010 | U27: FY2011 | V27: FY2012 | W27: FY2014
B28: Input
C29: Residual Oil #5 and #6 | D29: Gallons | N29: 0 | O29: 0 | P29: 0 | Q29: 0 | R29: 0 | S29: 0 | T29: 0 | U29: 0 | V29: 0 | W29: 0
C30: Distilate Oil #1 - #4 | D30: Gallons | N30: 10974.5 | O30: 12328.5 | P30: 15745.5 | Q30: 19983.5 | R30: 9837.5 | S30: 10617.4 | T30: 29827.6 | U30: 12867.7 | V30: 12378.2 | W30: 1099
C31: Natural Gas | D31: MMBTU | N31: 509698.878 | O31: 445109.39 | P31: 437822.67 | Q31: 433118.56 | R31: 468541.0128 | S31: 453228.3 | T31: 428788.7 | U31: 416398.85 | V31: 442424 | W31: 265348
C32: LPG Propane | D32: Gallons | N32: 5334.8 | O32: 5334.8 | P32: 5334.8 | Q32: 5334.8 | R32: 5334.8 | S32: 4679.8 | T32: 4179.1 | U32: 4840.2 | V32: 3724.1 | W32: 8330
C33: Coal (Steam Coal) | D33: Short Tons | N33: 0 | O33: 0 | P33: 0 | Q33: 0 | R33: 0 | S33: 0 | T33: 0 | U33: 0 | V33: 0 | W33: 0
C34: Incinerated Waste | D34: Short Tons | N34: 0 | O34: 0 | P34: 0 | Q34: 0 | R34: 0 | S34: 0 | T34: 0 | U34: 0 | V34: 0 | W34: 0
C35: Wood Chips | D35: Short Tons | N35: 0 | O35: 0 | P35: 0 | Q35: 0 | R35: 0 | S35: 0 | T35: 0 | U35: 0 | V35: 0 | W35: 0
C36: Wood Pellets | D36: Short Tons | N36: 0 | O36: 0 | P36: 0 | Q36: 0 | R36: 0 | S36: 0 | T36: 0 | U36: 0 | V36: 0 | W36: 0
C37: Grass Pellets | D37: Short Tons | N37: 0 | O37: 0 | P37: 0 | Q37: 0 | R37: 0 | S37: 0 | T37: 0 | U37: 0 | V37: 0 | W37: 0
C38: Residual BioHeat | D38: Gallons | N38: 0 | O38: 0 | P38: 0 | Q38: 0 | R38: 0 | S38: 0 | T38: 0 | U38: 0 | V38: 0 | W38: 0
C39: Distilate BioHeat | D39: Gallons | N39: 0 | O39: 0 | P39: 0 | Q39: 0 | R39: 0 | S39: 0 | T39: 0 | U39: 0 | V39: 0 | W39: 0
C40: Solar | D40: MMBTU | N40: 0 | O40: 0 | P40: 0 | Q40: 0 | R40: 0 | S40: 0 | T40: 0 | U40: 0 | V40: 0 | W40: 252.8
B43: GHG Emissions | E43: FY1995 | F43: FY1996 | G43: FY1997 | H43: FY1998 | I43: FY1999 | J43: FY2000 | K43: FY2001 | L43: FY2002 | M43: FY2003 | N43: FY2004 | O43: FY2005 | P43: FY2006 | Q43: FY2007 | R43: FY2008 | S43: FY2009 | T43: FY2010 | U43: FY2011 | V43: FY2012 | W43: FY2014
C44: Cogen Electric GHG | D44: MTCDE | N44: 1348.8 | O44: 1068.1 | P44: 748.7 | Q44: 749.5 | R44: 756.8 | S44: 833.9 | T44: 294.9580529 | U44: 0 | V44: 0 | W44: 18608.5
C45: Cogen Steam GHG | D45: MTCDE | N45: 4.222523331 | O45: 4.219063144 | P45: 4.229255777 | Q45: 3.493441532 | R45: 4.212268088 | S45: 4.214424363 | T45: 2.050861526 | U45: 0 | V45: 0 | W45: 0
C46: Other On-Campus Stationary GHG | D46: MTCDE | N46: 27246.8 | O46: 23825.7 | P46: 23473.3 | Q46: 23266.7 | R46: 25096.3 | S46: 24116.57386 | T46: 23134.2 | U46: 22303.8 | V46: 23677 | W46: 50311
C47: Stationary Biogenic Emissions | D47: MTCDE | N47: 0 | O47: 0 | P47: 0 | Q47: 0 | R47: 0 | S47: 0 | T47: 0 | U47: 0 | V47: 0 | W47: 0
C48: Total Cogen Plant | D48: MTCDE | E48: =SUM(E44:E45) -> 0 | F48: 0 | G48: 0 | H48: 0 | I48: 0 | J48: 0 | K48: 0 | L48: 0 | M48: 0 | N48: 1353.022523 | O48: 1072.319063 | P48: 752.9292558 | Q48: 752.9934415 | R48: 761.0122681 | S48: 838.1144244 | T48: =SUM(T44:T45) -> 297.0089145 | U48: =SUM(U44:U45) -> 0 | V48: =SUM(V44:V45) -> 0 | W48: =SUM(W44:W45) -> 18608.5
C49: Total Non Cogen Plant | D49: MTCDE | E49: =SUM(E46:E46) -> 0 | F49: 0 | G49: 0 | H49: 0 | I49: 0 | J49: 0 | K49: 0 | L49: 0 | M49: 0 | N49: 27246.8 | O49: 23825.7 | P49: 23473.3 | Q49: 23266.7 | R49: 25096.3 | S49: 24116.57386 | T49: =SUM(T46:T46) -> 23134.2 | U49: =SUM(U46:U46) -> 22303.8 | V49: =SUM(V46:V46) -> 23677 | W49: =SUM(W46:W46) -> 50311
C50: Scope 1 Utilities GHG | D50: MTCDE | E50: =E48+E49 -> 0 | F50: 0 | G50: 0 | H50: 0 | I50: 0 | J50: 0 | K50: 0 | L50: 0 | M50: 0 | N50: 28599.82252 | O50: 24898.01906 | P50: 24226.22926 | Q50: 24019.69344 | R50: 25857.31227 | S50: 24954.68829 | T50: =T48+T49 -> 23431.20891 | U50: =U48+U49 -> 22303.8 | V50: =V48+V49 -> 23677 | W50: =W48+W49 -> 68919.5
B53: Qualification Assistant | E53: FY1995 | F53: FY1996 | G53: FY1997 | H53: FY1998 | I53: FY1999 | J53: FY2000 | K53: FY2001 | L53: FY2002 | M53: FY2003 | N53: FY2004 | O53: FY2005 | P53: FY2006 | Q53: FY2007 | R53: FY2008 | S53: FY2009 | T53: FY2010 | U53: FY2011 | V53: FY2012 | W53: FY2014
C54: Stationary MMBTU Total | D54: MMBTU | E54: =E10+E31+E19+E40+((E8+E29)*'Scope 1 Conversion'!$D$3)+((E9+E30)*'Scope 1 Conversion'!$D$4)+((E11+E32)*'Scope 1 Conversion'!B17)+((E12+E33)*'Scope 1 Conversion'!B24)+((E13+E34)*'Scope 1 Conversion'!$D$6)+((E14+E35)*'Scope 1 Conversion'!$D$7)+((E15+E36)*'Scope 1 Conversion'!$D$8)+((E16+E37)*'Scope 1 Conversion'!$D$9)+((E17+E38)*'Scope 1 Conversion'!$D$10)+((E18+E39)*'Scope 1 Conversion'!$D$11) -> 0 | F54: =F10+F31+F19+F40+(F8*'Scope 1 Conversion'!$D$3)+(F9*'Scope 1 Conversion'!$D$4)+(F11*'Scope 1 Conversion'!C17)+(F12*'Scope 1 Conversion'!C24)+(F29*'Scope 1 Conversion'!$D$3)+(F30*'Scope 1 Conversion'!$D$4)+(F32*'Scope 1 Conversion'!C17)+(F33*'Scope 1 Conversion'!C24)+(F13*'Scope 1 Conversion'!$D$6)+(F14*'Scope 1 Conversion'!$D$7)+(F15*'Scope 1 Conversion'!$D$8)+(F16*'Scope 1 Conversion'!$D$9)+(F17*'Scope 1 Conversion'!$D$10)+(F18*'Scope 1 Conversion'!$D$11)+(F34*'Scope 1 Conversion'!$D$6)+(F35*'Scope 1 Conversion'!$D$7)+(F36*'Scope 1 Conversion'!$D$8)+(F37*'Scope 1 Conversion'!$D$9)+(F38*'Scope 1 Conversion'!$D$10)+(F39*'Scope 1 Conversion'!$D$11) -> 0 | G54: =G10+G31+G19+G40+(G8*'Scope 1 Conversion'!$D$3)+(G9*'Scope 1 Conversion'!$D$4)+(G11*'Scope 1 Conversion'!D17)+(G12*'Scope 1 Conversion'!D24)+(G29*'Scope 1 Conversion'!$D$3)+(G30*'Scope 1 Conversion'!$D$4)+(G32*'Scope 1 Conversion'!D17)+(G33*'Scope 1 Conversion'!D24)+(G13*'Scope 1 Conversion'!$D$6)+(G14*'Scope 1 Conversion'!$D$7)+(G15*'Scope 1 Conversion'!$D$8)+(G16*'Scope 1 Conversion'!$D$9)+(G17*'Scope 1 Conversion'!$D$10)+(G18*'Scope 1 Conversion'!$D$11)+(G34*'Scope 1 Conversion'!$D$6)+(G35*'Scope 1 Conversion'!$D$7)+(G36*'Scope 1 Conversion'!$D$8)+(G37*'Scope 1 Conversion'!$D$9)+(G38*'Scope 1 Conversion'!$D$10)+(G39*'Scope 1 Conversion'!$D$11) -> 0 | H54: =H10+H31+H19+H40+(H8*'Scope 1 Conversion'!$D$3)+(H9*'Scope 1 Conversion'!$D$4)+(H11*'Scope 1 Conversion'!E17)+(H12*'Scope 1 Conversion'!E24)+(H29*'Scope 1 Conversion'!$D$3)+(H30*'Scope 1 Conversion'!$D$4)+(H32*'Scope 1 Conversion'!E17)+(H33*'Scope 1 Conversion'!E24)+(H13*'Scope 1 Conversion'!$D$6)+(H14*'Scope 1 Conversion'!$D$7)+(H15*'Scope 1 Conversion'!$D$8)+(H16*'Scope 1 Conversion'!$D$9)+(H17*'Scope 1 Conversion'!$D$10)+(H18*'Scope 1 Conversion'!$D$11)+(H34*'Scope 1 Conversion'!$D$6)+(H35*'Scope 1 Conversion'!$D$7)+(H36*'Scope 1 Conversion'!$D$8)+(H37*'Scope 1 Conversion'!$D$9)+(H38*'Scope 1 Conversion'!$D$10)+(H39*'Scope 1 Conversion'!$D$11) -> 0 | I54: =I10+I31+I19+I40+(I8*'Scope 1 Conversion'!$D$3)+(I9*'Scope 1 Conversion'!$D$4)+(I11*'Scope 1 Conversion'!F17)+(I12*'Scope 1 Conversion'!F24)+(I29*'Scope 1 Conversion'!$D$3)+(I30*'Scope 1 Conversion'!$D$4)+(I32*'Scope 1 Conversion'!F17)+(I33*'Scope 1 Conversion'!F24)+(I13*'Scope 1 Conversion'!$D$6)+(I14*'Scope 1 Conversion'!$D$7)+(I15*'Scope 1 Conversion'!$D$8)+(I16*'Scope 1 Conversion'!$D$9)+(I17*'Scope 1 Conversion'!$D$10)+(I18*'Scope 1 Conversion'!$D$11)+(I34*'Scope 1 Conversion'!$D$6)+(I35*'Scope 1 Conversion'!$D$7)+(I36*'Scope 1 Conversion'!$D$8)+(I37*'Scope 1 Conversion'!$D$9)+(I38*'Scope 1 Conversion'!$D$10)+(I39*'Scope 1 Conversion'!$D$11) -> 0 | J54: =J10+J31+J19+J40+(J8*'Scope 1 Conversion'!$D$3)+(J9*'Scope 1 Conversion'!$D$4)+(J11*'Scope 1 Conversion'!G17)+(J12*'Scope 1 Conversion'!G24)+(J29*'Scope 1 Conversion'!$D$3)+(J30*'Scope 1 Conversion'!$D$4)+(J32*'Scope 1 Conversion'!G17)+(J33*'Scope 1 Conversion'!G24)+(J13*'Scope 1 Conversion'!$D$6)+(J14*'Scope 1 Conversion'!$D$7)+(J15*'Scope 1 Conversion'!$D$8)+(J16*'Scope 1 Conversion'!$D$9)+(J17*'Scope 1 Conversion'!$D$10)+(J18*'Scope 1 Conversion'!$D$11)+(J34*'Scope 1 Conversion'!$D$6)+(J35*'Scope 1 Conversion'!$D$7)+(J36*'Scope 1 Conversion'!$D$8)+(J37*'Scope 1 Conversion'!$D$9)+(J38*'Scope 1 Conversion'!$D$10)+(J39*'Scope 1 Conversion'!$D$11) -> 0 | K54: =K10+K31+K19+K40+(K8*'Scope 1 Conversion'!$D$3)+(K9*'Scope 1 Conversion'!$D$4)+(K11*'Scope 1 Conversion'!H17)+(K12*'Scope 1 Conversion'!H24)+(K29*'Scope 1 Conversion'!$D$3)+(K30*'Scope 1 Conversion'!$D$4)+(K32*'Scope 1 Conversion'!H17)+(K33*'Scope 1 Conversion'!H24)+(K13*'Scope 1 Conversion'!$D$6)+(K14*'Scope 1 Conversion'!$D$7)+(K15*'Scope 1 Conversion'!$D$8)+(K16*'Scope 1 Conversion'!$D$9)+(K17*'Scope 1 Conversion'!$D$10)+(K18*'Scope 1 Conversion'!$D$11)+(K34*'Scope 1 Conversion'!$D$6)+(K35*'Scope 1 Conversion'!$D$7)+(K36*'Scope 1 Conversion'!$D$8)+(K37*'Scope 1 Conversion'!$D$9)+(K38*'Scope 1 Conversion'!$D$10)+(K39*'Scope 1 Conversion'!$D$11) -> 0 | L54: =L10+L31+L19+L40+(L8*'Scope 1 Conversion'!$D$3)+(L9*'Scope 1 Conversion'!$D$4)+(L11*'Scope 1 Conversion'!I17)+(L12*'Scope 1 Conversion'!I24)+(L29*'Scope 1 Conversion'!$D$3)+(L30*'Scope 1 Conversion'!$D$4)+(L32*'Scope 1 Conversion'!I17)+(L33*'Scope 1 Conversion'!I24)+(L13*'Scope 1 Conversion'!$D$6)+(L14*'Scope 1 Conversion'!$D$7)+(L15*'Scope 1 Conversion'!$D$8)+(L16*'Scope 1 Conversion'!$D$9)+(L17*'Scope 1 Conversion'!$D$10)+(L18*'Scope 1 Conversion'!$D$11)+(L34*'Scope 1 Conversion'!$D$6)+(L35*'Scope 1 Conversion'!$D$7)+(L36*'Scope 1 Conversion'!$D$8)+(L37*'Scope 1 Conversion'!$D$9)+(L38*'Scope 1 Conversion'!$D$10)+(L39*'Scope 1 Conversion'!$D$11) -> 0 | M54: =M10+M31+M19+M40+(M8*'Scope 1 Conversion'!$D$3)+(M9*'Scope 1 Conversion'!$D$4)+(M11*'Scope 1 Conversion'!J17)+(M12*'Scope 1 Conversion'!J24)+(M29*'Scope 1 Conversion'!$D$3)+(M30*'Scope 1 Conversion'!$D$4)+(M32*'Scope 1 Conversion'!J17)+(M33*'Scope 1 Conversion'!J24)+(M13*'Scope 1 Conversion'!$D$6)+(M14*'Scope 1 Conversion'!$D$7)+(M15*'Scope 1 Conversion'!$D$8)+(M16*'Scope 1 Conversion'!$D$9)+(M17*'Scope 1 Conversion'!$D$10)+(M18*'Scope 1 Conversion'!$D$11)+(M34*'Scope 1 Conversion'!$D$6)+(M35*'Scope 1 Conversion'!$D$7)+(M36*'Scope 1 Conversion'!$D$8)+(M37*'Scope 1 Conversion'!$D$9)+(M38*'Scope 1 Conversion'!$D$10)+(M39*'Scope 1 Conversion'!$D$11) -> 0 | N54: =N10+N31+N19+N40+(N8*'Scope 1 Conversion'!$D$3)+(N9*'Scope 1 Conversion'!$D$4)+(N11*'Scope 1 Conversion'!K17)+(N12*'Scope 1 Conversion'!K24)+(N29*'Scope 1 Conversion'!$D$3)+(N30*'Scope 1 Conversion'!$D$4)+(N32*'Scope 1 Conversion'!K17)+(N33*'Scope 1 Conversion'!K24)+(N13*'Scope 1 Conversion'!$D$6)+(N14*'Scope 1 Conversion'!$D$7)+(N15*'Scope 1 Conversion'!$D$8)+(N16*'Scope 1 Conversion'!$D$9)+(N17*'Scope 1 Conversion'!$D$10)+(N18*'Scope 1 Conversion'!$D$11)+(N34*'Scope 1 Conversion'!$D$6)+(N35*'Scope 1 Conversion'!$D$7)+(N36*'Scope 1 Conversion'!$D$8)+(N37*'Scope 1 Conversion'!$D$9)+(N38*'Scope 1 Conversion'!$D$10)+(N39*'Scope 1 Conversion'!$D$11) -> 537114.168 | O54: =O10+O31+O19+O40+(O8*'Scope 1 Conversion'!$D$3)+(O9*'Scope 1 Conversion'!$D$4)+(O11*'Scope 1 Conversion'!L17)+(O12*'Scope 1 Conversion'!L24)+(O29*'Scope 1 Conversion'!$D$3)+(O30*'Scope 1 Conversion'!$D$4)+(O32*'Scope 1 Conversion'!L17)+(O33*'Scope 1 Conversion'!L24)+(O13*'Scope 1 Conversion'!$D$6)+(O14*'Scope 1 Conversion'!$D$7)+(O15*'Scope 1 Conversion'!$D$8)+(O16*'Scope 1 Conversion'!$D$9)+(O17*'Scope 1 Conversion'!$D$10)+(O18*'Scope 1 Conversion'!$D$11)+(O34*'Scope 1 Conversion'!$D$6)+(O35*'Scope 1 Conversion'!$D$7)+(O36*'Scope 1 Conversion'!$D$8)+(O37*'Scope 1 Conversion'!$D$9)+(O38*'Scope 1 Conversion'!$D$10)+(O39*'Scope 1 Conversion'!$D$11) -> 467433.532 | P54: =P10+P31+P19+P40+(P8*'Scope 1 Conversion'!$D$3)+(P9*'Scope 1 Conversion'!$D$4)+(P11*'Scope 1 Conversion'!M17)+(P12*'Scope 1 Conversion'!M24)+(P29*'Scope 1 Conversion'!$D$3)+(P30*'Scope 1 Conversion'!$D$4)+(P32*'Scope 1 Conversion'!M17)+(P33*'Scope 1 Conversion'!M24)+(P13*'Scope 1 Conversion'!$D$6)+(P14*'Scope 1 Conversion'!$D$7)+(P15*'Scope 1 Conversion'!$D$8)+(P16*'Scope 1 Conversion'!$D$9)+(P17*'Scope 1 Conversion'!$D$10)+(P18*'Scope 1 Conversion'!$D$11)+(P34*'Scope 1 Conversion'!$D$6)+(P35*'Scope 1 Conversion'!$D$7)+(P36*'Scope 1 Conversion'!$D$8)+(P37*'Scope 1 Conversion'!$D$9)+(P38*'Scope 1 Conversion'!$D$10)+(P39*'Scope 1 Conversion'!$D$11) -> 454613.358 | Q54: =Q10+Q31+Q19+Q40+(Q8*'Scope 1 Conversion'!$D$3)+(Q9*'Scope 1 Conversion'!$D$4)+(Q11*'Scope 1 Conversion'!N17)+(Q12*'Scope 1 Conversion'!N24)+(Q29*'Scope 1 Conversion'!$D$3)+(Q30*'Scope 1 Conversion'!$D$4)+(Q32*'Scope 1 Conversion'!N17)+(Q33*'Scope 1 Conversion'!N24)+(Q13*'Scope 1 Conversion'!$D$6)+(Q14*'Scope 1 Conversion'!$D$7)+(Q15*'Scope 1 Conversion'!$D$8)+(Q16*'Scope 1 Conversion'!$D$9)+(Q17*'Scope 1 Conversion'!$D$10)+(Q18*'Scope 1 Conversion'!$D$11)+(Q34*'Scope 1 Conversion'!$D$6)+(Q35*'Scope 1 Conversion'!$D$7)+(Q36*'Scope 1 Conversion'!$D$8)+(Q37*'Scope 1 Conversion'!$D$9)+(Q38*'Scope 1 Conversion'!$D$10)+(Q39*'Scope 1 Conversion'!$D$11) -> 450494.092 | R54: =R10+R31+R19+R40+(R8*'Scope 1 Conversion'!$D$3)+(R9*'Scope 1 Conversion'!$D$4)+(R11*'Scope 1 Conversion'!O17)+(R12*'Scope 1 Conversion'!O24)+(R29*'Scope 1 Conversion'!$D$3)+(R30*'Scope 1 Conversion'!$D$4)+(R32*'Scope 1 Conversion'!O17)+(R33*'Scope 1 Conversion'!O24)+(R13*'Scope 1 Conversion'!$D$6)+(R14*'Scope 1 Conversion'!$D$7)+(R15*'Scope 1 Conversion'!$D$8)+(R16*'Scope 1 Conversion'!$D$9)+(R17*'Scope 1 Conversion'!$D$10)+(R18*'Scope 1 Conversion'!$D$11)+(R34*'Scope 1 Conversion'!$D$6)+(R35*'Scope 1 Conversion'!$D$7)+(R36*'Scope 1 Conversion'!$D$8)+(R37*'Scope 1 Conversion'!$D$9)+(R38*'Scope 1 Conversion'!$D$10)+(R39*'Scope 1 Conversion'!$D$11) -> 484668.3485 | S54: =S10+S31+S19+S40+(S8*'Scope 1 Conversion'!$D$3)+(S9*'Scope 1 Conversion'!$D$4)+(S11*'Scope 1 Conversion'!P17)+(S12*'Scope 1 Conversion'!P24)+(S29*'Scope 1 Conversion'!$D$3)+(S30*'Scope 1 Conversion'!$D$4)+(S32*'Scope 1 Conversion'!P17)+(S33*'Scope 1 Conversion'!P24)+(S13*'Scope 1 Conversion'!$D$6)+(S14*'Scope 1 Conversion'!$D$7)+(S15*'Scope 1 Conversion'!$D$8)+(S16*'Scope 1 Conversion'!$D$9)+(S17*'Scope 1 Conversion'!$D$10)+(S18*'Scope 1 Conversion'!$D$11)+(S34*'Scope 1 Conversion'!$D$6)+(S35*'Scope 1 Conversion'!$D$7)+(S36*'Scope 1 Conversion'!$D$8)+(S37*'Scope 1 Conversion'!$D$9)+(S38*'Scope 1 Conversion'!$D$10)+(S39*'Scope 1 Conversion'!$D$11) -> 470856.3915 | T54: =T10+T31+T19+T40+(T8*'Scope 1 Conversion'!$D$3)+(T9*'Scope 1 Conversion'!$D$4)+(T11*'Scope 1 Conversion'!Q17)+(T12*'Scope 1 Conversion'!Q24)+(T29*'Scope 1 Conversion'!$D$3)+(T30*'Scope 1 Conversion'!$D$4)+(T32*'Scope 1 Conversion'!Q17)+(T33*'Scope 1 Conversion'!Q24)+(T13*'Scope 1 Conversion'!$D$6)+(T14*'Scope 1 Conversion'!$D$7)+(T15*'Scope 1 Conversion'!$D$8)+(T16*'Scope 1 Conversion'!$D$9)+(T17*'Scope 1 Conversion'!$D$10)+(T18*'Scope 1 Conversion'!$D$11)+(T34*'Scope 1 Conversion'!$D$6)+(T35*'Scope 1 Conversion'!$D$7)+(T36*'Scope 1 Conversion'!$D$8)+(T37*'Scope 1 Conversion'!$D$9)+(T38*'Scope 1 Conversion'!$D$10)+(T39*'Scope 1 Conversion'!$D$11) -> 438877.621 | U54: =U10+U31+U19+U40+(U8*'Scope 1 Conversion'!$D$3)+(U9*'Scope 1 Conversion'!$D$4)+(U11*'Scope 1 Conversion'!R17)+(U12*'Scope 1 Conversion'!R24)+(U29*'Scope 1 Conversion'!$D$3)+(U30*'Scope 1 Conversion'!$D$4)+(U32*'Scope 1 Conversion'!R17)+(U33*'Scope 1 Conversion'!R24)+(U13*'Scope 1 Conversion'!$D$6)+(U14*'Scope 1 Conversion'!$D$7)+(U15*'Scope 1 Conversion'!$D$8)+(U16*'Scope 1 Conversion'!$D$9)+(U17*'Scope 1 Conversion'!$D$10)+(U18*'Scope 1 Conversion'!$D$11)+(U34*'Scope 1 Conversion'!$D$6)+(U35*'Scope 1 Conversion'!$D$7)+(U36*'Scope 1 Conversion'!$D$8)+(U37*'Scope 1 Conversion'!$D$9)+(U38*'Scope 1 Conversion'!$D$10)+(U39*'Scope 1 Conversion'!$D$11) -> 418591.7717 | V54: =V10+V31+V19+V40+(V8*'Scope 1 Conversion'!$D$3)+(V9*'Scope 1 Conversion'!$D$4)+(V11*'Scope 1 Conversion'!S17)+(V12*'Scope 1 Conversion'!S24)+(V29*'Scope 1 Conversion'!$D$3)+(V30*'Scope 1 Conversion'!$D$4)+(V32*'Scope 1 Conversion'!S17)+(V33*'Scope 1 Conversion'!S24)+(V13*'Scope 1 Conversion'!$D$6)+(V14*'Scope 1 Conversion'!$D$7)+(V15*'Scope 1 Conversion'!$D$8)+(V16*'Scope 1 Conversion'!$D$9)+(V17*'Scope 1 Conversion'!$D$10)+(V18*'Scope 1 Conversion'!$D$11)+(V34*'Scope 1 Conversion'!$D$6)+(V35*'Scope 1 Conversion'!$D$7)+(V36*'Scope 1 Conversion'!$D$8)+(V37*'Scope 1 Conversion'!$D$9)+(V38*'Scope 1 Conversion'!$D$10)+(V39*'Scope 1 Conversion'!$D$11) -> 444132.1916 | W54: =W10+W31+W19+W40+(W8*'Scope 1 Conversion'!$D$3)+(W9*'Scope 1 Conversion'!$D$4)+(W11*'Scope 1 Conversion'!T17)+(W12*'Scope 1 Conversion'!T24)+(W29*'Scope 1 Conversion'!$D$3)+(W30*'Scope 1 Conversion'!$D$4)+(W32*'Scope 1 Conversion'!T17)+(W33*'Scope 1 Conversion'!T24)+(W13*'Scope 1 Conversion'!$D$6)+(W14*'Scope 1 Conversion'!$D$7)+(W15*'Scope 1 Conversion'!$D$8)+(W16*'Scope 1 Conversion'!$D$9)+(W17*'Scope 1 Conversion'!$D$10)+(W18*'Scope 1 Conversion'!$D$11)+(W34*'Scope 1 Conversion'!$D$6)+(W35*'Scope 1 Conversion'!$D$7)+(W36*'Scope 1 Conversion'!$D$8)+(W37*'Scope 1 Conversion'!$D$9)+(W38*'Scope 1 Conversion'!$D$10)+(W39*'Scope 1 Conversion'!$D$11) -> 616063.462
C55: Stationary Fuel Carbon Intensity | D55: MTCDE/1,000 MMBTU | E55: =E50/E54*1000 ->  | N55: 53.24719441 | O55: 53.26536793 | P55: 53.28974354 | Q55: 53.31855372 | R55: 53.35052794 | S55: 52.99851237 | T55: =T50/T54*1000 -> 53.38893531 | U55: =U50/U54*1000 -> 53.28293938 | V55: =V50/V54*1000 -> 53.31070444 | W55: =W50/W54*1000 -> 111.87078
C56: Stationary Fuel Consumption | D56: BTU/GSF | E56: =(E54*1000000)/'Institutional Data'!I9 ->  | F56: =(F54*1000000)/'Institutional Data'!J9 ->  | G56: =(G54*1000000)/'Institutional Data'!K9 ->  | H56: =(H54*1000000)/'Institutional Data'!L9 ->  | I56: =(I54*1000000)/'Institutional Data'!M9 ->  | J56: =(J54*1000000)/'Institutional Data'!N9 ->  | K56: =(K54*1000000)/'Institutional Data'!O9 ->  | L56: =(L54*1000000)/'Institutional Data'!P9 ->  | M56: =(M54*1000000)/'Institutional Data'!Q9 ->  | N56: =(N54*1000000)/'Institutional Data'!R9 -> 90564.90166 | O56: =(O54*1000000)/'Institutional Data'!S9 -> 77851.98757 | P56: =(P54*1000000)/'Institutional Data'!T9 -> 71844.77906 | Q56: =(Q54*1000000)/'Institutional Data'!U9 -> 70919.92806 | R56: =(R54*1000000)/'Institutional Data'!V9 -> 75238.80193 | S56: =(S54*1000000)/'Institutional Data'!W9 -> 74762.17923 | T56: =(T54*1000000)/'Institutional Data'!X9 -> 67437.95108 | U56: =(U54*1000000)/'Institutional Data'!Y9 -> 56759.77637 | V56: =(V54*1000000)/'Institutional Data'!Z9 -> 56935.44053 | W56: =(W54*1000000)/'Institutional Data'!AA9 -> 77533.02516
C57: Residual Oil (#5-6) | D57: % of Total Stationary | E57: =('Scope 1 Utilities'!E8+'Scope 1 Utilities'!E29)*'Scope 1 Conversion'!$D$3/'Scope 1 Utilities'!E54 ->  | F57: =('Scope 1 Utilities'!F8+'Scope 1 Utilities'!F29)*'Scope 1 Conversion'!$D$3/'Scope 1 Utilities'!F54 ->  | G57: =('Scope 1 Utilities'!G8+'Scope 1 Utilities'!G29)*'Scope 1 Conversion'!$D$3/'Scope 1 Utilities'!G54 ->  | H57: =('Scope 1 Utilities'!H8+'Scope 1 Utilities'!H29)*'Scope 1 Conversion'!$D$3/'Scope 1 Utilities'!H54 ->  | I57: =('Scope 1 Utilities'!I8+'Scope 1 Utilities'!I29)*'Scope 1 Conversion'!$D$3/'Scope 1 Utilities'!I54 ->  | J57: =('Scope 1 Utilities'!J8+'Scope 1 Utilities'!J29)*'Scope 1 Conversion'!$D$3/'Scope 1 Utilities'!J54 ->  | K57: =('Scope 1 Utilities'!K8+'Scope 1 Utilities'!K29)*'Scope 1 Conversion'!$D$3/'Scope 1 Utilities'!K54 ->  | L57: =('Scope 1 Utilities'!L8+'Scope 1 Utilities'!L29)*'Scope 1 Conversion'!$D$3/'Scope 1 Utilities'!L54 ->  | M57: =('Scope 1 Utilities'!M8+'Scope 1 Utilities'!M29)*'Scope 1 Conversion'!$D$3/'Scope 1 Utilities'!M54 ->  | N57: =('Scope 1 Utilities'!N8+'Scope 1 Utilities'!N29)*'Scope 1 Conversion'!$D$3/'Scope 1 Utilities'!N54 -> 0 | O57: =('Scope 1 Utilities'!O8+'Scope 1 Utilities'!O29)*'Scope 1 Conversion'!$D$3/'Scope 1 Utilities'!O54 -> 0 | P57: =('Scope 1 Utilities'!P8+'Scope 1 Utilities'!P29)*'Scope 1 Conversion'!$D$3/'Scope 1 Utilities'!P54 -> 0 | Q57: =('Scope 1 Utilities'!Q8+'Scope 1 Utilities'!Q29)*'Scope 1 Conversion'!$D$3/'Scope 1 Utilities'!Q54 -> 0 | R57: =('Scope 1 Utilities'!R8+'Scope 1 Utilities'!R29)*'Scope 1 Conversion'!$D$3/'Scope 1 Utilities'!R54 -> 0 | S57: =('Scope 1 Utilities'!S8+'Scope 1 Utilities'!S29)*'Scope 1 Conversion'!$D$3/'Scope 1 Utilities'!S54 -> 0 | T57: =('Scope 1 Utilities'!T8+'Scope 1 Utilities'!T29)*'Scope 1 Conversion'!$D$3/'Scope 1 Utilities'!T54 -> 0 | U57: =('Scope 1 Utilities'!U8+'Scope 1 Utilities'!U29)*'Scope 1 Conversion'!$D$3/'Scope 1 Utilities'!U54 -> 0 | V57: =('Scope 1 Utilities'!V8+'Scope 1 Utilities'!V29)*'Scope 1 Conversion'!$D$3/'Scope 1 Utilities'!V54 -> 0 | W57: =('Scope 1 Utilities'!W8+'Scope 1 Utilities'!W29)*'Scope 1 Conversion'!$D$3/'Scope 1 Utilities'!W54 -> 0
C58: Distillate Oil (#1-4) | D58: % of Total Stationary | E58: =('Scope 1 Utilities'!E9+'Scope 1 Utilities'!E30)*'Scope 1 Conversion'!$D$4/'Scope 1 Utilities'!E54 ->  | F58: =('Scope 1 Utilities'!F9+'Scope 1 Utilities'!F30)*'Scope 1 Conversion'!$D$4/'Scope 1 Utilities'!F54 ->  | G58: =('Scope 1 Utilities'!G9+'Scope 1 Utilities'!G30)*'Scope 1 Conversion'!$D$4/'Scope 1 Utilities'!G54 ->  | H58: =('Scope 1 Utilities'!H9+'Scope 1 Utilities'!H30)*'Scope 1 Conversion'!$D$4/'Scope 1 Utilities'!H54 ->  | I58: =('Scope 1 Utilities'!I9+'Scope 1 Utilities'!I30)*'Scope 1 Conversion'!$D$4/'Scope 1 Utilities'!I54 ->  | J58: =('Scope 1 Utilities'!J9+'Scope 1 Utilities'!J30)*'Scope 1 Conversion'!$D$4/'Scope 1 Utilities'!J54 ->  | K58: =('Scope 1 Utilities'!K9+'Scope 1 Utilities'!K30)*'Scope 1 Conversion'!$D$4/'Scope 1 Utilities'!K54 ->  | L58: =('Scope 1 Utilities'!L9+'Scope 1 Utilities'!L30)*'Scope 1 Conversion'!$D$4/'Scope 1 Utilities'!L54 ->  | M58: =('Scope 1 Utilities'!M9+'Scope 1 Utilities'!M30)*'Scope 1 Conversion'!$D$4/'Scope 1 Utilities'!M54 ->  | N58: =('Scope 1 Utilities'!N9+'Scope 1 Utilities'!N30)*'Scope 1 Conversion'!$D$4/'Scope 1 Utilities'!N54 -> 0.0028196631 | O58: =('Scope 1 Utilities'!O9+'Scope 1 Utilities'!O30)*'Scope 1 Conversion'!$D$4/'Scope 1 Utilities'!O54 -> 0.003639732462 | P58: =('Scope 1 Utilities'!P9+'Scope 1 Utilities'!P30)*'Scope 1 Conversion'!$D$4/'Scope 1 Utilities'!P54 -> 0.004779619785 | Q58: =('Scope 1 Utilities'!Q9+'Scope 1 Utilities'!Q30)*'Scope 1 Conversion'!$D$4/'Scope 1 Utilities'!Q54 -> 0.006121551979 | R58: =('Scope 1 Utilities'!R9+'Scope 1 Utilities'!R30)*'Scope 1 Conversion'!$D$4/'Scope 1 Utilities'!R54 -> 0.002801039111 | S58: =('Scope 1 Utilities'!S9+'Scope 1 Utilities'!S30)*'Scope 1 Conversion'!$D$4/'Scope 1 Utilities'!S54 -> 0.003111779359 | T58: =('Scope 1 Utilities'!T9+'Scope 1 Utilities'!T30)*'Scope 1 Conversion'!$D$4/'Scope 1 Utilities'!T54 -> 0.009378944387 | U58: =('Scope 1 Utilities'!U9+'Scope 1 Utilities'!U30)*'Scope 1 Conversion'!$D$4/'Scope 1 Utilities'!U54 -> 0.004242182288 | V58: =('Scope 1 Utilities'!V9+'Scope 1 Utilities'!V30)*'Scope 1 Conversion'!$D$4/'Scope 1 Utilities'!V54 -> 0.003846133274 | W58: =('Scope 1 Utilities'!W9+'Scope 1 Utilities'!W30)*'Scope 1 Conversion'!$D$4/'Scope 1 Utilities'!W54 -> 0.0002461791834
C59: Natural Gas | D59: % of Total Stationary | E59: =('Scope 1 Utilities'!E10+'Scope 1 Utilities'!E31)/'Scope 1 Utilities'!E54 ->  | F59: =('Scope 1 Utilities'!F10+'Scope 1 Utilities'!F31)/'Scope 1 Utilities'!F54 ->  | G59: =('Scope 1 Utilities'!G10+'Scope 1 Utilities'!G31)/'Scope 1 Utilities'!G54 ->  | H59: =('Scope 1 Utilities'!H10+'Scope 1 Utilities'!H31)/'Scope 1 Utilities'!H54 ->  | I59: =('Scope 1 Utilities'!I10+'Scope 1 Utilities'!I31)/'Scope 1 Utilities'!I54 ->  | J59: =('Scope 1 Utilities'!J10+'Scope 1 Utilities'!J31)/'Scope 1 Utilities'!J54 ->  | K59: =('Scope 1 Utilities'!K10+'Scope 1 Utilities'!K31)/'Scope 1 Utilities'!K54 ->  | L59: =('Scope 1 Utilities'!L10+'Scope 1 Utilities'!L31)/'Scope 1 Utilities'!L54 ->  | M59: =('Scope 1 Utilities'!M10+'Scope 1 Utilities'!M31)/'Scope 1 Utilities'!M54 ->  | N59: =('Scope 1 Utilities'!N10+'Scope 1 Utilities'!N31)/'Scope 1 Utilities'!N54 -> 0.9963242639 | O59: =('Scope 1 Utilities'!O10+'Scope 1 Utilities'!O31)/'Scope 1 Utilities'!O54 -> 0.9953765791 | P59: =('Scope 1 Utilities'!P10+'Scope 1 Utilities'!P31)/'Scope 1 Utilities'!P54 -> 0.9942089516 | Q59: =('Scope 1 Utilities'!Q10+'Scope 1 Utilities'!Q31)/'Scope 1 Utilities'!Q54 -> 0.992857771 | R59: =('Scope 1 Utilities'!R10+'Scope 1 Utilities'!R31)/'Scope 1 Utilities'!R54 -> 0.9962502524 | S59: =('Scope 1 Utilities'!S10+'Scope 1 Utilities'!S31)/'Scope 1 Utilities'!S54 -> 0.9960315811 | T59: =('Scope 1 Utilities'!T10+'Scope 1 Utilities'!T31)/'Scope 1 Utilities'!T54 -> 0.9898003288 | U59: =('Scope 1 Utilities'!U10+'Scope 1 Utilities'!U31)/'Scope 1 Utilities'!U54 -> 0.9947611924 | V59: =('Scope 1 Utilities'!V10+'Scope 1 Utilities'!V31)/'Scope 1 Utilities'!V54 -> 0.9961538667 | W59: =('Scope 1 Utilities'!W10+'Scope 1 Utilities'!W31)/'Scope 1 Utilities'!W54 -> 0.9993434735
C60: Propane | D60: % of Total Stationary | E60: =('Scope 1 Utilities'!E11+'Scope 1 Utilities'!E32)*'Scope 1 Conversion'!B17/'Scope 1 Utilities'!E54 ->  | F60: =('Scope 1 Utilities'!F11+'Scope 1 Utilities'!F32)*'Scope 1 Conversion'!C17/'Scope 1 Utilities'!F54 ->  | G60: =('Scope 1 Utilities'!G11+'Scope 1 Utilities'!G32)*'Scope 1 Conversion'!D17/'Scope 1 Utilities'!G54 ->  | H60: =('Scope 1 Utilities'!H11+'Scope 1 Utilities'!H32)*'Scope 1 Conversion'!E17/'Scope 1 Utilities'!H54 ->  | I60: =('Scope 1 Utilities'!I11+'Scope 1 Utilities'!I32)*'Scope 1 Conversion'!F17/'Scope 1 Utilities'!I54 ->  | J60: =('Scope 1 Utilities'!J11+'Scope 1 Utilities'!J32)*'Scope 1 Conversion'!G17/'Scope 1 Utilities'!J54 ->  | K60: =('Scope 1 Utilities'!K11+'Scope 1 Utilities'!K32)*'Scope 1 Conversion'!H17/'Scope 1 Utilities'!K54 ->  | L60: =('Scope 1 Utilities'!L11+'Scope 1 Utilities'!L32)*'Scope 1 Conversion'!I17/'Scope 1 Utilities'!L54 ->  | M60: =('Scope 1 Utilities'!M11+'Scope 1 Utilities'!M32)*'Scope 1 Conversion'!J17/'Scope 1 Utilities'!M54 ->  | N60: =('Scope 1 Utilities'!N11+'Scope 1 Utilities'!N32)*'Scope 1 Conversion'!K17/'Scope 1 Utilities'!N54 -> 0.0008560730284 | O60: =('Scope 1 Utilities'!O11+'Scope 1 Utilities'!O32)*'Scope 1 Conversion'!L17/'Scope 1 Utilities'!O54 -> 0.0009836884197 | P60: =('Scope 1 Utilities'!P11+'Scope 1 Utilities'!P32)*'Scope 1 Conversion'!M17/'Scope 1 Utilities'!P54 -> 0.0010114286 | Q60: =('Scope 1 Utilities'!Q11+'Scope 1 Utilities'!Q32)*'Scope 1 Conversion'!N17/'Scope 1 Utilities'!Q54 -> 0.001020676987 | R60: =('Scope 1 Utilities'!R11+'Scope 1 Utilities'!R32)*'Scope 1 Conversion'!O17/'Scope 1 Utilities'!R54 -> 0.0009487084391 | S60: =('Scope 1 Utilities'!S11+'Scope 1 Utilities'!S32)*'Scope 1 Conversion'!P17/'Scope 1 Utilities'!S54 -> 0.0008566395142 | T60: =('Scope 1 Utilities'!T11+'Scope 1 Utilities'!T32)*'Scope 1 Conversion'!Q17/'Scope 1 Utilities'!T54 -> 0.0008207267854 | U60: =('Scope 1 Utilities'!U11+'Scope 1 Utilities'!U32)*'Scope 1 Conversion'!R17/'Scope 1 Utilities'!U54 -> 0.0009966252827 | V60: =('Scope 1 Utilities'!V11+'Scope 1 Utilities'!V32)*'Scope 1 Conversion'!S17/'Scope 1 Utilities'!V54 -> 0 | W60: =('Scope 1 Utilities'!W11+'Scope 1 Utilities'!W32)*'Scope 1 Conversion'!T17/'Scope 1 Utilities'!W54 -> 0
C61: Coal | D61: % of Total Stationary | E61: =('Scope 1 Utilities'!E12+'Scope 1 Utilities'!E33)*'Scope 1 Conversion'!B24/'Scope 1 Utilities'!E54 ->  | F61: =('Scope 1 Utilities'!F12+'Scope 1 Utilities'!F33)*'Scope 1 Conversion'!C24/'Scope 1 Utilities'!F54 ->  | G61: =('Scope 1 Utilities'!G12+'Scope 1 Utilities'!G33)*'Scope 1 Conversion'!D24/'Scope 1 Utilities'!G54 ->  | H61: =('Scope 1 Utilities'!H12+'Scope 1 Utilities'!H33)*'Scope 1 Conversion'!E24/'Scope 1 Utilities'!H54 ->  | I61: =('Scope 1 Utilities'!I12+'Scope 1 Utilities'!I33)*'Scope 1 Conversion'!F24/'Scope 1 Utilities'!I54 ->  | J61: =('Scope 1 Utilities'!J12+'Scope 1 Utilities'!J33)*'Scope 1 Conversion'!G24/'Scope 1 Utilities'!J54 ->  | K61: =('Scope 1 Utilities'!K12+'Scope 1 Utilities'!K33)*'Scope 1 Conversion'!H24/'Scope 1 Utilities'!K54 ->  | L61: =('Scope 1 Utilities'!L12+'Scope 1 Utilities'!L33)*'Scope 1 Conversion'!I24/'Scope 1 Utilities'!L54 ->  | M61: =('Scope 1 Utilities'!M12+'Scope 1 Utilities'!M33)*'Scope 1 Conversion'!J24/'Scope 1 Utilities'!M54 ->  | N61: =('Scope 1 Utilities'!N12+'Scope 1 Utilities'!N33)*'Scope 1 Conversion'!K24/'Scope 1 Utilities'!N54 -> 0 | O61: =('Scope 1 Utilities'!O12+'Scope 1 Utilities'!O33)*'Scope 1 Conversion'!L24/'Scope 1 Utilities'!O54 -> 0 | P61: =('Scope 1 Utilities'!P12+'Scope 1 Utilities'!P33)*'Scope 1 Conversion'!M24/'Scope 1 Utilities'!P54 -> 0 | Q61: =('Scope 1 Utilities'!Q12+'Scope 1 Utilities'!Q33)*'Scope 1 Conversion'!N24/'Scope 1 Utilities'!Q54 -> 0 | R61: =('Scope 1 Utilities'!R12+'Scope 1 Utilities'!R33)*'Scope 1 Conversion'!O24/'Scope 1 Utilities'!R54 -> 0 | S61: =('Scope 1 Utilities'!S12+'Scope 1 Utilities'!S33)*'Scope 1 Conversion'!P24/'Scope 1 Utilities'!S54 -> 0 | T61: =('Scope 1 Utilities'!T12+'Scope 1 Utilities'!T33)*'Scope 1 Conversion'!Q24/'Scope 1 Utilities'!T54 -> 0 | U61: =('Scope 1 Utilities'!U12+'Scope 1 Utilities'!U33)*'Scope 1 Conversion'!R24/'Scope 1 Utilities'!U54 -> 0 | V61: =('Scope 1 Utilities'!V12+'Scope 1 Utilities'!V33)*'Scope 1 Conversion'!S24/'Scope 1 Utilities'!V54 -> 0 | W61: =('Scope 1 Utilities'!W12+'Scope 1 Utilities'!W33)*'Scope 1 Conversion'!T24/'Scope 1 Utilities'!W54 -> 0
C62: Incinerated Waste | D62: % of Total Stationary | E62: =('Scope 1 Utilities'!E13+'Scope 1 Utilities'!E34)*'Scope 1 Conversion'!$D$6/'Scope 1 Utilities'!E54 ->  | F62: =('Scope 1 Utilities'!F13+'Scope 1 Utilities'!F34)*'Scope 1 Conversion'!$D$6/'Scope 1 Utilities'!F54 ->  | G62: =('Scope 1 Utilities'!G13+'Scope 1 Utilities'!G34)*'Scope 1 Conversion'!$D$6/'Scope 1 Utilities'!G54 ->  | H62: =('Scope 1 Utilities'!H13+'Scope 1 Utilities'!H34)*'Scope 1 Conversion'!$D$6/'Scope 1 Utilities'!H54 ->  | I62: =('Scope 1 Utilities'!I13+'Scope 1 Utilities'!I34)*'Scope 1 Conversion'!$D$6/'Scope 1 Utilities'!I54 ->  | J62: =('Scope 1 Utilities'!J13+'Scope 1 Utilities'!J34)*'Scope 1 Conversion'!$D$6/'Scope 1 Utilities'!J54 ->  | K62: =('Scope 1 Utilities'!K13+'Scope 1 Utilities'!K34)*'Scope 1 Conversion'!$D$6/'Scope 1 Utilities'!K54 ->  | L62: =('Scope 1 Utilities'!L13+'Scope 1 Utilities'!L34)*'Scope 1 Conversion'!$D$6/'Scope 1 Utilities'!L54 ->  | M62: =('Scope 1 Utilities'!M13+'Scope 1 Utilities'!M34)*'Scope 1 Conversion'!$D$6/'Scope 1 Utilities'!M54 ->  | N62: =('Scope 1 Utilities'!N13+'Scope 1 Utilities'!N34)*'Scope 1 Conversion'!$D$6/'Scope 1 Utilities'!N54 -> 0 | O62: =('Scope 1 Utilities'!O13+'Scope 1 Utilities'!O34)*'Scope 1 Conversion'!$D$6/'Scope 1 Utilities'!O54 -> 0 | P62: =('Scope 1 Utilities'!P13+'Scope 1 Utilities'!P34)*'Scope 1 Conversion'!$D$6/'Scope 1 Utilities'!P54 -> 0 | Q62: =('Scope 1 Utilities'!Q13+'Scope 1 Utilities'!Q34)*'Scope 1 Conversion'!$D$6/'Scope 1 Utilities'!Q54 -> 0 | R62: =('Scope 1 Utilities'!R13+'Scope 1 Utilities'!R34)*'Scope 1 Conversion'!$D$6/'Scope 1 Utilities'!R54 -> 0 | S62: =('Scope 1 Utilities'!S13+'Scope 1 Utilities'!S34)*'Scope 1 Conversion'!$D$6/'Scope 1 Utilities'!S54 -> 0 | T62: =('Scope 1 Utilities'!T13+'Scope 1 Utilities'!T34)*'Scope 1 Conversion'!$D$6/'Scope 1 Utilities'!T54 -> 0 | U62: =('Scope 1 Utilities'!U13+'Scope 1 Utilities'!U34)*'Scope 1 Conversion'!$D$6/'Scope 1 Utilities'!U54 -> 0 | V62: =('Scope 1 Utilities'!V13+'Scope 1 Utilities'!V34)*'Scope 1 Conversion'!$D$6/'Scope 1 Utilities'!V54 -> 0 | W62: =('Scope 1 Utilities'!W13+'Scope 1 Utilities'!W34)*'Scope 1 Conversion'!$D$6/'Scope 1 Utilities'!W54 -> 0
C63: Biomass | D63: % of Total Stationary | E63: =(SUM('Scope 1 Utilities'!E14:E16)+SUM('Scope 1 Utilities'!E35:E37))*'Scope 1 Conversion'!$D$7/'Scope 1 Utilities'!E54 ->  | F63: =(SUM('Scope 1 Utilities'!F14:F16)+SUM('Scope 1 Utilities'!F35:F37))*'Scope 1 Conversion'!$D$7/'Scope 1 Utilities'!F54 ->  | G63: =(SUM('Scope 1 Utilities'!G14:G16)+SUM('Scope 1 Utilities'!G35:G37))*'Scope 1 Conversion'!$D$7/'Scope 1 Utilities'!G54 ->  | H63: =(SUM('Scope 1 Utilities'!H14:H16)+SUM('Scope 1 Utilities'!H35:H37))*'Scope 1 Conversion'!$D$7/'Scope 1 Utilities'!H54 ->  | I63: =(SUM('Scope 1 Utilities'!I14:I16)+SUM('Scope 1 Utilities'!I35:I37))*'Scope 1 Conversion'!$D$7/'Scope 1 Utilities'!I54 ->  | J63: =(SUM('Scope 1 Utilities'!J14:J16)+SUM('Scope 1 Utilities'!J35:J37))*'Scope 1 Conversion'!$D$7/'Scope 1 Utilities'!J54 ->  | K63: =(SUM('Scope 1 Utilities'!K14:K16)+SUM('Scope 1 Utilities'!K35:K37))*'Scope 1 Conversion'!$D$7/'Scope 1 Utilities'!K54 ->  | L63: =(SUM('Scope 1 Utilities'!L14:L16)+SUM('Scope 1 Utilities'!L35:L37))*'Scope 1 Conversion'!$D$7/'Scope 1 Utilities'!L54 ->  | M63: =(SUM('Scope 1 Utilities'!M14:M16)+SUM('Scope 1 Utilities'!M35:M37))*'Scope 1 Conversion'!$D$7/'Scope 1 Utilities'!M54 ->  | N63: =(SUM('Scope 1 Utilities'!N14:N16)+SUM('Scope 1 Utilities'!N35:N37))*'Scope 1 Conversion'!$D$7/'Scope 1 Utilities'!N54 -> 0 | O63: =(SUM('Scope 1 Utilities'!O14:O16)+SUM('Scope 1 Utilities'!O35:O37))*'Scope 1 Conversion'!$D$7/'Scope 1 Utilities'!O54 -> 0 | P63: =(SUM('Scope 1 Utilities'!P14:P16)+SUM('Scope 1 Utilities'!P35:P37))*'Scope 1 Conversion'!$D$7/'Scope 1 Utilities'!P54 -> 0 | Q63: =(SUM('Scope 1 Utilities'!Q14:Q16)+SUM('Scope 1 Utilities'!Q35:Q37))*'Scope 1 Conversion'!$D$7/'Scope 1 Utilities'!Q54 -> 0 | R63: =(SUM('Scope 1 Utilities'!R14:R16)+SUM('Scope 1 Utilities'!R35:R37))*'Scope 1 Conversion'!$D$7/'Scope 1 Utilities'!R54 -> 0 | S63: =(SUM('Scope 1 Utilities'!S14:S16)+SUM('Scope 1 Utilities'!S35:S37))*'Scope 1 Conversion'!$D$7/'Scope 1 Utilities'!S54 -> 0 | T63: =(SUM('Scope 1 Utilities'!T14:T16)+SUM('Scope 1 Utilities'!T35:T37))*'Scope 1 Conversion'!$D$7/'Scope 1 Utilities'!T54 -> 0 | U63: =(SUM('Scope 1 Utilities'!U14:U16)+SUM('Scope 1 Utilities'!U35:U37))*'Scope 1 Conversion'!$D$7/'Scope 1 Utilities'!U54 -> 0 | V63: =(SUM('Scope 1 Utilities'!V14:V16)+SUM('Scope 1 Utilities'!V35:V37))*'Scope 1 Conversion'!$D$7/'Scope 1 Utilities'!V54 -> 0 | W63: =(SUM('Scope 1 Utilities'!W14:W16)+SUM('Scope 1 Utilities'!W35:W37))*'Scope 1 Conversion'!$D$7/'Scope 1 Utilities'!W54 -> 0
C64: Residual BioHeat | D64: % of Total Stationary | E64: =('Scope 1 Utilities'!E17+'Scope 1 Utilities'!E38)*'Scope 1 Conversion'!$D$10/'Scope 1 Utilities'!E54 ->  | F64: =('Scope 1 Utilities'!F17+'Scope 1 Utilities'!F38)*'Scope 1 Conversion'!$D$10/'Scope 1 Utilities'!F54 ->  | G64: =('Scope 1 Utilities'!G17+'Scope 1 Utilities'!G38)*'Scope 1 Conversion'!$D$10/'Scope 1 Utilities'!G54 ->  | H64: =('Scope 1 Utilities'!H17+'Scope 1 Utilities'!H38)*'Scope 1 Conversion'!$D$10/'Scope 1 Utilities'!H54 ->  | I64: =('Scope 1 Utilities'!I17+'Scope 1 Utilities'!I38)*'Scope 1 Conversion'!$D$10/'Scope 1 Utilities'!I54 ->  | J64: =('Scope 1 Utilities'!J17+'Scope 1 Utilities'!J38)*'Scope 1 Conversion'!$D$10/'Scope 1 Utilities'!J54 ->  | K64: =('Scope 1 Utilities'!K17+'Scope 1 Utilities'!K38)*'Scope 1 Conversion'!$D$10/'Scope 1 Utilities'!K54 ->  | L64: =('Scope 1 Utilities'!L17+'Scope 1 Utilities'!L38)*'Scope 1 Conversion'!$D$10/'Scope 1 Utilities'!L54 ->  | M64: =('Scope 1 Utilities'!M17+'Scope 1 Utilities'!M38)*'Scope 1 Conversion'!$D$10/'Scope 1 Utilities'!M54 ->  | N64: =('Scope 1 Utilities'!N17+'Scope 1 Utilities'!N38)*'Scope 1 Conversion'!$D$10/'Scope 1 Utilities'!N54 -> 0 | O64: =('Scope 1 Utilities'!O17+'Scope 1 Utilities'!O38)*'Scope 1 Conversion'!$D$10/'Scope 1 Utilities'!O54 -> 0 | P64: =('Scope 1 Utilities'!P17+'Scope 1 Utilities'!P38)*'Scope 1 Conversion'!$D$10/'Scope 1 Utilities'!P54 -> 0 | Q64: =('Scope 1 Utilities'!Q17+'Scope 1 Utilities'!Q38)*'Scope 1 Conversion'!$D$10/'Scope 1 Utilities'!Q54 -> 0 | R64: =('Scope 1 Utilities'!R17+'Scope 1 Utilities'!R38)*'Scope 1 Conversion'!$D$10/'Scope 1 Utilities'!R54 -> 0 | S64: =('Scope 1 Utilities'!S17+'Scope 1 Utilities'!S38)*'Scope 1 Conversion'!$D$10/'Scope 1 Utilities'!S54 -> 0 | T64: =('Scope 1 Utilities'!T17+'Scope 1 Utilities'!T38)*'Scope 1 Conversion'!$D$10/'Scope 1 Utilities'!T54 -> 0 | U64: =('Scope 1 Utilities'!U17+'Scope 1 Utilities'!U38)*'Scope 1 Conversion'!$D$10/'Scope 1 Utilities'!U54 -> 0 | V64: =('Scope 1 Utilities'!V17+'Scope 1 Utilities'!V38)*'Scope 1 Conversion'!$D$10/'Scope 1 Utilities'!V54 -> 0 | W64: =('Scope 1 Utilities'!W17+'Scope 1 Utilities'!W38)*'Scope 1 Conversion'!$D$10/'Scope 1 Utilities'!W54 -> 0
C65: Distillate BioHeat | D65: % of Total Stationary | E65: =('Scope 1 Utilities'!E18+'Scope 1 Utilities'!E39)*'Scope 1 Conversion'!$D$11/'Scope 1 Utilities'!E54 ->  | F65: =('Scope 1 Utilities'!F18+'Scope 1 Utilities'!F39)*'Scope 1 Conversion'!$D$11/'Scope 1 Utilities'!F54 ->  | G65: =('Scope 1 Utilities'!G18+'Scope 1 Utilities'!G39)*'Scope 1 Conversion'!$D$11/'Scope 1 Utilities'!G54 ->  | H65: =('Scope 1 Utilities'!H18+'Scope 1 Utilities'!H39)*'Scope 1 Conversion'!$D$11/'Scope 1 Utilities'!H54 ->  | I65: =('Scope 1 Utilities'!I18+'Scope 1 Utilities'!I39)*'Scope 1 Conversion'!$D$11/'Scope 1 Utilities'!I54 ->  | J65: =('Scope 1 Utilities'!J18+'Scope 1 Utilities'!J39)*'Scope 1 Conversion'!$D$11/'Scope 1 Utilities'!J54 ->  | K65: =('Scope 1 Utilities'!K18+'Scope 1 Utilities'!K39)*'Scope 1 Conversion'!$D$11/'Scope 1 Utilities'!K54 ->  | L65: =('Scope 1 Utilities'!L18+'Scope 1 Utilities'!L39)*'Scope 1 Conversion'!$D$11/'Scope 1 Utilities'!L54 ->  | M65: =('Scope 1 Utilities'!M18+'Scope 1 Utilities'!M39)*'Scope 1 Conversion'!$D$11/'Scope 1 Utilities'!M54 ->  | N65: =('Scope 1 Utilities'!N18+'Scope 1 Utilities'!N39)*'Scope 1 Conversion'!$D$11/'Scope 1 Utilities'!N54 -> 0 | O65: =('Scope 1 Utilities'!O18+'Scope 1 Utilities'!O39)*'Scope 1 Conversion'!$D$11/'Scope 1 Utilities'!O54 -> 0 | P65: =('Scope 1 Utilities'!P18+'Scope 1 Utilities'!P39)*'Scope 1 Conversion'!$D$11/'Scope 1 Utilities'!P54 -> 0 | Q65: =('Scope 1 Utilities'!Q18+'Scope 1 Utilities'!Q39)*'Scope 1 Conversion'!$D$11/'Scope 1 Utilities'!Q54 -> 0 | R65: =('Scope 1 Utilities'!R18+'Scope 1 Utilities'!R39)*'Scope 1 Conversion'!$D$11/'Scope 1 Utilities'!R54 -> 0 | S65: =('Scope 1 Utilities'!S18+'Scope 1 Utilities'!S39)*'Scope 1 Conversion'!$D$11/'Scope 1 Utilities'!S54 -> 0 | T65: =('Scope 1 Utilities'!T18+'Scope 1 Utilities'!T39)*'Scope 1 Conversion'!$D$11/'Scope 1 Utilities'!T54 -> 0 | U65: =('Scope 1 Utilities'!U18+'Scope 1 Utilities'!U39)*'Scope 1 Conversion'!$D$11/'Scope 1 Utilities'!U54 -> 0 | V65: =('Scope 1 Utilities'!V18+'Scope 1 Utilities'!V39)*'Scope 1 Conversion'!$D$11/'Scope 1 Utilities'!V54 -> 0 | W65: =('Scope 1 Utilities'!W18+'Scope 1 Utilities'!W39)*'Scope 1 Conversion'!$D$11/'Scope 1 Utilities'!W54 -> 0
C66: Other | D66: % of Total Stationary | E66: =('Scope 1 Utilities'!E19+'Scope 1 Utilities'!E40)/'Scope 1 Utilities'!E54 ->  | F66: =('Scope 1 Utilities'!F19+'Scope 1 Utilities'!F40)/'Scope 1 Utilities'!F54 ->  | G66: =('Scope 1 Utilities'!G19+'Scope 1 Utilities'!G40)/'Scope 1 Utilities'!G54 ->  | H66: =('Scope 1 Utilities'!H19+'Scope 1 Utilities'!H40)/'Scope 1 Utilities'!H54 ->  | I66: =('Scope 1 Utilities'!I19+'Scope 1 Utilities'!I40)/'Scope 1 Utilities'!I54 ->  | J66: =('Scope 1 Utilities'!J19+'Scope 1 Utilities'!J40)/'Scope 1 Utilities'!J54 ->  | K66: =('Scope 1 Utilities'!K19+'Scope 1 Utilities'!K40)/'Scope 1 Utilities'!K54 ->  | L66: =('Scope 1 Utilities'!L19+'Scope 1 Utilities'!L40)/'Scope 1 Utilities'!L54 ->  | M66: =('Scope 1 Utilities'!M19+'Scope 1 Utilities'!M40)/'Scope 1 Utilities'!M54 ->  | N66: =('Scope 1 Utilities'!N19+'Scope 1 Utilities'!N40)/'Scope 1 Utilities'!N54 -> 0 | O66: =('Scope 1 Utilities'!O19+'Scope 1 Utilities'!O40)/'Scope 1 Utilities'!O54 -> 0 | P66: =('Scope 1 Utilities'!P19+'Scope 1 Utilities'!P40)/'Scope 1 Utilities'!P54 -> 0 | Q66: =('Scope 1 Utilities'!Q19+'Scope 1 Utilities'!Q40)/'Scope 1 Utilities'!Q54 -> 0 | R66: =('Scope 1 Utilities'!R19+'Scope 1 Utilities'!R40)/'Scope 1 Utilities'!R54 -> 0 | S66: =('Scope 1 Utilities'!S19+'Scope 1 Utilities'!S40)/'Scope 1 Utilities'!S54 -> 0 | T66: =('Scope 1 Utilities'!T19+'Scope 1 Utilities'!T40)/'Scope 1 Utilities'!T54 -> 0 | U66: =('Scope 1 Utilities'!U19+'Scope 1 Utilities'!U40)/'Scope 1 Utilities'!U54 -> 0 | V66: =('Scope 1 Utilities'!V19+'Scope 1 Utilities'!V40)/'Scope 1 Utilities'!V54 -> 0 | W66: =('Scope 1 Utilities'!W19+'Scope 1 Utilities'!W40)/'Scope 1 Utilities'!W54 -> 0.0004103473353
M69: Notes: Main Natural gas bill on campus comes from the CPS NWNG. Large drop in FY04 to FY05 in that account which reflects the drop in the MMBTU. Propane use from the OIMB report. . DIstilate oil from OIMB. 2014-Did not consume all of the energy generated at the CPS. See "Summary-HVElectricBills-FromTerriJones.xlsx"

Sheet Other Scope 1
A1: ='Institutional Data'!D8 -> University of Oregon
A2: ='Scope 1 Utilities'!A2 -> Go-Green Measurement, Benchmarking and Analysis Summary
A4: Other Scope 1 Sources
B6: University Fleet | E6: FY1995 | F6: FY1996 | G6: FY1997 | H6: FY1998 | I6: FY1999 | J6: FY2000 | K6: FY2001 | L6: FY2002 | M6: FY2003 | N6: FY2004 | O6: FY2005 | P6: FY2006 | Q6: FY2007 | R6: FY2008 | S6: FY2009 | T6: FY2010 | U6: FY2011 | V6: FY2012 | W6: FY2014
B7: Fuel Consumed
C8: Gasoline Fleet | D8: Gallons | N8: 141162.9 | O8: 142717.2 | P8: 141442.5 | Q8: 92550.102 | R8: 89663.85 | S8: 90783 | T8: 40718.4 | U8: 45736 | V8: 49200 | W8: =49232+572.312 -> 49804.312
C9: Diesel Fleet | D9: Gallons | N9: 3643.6 | O9: 3932 | P9: 2721.5 | Q9: 3020.4 | R9: 3974.4 | S9: 5376 | T9: 861.7 | U9: 862 | V9: 1302.2 | W9: 8135
C10: Natural Gas Fleet | D10: MMBTU | N10: 0 | O10: 0 | P10: 0 | Q10: 63.80678817 | R10: 84.34965571 | S10: 73 | T10: 0 | U10: 0 | V10: 0 | W10: 0
C11: E85 Fleet | D11: Gallons | N11: 0 | O11: 0 | P11: 0 | Q11: 2181.61 | R11: 4545.5 | S11: 4554 | T11: 15.14 | U11: 0 | V11: 0 | W11: 0
C12: B5 Fleet | D12: Gallons | N12: 0 | O12: 0 | P12: 0 | Q12: 0 | R12: 0 | S12: 0 | T12: 0 | U12: 0 | V12: 220 | W12: 0
C13: B20 Fleet | D13: Gallons | N13: 0 | O13: 0 | P13: 0 | Q13: 0 | R13: 0 | S13: 0 | T13: 5707.7 | U13: 6409 | V13: 6800 | W13: 0
C14: B100 | D14: Gallons | N14: 500 | O14: 500 | P14: 500 | Q14: 500 | R14: 500 | S14: 0 | T14: 125 | U14: 0 | V14: 0 | W14: 0
C15: Hydrogen | D15: MMBTU | N15: 0 | O15: 0 | P15: 0 | Q15: 0 | R15: 0 | S15: 0 | T15: 0 | U15: 0 | V15: 0 | W15: 0
C16: Propane | D16: Gallons | N16: 0 | O16: 0 | P16: 0 | Q16: 0 | R16: 0 | S16: 0 | T16: 0 | U16: 0 | V16: 0 | W16: 1005.7
B17: Electric Fleet (Reference Only)
C18: Electric Fleet | D18: kWh | N18: 0 | O18: 0 | P18: 0 | Q18: 0 | R18: 0 | S18: 0 | T18: 1120 | U18: 3471 | V18: 2461 | W18: 0
C19: Electric Fleet GHG | D19: MTCDE | N19: 0 | O19: 0 | P19: 0 | Q19: 0 | R19: 0 | S19: 0 | T19: 0.7 | U19: 2 | V19: 1.4 | W19: 0
B22: Refrigerants and Chemicals | E22: FY1995 | F22: FY1996 | G22: FY1997 | H22: FY1998 | I22: FY1999 | J22: FY2000 | K22: FY2001 | L22: FY2002 | M22: FY2003 | N22: FY2004 | O22: FY2005 | P22: FY2006 | Q22: FY2007 | R22: FY2008 | S22: FY2009 | T22: FY2010 | U22: FY2011 | V22: FY2012 | W22: FY2014
B23: Type (Please List)
C24: HFC-134a | D24: Pounds | N24: 0 | O24: 0 | P24: 0 | Q24: 0 | R24: 0 | S24: 0 | T24: 0 | U24: 0 | V24: 0 | W24: 0
C25: HFC-404a | D25: Pounds | N25: 0 | O25: 0 | P25: 0 | Q25: 0 | R25: 0 | S25: 0 | T25: 0 | U25: 0 | V25: 0 | W25: 0
C26: HCFC-22 | D26: Pounds | N26: 0 | O26: 0 | P26: 0 | Q26: 0 | R26: 0 | S26: 0 | T26: 0 | U26: 0 | V26: 0 | W26: 0
D27: Pounds | N27: 0 | O27: 0 | P27: 0 | Q27: 0 | R27: 0 | S27: 0 | T27: 0 | U27: 0 | V27: 0 | W27: 0
D28: Pounds | N28: 0 | O28: 0 | P28: 0 | Q28: 0 | R28: 0 | S28: 0 | T28: 0 | U28: 0 | V28: 0 | W28: 0
C29: Total | D29: Pounds | E29: =SUM(E24:E28) -> 0 | F29: 0 | G29: 0 | H29: 0 | I29: 0 | J29: 0 | K29: 0 | L29: 0 | M29: 0 | N29: 0 | O29: 0 | P29: 0 | Q29: 0 | R29: 0 | S29: 0 | T29: =SUM(T24:T28) -> 0 | U29: =SUM(U24:U28) -> 0 | V29: =SUM(V24:V28) -> 0 | W29: =SUM(W24:W28) -> 0
B32: Agriculture | E32: FY1995 | F32: FY1996 | G32: FY1997 | H32: FY1998 | I32: FY1999 | J32: FY2000 | K32: FY2001 | L32: FY2002 | M32: FY2003 | N32: FY2004 | O32: FY2005 | P32: FY2006 | Q32: FY2007 | R32: FY2008 | S32: FY2009 | T32: FY2010 | U32: FY2011 | V32: FY2012 | W32: FY2014
B33: Fertilizer Application
C34: Synthetic Amount | D34: Pounds | N34: 350 | O34: 350 | P34: 350 | Q34: 350 | R34: 350 | S34: 1900 | T34: 7850 | U34: 8050 | V34: 5400 | W34: 3275
C35: Synthetic % N | D35: % | N35: 0.5 | O35: 0.5 | P35: 0.5 | Q35: 0.5 | R35: 0.5 | S35: 0.5 | T35: 0.21 | U35: 0.21 | V35: 0.22 | W35: 0.218
C36: Organic Amount | D36: Pounds | N36: 10500 | O36: 10500 | P36: 10500 | Q36: 11100 | R36: 9900 | S36: 12500 | T36: 750 | U36: 900 | V36: 300 | W36: 350
C37: Organic % N | D37: % | N37: 0.5 | O37: 0.5 | P37: 0.5 | Q37: 0.5 | R37: 0.5 | S37: 0.5 | T37: 0.1 | U37: 0.08 | V37: 0.05 | W37: 6
B38: Animal Husbandry
C39: Dairy Cows | D39: Headcount | N39: 0 | O39: 0 | P39: 0 | Q39: 0 | R39: 0 | S39: 0 | T39: 0 | U39: 0 | V39: 0 | W39: 0
C40: Beef Cows | D40: Headcount | N40: 0 | O40: 0 | P40: 0 | Q40: 0 | R40: 0 | S40: 0 | T40: 0 | U40: 0 | V40: 0 | W40: 0
C41: Swine | D41: Headcount | N41: 0 | O41: 0 | P41: 0 | Q41: 0 | R41: 0 | S41: 0 | T41: 0 | U41: 0 | V41: 0 | W41: 0
C42: Goats | D42: Headcount | N42: 0 | O42: 0 | P42: 0 | Q42: 0 | R42: 0 | S42: 0 | T42: 0 | U42: 0 | V42: 0 | W42: 0
C43: Sheep | D43: Headcount | N43: 0 | O43: 0 | P43: 0 | Q43: 0 | R43: 0 | S43: 0 | T43: 0 | U43: 0 | V43: 0 | W43: 0
C44: Horses | D44: Headcount | N44: 0 | O44: 0 | P44: 0 | Q44: 0 | R44: 0 | S44: 0 | T44: 0 | U44: 0 | V44: 0 | W44: 0
C45: Poultry | D45: Headcount | N45: 0 | O45: 0 | P45: 0 | Q45: 0 | R45: 0 | S45: 0 | T45: 0 | U45: 0 | V45: 0 | W45: 0
C46: Other Animals | D46: Headcount | N46: 0 | O46: 0 | P46: 0 | Q46: 0 | R46: 0 | S46: 0 | T46: 0 | U46: 0 | V46: 0 | W46: 0
B49: GHG Emissions | E49: FY1995 | F49: FY1996 | G49: FY1997 | H49: FY1998 | I49: FY1999 | J49: FY2000 | K49: FY2001 | L49: FY2002 | M49: FY2003 | N49: FY2004 | O49: FY2005 | P49: FY2006 | Q49: FY2007 | R49: FY2008 | S49: FY2009 | T49: FY2010 | U49: FY2011 | V49: FY2012 | W49: FY2014
C50: Direct Transportation GHG | D50: MTCDE | N50: 1316.1 | O50: 1332.6 | P50: 1314.3 | Q50: 883.7 | R50: 866.8 | S50: 890.9 | T50: 426 | U50: 477.4 | V50: 553 | W50: 537
C51: Refrigerants and Chemicals GHG | D51: MTCDE | N51: 0 | O51: 0 | P51: 0 | Q51: 0 | R51: 0 | S51: 0 | T51: 0 | U51: 0 | V51: 0 | W51: 0
C52: Agriculture GHG | D52: MTCDE | N52: 22.47546342 | O52: 22.47546342 | P52: 22.47546342 | Q52: 23.71783239 | R52: 21.23309446 | S52: 29.86729333 | T52: 7.224933033 | U52: 7.4 | V52: 5 | W52: 3
C53: Mobile Combustion Biogenic Emissions | D53: MTCDE | N53: 4.73 | O53: 4.73 | P53: 4.73 | Q53: 15.04028886 | R53: 26.212033 | S53: 21.522204 | T53: 12.05302004 | U53: 12 | V53: 12 | W53: 0
C54: Other Scope 1 Sources | D54: MTCDE | E54: =E50+E51+E52 -> 0 | F54: =F50+F51+F52 -> 0 | G54: 0 | H54: 0 | I54: 0 | J54: 0 | K54: 0 | L54: 0 | M54: 0 | N54: 1338.575463 | O54: 1355.075463 | P54: 1336.775463 | Q54: 907.4178324 | R54: 888.0330945 | S54: 920.7672933 | T54: =T50+T51+T52 -> 433.224933 | U54: =U50+U51+U52 -> 484.8 | V54: =V50+V51+V52 -> 558 | W54: =W50+W51+W52 -> 540
C55: Fleet Fuel Carbon Intensity | D55: MTCDE/1,000 GGE | E55: ='Other Scope 1'!E50/('Other Scope 1'!E8*'Scope 1 Conversion'!$C$30+'Other Scope 1'!E9*'Scope 1 Conversion'!$C$31+'Other Scope 1'!E10*'Scope 1 Conversion'!$C$32+'Other Scope 1'!E11*'Scope 1 Conversion'!$C$33+'Other Scope 1'!E12*'Scope 1 Conversion'!$C$34+'Other Scope 1'!E13*'Scope 1 Conversion'!$C$35+'Other Scope 1'!E14*'Scope 1 Conversion'!$C$36+'Other Scope 1'!E15*'Scope 1 Conversion'!$C$37+'Other Scope 1'!E16*'Scope 1 Conversion'!$C$38)*1000 ->  | F55: ='Other Scope 1'!F50/('Other Scope 1'!F8*'Scope 1 Conversion'!$C$30+'Other Scope 1'!F9*'Scope 1 Conversion'!$C$31+'Other Scope 1'!F10*'Scope 1 Conversion'!$C$32+'Other Scope 1'!F11*'Scope 1 Conversion'!$C$33+'Other Scope 1'!F12*'Scope 1 Conversion'!$C$34+'Other Scope 1'!F13*'Scope 1 Conversion'!$C$35+'Other Scope 1'!F14*'Scope 1 Conversion'!$C$36+'Other Scope 1'!F15*'Scope 1 Conversion'!$C$37+'Other Scope 1'!F16*'Scope 1 Conversion'!$C$38)*1000 ->  | G55: ='Other Scope 1'!G50/('Other Scope 1'!G8*'Scope 1 Conversion'!$C$30+'Other Scope 1'!G9*'Scope 1 Conversion'!$C$31+'Other Scope 1'!G10*'Scope 1 Conversion'!$C$32+'Other Scope 1'!G11*'Scope 1 Conversion'!$C$33+'Other Scope 1'!G12*'Scope 1 Conversion'!$C$34+'Other Scope 1'!G13*'Scope 1 Conversion'!$C$35+'Other Scope 1'!G14*'Scope 1 Conversion'!$C$36+'Other Scope 1'!G15*'Scope 1 Conversion'!$C$37+'Other Scope 1'!G16*'Scope 1 Conversion'!$C$38)*1000 ->  | H55: ='Other Scope 1'!H50/('Other Scope 1'!H8*'Scope 1 Conversion'!$C$30+'Other Scope 1'!H9*'Scope 1 Conversion'!$C$31+'Other Scope 1'!H10*'Scope 1 Conversion'!$C$32+'Other Scope 1'!H11*'Scope 1 Conversion'!$C$33+'Other Scope 1'!H12*'Scope 1 Conversion'!$C$34+'Other Scope 1'!H13*'Scope 1 Conversion'!$C$35+'Other Scope 1'!H14*'Scope 1 Conversion'!$C$36+'Other Scope 1'!H15*'Scope 1 Conversion'!$C$37+'Other Scope 1'!H16*'Scope 1 Conversion'!$C$38)*1000 ->  | I55: ='Other Scope 1'!I50/('Other Scope 1'!I8*'Scope 1 Conversion'!$C$30+'Other Scope 1'!I9*'Scope 1 Conversion'!$C$31+'Other Scope 1'!I10*'Scope 1 Conversion'!$C$32+'Other Scope 1'!I11*'Scope 1 Conversion'!$C$33+'Other Scope 1'!I12*'Scope 1 Conversion'!$C$34+'Other Scope 1'!I13*'Scope 1 Conversion'!$C$35+'Other Scope 1'!I14*'Scope 1 Conversion'!$C$36+'Other Scope 1'!I15*'Scope 1 Conversion'!$C$37+'Other Scope 1'!I16*'Scope 1 Conversion'!$C$38)*1000 ->  | J55: ='Other Scope 1'!J50/('Other Scope 1'!J8*'Scope 1 Conversion'!$C$30+'Other Scope 1'!J9*'Scope 1 Conversion'!$C$31+'Other Scope 1'!J10*'Scope 1 Conversion'!$C$32+'Other Scope 1'!J11*'Scope 1 Conversion'!$C$33+'Other Scope 1'!J12*'Scope 1 Conversion'!$C$34+'Other Scope 1'!J13*'Scope 1 Conversion'!$C$35+'Other Scope 1'!J14*'Scope 1 Conversion'!$C$36+'Other Scope 1'!J15*'Scope 1 Conversion'!$C$37+'Other Scope 1'!J16*'Scope 1 Conversion'!$C$38)*1000 ->  | K55: ='Other Scope 1'!K50/('Other Scope 1'!K8*'Scope 1 Conversion'!$C$30+'Other Scope 1'!K9*'Scope 1 Conversion'!$C$31+'Other Scope 1'!K10*'Scope 1 Conversion'!$C$32+'Other Scope 1'!K11*'Scope 1 Conversion'!$C$33+'Other Scope 1'!K12*'Scope 1 Conversion'!$C$34+'Other Scope 1'!K13*'Scope 1 Conversion'!$C$35+'Other Scope 1'!K14*'Scope 1 Conversion'!$C$36+'Other Scope 1'!K15*'Scope 1 Conversion'!$C$37+'Other Scope 1'!K16*'Scope 1 Conversion'!$C$38)*1000 ->  | L55: ='Other Scope 1'!L50/('Other Scope 1'!L8*'Scope 1 Conversion'!$C$30+'Other Scope 1'!L9*'Scope 1 Conversion'!$C$31+'Other Scope 1'!L10*'Scope 1 Conversion'!$C$32+'Other Scope 1'!L11*'Scope 1 Conversion'!$C$33+'Other Scope 1'!L12*'Scope 1 Conversion'!$C$34+'Other Scope 1'!L13*'Scope 1 Conversion'!$C$35+'Other Scope 1'!L14*'Scope 1 Conversion'!$C$36+'Other Scope 1'!L15*'Scope 1 Conversion'!$C$37+'Other Scope 1'!L16*'Scope 1 Conversion'!$C$38)*1000 ->  | M55: ='Other Scope 1'!M50/('Other Scope 1'!M8*'Scope 1 Conversion'!$C$30+'Other Scope 1'!M9*'Scope 1 Conversion'!$C$31+'Other Scope 1'!M10*'Scope 1 Conversion'!$C$32+'Other Scope 1'!M11*'Scope 1 Conversion'!$C$33+'Other Scope 1'!M12*'Scope 1 Conversion'!$C$34+'Other Scope 1'!M13*'Scope 1 Conversion'!$C$35+'Other Scope 1'!M14*'Scope 1 Conversion'!$C$36+'Other Scope 1'!M15*'Scope 1 Conversion'!$C$37+'Other Scope 1'!M16*'Scope 1 Conversion'!$C$38)*1000 ->  | N55: ='Other Scope 1'!N50/('Other Scope 1'!N8*'Scope 1 Conversion'!$C$30+'Other Scope 1'!N9*'Scope 1 Conversion'!$C$31+'Other Scope 1'!N10*'Scope 1 Conversion'!$C$32+'Other Scope 1'!N11*'Scope 1 Conversion'!$C$33+'Other Scope 1'!N12*'Scope 1 Conversion'!$C$34+'Other Scope 1'!N13*'Scope 1 Conversion'!$C$35+'Other Scope 1'!N14*'Scope 1 Conversion'!$C$36+'Other Scope 1'!N15*'Scope 1 Conversion'!$C$37+'Other Scope 1'!N16*'Scope 1 Conversion'!$C$38)*1000 -> 9.0859969 | O55: ='Other Scope 1'!O50/('Other Scope 1'!O8*'Scope 1 Conversion'!$C$30+'Other Scope 1'!O9*'Scope 1 Conversion'!$C$31+'Other Scope 1'!O10*'Scope 1 Conversion'!$C$32+'Other Scope 1'!O11*'Scope 1 Conversion'!$C$33+'Other Scope 1'!O12*'Scope 1 Conversion'!$C$34+'Other Scope 1'!O13*'Scope 1 Conversion'!$C$35+'Other Scope 1'!O14*'Scope 1 Conversion'!$C$36+'Other Scope 1'!O15*'Scope 1 Conversion'!$C$37+'Other Scope 1'!O16*'Scope 1 Conversion'!$C$38)*1000 -> 9.08648567 | P55: ='Other Scope 1'!P50/('Other Scope 1'!P8*'Scope 1 Conversion'!$C$30+'Other Scope 1'!P9*'Scope 1 Conversion'!$C$31+'Other Scope 1'!P10*'Scope 1 Conversion'!$C$32+'Other Scope 1'!P11*'Scope 1 Conversion'!$C$33+'Other Scope 1'!P12*'Scope 1 Conversion'!$C$34+'Other Scope 1'!P13*'Scope 1 Conversion'!$C$35+'Other Scope 1'!P14*'Scope 1 Conversion'!$C$36+'Other Scope 1'!P15*'Scope 1 Conversion'!$C$37+'Other Scope 1'!P16*'Scope 1 Conversion'!$C$38)*1000 -> 9.107008703 | Q55: ='Other Scope 1'!Q50/('Other Scope 1'!Q8*'Scope 1 Conversion'!$C$30+'Other Scope 1'!Q9*'Scope 1 Conversion'!$C$31+'Other Scope 1'!Q10*'Scope 1 Conversion'!$C$32+'Other Scope 1'!Q11*'Scope 1 Conversion'!$C$33+'Other Scope 1'!Q12*'Scope 1 Conversion'!$C$34+'Other Scope 1'!Q13*'Scope 1 Conversion'!$C$35+'Other Scope 1'!Q14*'Scope 1 Conversion'!$C$36+'Other Scope 1'!Q15*'Scope 1 Conversion'!$C$37+'Other Scope 1'!Q16*'Scope 1 Conversion'!$C$38)*1000 -> 8.9508761 | R55: ='Other Scope 1'!R50/('Other Scope 1'!R8*'Scope 1 Conversion'!$C$30+'Other Scope 1'!R9*'Scope 1 Conversion'!$C$31+'Other Scope 1'!R10*'Scope 1 Conversion'!$C$32+'Other Scope 1'!R11*'Scope 1 Conversion'!$C$33+'Other Scope 1'!R12*'Scope 1 Conversion'!$C$34+'Other Scope 1'!R13*'Scope 1 Conversion'!$C$35+'Other Scope 1'!R14*'Scope 1 Conversion'!$C$36+'Other Scope 1'!R15*'Scope 1 Conversion'!$C$37+'Other Scope 1'!R16*'Scope 1 Conversion'!$C$38)*1000 -> 8.670672053 | S55: ='Other Scope 1'!S50/('Other Scope 1'!S8*'Scope 1 Conversion'!$C$30+'Other Scope 1'!S9*'Scope 1 Conversion'!$C$31+'Other Scope 1'!S10*'Scope 1 Conversion'!$C$32+'Other Scope 1'!S11*'Scope 1 Conversion'!$C$33+'Other Scope 1'!S12*'Scope 1 Conversion'!$C$34+'Other Scope 1'!S13*'Scope 1 Conversion'!$C$35+'Other Scope 1'!S14*'Scope 1 Conversion'!$C$36+'Other Scope 1'!S15*'Scope 1 Conversion'!$C$37+'Other Scope 1'!S16*'Scope 1 Conversion'!$C$38)*1000 -> 8.746982959 | T55: ='Other Scope 1'!T50/('Other Scope 1'!T8*'Scope 1 Conversion'!$C$30+'Other Scope 1'!T9*'Scope 1 Conversion'!$C$31+'Other Scope 1'!T10*'Scope 1 Conversion'!$C$32+'Other Scope 1'!T11*'Scope 1 Conversion'!$C$33+'Other Scope 1'!T12*'Scope 1 Conversion'!$C$34+'Other Scope 1'!T13*'Scope 1 Conversion'!$C$35+'Other Scope 1'!T14*'Scope 1 Conversion'!$C$36+'Other Scope 1'!T15*'Scope 1 Conversion'!$C$37+'Other Scope 1'!T16*'Scope 1 Conversion'!$C$38)*1000 -> 9.111389184 | U55: ='Other Scope 1'!U50/('Other Scope 1'!U8*'Scope 1 Conversion'!$C$30+'Other Scope 1'!U9*'Scope 1 Conversion'!$C$31+'Other Scope 1'!U10*'Scope 1 Conversion'!$C$32+'Other Scope 1'!U11*'Scope 1 Conversion'!$C$33+'Other Scope 1'!U12*'Scope 1 Conversion'!$C$34+'Other Scope 1'!U13*'Scope 1 Conversion'!$C$35+'Other Scope 1'!U14*'Scope 1 Conversion'!$C$36+'Other Scope 1'!U15*'Scope 1 Conversion'!$C$37+'Other Scope 1'!U16*'Scope 1 Conversion'!$C$38)*1000 -> 9.134628815 | V55: ='Other Scope 1'!V50/('Other Scope 1'!V8*'Scope 1 Conversion'!$C$30+'Other Scope 1'!V9*'Scope 1 Conversion'!$C$31+'Other Scope 1'!V10*'Scope 1 Conversion'!$C$32+'Other Scope 1'!V11*'Scope 1 Conversion'!$C$33+'Other Scope 1'!V12*'Scope 1 Conversion'!$C$34+'Other Scope 1'!V13*'Scope 1 Conversion'!$C$35+'Other Scope 1'!V14*'Scope 1 Conversion'!$C$36+'Other Scope 1'!V15*'Scope 1 Conversion'!$C$37+'Other Scope 1'!V16*'Scope 1 Conversion'!$C$38)*1000 -> 9.75971063 | W55: ='Other Scope 1'!W50/('Other Scope 1'!W8*'Scope 1 Conversion'!$C$30+'Other Scope 1'!W9*'Scope 1 Conversion'!$C$31+'Other Scope 1'!W10*'Scope 1 Conversion'!$C$32+'Other Scope 1'!W11*'Scope 1 Conversion'!$C$33+'Other Scope 1'!W12*'Scope 1 Conversion'!$C$34+'Other Scope 1'!W13*'Scope 1 Conversion'!$C$35+'Other Scope 1'!W14*'Scope 1 Conversion'!$C$36+'Other Scope 1'!W15*'Scope 1 Conversion'!$C$37+'Other Scope 1'!W16*'Scope 1 Conversion'!$C$38)*1000 -> 9.408217545
M58: Notes: Historical ferilizer information is not avilable. Utilizing the average consumption for FY2007 and FY2008 for analysis. Fleet vehicle use is determined by the fuel use of University owned vehicles as well as DAS rental vehicles. DAS reports were provided for FY2007 and FY2008, and a partial FY2006. FY2006 was extrapolated for. FY2004 and FY2005 were estimated based on the total milage traveled in those years compared to the later. All fuel use for these years is applied to gasoline.

Sheet Scope 2 Utilities
A1: ='Institutional Data'!$D$8 -> University of Oregon
A2: ='Other Scope 1'!A2 -> Go-Green Measurement, Benchmarking and Analysis Summary
A4: Scope 2: Utilities
B6: Electric Purchases | E6: FY1995 | F6: FY1996 | G6: FY1997 | H6: FY1998 | I6: FY1999 | J6: FY2000 | K6: FY2001 | L6: FY2002 | M6: FY2003 | N6: FY2004 | O6: FY2005 | P6: FY2006 | Q6: FY2007 | R6: FY2008 | S6: FY2009 | T6: FY2010 | U6: FY2011 | V6: FY2012 | W6: FY2014
B7: Units Purchased
C8: Electricity Purchased | D8: kWh | N8: 59527164.41 | O8: 61701503.22 | P8: 69990768.48 | Q8: 68870398.97 | R8: 69945657.53 | S8: 69784105.51 | T8: 72353735.77 | U8: 75153615 | V8: 76684463 | W8: 55543404
B9: Custom Fuel Mix (If Applicable)
C10: Coal | D10: % | E10: 0 | F10: 0 | G10: 0 | H10: 0 | I10: 0 | J10: 0 | K10: 0 | L10: 0 | M10: 0 | N10: 0 | O10: 0 | P10: 0 | Q10: 0 | R10: 0 | S10: 0 | T10: 0 | U10: 0 | V10: 0
C11: Natural Gas | D11: % | E11: 0 | F11: 0 | G11: 0 | H11: 0 | I11: 0 | J11: 0 | K11: 0 | L11: 0 | M11: 0 | N11: 0 | O11: 0 | P11: 0 | Q11: 0 | R11: 0 | S11: 0 | T11: 0 | U11: 0 | V11: 0
C12: Distillate Oil (#1-#4) | D12: % | E12: 0 | F12: 0 | G12: 0 | H12: 0 | I12: 0 | J12: 0 | K12: 0 | L12: 0 | M12: 0 | N12: 0 | O12: 0 | P12: 0 | Q12: 0 | R12: 0 | S12: 0 | T12: 0 | U12: 0 | V12: 0
C13: Residual Oil (#5-#6) | D13: % | E13: 0 | F13: 0 | G13: 0 | H13: 0 | I13: 0 | J13: 0 | K13: 0 | L13: 0 | M13: 0 | N13: 0 | O13: 0 | P13: 0 | Q13: 0 | R13: 0 | S13: 0 | T13: 0 | U13: 0 | V13: 0
C14: Nuclear | D14: % | E14: 0 | F14: 0 | G14: 0 | H14: 0 | I14: 0 | J14: 0 | K14: 0 | L14: 0 | M14: 0 | N14: 0 | O14: 0 | P14: 0 | Q14: 0 | R14: 0 | S14: 0 | T14: 0 | U14: 0 | V14: 0
C15: Waste to Energy | D15: % | E15: 0 | F15: 0 | G15: 0 | H15: 0 | I15: 0 | J15: 0 | K15: 0 | L15: 0 | M15: 0 | N15: 0 | O15: 0 | P15: 0 | Q15: 0 | R15: 0 | S15: 0 | T15: 0 | U15: 0 | V15: 0
C16: Net Purchased | D16: % | E16: 0 | F16: 0 | G16: 0 | H16: 0 | I16: 0 | J16: 0 | K16: 0 | L16: 0 | M16: 0 | N16: 0 | O16: 0 | P16: 0 | Q16: 0 | R16: 0 | S16: 0 | T16: 0 | U16: 0 | V16: 0
C17: Hydro-Electric | D17: % | E17: 0 | F17: 0 | G17: 0 | H17: 0 | I17: 0 | J17: 0 | K17: 0 | L17: 0 | M17: 0 | N17: 0 | O17: 0 | P17: 0 | Q17: 0 | R17: 0 | S17: 0 | T17: 0 | U17: 0 | V17: 0
C18: Renewable (wind, solar) | D18: % | E18: 0 | F18: 0 | G18: 0 | H18: 0 | I18: 0 | J18: 0 | K18: 0 | L18: 0 | M18: 0 | N18: 0 | O18: 0 | P18: 0 | Q18: 0 | R18: 0 | S18: 0 | T18: 0 | U18: 0 | V18: 0
C19: Biomass | D19: % | E19: 0 | F19: 0 | G19: 0 | H19: 0 | I19: 0 | J19: 0 | K19: 0 | L19: 0 | M19: 0 | N19: 0 | O19: 0 | P19: 0 | Q19: 0 | R19: 0 | S19: 0 | T19: 0 | U19: 0 | V19: 0
C20: Total | D20: % | E20: =SUM(E10:E19) -> 0 | F20: =SUM(F10:F19) -> 0 | G20: 0 | H20: 0 | I20: 0 | J20: 0 | K20: 0 | L20: 0 | M20: 0 | N20: 0 | O20: 0 | P20: 0 | Q20: 0 | R20: 0 | S20: =SUM(S10:S19) -> 0 | T20: =SUM(T10:T19) -> 0 | U20: =SUM(U10:U19) -> 0 | V20: =SUM(V10:V19) -> 0 | W20: =SUM(W10:W19) -> 0
B23: Steam | E23: FY1995 | F23: FY1996 | G23: FY1997 | H23: FY1998 | I23: FY1999 | J23: FY2000 | K23: FY2001 | L23: FY2002 | M23: FY2003 | N23: FY2004 | O23: FY2005 | P23: FY2006 | Q23: FY2007 | R23: FY2008 | S23: FY2009 | T23: FY2010 | U23: FY2011 | V23: FY2012 | W23: FY2014
B24: Units Purchased
C25: Steam | D25: MMBTU | N25: 1648.3 | O25: 1648.3 | P25: 1875.8 | Q25: 2173.3 | R25: 3016.6 | S25: 4238.1 | T25: 4645.1 | U25: 6688 | V25: 4160 | W25: 0
B26: Custom Fuel Mix (If Applicable)
C27: Coal | D27: % | E27: 0 | F27: 0 | G27: 0 | H27: 0 | I27: 0 | J27: 0 | K27: 0 | L27: 0 | M27: 0 | N27: 0 | O27: 0 | P27: 0 | Q27: 0 | R27: 0 | S27: 0 | T27: 0 | U27: 0 | V27: 0
C28: Natural Gas | D28: % | E28: 0 | F28: 0 | G28: 0 | H28: 0 | I28: 0 | J28: 0 | K28: 0 | L28: 0 | M28: 0 | N28: 0 | O28: 0 | P28: 0 | Q28: 0 | R28: 0 | S28: 0 | T28: 0 | U28: 0 | V28: 0
C29: Distillate Oil (#1-#4) | D29: % | E29: 0 | F29: 0 | G29: 0 | H29: 0 | I29: 0 | J29: 0 | K29: 0 | L29: 0 | M29: 0 | N29: 0 | O29: 0 | P29: 0 | Q29: 0 | R29: 0 | S29: 0 | T29: 0 | U29: 0 | V29: 0
C30: Residual Oil (#5-#6) | D30: % | E30: 0 | F30: 0 | G30: 0 | H30: 0 | I30: 0 | J30: 0 | K30: 0 | L30: 0 | M30: 0 | N30: 0 | O30: 0 | P30: 0 | Q30: 0 | R30: 0 | S30: 0 | T30: 0 | U30: 0 | V30: 0
C31: Total | D31: % | E31: =SUM(E27:E30) -> 0 | F31: 0 | G31: 0 | H31: 0 | I31: 0 | J31: 0 | K31: 0 | L31: 0 | M31: 0 | N31: 0 | O31: 0 | P31: 0 | Q31: 0 | R31: 0 | S31: 0 | T31: =SUM(T27:T30) -> 0 | U31: =SUM(U27:U30) -> 0 | V31: =SUM(V27:V30) -> 0 | W31: =SUM(W27:W30) -> 0
B34: Chilled Water | E34: FY1995 | F34: FY1996 | G34: FY1997 | H34: FY1998 | I34: FY1999 | J34: FY2000 | K34: FY2001 | L34: FY2002 | M34: FY2003 | N34: FY2004 | O34: FY2005 | P34: FY2006 | Q34: FY2007 | R34: FY2008 | S34: FY2009 | T34: FY2010 | U34: FY2011 | V34: FY2012 | W34: FY2014
B35: Units Purchased
C36: Chilled Water | D36: MMBTU | N36: 0 | O36: 0 | P36: 0 | Q36: 0 | R36: 0 | S36: 0 | T36: 0 | U36: =-X3 -> 0 | V36: =-Y3 -> 0 | W36: =-Z3 -> 0
B37: Custom Fuel Mix (If Applicable)
C38: Coal | D38: % | E38: 0 | F38: 0 | G38: 0 | H38: 0 | I38: 0 | J38: 0 | K38: 0 | L38: 0 | M38: 0 | N38: 0 | O38: 0 | P38: 0 | Q38: 0 | R38: 0 | S38: 0 | T38: 0 | U38: 0 | V38: 0
C39: Natural Gas | D39: % | E39: 0 | F39: 0 | G39: 0 | H39: 0 | I39: 0 | J39: 0 | K39: 0 | L39: 0 | M39: 0 | N39: 0 | O39: 0 | P39: 0 | Q39: 0 | R39: 0 | S39: 0 | T39: 0 | U39: 0 | V39: 0
C40: Distillate Oil (#1-#4) | D40: % | E40: 0 | F40: 0 | G40: 0 | H40: 0 | I40: 0 | J40: 0 | K40: 0 | L40: 0 | M40: 0 | N40: 0 | O40: 0 | P40: 0 | Q40: 0 | R40: 0 | S40: 0 | T40: 0 | U40: 0 | V40: 0
C41: Residual Oil (#5-#6) | D41: % | E41: 0 | F41: 0 | G41: 0 | H41: 0 | I41: 0 | J41: 0 | K41: 0 | L41: 0 | M41: 0 | N41: 0 | O41: 0 | P41: 0 | Q41: 0 | R41: 0 | S41: 0 | T41: 0 | U41: 0 | V41: 0
C42: Total | D42: % | E42: =SUM(E38:E41) -> 0 | F42: 0 | G42: 0 | H42: 0 | I42: 0 | J42: 0 | K42: 0 | L42: 0 | M42: 0 | N42: 0 | O42: 0 | P42: 0 | Q42: 0 | R42: 0 | S42: 0 | T42: =SUM(T38:T41) -> 0 | U42: =SUM(U38:U41) -> 0 | V42: =SUM(V38:V41) -> 0 | W42: =SUM(W38:W41) -> 0
B45: GHG Emissions | E45: FY1995 | F45: FY1996 | G45: FY1997 | H45: FY1998 | I45: FY1999 | J45: FY2000 | K45: FY2001 | L45: FY2002 | M45: FY2003 | N45: FY2004 | O45: FY2005 | P45: FY2006 | Q45: FY2007 | R45: FY2008 | S45: FY2009 | T45: FY2010 | U45: FY2011 | V45: FY2012 | W45: FY2014
C46: Purchased Electricity GHG | D46: MTCDE | N46: 18067.8 | O46: 18727.8 | P46: 21243.7 | Q46: 27014.4 | R46: 27436.2 | S46: 26120 | T46: 27081.8 | U46: 28129.7 | V46: 28917 | W46: 21379
C47: Purchased Steam GHG | D47: MTCDE | N47: 120.3 | O47: 120.3 | P47: 136.9 | Q47: 158.6 | R47: 220.1 | S47: 309.3 | T47: 339 | U47: 488 | V47: 303.6 | W47: 0
C48: Purchased Chilled Water GHG | D48: MTCDE | N48: 0 | O48: 0 | P48: 0 | Q48: 0 | R48: 0 | S48: 0 | T48: 0 | U48: 0 | V48: 0 | W48: 0
C49: eGrid National Average (USA Grid) | D49: MTCDE | E49: =0.00064008326707052*E8 -> 0 | F49: =0.00064008326707052*F8 -> 0 | G49: 0 | H49: 0 | I49: 0 | J49: 0 | K49: 0 | L49: 0 | M49: 0 | N49: 38102.34187 | O49: 39494.09977 | P49: 44799.91975 | Q49: =0.00060570275691002*Q8 -> 41714.99053 | R49: 42366.2776 | S49: 42268.4251 | T49: 43824.85723 | U49: 45520.7518 | V49: 46447.99065 | W49: =0.00060570275691002*W8 -> 33642.79293
C50: Scope 2 Utilities | D50: MTCDE | E50: =E46+E47+E48 -> 0 | F50: 0 | G50: 0 | H50: 0 | I50: 0 | J50: 0 | K50: 0 | L50: 0 | M50: 0 | N50: 18188.1 | O50: 18848.1 | P50: 21380.6 | Q50: 27173 | R50: 27656.3 | S50: 26429.3 | T50: =T46+T47+T48 -> 27420.8 | U50: =U46+U47+U48 -> 28617.7 | V50: =V46+V47+V48 -> 29220.6 | W50: =W46+W47+W48 -> 21379
B53: Electric Losses (Reference Only) | E53: FY1995 | F53: FY1996 | G53: FY1997 | H53: FY1998 | I53: FY1999 | J53: FY2000 | K53: FY2001 | L53: FY2002 | M53: FY2003 | N53: FY2004 | O53: FY2005 | P53: FY2006 | Q53: FY2007 | R53: FY2008 | S53: FY2009 | T53: FY2010 | U53: FY2011 | V53: FY2012 | W53: FY2014
B54: Scope 2 T&D Losses
C55: Scope 2 T&D Losses | D55: MTCDE | E55: ='Other Scope 3 Sources'!E72 -> 0 | F55: ='Other Scope 3 Sources'!F72 -> 0 | G55: ='Other Scope 3 Sources'!G72 -> 0 | H55: ='Other Scope 3 Sources'!H72 -> 0 | I55: ='Other Scope 3 Sources'!I72 -> 0 | J55: ='Other Scope 3 Sources'!J72 -> 0 | K55: ='Other Scope 3 Sources'!K72 -> 0 | L55: ='Other Scope 3 Sources'!L72 -> 0 | M55: ='Other Scope 3 Sources'!M72 -> 0 | N55: ='Other Scope 3 Sources'!N72 -> 1793.3 | O55: ='Other Scope 3 Sources'!O72 -> 1858.5 | P55: ='Other Scope 3 Sources'!P72 -> 2108.2 | Q55: ='Other Scope 3 Sources'!Q72 -> 2680.1 | R55: ='Other Scope 3 Sources'!R72 -> 2725.1 | S55: ='Other Scope 3 Sources'!S72 -> 2599.6 | T55: ='Other Scope 3 Sources'!T72 -> 2696.3 | U55: 2807 | V55: 2875.9 | W55: 1569.7
B58: Qualification Assistant | E58: FY1995 | F58: FY1996 | G58: FY1997 | H58: FY1998 | I58: FY1999 | J58: FY2000 | K58: FY2001 | L58: FY2002 | M58: FY2003 | N58: FY2004 | O58: FY2005 | P58: FY2006 | Q58: FY2007 | R58: FY2008 | S58: FY2009 | T58: FY2010 | U58: FY2011 | V58: FY2012 | W58: FY2014
C59: Purchased Electricity Consumption | D59: kWh/GSF | E59: =(E8+'Scope 1 Utilities'!E21)/'Institutional Data'!I9 ->  | F59: =F8/'Institutional Data'!J9 ->  | G59: =G8/'Institutional Data'!K9 ->  | H59: =H8/'Institutional Data'!L9 ->  | I59: =I8/'Institutional Data'!M9 ->  | J59: =J8/'Institutional Data'!N9 ->  | K59: =K8/'Institutional Data'!O9 ->  | L59: =L8/'Institutional Data'!P9 ->  | M59: =M8/'Institutional Data'!Q9 ->  | N59: =N8/'Institutional Data'!R9 -> 10.03710591 | O59: =O8/'Institutional Data'!S9 -> 10.27650849 | P59: =P8/'Institutional Data'!T9 -> 11.06098448 | Q59: =Q8/'Institutional Data'!U9 -> 10.84205948 | R59: =R8/'Institutional Data'!V9 -> 10.85820332 | S59: =S8/'Institutional Data'!W9 -> 11.0802612 | T59: =T8/'Institutional Data'!X9 -> 11.11787765 | U59: =U8/'Institutional Data'!Y9 -> 10.19060256 | V59: =V8/'Institutional Data'!Z9 -> 9.830549925 | W59: =W8/'Institutional Data'!AA9 -> 6.990267084
C60: Total Electricity Consumption | D60: kWh/GSF | E60: =E9/'Institutional Data'!I10 ->  | F60: =F9/'Institutional Data'!J10 ->  | G60: =G9/'Institutional Data'!K10 ->  | H60: =H9/'Institutional Data'!L10 ->  | I60: =I9/'Institutional Data'!M10 ->  | J60: =J9/'Institutional Data'!N10 ->  | K60: =K9/'Institutional Data'!O10 ->  | L60: =L9/'Institutional Data'!P10 ->  | M60: =M9/'Institutional Data'!Q10 ->  | N60: =N9/'Institutional Data'!R10 -> 0 | O60: =O9/'Institutional Data'!S10 -> 0 | P60: =P9/'Institutional Data'!T10 -> 0 | Q60: =Q9/'Institutional Data'!U10 -> 0 | R60: =R9/'Institutional Data'!V10 -> 0 | S60: =S9/'Institutional Data'!W10 -> 0 | T60: =(T9+'Scope 1 Utilities'!T21)/'Institutional Data'!X10 -> 6575.88 | U60: =(U9+'Scope 1 Utilities'!U21)/'Institutional Data'!Y10 -> 0 | V60: =(V9+'Scope 1 Utilities'!V21)/'Institutional Data'!Z10 -> 0 | W60: =(W9+'Scope 1 Utilities'!W31)/'Institutional Data'!AA10 -> 1061.392
C61: Scope 2 Energy Usage | D61: MMBTU | E61: =(E8*0.003414)+E25+E36 -> 0 | F61: =(F8*0.003414)+F25+F36 -> 0 | G61: 0 | H61: 0 | I61: 0 | J61: 0 | K61: 0 | L61: 0 | M61: 0 | N61: 204874.0393 | O61: 212297.232 | P61: 240824.2836 | Q61: 237296.8421 | R61: 241811.0748 | S61: 242481.0362 | T61: =(T8*0.003414)+T25+T36 -> 251660.7539 | U61: =(U8*0.003414)+U25+U36 -> 263262.4416 | V61: =(V8*0.003414)+V25+V36 -> 265960.7567 | W61: =(W8*0.003414)+W25+W36 -> 189625.1813
C62: Scope 2 Energy Consumption | D62: BTU/GSF | E62: =E61*1000000/'Institutional Data'!I9 ->  | F62: =F61*1000000/'Institutional Data'!J9 ->  | G62: =G61*1000000/'Institutional Data'!K9 ->  | H62: =H61*1000000/'Institutional Data'!L9 ->  | I62: =I61*1000000/'Institutional Data'!M9 ->  | J62: =J61*1000000/'Institutional Data'!N9 ->  | K62: =K61*1000000/'Institutional Data'!O9 ->  | L62: =L61*1000000/'Institutional Data'!P9 ->  | M62: =M61*1000000/'Institutional Data'!Q9 ->  | N62: =N61*1000000/'Institutional Data'!R9 -> 34544.60584 | O62: =O61*1000000/'Institutional Data'!S9 -> 35358.52765 | P62: =P61*1000000/'Institutional Data'!T9 -> 38058.6429 | Q62: =Q61*1000000/'Institutional Data'!U9 -> 37356.92714 | R62: =R61*1000000/'Institutional Data'!V9 -> 37538.19621 | S62: =S61*1000000/'Institutional Data'!W9 -> 38500.93366 | T62: =T61*1000000/'Institutional Data'!X9 -> 38670.20053 | U62: =U61*1000000/'Institutional Data'!Y9 -> 35697.58968 | V62: =V61*1000000/'Institutional Data'!Z9 -> 34094.78784 | W62: =W61*1000000/'Institutional Data'!AA9 -> 23864.77182
M64: Notes: Steam comes from the Baker building (and, from 2011, from the Matt Knight Arena)

Sheet Scope 3 Commuting
A1: ='Institutional Data'!D8 -> University of Oregon
A2: ='Scope 2 Utilities'!A2 -> Go-Green Measurement, Benchmarking and Analysis Summary
A4: Commuting
B6: Student Commuting | E6: FY1995 | F6: FY1996 | G6: FY1997 | H6: FY1998 | I6: FY1999 | J6: FY2000 | K6: FY2001 | L6: FY2002 | M6: FY2003 | N6: FY2004 | O6: FY2005 | P6: FY2006 | Q6: FY2007 | R6: FY2008 | S6: FY2009 | T6: FY2010 | U6: FY2011 | V6: FY2012 | W6: FY2014
B7: Student Commuting - Personal Vehicle/Carpool
C8: Student % Personal Vehicle | D8: % | N8: 0.37 | O8: 0.37 | P8: 0.31 | Q8: 0.31 | R8: 0.31 | S8: 0.13 | T8: 0.13 | U8: 0.13 | V8: 0.1188 | W8: 0.118 | Z8: ADD WALK and BIKE FiGURES
C9: Student % Carpool | D9: % | N9: 0.06 | O9: 0.06 | P9: 0.06 | Q9: 0.06 | R9: 0.06 | S9: 0.08 | T9: 0.08 | U9: 0.08 | V9: 0.0166 | W9: 0.013 | Z9: Update Carpooling with Getting Dropped Off?
C10: Trips/Week | D10: Trips | N10: 10 | O10: 10 | P10: 10 | Q10: 10 | R10: 10 | S10: 10 | T10: 10 | U10: 10 | V10: 10 | W10: 10
C11: Weeks/Year | D11: Weeks | N11: 36 | O11: 36 | P11: 36 | Q11: 36 | R11: 36 | S11: 36 | T11: 36 | U11: 36 | V11: 36 | W11: 36
C12: Miles/Trip | D12: Miles | N12: 3 | O12: 3 | P12: 3 | Q12: 3 | R12: 3 | S12: 7.157390173 | T12: 7.157390173 | U12: 7 | V12: 2.8 | W12: 5
B13: Student Commuting - Bus
C14: Student % Bus | D14: % | E14: 0 | F14: 0 | G14: 0 | H14: 0 | I14: 0 | J14: 0 | K14: 0 | L14: 0 | M14: 0 | N14: 0.22 | O14: 0.22 | P14: 0.22 | Q14: 0.22 | R14: 0.22 | S14: 0.23 | T14: 0.23 | U14: 0.23 | V14: 0.1612 | W14: 0.193
C15: Passenger Trips/Week | D15: Trips | E15: 0 | F15: 0 | G15: 0 | H15: 0 | I15: 0 | J15: 0 | K15: 0 | L15: 0 | M15: 0 | N15: 10 | O15: 10 | P15: 10 | Q15: 10 | R15: 10 | S15: 10 | T15: 10 | U15: 10 | V15: 10 | W15: 10
C16: Passenger Weeks/Year | D16: Weeks | E16: 0 | F16: 0 | G16: 0 | H16: 0 | I16: 0 | J16: 0 | K16: 0 | L16: 0 | M16: 0 | N16: 36 | O16: 36 | P16: 36 | Q16: 36 | R16: 36 | S16: 36 | T16: 36 | U16: 36 | V16: 36 | W16: 36
C17: Passenger Miles/Trip | D17: Miles | E17: 0 | F17: 0 | G17: 0 | H17: 0 | I17: 0 | J17: 0 | K17: 0 | L17: 0 | M17: 0 | N17: 3 | O17: 3 | P17: 3 | Q17: 3 | R17: 3 | S17: 3 | T17: 3 | U17: 3 | V17: 2.8 | W17: 3
B18: Student Commuting - Light Rail
C19: Student % Light Rail | D19: % | E19: 0 | F19: 0 | G19: 0 | H19: 0 | I19: 0 | J19: 0 | K19: 0 | L19: 0 | M19: 0 | N19: 0 | O19: 0 | P19: 0 | Q19: 0 | R19: 0 | S19: 0 | T19: 0 | U19: 0 | V19: 0 | W19: 0
C20: Passenger Trips/Week | D20: Trips | E20: 0 | F20: 0 | G20: 0 | H20: 0 | I20: 0 | J20: 0 | K20: 0 | L20: 0 | M20: 0 | N20: 0 | O20: 0 | P20: 0 | Q20: 0 | R20: 0 | S20: 0 | T20: 0 | U20: 0 | V20: 0 | W20: 0
C21: Passenger Weeks/Year | D21: Weeks | E21: 0 | F21: 0 | G21: 0 | H21: 0 | I21: 0 | J21: 0 | K21: 0 | L21: 0 | M21: 0 | N21: 0 | O21: 0 | P21: 0 | Q21: 0 | R21: 0 | S21: 0 | T21: 0 | U21: 0 | V21: 0 | W21: 0
C22: Passenger Miles/Trip | D22: Miles | E22: 0 | F22: 0 | G22: 0 | H22: 0 | I22: 0 | J22: 0 | K22: 0 | L22: 0 | M22: 0 | N22: 0 | O22: 0 | P22: 0 | Q22: 0 | R22: 0 | S22: 0 | T22: 0 | U22: 0 | V22: 0 | W22: 0
B23: Student Commuting - Commuter Rail
C24: Student % Commuter Rail | D24: % | E24: 0 | F24: 0 | G24: 0 | H24: 0 | I24: 0 | J24: 0 | K24: 0 | L24: 0 | M24: 0 | N24: 0 | O24: 0 | P24: 0 | Q24: 0 | R24: 0 | S24: 0 | T24: 0 | U24: 0 | V24: 0 | W24: 0
C25: Passenger Trips/Week | D25: Trips | E25: 0 | F25: 0 | G25: 0 | H25: 0 | I25: 0 | J25: 0 | K25: 0 | L25: 0 | M25: 0 | N25: 0 | O25: 0 | P25: 0 | Q25: 0 | R25: 0 | S25: 0 | T25: 0 | U25: 0 | V25: 0 | W25: 0
C26: Passenger Weeks/Year | D26: Weeks | E26: 0 | F26: 0 | G26: 0 | H26: 0 | I26: 0 | J26: 0 | K26: 0 | L26: 0 | M26: 0 | N26: 0 | O26: 0 | P26: 0 | Q26: 0 | R26: 0 | S26: 0 | T26: 0 | U26: 0 | V26: 0 | W26: 0
C27: Passenger Miles/Trip | D27: Miles | E27: 0 | F27: 0 | G27: 0 | H27: 0 | I27: 0 | J27: 0 | K27: 0 | L27: 0 | M27: 0 | N27: 0 | O27: 0 | P27: 0 | Q27: 0 | R27: 0 | S27: 0 | T27: 0 | U27: 0 | V27: 0 | W27: 0
B28: Student Commuting - Summary
C29: Total Automobile Passenger Miles | D29: Miles | E29: =((E8*'Institutional Data'!I21)+('Scope 3 Commuting'!E9*'Institutional Data'!I21))*E10*E11*E12 -> 0 | F29: =((F8*'Institutional Data'!J21)+('Scope 3 Commuting'!F9*'Institutional Data'!J21))*F10*F11*F12 -> 0 | G29: =((G8*'Institutional Data'!K21)+('Scope 3 Commuting'!G9*'Institutional Data'!K21))*G10*G11*G12 -> 0 | H29: =((H8*'Institutional Data'!L21)+('Scope 3 Commuting'!H9*'Institutional Data'!L21))*H10*H11*H12 -> 0 | I29: =((I8*'Institutional Data'!M21)+('Scope 3 Commuting'!I9*'Institutional Data'!M21))*I10*I11*I12 -> 0 | J29: =((J8*'Institutional Data'!N21)+('Scope 3 Commuting'!J9*'Institutional Data'!N21))*J10*J11*J12 -> 0 | K29: =((K8*'Institutional Data'!O21)+('Scope 3 Commuting'!K9*'Institutional Data'!O21))*K10*K11*K12 -> 0 | L29: =((L8*'Institutional Data'!P21)+('Scope 3 Commuting'!L9*'Institutional Data'!P21))*L10*L11*L12 -> 0 | M29: =((M8*'Institutional Data'!Q21)+('Scope 3 Commuting'!M9*'Institutional Data'!Q21))*M10*M11*M12 -> 0 | N29: =((N8*'Institutional Data'!R21)+('Scope 3 Commuting'!N9*'Institutional Data'!R21))*N10*N11*N12 -> 8963291.52 | O29: =((O8*'Institutional Data'!S21)+('Scope 3 Commuting'!O9*'Institutional Data'!S21))*O10*O11*O12 -> 9171667.8 | P29: =((P8*'Institutional Data'!T21)+('Scope 3 Commuting'!P9*'Institutional Data'!T21))*P10*P11*P12 -> 7871001.12 | Q29: =((Q8*'Institutional Data'!U21)+('Scope 3 Commuting'!Q9*'Institutional Data'!U21))*Q10*Q11*Q12 -> 7835596.56 | R29: =((R8*'Institutional Data'!V21)+('Scope 3 Commuting'!R9*'Institutional Data'!V21))*R10*R11*R12 -> 7703888.4 | S29: 1675859.965 | T29: 1624996.687 | U29: =(U8*'Institutional Data'!Y21)+(U9*'Institutional Data'!Y21)*U10*U11*U12 -> 4785237.33 | V29: =(V8*'Institutional Data'!Z21)+(V9*'Institutional Data'!Z21)*V10*V11*V12 -> 413673.0768 | W29: =(W8*'Institutional Data'!AA21)+(W9*'Institutional Data'!AA21)*W10*W11*W12 -> 559046.378 | AC29: 2010 | AD29: 2011 | AE29: 2012 | AF29: 2014
C30: Total Automobile Vehicle Miles | D30: Miles | E30: =((E8*'Institutional Data'!I21)+(E9*'Institutional Data'!I21/2))*E10*E11*E12 -> 0 | F30: =((F8*'Institutional Data'!J21)+(F9*'Institutional Data'!J21/2))*F10*F11*F12 -> 0 | G30: =((G8*'Institutional Data'!K21)+(G9*'Institutional Data'!K21/2))*G10*G11*G12 -> 0 | H30: =((H8*'Institutional Data'!L21)+(H9*'Institutional Data'!L21/2))*H10*H11*H12 -> 0 | I30: =((I8*'Institutional Data'!M21)+(I9*'Institutional Data'!M21/2))*I10*I11*I12 -> 0 | J30: =((J8*'Institutional Data'!N21)+(J9*'Institutional Data'!N21/2))*J10*J11*J12 -> 0 | K30: =((K8*'Institutional Data'!O21)+(K9*'Institutional Data'!O21/2))*K10*K11*K12 -> 0 | L30: =((L8*'Institutional Data'!P21)+(L9*'Institutional Data'!P21/2))*L10*L11*L12 -> 0 | M30: =((M8*'Institutional Data'!Q21)+(M9*'Institutional Data'!Q21/2))*M10*M11*M12 -> 0 | N30: =((N8*'Institutional Data'!R21)+(N9*'Institutional Data'!R21/2))*N10*N11*N12 -> 8337945.6 | O30: =((O8*'Institutional Data'!S21)+(O9*'Institutional Data'!S21/2))*O10*O11*O12 -> 8531784 | P30: =((P8*'Institutional Data'!T21)+(P9*'Institutional Data'!T21/2))*P10*P11*P12 -> 7232811.84 | Q30: =((Q8*'Institutional Data'!U21)+(Q9*'Institutional Data'!U21/2))*Q10*Q11*Q12 -> 7200277.92 | R30: =((R8*'Institutional Data'!V21)+(R9*'Institutional Data'!V21/2))*R10*R11*R12 -> 7079248.8 | S30: 936576 | T30: 908150.4 | U30: =(U8*'Institutional Data'!Y21)+(U9*'Institutional Data'!Y21/2)*U10*U11*U12 -> 2394160.53 | V30: =(V8*'Institutional Data'!Z21)+(V9*'Institutional Data'!Z21/2)*V10*V11*V12 -> 208294.6896 | W30: =(W8*'Institutional Data'!AA21)+(W9*'Institutional Data'!AA21/2)*W10*W11*W12 -> 280925.678 | AB30: student gasoline | AC30: =T31 -> 41092.77828 | AD30: =U31 -> 108333.0557 | AE30: =V31 -> 9425.099077
C31: Total Gallons of Gasoline | D31: Gallons | E31: =E30/20.4307976517914 -> 0 | F31: =F30/20.4226203594574 -> 0 | G31: =G30/20.5611024430327 -> 0 | H31: =H30/20.6270155060466 -> 0 | I31: =I30/20.4193778857909 -> 0 | J31: =J30/20.8376150534165 -> 0 | K31: =K30/20.0618036298116 -> 0 | L31: =L30/20.9097170033507 -> 0 | M31: =M30/21.1865958602399 -> 0 | N31: =N30/22.1 -> 377282.6063 | O31: 386053.5747 | P31: 327276.5538 | Q31: 325804.4308 | R31: 320328 | S31: 42379.00452 | T31: 41092.77828 | U31: =U30/22.1 -> 108333.0557 | V31: =V30/22.1 -> 9425.099077 | W31: =W30/22.1 -> 12711.56914 | AB31: student diesel | AC31: =T33 -> 135806.8937 | AD31: =U33 -> 148530.376 | AE31: =V33 -> 100547.7553
C32: Total Bus Passenger Miles | D32: Miles | E32: =(E14*'Institutional Data'!I21)*'Scope 3 Commuting'!E15*'Scope 3 Commuting'!E16*'Scope 3 Commuting'!E17 -> 0 | F32: =(F14*'Institutional Data'!J21)*'Scope 3 Commuting'!F15*'Scope 3 Commuting'!F16*'Scope 3 Commuting'!F17 -> 0 | G32: =(G14*'Institutional Data'!K21)*'Scope 3 Commuting'!G15*'Scope 3 Commuting'!G16*'Scope 3 Commuting'!G17 -> 0 | H32: =(H14*'Institutional Data'!L21)*'Scope 3 Commuting'!H15*'Scope 3 Commuting'!H16*'Scope 3 Commuting'!H17 -> 0 | I32: =(I14*'Institutional Data'!M21)*'Scope 3 Commuting'!I15*'Scope 3 Commuting'!I16*'Scope 3 Commuting'!I17 -> 0 | J32: =(J14*'Institutional Data'!N21)*'Scope 3 Commuting'!J15*'Scope 3 Commuting'!J16*'Scope 3 Commuting'!J17 -> 0 | K32: =(K14*'Institutional Data'!O21)*'Scope 3 Commuting'!K15*'Scope 3 Commuting'!K16*'Scope 3 Commuting'!K17 -> 0 | L32: =(L14*'Institutional Data'!P21)*'Scope 3 Commuting'!L15*'Scope 3 Commuting'!L16*'Scope 3 Commuting'!L17 -> 0 | M32: =(M14*'Institutional Data'!Q21)*'Scope 3 Commuting'!M15*'Scope 3 Commuting'!M16*'Scope 3 Commuting'!M17 -> 0 | N32: =(N14*'Institutional Data'!R21)*'Scope 3 Commuting'!N15*'Scope 3 Commuting'!N16*'Scope 3 Commuting'!N17 -> 4585870.08 | O32: =(O14*'Institutional Data'!S21)*'Scope 3 Commuting'!O15*'Scope 3 Commuting'!O16*'Scope 3 Commuting'!O17 -> 4692481.2 | P32: =(P14*'Institutional Data'!T21)*'Scope 3 Commuting'!P15*'Scope 3 Commuting'!P16*'Scope 3 Commuting'!P17 -> 4680054.72 | Q32: =(Q14*'Institutional Data'!U21)*'Scope 3 Commuting'!Q15*'Scope 3 Commuting'!Q16*'Scope 3 Commuting'!Q17 -> 4659003.36 | R32: =(R14*'Institutional Data'!V21)*'Scope 3 Commuting'!R15*'Scope 3 Commuting'!R16*'Scope 3 Commuting'!R17 -> 4580690.4 | S32: =(S14*'Institutional Data'!W21)*'Scope 3 Commuting'!S15*'Scope 3 Commuting'!S16*'Scope 3 Commuting'!S17 -> 5157280.8 | T32: =(T14*'Institutional Data'!X21)*'Scope 3 Commuting'!T15*'Scope 3 Commuting'!T16*'Scope 3 Commuting'!T17 -> 5387547.6 | U32: =(U14*'Institutional Data'!Y21)*'Scope 3 Commuting'!U15*'Scope 3 Commuting'!U16*'Scope 3 Commuting'!U17 -> 5892296.4 | V32: =(V14*'Institutional Data'!Z21)*'Scope 3 Commuting'!V15*'Scope 3 Commuting'!V16*'Scope 3 Commuting'!V17 -> 3988794.701 | W32: =(W14*'Institutional Data'!AA21)*'Scope 3 Commuting'!W15*'Scope 3 Commuting'!W16*'Scope 3 Commuting'!W17 -> 4954827.24
C33: Total Gallons of Diesel | D33: Gallons | E33: =E32/33.3790377939823 -> 0 | F33: =F32/33.0563633845728 -> 0 | G33: =G32/33.8025754807274 -> 0 | H33: =H32/33.5624127352542 -> 0 | I33: =I32/33.3009750826588 -> 0 | J33: =J32/33.4419673782984 -> 0 | K33: =K32/37.5044279135671 -> 0 | L33: =L32/39.0722553176264 -> 0 | M33: =M32/39.6706489067342 -> 0 | N33: =N32/39.6706489067342 -> 115598.5648 | O33: 118285.9703 | P33: 117972.7292 | Q33: 117442.0759 | R33: 115467.9978 | S33: 130002.4311 | T33: =T32/39.6706489067342 -> 135806.8937 | U33: =U32/39.6706489067342 -> 148530.376 | V33: =V32/39.6706489067342 -> 100547.7553 | W33: =W32/39.6706489067342 -> 124899.0721 | AB33: faculty/staff gasoline | AC33: =T93 -> 289579.1752 | AD33: =U93 -> 316218.0633 | AE33: =V93 -> 234145.0818
C34: Total Light Rail Passenger Miles | D34: Miles | E34: =(E19*'Institutional Data'!I21)*'Scope 3 Commuting'!E20*'Scope 3 Commuting'!E21*'Scope 3 Commuting'!E22 -> 0 | F34: =(F19*'Institutional Data'!J21)*'Scope 3 Commuting'!F20*'Scope 3 Commuting'!F21*'Scope 3 Commuting'!F22 -> 0 | G34: =(G19*'Institutional Data'!K21)*'Scope 3 Commuting'!G20*'Scope 3 Commuting'!G21*'Scope 3 Commuting'!G22 -> 0 | H34: =(H19*'Institutional Data'!L21)*'Scope 3 Commuting'!H20*'Scope 3 Commuting'!H21*'Scope 3 Commuting'!H22 -> 0 | I34: =(I19*'Institutional Data'!M21)*'Scope 3 Commuting'!I20*'Scope 3 Commuting'!I21*'Scope 3 Commuting'!I22 -> 0 | J34: =(J19*'Institutional Data'!N21)*'Scope 3 Commuting'!J20*'Scope 3 Commuting'!J21*'Scope 3 Commuting'!J22 -> 0 | K34: =(K19*'Institutional Data'!O21)*'Scope 3 Commuting'!K20*'Scope 3 Commuting'!K21*'Scope 3 Commuting'!K22 -> 0 | L34: =(L19*'Institutional Data'!P21)*'Scope 3 Commuting'!L20*'Scope 3 Commuting'!L21*'Scope 3 Commuting'!L22 -> 0 | M34: =(M19*'Institutional Data'!Q21)*'Scope 3 Commuting'!M20*'Scope 3 Commuting'!M21*'Scope 3 Commuting'!M22 -> 0 | N34: =(N19*'Institutional Data'!R21)*'Scope 3 Commuting'!N20*'Scope 3 Commuting'!N21*'Scope 3 Commuting'!N22 -> 0 | O34: =(O19*'Institutional Data'!S21)*'Scope 3 Commuting'!O20*'Scope 3 Commuting'!O21*'Scope 3 Commuting'!O22 -> 0 | P34: =(P19*'Institutional Data'!T21)*'Scope 3 Commuting'!P20*'Scope 3 Commuting'!P21*'Scope 3 Commuting'!P22 -> 0 | Q34: =(Q19*'Institutional Data'!U21)*'Scope 3 Commuting'!Q20*'Scope 3 Commuting'!Q21*'Scope 3 Commuting'!Q22 -> 0 | R34: =(R19*'Institutional Data'!V21)*'Scope 3 Commuting'!R20*'Scope 3 Commuting'!R21*'Scope 3 Commuting'!R22 -> 0 | S34: =(S19*'Institutional Data'!W21)*'Scope 3 Commuting'!S20*'Scope 3 Commuting'!S21*'Scope 3 Commuting'!S22 -> 0 | T34: =(T19*'Institutional Data'!X21)*'Scope 3 Commuting'!T20*'Scope 3 Commuting'!T21*'Scope 3 Commuting'!T22 -> 0 | U34: =(U19*'Institutional Data'!Y21)*'Scope 3 Commuting'!U20*'Scope 3 Commuting'!U21*'Scope 3 Commuting'!U22 -> 0 | V34: =(V19*'Institutional Data'!Z21)*'Scope 3 Commuting'!V20*'Scope 3 Commuting'!V21*'Scope 3 Commuting'!V22 -> 0 | W34: =(W19*'Institutional Data'!AA21)*'Scope 3 Commuting'!W20*'Scope 3 Commuting'!W21*'Scope 3 Commuting'!W22 -> 0 | AB34: faculty/staff diesel | AC34: =T95 -> 15615.77683 | AD34: =U95 -> 16178.04643 | AE34: =V95 -> 24831.49981
C35: Total Light Rail kWh | D35: kWh | E35: =E34/2.98611111111111 -> 0 | F35: =F34/2.98130841121495 -> 0 | G35: =G34/2.86703601108033 -> 0 | H35: =H34/2.96062992125984 -> 0 | I35: =I34/2.89903846153846 -> 0 | J35: =J34/2.92872570194384 -> 0 | K35: =K34/2.95071868583162 -> 0 | L35: =L34/2.8078431372549 -> 0 | M35: =M34/2.9112426035503 -> 0 | N35: =N34/2.9112426035503 -> 0 | O35: 0 | P35: 0 | Q35: 0 | R35: 0 | S35: 0 | T35: =T34/2.9112426035503 -> 0 | U35: =U34/2.9112426035503 -> 0 | V35: =V34/2.9112426035503 -> 0 | W35: =W34/2.9112426035503 -> 0
C36: Total Commuter Rail Passenger Miles | D36: Miles | E36: =(E24*'Institutional Data'!I21)*'Scope 3 Commuting'!E25*'Scope 3 Commuting'!E26*'Scope 3 Commuting'!E27 -> 0 | F36: =(F24*'Institutional Data'!J21)*'Scope 3 Commuting'!F25*'Scope 3 Commuting'!F26*'Scope 3 Commuting'!F27 -> 0 | G36: =(G24*'Institutional Data'!K21)*'Scope 3 Commuting'!G25*'Scope 3 Commuting'!G26*'Scope 3 Commuting'!G27 -> 0 | H36: =(H24*'Institutional Data'!L21)*'Scope 3 Commuting'!H25*'Scope 3 Commuting'!H26*'Scope 3 Commuting'!H27 -> 0 | I36: =(I24*'Institutional Data'!M21)*'Scope 3 Commuting'!I25*'Scope 3 Commuting'!I26*'Scope 3 Commuting'!I27 -> 0 | J36: =(J24*'Institutional Data'!N21)*'Scope 3 Commuting'!J25*'Scope 3 Commuting'!J26*'Scope 3 Commuting'!J27 -> 0 | K36: =(K24*'Institutional Data'!O21)*'Scope 3 Commuting'!K25*'Scope 3 Commuting'!K26*'Scope 3 Commuting'!K27 -> 0 | L36: =(L24*'Institutional Data'!P21)*'Scope 3 Commuting'!L25*'Scope 3 Commuting'!L26*'Scope 3 Commuting'!L27 -> 0 | M36: =(M24*'Institutional Data'!Q21)*'Scope 3 Commuting'!M25*'Scope 3 Commuting'!M26*'Scope 3 Commuting'!M27 -> 0 | N36: =(N24*'Institutional Data'!R21)*'Scope 3 Commuting'!N25*'Scope 3 Commuting'!N26*'Scope 3 Commuting'!N27 -> 0 | O36: =(O24*'Institutional Data'!S21)*'Scope 3 Commuting'!O25*'Scope 3 Commuting'!O26*'Scope 3 Commuting'!O27 -> 0 | P36: =(P24*'Institutional Data'!T21)*'Scope 3 Commuting'!P25*'Scope 3 Commuting'!P26*'Scope 3 Commuting'!P27 -> 0 | Q36: =(Q24*'Institutional Data'!U21)*'Scope 3 Commuting'!Q25*'Scope 3 Commuting'!Q26*'Scope 3 Commuting'!Q27 -> 0 | R36: =(R24*'Institutional Data'!V21)*'Scope 3 Commuting'!R25*'Scope 3 Commuting'!R26*'Scope 3 Commuting'!R27 -> 0 | S36: =(S24*'Institutional Data'!W21)*'Scope 3 Commuting'!S25*'Scope 3 Commuting'!S26*'Scope 3 Commuting'!S27 -> 0 | T36: =(T24*'Institutional Data'!X21)*'Scope 3 Commuting'!T25*'Scope 3 Commuting'!T26*'Scope 3 Commuting'!T27 -> 0 | U36: =(U24*'Institutional Data'!Y21)*'Scope 3 Commuting'!U25*'Scope 3 Commuting'!U26*'Scope 3 Commuting'!U27 -> 0 | V36: =(V24*'Institutional Data'!Z21)*'Scope 3 Commuting'!V25*'Scope 3 Commuting'!V26*'Scope 3 Commuting'!V27 -> 0 | W36: =(W24*'Institutional Data'!AA21)*'Scope 3 Commuting'!W25*'Scope 3 Commuting'!W26*'Scope 3 Commuting'!W27 -> 0
C37: Total Commuter Rail Gallons of Diesel | D37: Gallons | E37: =E36/130.724343524039 -> 0 | F37: =F36/134.937306101344 -> 0 | G37: =G36/127.193607089168 -> 0 | H37: =H36/125.780346820809 -> 0 | I37: =I36/120.07396753647 -> 0 | J37: =J36/132.762856900788 -> 0 | K37: =K36/132.236441194394 -> 0 | L37: =L36/130.465221628893 -> 0 | M37: =M36/132.278866378833 -> 0 | N37: =N36/132.278866378833 -> 0 | O37: 0 | P37: 0 | Q37: 0 | R37: 0 | S37: 0 | T37: =T36/132.278866378833 -> 0 | U37: =U36/132.278866378833 -> 0 | V37: =V36/132.278866378833 -> 0 | W37: =W36/132.278866378833 -> 0
C38: Total Commuter Rail kWh | D38: kWh | E38: =E36/6.57940941739824 -> 0 | F38: =F36/6.65418326693227 -> 0 | G38: =G36/6.32913385826772 -> 0 | H38: =H36/6.70053887605851 -> 0 | I38: =I36/6.63086232980333 -> 0 | J38: =J36/6.86277372262774 -> 0 | K38: =K36/7.05169867060561 -> 0 | L38: =L36/7.12443778110945 -> 0 | M38: =M36/6.9117859725235 -> 0 | N38: =N36/6.9117859725235 -> 0 | O38: 0 | P38: 0 | Q38: 0 | R38: 0 | S38: 0 | T38: =T36/6.9117859725235 -> 0 | U38: =U36/6.9117859725235 -> 0 | V38: =V36/6.9117859725235 -> 0 | W38: =W36/6.9117859725235 -> 0 | AB38: total gas | AC38: =SUM(AC30,AC33) -> 330671.9534 | AD38: 424551.119 | AE38: 243570.1809
AB39: total disel | AC39: 151422.6706 | AD39: 164708.4225 | AE39: 125379.2552
B41: Faculty Commuting | E41: FY1995 | F41: FY1996 | G41: FY1997 | H41: FY1998 | I41: FY1999 | J41: FY2000 | K41: FY2001 | L41: FY2002 | M41: FY2003 | N41: FY2004 | O41: FY2005 | P41: FY2006 | Q41: FY2007 | R41: FY2008 | S41: FY2009 | T41: FY2010 | U41: FY2011 | V41: FY2012 | W41: FY2014
B42: Faculty Commuting - Personal Vehicle/Carpool
C43: Faculty % Personal Vehicle | D43: % | N43: 0.68 | O43: 0.68 | P43: 0.68 | Q43: 0.68 | R43: 0.68 | S43: 0.49 | T43: 0.49 | U43: 0.49 | V43: 0.4182 | W43: 0.44
C44: Faculty % Carpool | D44: % | N44: 0.074 | O44: 0.074 | P44: 0.074 | Q44: 0.074 | R44: 0.074 | S44: 0 | T44: 0 | U44: 0 | V44: 0.0424 | W44: 0.12
C45: Trips/Week | D45: Trips | N45: 10 | O45: 10 | P45: 10 | Q45: 10 | R45: 10 | S45: 10 | T45: 10 | U45: 10 | V45: 10 | W45: 10
C46: Weeks/Year | D46: Weeks | N46: 36 | O46: 36 | P46: 36 | Q46: 36 | R46: 36 | S46: 36 | T46: 36 | U46: 36 | V46: 36 | W46: 36
C47: Miles/Trip | D47: Miles | N47: 3 | O47: 3 | P47: 3 | Q47: 3 | R47: 3 | S47: 7.589848778 | T47: 7.589848778 | U47: 8 | V47: 5.06 | W47: 7
B48: Faculty Commuting - Bus
C49: Faculty % Bus | D49: % | E49: 0 | F49: 0 | G49: 0 | H49: 0 | I49: 0 | J49: 0 | K49: 0 | L49: 0 | M49: 0 | N49: 0.099 | O49: 0.099 | P49: 0.099 | Q49: 0.099 | R49: 0.1 | S49: 0.12 | T49: 0.12 | U49: 0.12 | V49: 0.091 | W49: 0.07
C50: Passenger Trips/Week | D50: Trips | E50: 0 | F50: 0 | G50: 0 | H50: 0 | I50: 0 | J50: 0 | K50: 0 | L50: 0 | M50: 0 | N50: 10 | O50: 10 | P50: 10 | Q50: 10 | R50: 10 | S50: 10 | T50: 10 | U50: 10 | V50: 10 | W50: 10
C51: Passenger Weeks/Year | D51: Weeks | E51: 0 | F51: 0 | G51: 0 | H51: 0 | I51: 0 | J51: 0 | K51: 0 | L51: 0 | M51: 0 | N51: 36 | O51: 36 | P51: 36 | Q51: 36 | R51: 36 | S51: 36 | T51: 36 | U51: 36 | V51: 36 | W51: 36
C52: Passenger Miles/Trip | D52: Miles | E52: 0 | F52: 0 | G52: 0 | H52: 0 | I52: 0 | J52: 0 | K52: 0 | L52: 0 | M52: 0 | N52: 3 | O52: 3 | P52: 3 | Q52: 3 | R52: 3 | S52: 3 | T52: 3 | U52: 3 | V52: 5.06 | W52: 5
B53: Faculty Commuting - Light Rail
C54: Faculty % Light Rail | D54: % | E54: 0 | F54: 0 | G54: 0 | H54: 0 | I54: 0 | J54: 0 | K54: 0 | L54: 0 | M54: 0 | N54: 0 | O54: 0 | P54: 0 | Q54: 0 | R54: 0 | S54: 0 | T54: 0 | U54: 0 | V54: 0 | W54: 0
C55: Passenger Trips/Week | D55: Trips | E55: 0 | F55: 0 | G55: 0 | H55: 0 | I55: 0 | J55: 0 | K55: 0 | L55: 0 | M55: 0 | N55: 0 | O55: 0 | P55: 0 | Q55: 0 | R55: 0 | S55: 0 | T55: 0 | U55: 0 | V55: 0 | W55: 0
C56: Passenger Weeks/Year | D56: Weeks | E56: 0 | F56: 0 | G56: 0 | H56: 0 | I56: 0 | J56: 0 | K56: 0 | L56: 0 | M56: 0 | N56: 0 | O56: 0 | P56: 0 | Q56: 0 | R56: 0 | S56: 0 | T56: 0 | U56: 0 | V56: 0 | W56: 0
C57: Passenger Miles/Trip | D57: Miles | E57: 0 | F57: 0 | G57: 0 | H57: 0 | I57: 0 | J57: 0 | K57: 0 | L57: 0 | M57: 0 | N57: 0 | O57: 0 | P57: 0 | Q57: 0 | R57: 0 | S57: 0 | T57: 0 | U57: 0 | V57: 0 | W57: 0
B58: Faculty Commuting - Commuter Rail
C59: Faculty % Commuter Rail | D59: % | E59: 0 | F59: 0 | G59: 0 | H59: 0 | I59: 0 | J59: 0 | K59: 0 | L59: 0 | M59: 0 | N59: 0 | O59: 0 | P59: 0 | Q59: 0 | R59: 0 | S59: 0 | T59: 0 | U59: 0 | V59: 0 | W59: 0
C60: Passenger Trips/Week | D60: Trips | E60: 0 | F60: 0 | G60: 0 | H60: 0 | I60: 0 | J60: 0 | K60: 0 | L60: 0 | M60: 0 | N60: 0 | O60: 0 | P60: 0 | Q60: 0 | R60: 0 | S60: 0 | T60: 0 | U60: 0 | V60: 0 | W60: 0
C61: Passenger Weeks/Year | D61: Weeks | E61: 0 | F61: 0 | G61: 0 | H61: 0 | I61: 0 | J61: 0 | K61: 0 | L61: 0 | M61: 0 | N61: 0 | O61: 0 | P61: 0 | Q61: 0 | R61: 0 | S61: 0 | T61: 0 | U61: 0 | V61: 0 | W61: 0
C62: Passenger Miles/Trip | D62: Miles | E62: 0 | F62: 0 | G62: 0 | H62: 0 | I62: 0 | J62: 0 | K62: 0 | L62: 0 | M62: 0 | N62: 0 | O62: 0 | P62: 0 | Q62: 0 | R62: 0 | S62: 0 | T62: 0 | U62: 0 | V62: 0 | W62: 0
B65: Staff Commuting | E65: FY1995 | F65: FY1996 | G65: FY1997 | H65: FY1998 | I65: FY1999 | J65: FY2000 | K65: FY2001 | L65: FY2002 | M65: FY2003 | N65: FY2004 | O65: FY2005 | P65: FY2006 | Q65: FY2007 | R65: FY2008 | S65: FY2009 | T65: FY2010 | U65: FY2011 | V65: FY2012 | W65: FY2014
B66: Staff Commuting - Personal Vehicle/Carpool
C67: Staff % Personal Vehicle | D67: % | N67: 0.68 | O67: 0.68 | P67: 0.68 | Q67: 0.68 | R67: 0.68 | S67: 0.49 | T67: 0.49 | U67: 0.49 | V67: 0.5021 | W67: 0.4326
C68: Staff % Carpool | D68: % | N68: 0.074 | O68: 0.074 | P68: 0.074 | Q68: 0.074 | R68: 0.074 | S68: 0 | T68: 0 | U68: 0 | V68: 0.0928 | W68: 0.1064
C69: Trips/Week | D69: Trips | N69: 10 | O69: 10 | P69: 10 | Q69: 10 | R69: 10 | S69: 10 | T69: 10 | U69: 10 | V69: 10 | W69: 10
C70: Weeks/Year | D70: Weeks | N70: 46 | O70: 46 | P70: 46 | Q70: 46 | R70: 46 | S70: 46 | T70: 46 | U70: 46 | V70: 46 | W70: 46
C71: Miles/Trip | D71: Miles | N71: 3 | O71: 3 | P71: 3 | Q71: 3 | R71: 3 | S71: 7.589848778 | T71: 7.589848778 | U71: 8 | V71: 5.75 | W71: 8
B72: Staff Commuting - Bus
C73: Staff % Bus | D73: % | E73: 0 | F73: 0 | G73: 0 | H73: 0 | I73: 0 | J73: 0 | K73: 0 | L73: 0 | M73: 0 | N73: 0.099 | O73: 0.099 | P73: 0.099 | Q73: 0.099 | R73: 0.1 | S73: 0.12 | T73: 0.12 | U73: 0.12 | V73: 0.1012 | W73: 0.22
C74: Passenger Trips/Week | D74: Trips | E74: 0 | F74: 0 | G74: 0 | H74: 0 | I74: 0 | J74: 0 | K74: 0 | L74: 0 | M74: 0 | N74: 10 | O74: 10 | P74: 10 | Q74: 10 | R74: 10 | S74: 10 | T74: 10 | U74: 10 | V74: 10 | W74: 10
C75: Passenger Weeks/Year | D75: Weeks | E75: 0 | F75: 0 | G75: 0 | H75: 0 | I75: 0 | J75: 0 | K75: 0 | L75: 0 | M75: 0 | N75: 46 | O75: 46 | P75: 46 | Q75: 46 | R75: 46 | S75: 46 | T75: 46 | U75: 46 | V75: 46 | W75: 46
C76: Passenger Miles/Trip | D76: Miles | E76: 0 | F76: 0 | G76: 0 | H76: 0 | I76: 0 | J76: 0 | K76: 0 | L76: 0 | M76: 0 | N76: 3 | O76: 3 | P76: 3 | Q76: 3 | R76: 3 | S76: 3 | T76: 3 | U76: 3 | V76: 5.75 | W76: 6
B77: Staff Commuting - Light Rail
C78: Staff % Light Rail | D78: % | E78: 0 | F78: 0 | G78: 0 | H78: 0 | I78: 0 | J78: 0 | K78: 0 | L78: 0 | M78: 0 | N78: 0 | O78: 0 | P78: 0 | Q78: 0 | R78: 0 | S78: 0 | T78: 0 | U78: 0 | V78: 0 | W78: 0
C79: Passenger Trips/Week | D79: Trips | E79: 0 | F79: 0 | G79: 0 | H79: 0 | I79: 0 | J79: 0 | K79: 0 | L79: 0 | M79: 0 | N79: 0 | O79: 0 | P79: 0 | Q79: 0 | R79: 0 | S79: 0 | T79: 0 | U79: 0 | V79: 0 | W79: 0
C80: Passenger Weeks/Year | D80: Weeks | E80: 0 | F80: 0 | G80: 0 | H80: 0 | I80: 0 | J80: 0 | K80: 0 | L80: 0 | M80: 0 | N80: 0 | O80: 0 | P80: 0 | Q80: 0 | R80: 0 | S80: 0 | T80: 0 | U80: 0 | V80: 0 | W80: 0
C81: Passenger Miles/Trip | D81: Miles | E81: 0 | F81: 0 | G81: 0 | H81: 0 | I81: 0 | J81: 0 | K81: 0 | L81: 0 | M81: 0 | N81: 0 | O81: 0 | P81: 0 | Q81: 0 | R81: 0 | S81: 0 | T81: 0 | U81: 0 | V81: 0 | W81: 0
B82: Staff Commuting - Commuter Rail
C83: Staff % Commuter Rail | D83: % | E83: 0 | F83: 0 | G83: 0 | H83: 0 | I83: 0 | J83: 0 | K83: 0 | L83: 0 | M83: 0 | N83: 0 | O83: 0 | P83: 0 | Q83: 0 | R83: 0 | S83: 0 | T83: 0 | U83: 0 | V83: 0 | W83: 0
C84: Passenger Trips/Week | D84: Trips | E84: 0 | F84: 0 | G84: 0 | H84: 0 | I84: 0 | J84: 0 | K84: 0 | L84: 0 | M84: 0 | N84: 0 | O84: 0 | P84: 0 | Q84: 0 | R84: 0 | S84: 0 | T84: 0 | U84: 0 | V84: 0 | W84: 0
C85: Passenger Weeks/Year | D85: Weeks | E85: 0 | F85: 0 | G85: 0 | H85: 0 | I85: 0 | J85: 0 | K85: 0 | L85: 0 | M85: 0 | N85: 0 | O85: 0 | P85: 0 | Q85: 0 | R85: 0 | S85: 0 | T85: 0 | U85: 0 | V85: 0 | W85: 0
C86: Passenger Miles/Trip | D86: Miles | E86: 0 | F86: 0 | G86: 0 | H86: 0 | I86: 0 | J86: 0 | K86: 0 | L86: 0 | M86: 0 | N86: 0 | O86: 0 | P86: 0 | Q86: 0 | R86: 0 | S86: 0 | T86: 0 | U86: 0 | V86: 0 | W86: 0
B89: Faculty/Staff Summary | E89: FY1995 | F89: FY1996 | G89: FY1997 | H89: FY1998 | I89: FY1999 | J89: FY2000 | K89: FY2001 | L89: FY2002 | M89: FY2003 | N89: FY2004 | O89: FY2005 | P89: FY2006 | Q89: FY2007 | R89: FY2008 | S89: FY2009 | T89: FY2010 | U89: FY2011 | V89: FY2012 | W89: FY2014
B90: Faculty/Staff Commuting - Summary
C91: Total Automobile Passenger Miles | D91: Miles | E91: =(((E43*'Institutional Data'!I26)+('Scope 3 Commuting'!E44*'Institutional Data'!I26))*'Scope 3 Commuting'!E45*'Scope 3 Commuting'!E46*'Scope 3 Commuting'!E47)+((('Scope 3 Commuting'!E67*'Institutional Data'!I31)+('Scope 3 Commuting'!E68*'Institutional Data'!I31))*'Scope 3 Commuting'!E69*'Scope 3 Commuting'!E70*'Scope 3 Commuting'!E71) -> 0 | F91: =(((F43*'Institutional Data'!J26)+('Scope 3 Commuting'!F44*'Institutional Data'!J26))*'Scope 3 Commuting'!F45*'Scope 3 Commuting'!F46*'Scope 3 Commuting'!F47)+((('Scope 3 Commuting'!F67*'Institutional Data'!J31)+('Scope 3 Commuting'!F68*'Institutional Data'!J31))*'Scope 3 Commuting'!F69*'Scope 3 Commuting'!F70*'Scope 3 Commuting'!F71) -> 0 | G91: =(((G43*'Institutional Data'!K26)+('Scope 3 Commuting'!G44*'Institutional Data'!K26))*'Scope 3 Commuting'!G45*'Scope 3 Commuting'!G46*'Scope 3 Commuting'!G47)+((('Scope 3 Commuting'!G67*'Institutional Data'!K31)+('Scope 3 Commuting'!G68*'Institutional Data'!K31))*'Scope 3 Commuting'!G69*'Scope 3 Commuting'!G70*'Scope 3 Commuting'!G71) -> 0 | H91: =(((H43*'Institutional Data'!L26)+('Scope 3 Commuting'!H44*'Institutional Data'!L26))*'Scope 3 Commuting'!H45*'Scope 3 Commuting'!H46*'Scope 3 Commuting'!H47)+((('Scope 3 Commuting'!H67*'Institutional Data'!L31)+('Scope 3 Commuting'!H68*'Institutional Data'!L31))*'Scope 3 Commuting'!H69*'Scope 3 Commuting'!H70*'Scope 3 Commuting'!H71) -> 0 | I91: =(((I43*'Institutional Data'!M26)+('Scope 3 Commuting'!I44*'Institutional Data'!M26))*'Scope 3 Commuting'!I45*'Scope 3 Commuting'!I46*'Scope 3 Commuting'!I47)+((('Scope 3 Commuting'!I67*'Institutional Data'!M31)+('Scope 3 Commuting'!I68*'Institutional Data'!M31))*'Scope 3 Commuting'!I69*'Scope 3 Commuting'!I70*'Scope 3 Commuting'!I71) -> 0 | J91: =(((J43*'Institutional Data'!N26)+('Scope 3 Commuting'!J44*'Institutional Data'!N26))*'Scope 3 Commuting'!J45*'Scope 3 Commuting'!J46*'Scope 3 Commuting'!J47)+((('Scope 3 Commuting'!J67*'Institutional Data'!N31)+('Scope 3 Commuting'!J68*'Institutional Data'!N31))*'Scope 3 Commuting'!J69*'Scope 3 Commuting'!J70*'Scope 3 Commuting'!J71) -> 0 | K91: =(((K43*'Institutional Data'!O26)+('Scope 3 Commuting'!K44*'Institutional Data'!O26))*'Scope 3 Commuting'!K45*'Scope 3 Commuting'!K46*'Scope 3 Commuting'!K47)+((('Scope 3 Commuting'!K67*'Institutional Data'!O31)+('Scope 3 Commuting'!K68*'Institutional Data'!O31))*'Scope 3 Commuting'!K69*'Scope 3 Commuting'!K70*'Scope 3 Commuting'!K71) -> 0 | L91: =(((L43*'Institutional Data'!P26)+('Scope 3 Commuting'!L44*'Institutional Data'!P26))*'Scope 3 Commuting'!L45*'Scope 3 Commuting'!L46*'Scope 3 Commuting'!L47)+((('Scope 3 Commuting'!L67*'Institutional Data'!P31)+('Scope 3 Commuting'!L68*'Institutional Data'!P31))*'Scope 3 Commuting'!L69*'Scope 3 Commuting'!L70*'Scope 3 Commuting'!L71) -> 0 | M91: =(((M43*'Institutional Data'!Q26)+('Scope 3 Commuting'!M44*'Institutional Data'!Q26))*'Scope 3 Commuting'!M45*'Scope 3 Commuting'!M46*'Scope 3 Commuting'!M47)+((('Scope 3 Commuting'!M67*'Institutional Data'!Q31)+('Scope 3 Commuting'!M68*'Institutional Data'!Q31))*'Scope 3 Commuting'!M69*'Scope 3 Commuting'!M70*'Scope 3 Commuting'!M71) -> 0 | N91: =(((N43*'Institutional Data'!R26)+('Scope 3 Commuting'!N44*'Institutional Data'!R26))*'Scope 3 Commuting'!N45*'Scope 3 Commuting'!N46*'Scope 3 Commuting'!N47)+((('Scope 3 Commuting'!N67*'Institutional Data'!R31)+('Scope 3 Commuting'!N68*'Institutional Data'!R31))*'Scope 3 Commuting'!N69*'Scope 3 Commuting'!N70*'Scope 3 Commuting'!N71) -> 4247628.84 | O91: =(((O43*'Institutional Data'!S26)+('Scope 3 Commuting'!O44*'Institutional Data'!S26))*'Scope 3 Commuting'!O45*'Scope 3 Commuting'!O46*'Scope 3 Commuting'!O47)+((('Scope 3 Commuting'!O67*'Institutional Data'!S31)+('Scope 3 Commuting'!O68*'Institutional Data'!S31))*'Scope 3 Commuting'!O69*'Scope 3 Commuting'!O70*'Scope 3 Commuting'!O71) -> 4301321.753 | P91: =(((P43*'Institutional Data'!T26)+('Scope 3 Commuting'!P44*'Institutional Data'!T26))*'Scope 3 Commuting'!P45*'Scope 3 Commuting'!P46*'Scope 3 Commuting'!P47)+((('Scope 3 Commuting'!P67*'Institutional Data'!T31)+('Scope 3 Commuting'!P68*'Institutional Data'!T31))*'Scope 3 Commuting'!P69*'Scope 3 Commuting'!P70*'Scope 3 Commuting'!P71) -> 4368866.137 | Q91: =(((Q43*'Institutional Data'!U26)+('Scope 3 Commuting'!Q44*'Institutional Data'!U26))*'Scope 3 Commuting'!Q45*'Scope 3 Commuting'!Q46*'Scope 3 Commuting'!Q47)+((('Scope 3 Commuting'!Q67*'Institutional Data'!U31)+('Scope 3 Commuting'!Q68*'Institutional Data'!U31))*'Scope 3 Commuting'!Q69*'Scope 3 Commuting'!Q70*'Scope 3 Commuting'!Q71) -> 4400194.614 | R91: =(((R43*'Institutional Data'!V26)+('Scope 3 Commuting'!R44*'Institutional Data'!V26))*'Scope 3 Commuting'!R45*'Scope 3 Commuting'!R46*'Scope 3 Commuting'!R47)+((('Scope 3 Commuting'!R67*'Institutional Data'!V31)+('Scope 3 Commuting'!R68*'Institutional Data'!V31))*'Scope 3 Commuting'!R69*'Scope 3 Commuting'!R70*'Scope 3 Commuting'!R71) -> 4446730.08 | S91: =(((S43*'Institutional Data'!W26)+('Scope 3 Commuting'!S44*'Institutional Data'!W26))*'Scope 3 Commuting'!S45*'Scope 3 Commuting'!S46*'Scope 3 Commuting'!S47)+((('Scope 3 Commuting'!S67*'Institutional Data'!W31)+('Scope 3 Commuting'!S68*'Institutional Data'!W31))*'Scope 3 Commuting'!S69*'Scope 3 Commuting'!S70*'Scope 3 Commuting'!S71) -> 6338782.127 | T91: =(((T43*'Institutional Data'!X26)+('Scope 3 Commuting'!T44*'Institutional Data'!X26))*'Scope 3 Commuting'!T45*'Scope 3 Commuting'!T46*'Scope 3 Commuting'!T47)+((('Scope 3 Commuting'!T67*'Institutional Data'!X31)+('Scope 3 Commuting'!T68*'Institutional Data'!X31))*'Scope 3 Commuting'!T69*'Scope 3 Commuting'!T70*'Scope 3 Commuting'!T71) -> 6399699.771 | U91: =(((U43*'Institutional Data'!Y26)+('Scope 3 Commuting'!U44*'Institutional Data'!Y26))*'Scope 3 Commuting'!U45*'Scope 3 Commuting'!U46*'Scope 3 Commuting'!U47)+((('Scope 3 Commuting'!U67*'Institutional Data'!Y31)+('Scope 3 Commuting'!U68*'Institutional Data'!Y31))*'Scope 3 Commuting'!U69*'Scope 3 Commuting'!U70*'Scope 3 Commuting'!U71) -> 6988419.2 | V91: =(((V43*'Institutional Data'!Z26)+('Scope 3 Commuting'!V44*'Institutional Data'!Z26))*'Scope 3 Commuting'!V45*'Scope 3 Commuting'!V46*'Scope 3 Commuting'!V47)+((('Scope 3 Commuting'!V67*'Institutional Data'!Z31)+('Scope 3 Commuting'!V68*'Institutional Data'!Z31))*'Scope 3 Commuting'!V69*'Scope 3 Commuting'!V70*'Scope 3 Commuting'!V71) -> 5563531.825 | W91: =(((W43*'Institutional Data'!AA26)+('Scope 3 Commuting'!W44*'Institutional Data'!AA26))*'Scope 3 Commuting'!W45*'Scope 3 Commuting'!W46*'Scope 3 Commuting'!W47)+((('Scope 3 Commuting'!W67*'Institutional Data'!AA31)+('Scope 3 Commuting'!W68*'Institutional Data'!AA31))*'Scope 3 Commuting'!W69*'Scope 3 Commuting'!W70*'Scope 3 Commuting'!W71) -> 8556850.4
C92: Total Automobile Vehicle Miles | D92: Miles | E92: =((((E43*'Institutional Data'!I26)+('Scope 3 Commuting'!E44*'Institutional Data'!I26)/2)*'Scope 3 Commuting'!E45*'Scope 3 Commuting'!E46*'Scope 3 Commuting'!E47)+((('Scope 3 Commuting'!E67*'Institutional Data'!I31)+('Scope 3 Commuting'!E68*'Institutional Data'!I31)/2)*'Scope 3 Commuting'!E69*'Scope 3 Commuting'!E70*'Scope 3 Commuting'!E71)) -> 0 | F92: =((((F43*'Institutional Data'!J26)+('Scope 3 Commuting'!F44*'Institutional Data'!J26)/2)*'Scope 3 Commuting'!F45*'Scope 3 Commuting'!F46*'Scope 3 Commuting'!F47)+((('Scope 3 Commuting'!F67*'Institutional Data'!J31)+('Scope 3 Commuting'!F68*'Institutional Data'!J31)/2)*'Scope 3 Commuting'!F69*'Scope 3 Commuting'!F70*'Scope 3 Commuting'!F71)) -> 0 | G92: =((((G43*'Institutional Data'!K26)+('Scope 3 Commuting'!G44*'Institutional Data'!K26)/2)*'Scope 3 Commuting'!G45*'Scope 3 Commuting'!G46*'Scope 3 Commuting'!G47)+((('Scope 3 Commuting'!G67*'Institutional Data'!K31)+('Scope 3 Commuting'!G68*'Institutional Data'!K31)/2)*'Scope 3 Commuting'!G69*'Scope 3 Commuting'!G70*'Scope 3 Commuting'!G71)) -> 0 | H92: =((((H43*'Institutional Data'!L26)+('Scope 3 Commuting'!H44*'Institutional Data'!L26)/2)*'Scope 3 Commuting'!H45*'Scope 3 Commuting'!H46*'Scope 3 Commuting'!H47)+((('Scope 3 Commuting'!H67*'Institutional Data'!L31)+('Scope 3 Commuting'!H68*'Institutional Data'!L31)/2)*'Scope 3 Commuting'!H69*'Scope 3 Commuting'!H70*'Scope 3 Commuting'!H71)) -> 0 | I92: =((((I43*'Institutional Data'!M26)+('Scope 3 Commuting'!I44*'Institutional Data'!M26)/2)*'Scope 3 Commuting'!I45*'Scope 3 Commuting'!I46*'Scope 3 Commuting'!I47)+((('Scope 3 Commuting'!I67*'Institutional Data'!M31)+('Scope 3 Commuting'!I68*'Institutional Data'!M31)/2)*'Scope 3 Commuting'!I69*'Scope 3 Commuting'!I70*'Scope 3 Commuting'!I71)) -> 0 | J92: =((((J43*'Institutional Data'!N26)+('Scope 3 Commuting'!J44*'Institutional Data'!N26)/2)*'Scope 3 Commuting'!J45*'Scope 3 Commuting'!J46*'Scope 3 Commuting'!J47)+((('Scope 3 Commuting'!J67*'Institutional Data'!N31)+('Scope 3 Commuting'!J68*'Institutional Data'!N31)/2)*'Scope 3 Commuting'!J69*'Scope 3 Commuting'!J70*'Scope 3 Commuting'!J71)) -> 0 | K92: =((((K43*'Institutional Data'!O26)+('Scope 3 Commuting'!K44*'Institutional Data'!O26)/2)*'Scope 3 Commuting'!K45*'Scope 3 Commuting'!K46*'Scope 3 Commuting'!K47)+((('Scope 3 Commuting'!K67*'Institutional Data'!O31)+('Scope 3 Commuting'!K68*'Institutional Data'!O31)/2)*'Scope 3 Commuting'!K69*'Scope 3 Commuting'!K70*'Scope 3 Commuting'!K71)) -> 0 | L92: =((((L43*'Institutional Data'!P26)+('Scope 3 Commuting'!L44*'Institutional Data'!P26)/2)*'Scope 3 Commuting'!L45*'Scope 3 Commuting'!L46*'Scope 3 Commuting'!L47)+((('Scope 3 Commuting'!L67*'Institutional Data'!P31)+('Scope 3 Commuting'!L68*'Institutional Data'!P31)/2)*'Scope 3 Commuting'!L69*'Scope 3 Commuting'!L70*'Scope 3 Commuting'!L71)) -> 0 | M92: =((((M43*'Institutional Data'!Q26)+('Scope 3 Commuting'!M44*'Institutional Data'!Q26)/2)*'Scope 3 Commuting'!M45*'Scope 3 Commuting'!M46*'Scope 3 Commuting'!M47)+((('Scope 3 Commuting'!M67*'Institutional Data'!Q31)+('Scope 3 Commuting'!M68*'Institutional Data'!Q31)/2)*'Scope 3 Commuting'!M69*'Scope 3 Commuting'!M70*'Scope 3 Commuting'!M71)) -> 0 | N92: =((((N43*'Institutional Data'!R26)+('Scope 3 Commuting'!N44*'Institutional Data'!R26)/2)*'Scope 3 Commuting'!N45*'Scope 3 Commuting'!N46*'Scope 3 Commuting'!N47)+((('Scope 3 Commuting'!N67*'Institutional Data'!R31)+('Scope 3 Commuting'!N68*'Institutional Data'!R31)/2)*'Scope 3 Commuting'!N69*'Scope 3 Commuting'!N70*'Scope 3 Commuting'!N71)) -> 4039190.82 | O92: =((((O43*'Institutional Data'!S26)+('Scope 3 Commuting'!O44*'Institutional Data'!S26)/2)*'Scope 3 Commuting'!O45*'Scope 3 Commuting'!O46*'Scope 3 Commuting'!O47)+((('Scope 3 Commuting'!O67*'Institutional Data'!S31)+('Scope 3 Commuting'!O68*'Institutional Data'!S31)/2)*'Scope 3 Commuting'!O69*'Scope 3 Commuting'!O70*'Scope 3 Commuting'!O71)) -> 4090248.935 | P92: =((((P43*'Institutional Data'!T26)+('Scope 3 Commuting'!P44*'Institutional Data'!T26)/2)*'Scope 3 Commuting'!P45*'Scope 3 Commuting'!P46*'Scope 3 Commuting'!P47)+((('Scope 3 Commuting'!P67*'Institutional Data'!T31)+('Scope 3 Commuting'!P68*'Institutional Data'!T31)/2)*'Scope 3 Commuting'!P69*'Scope 3 Commuting'!P70*'Scope 3 Commuting'!P71)) -> 4154478.807 | Q92: =((((Q43*'Institutional Data'!U26)+('Scope 3 Commuting'!Q44*'Institutional Data'!U26)/2)*'Scope 3 Commuting'!Q45*'Scope 3 Commuting'!Q46*'Scope 3 Commuting'!Q47)+((('Scope 3 Commuting'!Q67*'Institutional Data'!U31)+('Scope 3 Commuting'!Q68*'Institutional Data'!U31)/2)*'Scope 3 Commuting'!Q69*'Scope 3 Commuting'!Q70*'Scope 3 Commuting'!Q71)) -> 4184269.945 | R92: =((((R43*'Institutional Data'!V26)+('Scope 3 Commuting'!R44*'Institutional Data'!V26)/2)*'Scope 3 Commuting'!R45*'Scope 3 Commuting'!R46*'Scope 3 Commuting'!R47)+((('Scope 3 Commuting'!R67*'Institutional Data'!V31)+('Scope 3 Commuting'!R68*'Institutional Data'!V31)/2)*'Scope 3 Commuting'!R69*'Scope 3 Commuting'!R70*'Scope 3 Commuting'!R71)) -> 4228521.84 | S92: =((((S43*'Institutional Data'!W26)+('Scope 3 Commuting'!S44*'Institutional Data'!W26)/2)*'Scope 3 Commuting'!S45*'Scope 3 Commuting'!S46*'Scope 3 Commuting'!S47)+((('Scope 3 Commuting'!S67*'Institutional Data'!W31)+('Scope 3 Commuting'!S68*'Institutional Data'!W31)/2)*'Scope 3 Commuting'!S69*'Scope 3 Commuting'!S70*'Scope 3 Commuting'!S71)) -> 6338782.127 | T92: =((((T43*'Institutional Data'!X26)+('Scope 3 Commuting'!T44*'Institutional Data'!X26)/2)*'Scope 3 Commuting'!T45*'Scope 3 Commuting'!T46*'Scope 3 Commuting'!T47)+((('Scope 3 Commuting'!T67*'Institutional Data'!X31)+('Scope 3 Commuting'!T68*'Institutional Data'!X31)/2)*'Scope 3 Commuting'!T69*'Scope 3 Commuting'!T70*'Scope 3 Commuting'!T71)) -> 6399699.771 | U92: =((((U43*'Institutional Data'!Y26)+('Scope 3 Commuting'!U44*'Institutional Data'!Y26)/2)*'Scope 3 Commuting'!U45*'Scope 3 Commuting'!U46*'Scope 3 Commuting'!U47)+((('Scope 3 Commuting'!U67*'Institutional Data'!Y31)+('Scope 3 Commuting'!U68*'Institutional Data'!Y31)/2)*'Scope 3 Commuting'!U69*'Scope 3 Commuting'!U70*'Scope 3 Commuting'!U71)) -> 6988419.2 | V92: =((((V43*'Institutional Data'!Z26)+('Scope 3 Commuting'!V44*'Institutional Data'!Z26)/2)*'Scope 3 Commuting'!V45*'Scope 3 Commuting'!V46*'Scope 3 Commuting'!V47)+((('Scope 3 Commuting'!V67*'Institutional Data'!Z31)+('Scope 3 Commuting'!V68*'Institutional Data'!Z31)/2)*'Scope 3 Commuting'!V69*'Scope 3 Commuting'!V70*'Scope 3 Commuting'!V71)) -> 5174606.308 | W92: =((((W43*'Institutional Data'!AA26)+('Scope 3 Commuting'!W44*'Institutional Data'!AA26)/2)*'Scope 3 Commuting'!W45*'Scope 3 Commuting'!W46*'Scope 3 Commuting'!W47)+((('Scope 3 Commuting'!W67*'Institutional Data'!AA31)+('Scope 3 Commuting'!W68*'Institutional Data'!AA31)/2)*'Scope 3 Commuting'!W69*'Scope 3 Commuting'!W70*'Scope 3 Commuting'!W71)) -> 7689858.4
C93: Total Gallons of Gasoline | D93: Gallons | E93: =E92/20.4307976517914 -> 0 | F93: =F92/20.4226203594574 -> 0 | G93: =G92/20.5611024430327 -> 0 | H93: =H92/20.6270155060466 -> 0 | I93: =I92/20.4193778857909 -> 0 | J93: =J92/20.8376150534165 -> 0 | K93: =K92/20.0618036298116 -> 0 | L93: =L92/20.9097170033507 -> 0 | M93: =M92/21.1865958602399 -> 0 | N93: =N92/22.1 -> 182768.8154 | O93: 185079.1373 | P93: 187985.4664 | Q93: 189333.4817 | R93: 191335.8299 | S93: 286822.7207 | T93: 289579.1752 | U93: =U92/22.1 -> 316218.0633 | V93: =V92/22.1 -> 234145.0818 | W93: =W92/22.1 -> 347957.3937
C94: Total Bus Passenger Miles | D94: Miles | E94: =((E49*'Institutional Data'!I26)*'Scope 3 Commuting'!E50*'Scope 3 Commuting'!E51*'Scope 3 Commuting'!E52)+(('Scope 3 Commuting'!E73*'Institutional Data'!I31)*'Scope 3 Commuting'!E74*'Scope 3 Commuting'!E75*'Scope 3 Commuting'!E76) -> 0 | F94: =((F49*'Institutional Data'!J26)*'Scope 3 Commuting'!F50*'Scope 3 Commuting'!F51*'Scope 3 Commuting'!F52)+(('Scope 3 Commuting'!F73*'Institutional Data'!J31)*'Scope 3 Commuting'!F74*'Scope 3 Commuting'!F75*'Scope 3 Commuting'!F76) -> 0 | G94: =((G49*'Institutional Data'!K26)*'Scope 3 Commuting'!G50*'Scope 3 Commuting'!G51*'Scope 3 Commuting'!G52)+(('Scope 3 Commuting'!G73*'Institutional Data'!K31)*'Scope 3 Commuting'!G74*'Scope 3 Commuting'!G75*'Scope 3 Commuting'!G76) -> 0 | H94: =((H49*'Institutional Data'!L26)*'Scope 3 Commuting'!H50*'Scope 3 Commuting'!H51*'Scope 3 Commuting'!H52)+(('Scope 3 Commuting'!H73*'Institutional Data'!L31)*'Scope 3 Commuting'!H74*'Scope 3 Commuting'!H75*'Scope 3 Commuting'!H76) -> 0 | I94: =((I49*'Institutional Data'!M26)*'Scope 3 Commuting'!I50*'Scope 3 Commuting'!I51*'Scope 3 Commuting'!I52)+(('Scope 3 Commuting'!I73*'Institutional Data'!M31)*'Scope 3 Commuting'!I74*'Scope 3 Commuting'!I75*'Scope 3 Commuting'!I76) -> 0 | J94: =((J49*'Institutional Data'!N26)*'Scope 3 Commuting'!J50*'Scope 3 Commuting'!J51*'Scope 3 Commuting'!J52)+(('Scope 3 Commuting'!J73*'Institutional Data'!N31)*'Scope 3 Commuting'!J74*'Scope 3 Commuting'!J75*'Scope 3 Commuting'!J76) -> 0 | K94: =((K49*'Institutional Data'!O26)*'Scope 3 Commuting'!K50*'Scope 3 Commuting'!K51*'Scope 3 Commuting'!K52)+(('Scope 3 Commuting'!K73*'Institutional Data'!O31)*'Scope 3 Commuting'!K74*'Scope 3 Commuting'!K75*'Scope 3 Commuting'!K76) -> 0 | L94: =((L49*'Institutional Data'!P26)*'Scope 3 Commuting'!L50*'Scope 3 Commuting'!L51*'Scope 3 Commuting'!L52)+(('Scope 3 Commuting'!L73*'Institutional Data'!P31)*'Scope 3 Commuting'!L74*'Scope 3 Commuting'!L75*'Scope 3 Commuting'!L76) -> 0 | M94: =((M49*'Institutional Data'!Q26)*'Scope 3 Commuting'!M50*'Scope 3 Commuting'!M51*'Scope 3 Commuting'!M52)+(('Scope 3 Commuting'!M73*'Institutional Data'!Q31)*'Scope 3 Commuting'!M74*'Scope 3 Commuting'!M75*'Scope 3 Commuting'!M76) -> 0 | N94: =((N49*'Institutional Data'!R26)*'Scope 3 Commuting'!N50*'Scope 3 Commuting'!N51*'Scope 3 Commuting'!N52)+(('Scope 3 Commuting'!N73*'Institutional Data'!R31)*'Scope 3 Commuting'!N74*'Scope 3 Commuting'!N75*'Scope 3 Commuting'!N76) -> 557712.54 | O94: =((O49*'Institutional Data'!S26)*'Scope 3 Commuting'!O50*'Scope 3 Commuting'!O51*'Scope 3 Commuting'!O52)+(('Scope 3 Commuting'!O73*'Institutional Data'!S31)*'Scope 3 Commuting'!O74*'Scope 3 Commuting'!O75*'Scope 3 Commuting'!O76) -> 564762.4052 | P94: =((P49*'Institutional Data'!T26)*'Scope 3 Commuting'!P50*'Scope 3 Commuting'!P51*'Scope 3 Commuting'!P52)+(('Scope 3 Commuting'!P73*'Institutional Data'!T31)*'Scope 3 Commuting'!P74*'Scope 3 Commuting'!P75*'Scope 3 Commuting'!P76) -> 573630.965 | Q94: =((Q49*'Institutional Data'!U26)*'Scope 3 Commuting'!Q50*'Scope 3 Commuting'!Q51*'Scope 3 Commuting'!Q52)+(('Scope 3 Commuting'!Q73*'Institutional Data'!U31)*'Scope 3 Commuting'!Q74*'Scope 3 Commuting'!Q75*'Scope 3 Commuting'!Q76) -> 577744.3857 | R94: =((R49*'Institutional Data'!V26)*'Scope 3 Commuting'!R50*'Scope 3 Commuting'!R51*'Scope 3 Commuting'!R52)+(('Scope 3 Commuting'!R73*'Institutional Data'!V31)*'Scope 3 Commuting'!R74*'Scope 3 Commuting'!R75*'Scope 3 Commuting'!R76) -> 589752 | S94: =((S49*'Institutional Data'!W26)*'Scope 3 Commuting'!S50*'Scope 3 Commuting'!S51*'Scope 3 Commuting'!S52)+(('Scope 3 Commuting'!S73*'Institutional Data'!W31)*'Scope 3 Commuting'!S74*'Scope 3 Commuting'!S75*'Scope 3 Commuting'!S76) -> 613591.2 | T94: =((T49*'Institutional Data'!X26)*'Scope 3 Commuting'!T50*'Scope 3 Commuting'!T51*'Scope 3 Commuting'!T52)+(('Scope 3 Commuting'!T73*'Institutional Data'!X31)*'Scope 3 Commuting'!T74*'Scope 3 Commuting'!T75*'Scope 3 Commuting'!T76) -> 619488 | U94: =((U49*'Institutional Data'!Y26)*'Scope 3 Commuting'!U50*'Scope 3 Commuting'!U51*'Scope 3 Commuting'!U52)+(('Scope 3 Commuting'!U73*'Institutional Data'!Y31)*'Scope 3 Commuting'!U74*'Scope 3 Commuting'!U75*'Scope 3 Commuting'!U76) -> 641793.6 | V94: =((V49*'Institutional Data'!Z26)*'Scope 3 Commuting'!V50*'Scope 3 Commuting'!V51*'Scope 3 Commuting'!V52)+(('Scope 3 Commuting'!V73*'Institutional Data'!Z31)*'Scope 3 Commuting'!V74*'Scope 3 Commuting'!V75*'Scope 3 Commuting'!V76) -> 985081.7108 | W94: =((W49*'Institutional Data'!AA26)*'Scope 3 Commuting'!W50*'Scope 3 Commuting'!W51*'Scope 3 Commuting'!W52)+(('Scope 3 Commuting'!W73*'Institutional Data'!AA31)*'Scope 3 Commuting'!W74*'Scope 3 Commuting'!W75*'Scope 3 Commuting'!W76) -> 2043552
C95: Total Gallons of Diesel | D95: Gallons | E95: =E94/33.3790377939823 -> 0 | F95: =F94/33.0563633845728 -> 0 | G95: =G94/33.8025754807274 -> 0 | H95: =H94/33.5624127352542 -> 0 | I95: =I94/33.3009750826588 -> 0 | J95: =J94/33.4419673782984 -> 0 | K95: =K94/37.5044279135671 -> 0 | L95: =L94/39.0722553176264 -> 0 | M95: =M94/39.6706489067342 -> 0 | N95: =N94/39.6706489067342 -> 14058.56862 | O95: 14236.27848 | P95: 14459.83317 | Q95: 14563.52244 | R95: 14866.20502 | S95: 15467.13293 | T95: =T94/39.6706489067342 -> 15615.77683 | U95: =U94/39.6706489067342 -> 16178.04643 | V95: =V94/39.6706489067342 -> 24831.49981 | W95: =W94/39.6706489067342 -> 51512.94613
C96: Total Light Rail Passenger Miles | D96: Miles | E96: =((E54*'Institutional Data'!I26)*'Scope 3 Commuting'!E55*'Scope 3 Commuting'!E56*'Scope 3 Commuting'!E57)+(('Scope 3 Commuting'!E78*'Institutional Data'!I31)*'Scope 3 Commuting'!E79*'Scope 3 Commuting'!E80*'Scope 3 Commuting'!E81) -> 0 | F96: =((F54*'Institutional Data'!J26)*'Scope 3 Commuting'!F55*'Scope 3 Commuting'!F56*'Scope 3 Commuting'!F57)+(('Scope 3 Commuting'!F78*'Institutional Data'!J31)*'Scope 3 Commuting'!F79*'Scope 3 Commuting'!F80*'Scope 3 Commuting'!F81) -> 0 | G96: =((G54*'Institutional Data'!K26)*'Scope 3 Commuting'!G55*'Scope 3 Commuting'!G56*'Scope 3 Commuting'!G57)+(('Scope 3 Commuting'!G78*'Institutional Data'!K31)*'Scope 3 Commuting'!G79*'Scope 3 Commuting'!G80*'Scope 3 Commuting'!G81) -> 0 | H96: =((H54*'Institutional Data'!L26)*'Scope 3 Commuting'!H55*'Scope 3 Commuting'!H56*'Scope 3 Commuting'!H57)+(('Scope 3 Commuting'!H78*'Institutional Data'!L31)*'Scope 3 Commuting'!H79*'Scope 3 Commuting'!H80*'Scope 3 Commuting'!H81) -> 0 | I96: =((I54*'Institutional Data'!M26)*'Scope 3 Commuting'!I55*'Scope 3 Commuting'!I56*'Scope 3 Commuting'!I57)+(('Scope 3 Commuting'!I78*'Institutional Data'!M31)*'Scope 3 Commuting'!I79*'Scope 3 Commuting'!I80*'Scope 3 Commuting'!I81) -> 0 | J96: =((J54*'Institutional Data'!N26)*'Scope 3 Commuting'!J55*'Scope 3 Commuting'!J56*'Scope 3 Commuting'!J57)+(('Scope 3 Commuting'!J78*'Institutional Data'!N31)*'Scope 3 Commuting'!J79*'Scope 3 Commuting'!J80*'Scope 3 Commuting'!J81) -> 0 | K96: =((K54*'Institutional Data'!O26)*'Scope 3 Commuting'!K55*'Scope 3 Commuting'!K56*'Scope 3 Commuting'!K57)+(('Scope 3 Commuting'!K78*'Institutional Data'!O31)*'Scope 3 Commuting'!K79*'Scope 3 Commuting'!K80*'Scope 3 Commuting'!K81) -> 0 | L96: =((L54*'Institutional Data'!P26)*'Scope 3 Commuting'!L55*'Scope 3 Commuting'!L56*'Scope 3 Commuting'!L57)+(('Scope 3 Commuting'!L78*'Institutional Data'!P31)*'Scope 3 Commuting'!L79*'Scope 3 Commuting'!L80*'Scope 3 Commuting'!L81) -> 0 | M96: =((M54*'Institutional Data'!Q26)*'Scope 3 Commuting'!M55*'Scope 3 Commuting'!M56*'Scope 3 Commuting'!M57)+(('Scope 3 Commuting'!M78*'Institutional Data'!Q31)*'Scope 3 Commuting'!M79*'Scope 3 Commuting'!M80*'Scope 3 Commuting'!M81) -> 0 | N96: =((N54*'Institutional Data'!R26)*'Scope 3 Commuting'!N55*'Scope 3 Commuting'!N56*'Scope 3 Commuting'!N57)+(('Scope 3 Commuting'!N78*'Institutional Data'!R31)*'Scope 3 Commuting'!N79*'Scope 3 Commuting'!N80*'Scope 3 Commuting'!N81) -> 0 | O96: =((O54*'Institutional Data'!S26)*'Scope 3 Commuting'!O55*'Scope 3 Commuting'!O56*'Scope 3 Commuting'!O57)+(('Scope 3 Commuting'!O78*'Institutional Data'!S31)*'Scope 3 Commuting'!O79*'Scope 3 Commuting'!O80*'Scope 3 Commuting'!O81) -> 0 | P96: =((P54*'Institutional Data'!T26)*'Scope 3 Commuting'!P55*'Scope 3 Commuting'!P56*'Scope 3 Commuting'!P57)+(('Scope 3 Commuting'!P78*'Institutional Data'!T31)*'Scope 3 Commuting'!P79*'Scope 3 Commuting'!P80*'Scope 3 Commuting'!P81) -> 0 | Q96: =((Q54*'Institutional Data'!U26)*'Scope 3 Commuting'!Q55*'Scope 3 Commuting'!Q56*'Scope 3 Commuting'!Q57)+(('Scope 3 Commuting'!Q78*'Institutional Data'!U31)*'Scope 3 Commuting'!Q79*'Scope 3 Commuting'!Q80*'Scope 3 Commuting'!Q81) -> 0 | R96: =((R54*'Institutional Data'!V26)*'Scope 3 Commuting'!R55*'Scope 3 Commuting'!R56*'Scope 3 Commuting'!R57)+(('Scope 3 Commuting'!R78*'Institutional Data'!V31)*'Scope 3 Commuting'!R79*'Scope 3 Commuting'!R80*'Scope 3 Commuting'!R81) -> 0 | S96: =((S54*'Institutional Data'!W26)*'Scope 3 Commuting'!S55*'Scope 3 Commuting'!S56*'Scope 3 Commuting'!S57)+(('Scope 3 Commuting'!S78*'Institutional Data'!W31)*'Scope 3 Commuting'!S79*'Scope 3 Commuting'!S80*'Scope 3 Commuting'!S81) -> 0 | T96: =((T54*'Institutional Data'!X26)*'Scope 3 Commuting'!T55*'Scope 3 Commuting'!T56*'Scope 3 Commuting'!T57)+(('Scope 3 Commuting'!T78*'Institutional Data'!X31)*'Scope 3 Commuting'!T79*'Scope 3 Commuting'!T80*'Scope 3 Commuting'!T81) -> 0 | U96: =((U54*'Institutional Data'!Y26)*'Scope 3 Commuting'!U55*'Scope 3 Commuting'!U56*'Scope 3 Commuting'!U57)+(('Scope 3 Commuting'!U78*'Institutional Data'!Y31)*'Scope 3 Commuting'!U79*'Scope 3 Commuting'!U80*'Scope 3 Commuting'!U81) -> 0 | V96: =((V54*'Institutional Data'!Z26)*'Scope 3 Commuting'!V55*'Scope 3 Commuting'!V56*'Scope 3 Commuting'!V57)+(('Scope 3 Commuting'!V78*'Institutional Data'!Z31)*'Scope 3 Commuting'!V79*'Scope 3 Commuting'!V80*'Scope 3 Commuting'!V81) -> 0 | W96: =((W54*'Institutional Data'!AA26)*'Scope 3 Commuting'!W55*'Scope 3 Commuting'!W56*'Scope 3 Commuting'!W57)+(('Scope 3 Commuting'!W78*'Institutional Data'!AA31)*'Scope 3 Commuting'!W79*'Scope 3 Commuting'!W80*'Scope 3 Commuting'!W81) -> 0
C97: Total Light Rail kWh | D97: kWh | E97: =E96/2.98611111111111 -> 0 | F97: =F96/2.98130841121495 -> 0 | G97: =G96/2.86703601108033 -> 0 | H97: =H96/2.96062992125984 -> 0 | I97: =I96/2.89903846153846 -> 0 | J97: =J96/2.92872570194384 -> 0 | K97: =K96/2.95071868583162 -> 0 | L97: =L96/2.8078431372549 -> 0 | M97: =M96/2.9112426035503 -> 0 | N97: =N96/2.9112426035503 -> 0 | O97: 0 | P97: 0 | Q97: 0 | R97: 0 | S97: 0 | T97: =T96/2.9112426035503 -> 0 | U97: =U96/2.9112426035503 -> 0 | V97: =V96/2.9112426035503 -> 0 | W97: =W96/2.9112426035503 -> 0
C98: Total Commuter Rail Passenger Miles | D98: Miles | E98: =((E59*'Institutional Data'!I26)*'Scope 3 Commuting'!E60*'Scope 3 Commuting'!E61*'Scope 3 Commuting'!E62)+(('Scope 3 Commuting'!E83*'Institutional Data'!I31)*'Scope 3 Commuting'!E84*'Scope 3 Commuting'!E85*'Scope 3 Commuting'!E86) -> 0 | F98: =((F59*'Institutional Data'!J26)*'Scope 3 Commuting'!F60*'Scope 3 Commuting'!F61*'Scope 3 Commuting'!F62)+(('Scope 3 Commuting'!F83*'Institutional Data'!J31)*'Scope 3 Commuting'!F84*'Scope 3 Commuting'!F85*'Scope 3 Commuting'!F86) -> 0 | G98: =((G59*'Institutional Data'!K26)*'Scope 3 Commuting'!G60*'Scope 3 Commuting'!G61*'Scope 3 Commuting'!G62)+(('Scope 3 Commuting'!G83*'Institutional Data'!K31)*'Scope 3 Commuting'!G84*'Scope 3 Commuting'!G85*'Scope 3 Commuting'!G86) -> 0 | H98: =((H59*'Institutional Data'!L26)*'Scope 3 Commuting'!H60*'Scope 3 Commuting'!H61*'Scope 3 Commuting'!H62)+(('Scope 3 Commuting'!H83*'Institutional Data'!L31)*'Scope 3 Commuting'!H84*'Scope 3 Commuting'!H85*'Scope 3 Commuting'!H86) -> 0 | I98: =((I59*'Institutional Data'!M26)*'Scope 3 Commuting'!I60*'Scope 3 Commuting'!I61*'Scope 3 Commuting'!I62)+(('Scope 3 Commuting'!I83*'Institutional Data'!M31)*'Scope 3 Commuting'!I84*'Scope 3 Commuting'!I85*'Scope 3 Commuting'!I86) -> 0 | J98: =((J59*'Institutional Data'!N26)*'Scope 3 Commuting'!J60*'Scope 3 Commuting'!J61*'Scope 3 Commuting'!J62)+(('Scope 3 Commuting'!J83*'Institutional Data'!N31)*'Scope 3 Commuting'!J84*'Scope 3 Commuting'!J85*'Scope 3 Commuting'!J86) -> 0 | K98: =((K59*'Institutional Data'!O26)*'Scope 3 Commuting'!K60*'Scope 3 Commuting'!K61*'Scope 3 Commuting'!K62)+(('Scope 3 Commuting'!K83*'Institutional Data'!O31)*'Scope 3 Commuting'!K84*'Scope 3 Commuting'!K85*'Scope 3 Commuting'!K86) -> 0 | L98: =((L59*'Institutional Data'!P26)*'Scope 3 Commuting'!L60*'Scope 3 Commuting'!L61*'Scope 3 Commuting'!L62)+(('Scope 3 Commuting'!L83*'Institutional Data'!P31)*'Scope 3 Commuting'!L84*'Scope 3 Commuting'!L85*'Scope 3 Commuting'!L86) -> 0 | M98: =((M59*'Institutional Data'!Q26)*'Scope 3 Commuting'!M60*'Scope 3 Commuting'!M61*'Scope 3 Commuting'!M62)+(('Scope 3 Commuting'!M83*'Institutional Data'!Q31)*'Scope 3 Commuting'!M84*'Scope 3 Commuting'!M85*'Scope 3 Commuting'!M86) -> 0 | N98: =((N59*'Institutional Data'!R26)*'Scope 3 Commuting'!N60*'Scope 3 Commuting'!N61*'Scope 3 Commuting'!N62)+(('Scope 3 Commuting'!N83*'Institutional Data'!R31)*'Scope 3 Commuting'!N84*'Scope 3 Commuting'!N85*'Scope 3 Commuting'!N86) -> 0 | O98: =((O59*'Institutional Data'!S26)*'Scope 3 Commuting'!O60*'Scope 3 Commuting'!O61*'Scope 3 Commuting'!O62)+(('Scope 3 Commuting'!O83*'Institutional Data'!S31)*'Scope 3 Commuting'!O84*'Scope 3 Commuting'!O85*'Scope 3 Commuting'!O86) -> 0 | P98: =((P59*'Institutional Data'!T26)*'Scope 3 Commuting'!P60*'Scope 3 Commuting'!P61*'Scope 3 Commuting'!P62)+(('Scope 3 Commuting'!P83*'Institutional Data'!T31)*'Scope 3 Commuting'!P84*'Scope 3 Commuting'!P85*'Scope 3 Commuting'!P86) -> 0 | Q98: =((Q59*'Institutional Data'!U26)*'Scope 3 Commuting'!Q60*'Scope 3 Commuting'!Q61*'Scope 3 Commuting'!Q62)+(('Scope 3 Commuting'!Q83*'Institutional Data'!U31)*'Scope 3 Commuting'!Q84*'Scope 3 Commuting'!Q85*'Scope 3 Commuting'!Q86) -> 0 | R98: =((R59*'Institutional Data'!V26)*'Scope 3 Commuting'!R60*'Scope 3 Commuting'!R61*'Scope 3 Commuting'!R62)+(('Scope 3 Commuting'!R83*'Institutional Data'!V31)*'Scope 3 Commuting'!R84*'Scope 3 Commuting'!R85*'Scope 3 Commuting'!R86) -> 0 | S98: =((S59*'Institutional Data'!W26)*'Scope 3 Commuting'!S60*'Scope 3 Commuting'!S61*'Scope 3 Commuting'!S62)+(('Scope 3 Commuting'!S83*'Institutional Data'!W31)*'Scope 3 Commuting'!S84*'Scope 3 Commuting'!S85*'Scope 3 Commuting'!S86) -> 0 | T98: =((T59*'Institutional Data'!X26)*'Scope 3 Commuting'!T60*'Scope 3 Commuting'!T61*'Scope 3 Commuting'!T62)+(('Scope 3 Commuting'!T83*'Institutional Data'!X31)*'Scope 3 Commuting'!T84*'Scope 3 Commuting'!T85*'Scope 3 Commuting'!T86) -> 0 | U98: =((U59*'Institutional Data'!Y26)*'Scope 3 Commuting'!U60*'Scope 3 Commuting'!U61*'Scope 3 Commuting'!U62)+(('Scope 3 Commuting'!U83*'Institutional Data'!Y31)*'Scope 3 Commuting'!U84*'Scope 3 Commuting'!U85*'Scope 3 Commuting'!U86) -> 0 | V98: =((V59*'Institutional Data'!Z26)*'Scope 3 Commuting'!V60*'Scope 3 Commuting'!V61*'Scope 3 Commuting'!V62)+(('Scope 3 Commuting'!V83*'Institutional Data'!Z31)*'Scope 3 Commuting'!V84*'Scope 3 Commuting'!V85*'Scope 3 Commuting'!V86) -> 0 | W98: =((W59*'Institutional Data'!AA26)*'Scope 3 Commuting'!W60*'Scope 3 Commuting'!W61*'Scope 3 Commuting'!W62)+(('Scope 3 Commuting'!W83*'Institutional Data'!AA31)*'Scope 3 Commuting'!W84*'Scope 3 Commuting'!W85*'Scope 3 Commuting'!W86) -> 0
C99: Total Commuter Rail Gallons of Diesel | D99: Gallons | E99: =E98/130.724343524039 -> 0 | F99: =F98/134.937306101344 -> 0 | G99: =G98/127.193607089168 -> 0 | H99: =H98/125.780346820809 -> 0 | I99: =I98/120.07396753647 -> 0 | J99: =J98/132.762856900788 -> 0 | K99: =K98/132.236441194394 -> 0 | L99: =L98/130.465221628893 -> 0 | M99: =M98/132.278866378833 -> 0 | N99: =N98/132.278866378833 -> 0 | O99: 0 | P99: 0 | Q99: 0 | R99: 0 | S99: 0 | T99: =T98/132.278866378833 -> 0 | U99: =U98/132.278866378833 -> 0 | V99: =V98/132.278866378833 -> 0 | W99: =W98/132.278866378833 -> 0
C100: Total Commuter Rail kWh | D100: kWh | E100: =E98/6.57940941739824 -> 0 | F100: =F98/6.65418326693227 -> 0 | G100: =G98/6.32913385826772 -> 0 | H100: =H98/6.70053887605851 -> 0 | I100: =I98/6.63086232980333 -> 0 | J100: =J98/6.86277372262774 -> 0 | K100: =K98/7.05169867060561 -> 0 | L100: =L98/7.12443778110945 -> 0 | M100: =M98/6.9117859725235 -> 0 | N100: =N98/6.9117859725235 -> 0 | O100: 0 | P100: 0 | Q100: 0 | R100: 0 | S100: 0 | T100: =T98/6.9117859725235 -> 0 | U100: =U98/6.9117859725235 -> 0 | V100: =V98/6.9117859725235 -> 0 | W100: =W98/6.9117859725235 -> 0
B103: Additional Commuting Information | E103: FY1995 | F103: FY1996 | G103: FY1997 | H103: FY1998 | I103: FY1999 | J103: FY2000 | K103: FY2001 | L103: FY2002 | M103: FY2003 | N103: FY2004 | O103: FY2005 | P103: FY2006 | Q103: FY2007 | R103: FY2008 | S103: FY2009 | T103: FY2010 | U103: FY2011 | V103: FY2012 | W103: FY2014
B104: Student Commuting
C105: # of Students in Residence (Non-Commuters) | D105: Count | N105: 0 | O105: 0 | P105: 0 | Q105: 0 | R105: 0 | S105: 0 | T105: 0 | U105: 0 | V105: 0 | W105: 0
C106: % Carbon-Free Commuting (Walk/Bike) | D106: % | N106: 0 | O106: 0 | P106: 0 | Q106: 0 | R106: 0 | S106: 0.11 | T106: 0.11 | U106: 0.11 | V106: 0.6667 | W106: 0.628
C107: Average Carpool Size (Survey Only) | D107: People
C108: % Hybrid Automobiles (Survey Only) | D108: %
C109: Average Days Drive Alone per Week (Survey Only) | D109: Days
B110: Faculty Commuting
C111: # of Faculty in Residence (Non-Commuters) | D111: Count | N111: 0 | O111: 0 | P111: 0 | Q111: 0 | R111: 0 | S111: 0 | T111: 0 | U111: 0 | V111: 0 | W111: 0
C112: % Carbon-Free Commuting (Walk/Bike) | D112: % | N112: 0 | O112: 0 | P112: 0 | Q112: 0 | R112: 0 | S112: 0 | T112: 0.21 | U112: 0.21 | V112: 0.3758 | W112: 0.33
C113: Average Carpool Size (Survey Only) | D113: People
C114: % Hybrid Automobiles (Survey Only) | D114: %
C115: Average Days Drive Alone per Week (Survey Only) | D115: Days
B116: Staff Commuting
C117: # of Staff in Residence (Non-Commuters) | D117: Count | N117: 0 | O117: 0 | P117: 0 | Q117: 0 | R117: 0 | S117: 0 | T117: 0 | U117: 0 | V117: 0 | W117: 0
C118: % Carbon-Free Commuting (Walk/Bike) | D118: % | N118: 0 | O118: 0 | P118: 0 | Q118: 0 | R118: 0 | S118: 0 | T118: 0.21 | U118: 0.21 | V118: 0.2194 | W118: 0.21
C119: Average Carpool Size (Survey Only) | D119: People
C120: % Hybrid Automobiles (Survey Only) | D120: %
C121: Average Days Drive Alone per Week(Survey Only) | D121: Days
B124: Commuting GHG Emissions | E124: FY1995 | F124: FY1996 | G124: FY1997 | H124: FY1998 | I124: FY1999 | J124: FY2000 | K124: FY2001 | L124: FY2002 | M124: FY2003 | N124: FY2004 | O124: FY2005 | P124: FY2006 | Q124: FY2007 | R124: FY2008 | S124: FY2009 | T124: FY2010 | U124: FY2011 | V124: FY2012 | W124: FY2014
C125: Faculty/Staff Commuting GHG | D125: MTCDE | N125: 1230.6 | O125: 1285.5 | P125: 1272.1 | Q125: 1244.6 | R125: 1440.2 | S125: 2529.1 | T125: 2739.9 | U125: 2838.3 | V125: 2895.9 | W125: 2903.7
C126: Student Commuting GHG | D126: MTCDE | N126: 4801.2 | O126: 4899.4 | P126: 4375.7 | Q126: 4247 | R126: 4351.6 | S126: 5318.8 | T126: 5243.1 | U126: 5734.3 | V126: 3163.5 | W126: 2903.7
C127: Total Commute | D127: MTCDE | E127: =SUM(E125:E126) -> 0 | F127: =SUM(F125:F126) -> 0 | G127: 0 | H127: 0 | I127: 0 | J127: 0 | K127: 0 | L127: 0 | M127: 0 | N127: 6031.8 | O127: 6184.9 | P127: 5647.8 | Q127: 5491.6 | R127: 5791.8 | S127: 7847.9 | T127: =SUM(T125:T126) -> 7983 | U127: =SUM(U125:U126) -> 8572.6 | V127: =SUM(V125:V126) -> 6059.4 | W127: =SUM(W125:W126) -> 5807.4
B130: Qualification Assistant | E130: FY1995 | F130: FY1996 | G130: FY1997 | H130: FY1998 | I130: FY1999 | J130: FY2000 | K130: FY2001 | L130: FY2002 | M130: FY2003 | N130: FY2004 | O130: FY2005 | P130: FY2006 | Q130: FY2007 | R130: FY2008 | S130: FY2009 | T130: FY2010 | U130: FY2011 | V130: FY2012 | W130: FY2014
B131: % of Users Accounted For (should equal 100%)
C132: % of Students | D132: % | E132: =E8+E9+E14+E19+E24+(E105/'Institutional Data'!I21)+E106 ->  | F132: =F8+F9+F14+F19+F24+(F105/'Institutional Data'!J21)+F106 ->  | G132: =G8+G9+G14+G19+G24+(G105/'Institutional Data'!K21)+G106 ->  | H132: =H8+H9+H14+H19+H24+(H105/'Institutional Data'!L21)+H106 ->  | I132: =I8+I9+I14+I19+I24+(I105/'Institutional Data'!M21)+I106 ->  | J132: =J8+J9+J14+J19+J24+(J105/'Institutional Data'!N21)+J106 ->  | K132: =K8+K9+K14+K19+K24+(K105/'Institutional Data'!O21)+K106 ->  | L132: =L8+L9+L14+L19+L24+(L105/'Institutional Data'!P21)+L106 ->  | M132: =M8+M9+M14+M19+M24+(M105/'Institutional Data'!Q21)+M106 ->  | N132: =N8+N9+N14+N19+N24+(N105/'Institutional Data'!R21)+N106 -> 0.65 | O132: =O8+O9+O14+O19+O24+(O105/'Institutional Data'!S21)+O106 -> 0.65 | P132: =P8+P9+P14+P19+P24+(P105/'Institutional Data'!T21)+P106 -> 0.59 | Q132: =Q8+Q9+Q14+Q19+Q24+(Q105/'Institutional Data'!U21)+Q106 -> 0.59 | R132: =R8+R9+R14+R19+R24+(R105/'Institutional Data'!V21)+R106 -> 0.59 | S132: =S8+S9+S14+S19+S24+(S105/'Institutional Data'!W21)+S106 -> 0.55 | T132: =T8+T9+T14+T19+T24+(T105/'Institutional Data'!X21)+T106 -> 0.55 | U132: =U8+U9+U14+U19+U24+(U105/'Institutional Data'!Y21)+U106 -> 0.55 | V132: =V8+V9+V14+V19+V24+(V105/'Institutional Data'!Z21)+V106 -> 0.9633 | W132: =W8+W9+W14+W19+W24+(W105/'Institutional Data'!AA21)+W106 -> 0.952
C133: % of Faculty | D133: % | E133: =E43+E44+E49+E54+E59+(E111/'Institutional Data'!I26)+E112 ->  | F133: =F43+F44+F49+F54+F59+(F111/'Institutional Data'!J26)+F112 ->  | G133: =G43+G44+G49+G54+G59+(G111/'Institutional Data'!K26)+G112 ->  | H133: =H43+H44+H49+H54+H59+(H111/'Institutional Data'!L26)+H112 ->  | I133: =I43+I44+I49+I54+I59+(I111/'Institutional Data'!M26)+I112 ->  | J133: =J43+J44+J49+J54+J59+(J111/'Institutional Data'!N26)+J112 ->  | K133: =K43+K44+K49+K54+K59+(K111/'Institutional Data'!O26)+K112 ->  | L133: =L43+L44+L49+L54+L59+(L111/'Institutional Data'!P26)+L112 ->  | M133: =M43+M44+M49+M54+M59+(M111/'Institutional Data'!Q26)+M112 ->  | N133: =N43+N44+N49+N54+N59+(N111/'Institutional Data'!R26)+N112 -> 0.853 | O133: =O43+O44+O49+O54+O59+(O111/'Institutional Data'!S26)+O112 -> 0.853 | P133: =P43+P44+P49+P54+P59+(P111/'Institutional Data'!T26)+P112 -> 0.853 | Q133: =Q43+Q44+Q49+Q54+Q59+(Q111/'Institutional Data'!U26)+Q112 -> 0.853 | R133: =R43+R44+R49+R54+R59+(R111/'Institutional Data'!V26)+R112 -> 0.854 | S133: =S43+S44+S49+S54+S59+(S111/'Institutional Data'!W26)+S112 -> 0.61 | T133: =T43+T44+T49+T54+T59+(T111/'Institutional Data'!X26)+T112 -> 0.82 | U133: =U43+U44+U49+U54+U59+(U111/'Institutional Data'!Y26)+U112 -> 0.82 | V133: =V43+V44+V49+V54+V59+(V111/'Institutional Data'!Z26)+V112 -> 0.9274 | W133: =W43+W44+W49+W54+W59+(W111/'Institutional Data'!AA26)+W112 -> 0.96
C134: % of Staff | D134: % | E134: =E67+E68+E73+E78+(E117/'Institutional Data'!I31)+E118 ->  | F134: =F67+F68+F73+F78+(F117/'Institutional Data'!J31)+F118 ->  | G134: =G67+G68+G73+G78+(G117/'Institutional Data'!K31)+G118 ->  | H134: =H67+H68+H73+H78+(H117/'Institutional Data'!L31)+H118 ->  | I134: =I67+I68+I73+I78+(I117/'Institutional Data'!M31)+I118 ->  | J134: =J67+J68+J73+J78+(J117/'Institutional Data'!N31)+J118 ->  | K134: =K67+K68+K73+K78+(K117/'Institutional Data'!O31)+K118 ->  | L134: =L67+L68+L73+L78+(L117/'Institutional Data'!P31)+L118 ->  | M134: =M67+M68+M73+M78+(M117/'Institutional Data'!Q31)+M118 ->  | N134: =N67+N68+N73+N78+(N117/'Institutional Data'!R31)+N118 -> 0.853 | O134: =O67+O68+O73+O78+(O117/'Institutional Data'!S31)+O118 -> 0.853 | P134: =P67+P68+P73+P78+(P117/'Institutional Data'!T31)+P118 -> 0.853 | Q134: =Q67+Q68+Q73+Q78+(Q117/'Institutional Data'!U31)+Q118 -> 0.853 | R134: =R67+R68+R73+R78+(R117/'Institutional Data'!V31)+R118 -> 0.854 | S134: =S67+S68+S73+S78+(S117/'Institutional Data'!W31)+S118 -> 0.61 | T134: =T67+T68+T73+T78+(T117/'Institutional Data'!X31)+T118 -> 0.82 | U134: =U67+U68+U73+U78+(U117/'Institutional Data'!Y31)+U118 -> 0.82 | V134: =V67+V68+V73+V78+(V117/'Institutional Data'!Z31)+V118 -> 0.9155 | W134: =W67+W68+W73+W78+(W117/'Institutional Data'!AA31)+W118 -> 0.969
B135: Total Commuters Accounted For
C136: Total Student Commuters | D136: Count | E136: =(E8+E9+E14+E19+E24+E106)*'Institutional Data'!I21 -> 0 | F136: =(F8+F9+F14+F19+F24+F106)*'Institutional Data'!J21 -> 0 | G136: =(G8+G9+G14+G19+G24+G106)*'Institutional Data'!K21 -> 0 | H136: =(H8+H9+H14+H19+H24+H106)*'Institutional Data'!L21 -> 0 | I136: =(I8+I9+I14+I19+I24+I106)*'Institutional Data'!M21 -> 0 | J136: =(J8+J9+J14+J19+J24+J106)*'Institutional Data'!N21 -> 0 | K136: =(K8+K9+K14+K19+K24+K106)*'Institutional Data'!O21 -> 0 | L136: =(L8+L9+L14+L19+L24+L106)*'Institutional Data'!P21 -> 0 | M136: =(M8+M9+M14+M19+M24+M106)*'Institutional Data'!Q21 -> 0 | N136: =(N8+N9+N14+N19+N24+N106)*'Institutional Data'!R21 -> 12545.52 | O136: =(O8+O9+O14+O19+O24+O106)*'Institutional Data'!S21 -> 12837.175 | P136: =(P8+P9+P14+P19+P24+P106)*'Institutional Data'!T21 -> 11621.348 | Q136: =(Q8+Q9+Q14+Q19+Q24+Q106)*'Institutional Data'!U21 -> 11569.074 | R136: =(R8+R9+R14+R19+R24+R106)*'Institutional Data'!V21 -> 11374.61 | S136: =(S8+S9+S14+S19+S24+S106)*'Institutional Data'!W21 -> 11419.1 | T136: =(T8+T9+T14+T19+T24+T106)*'Institutional Data'!X21 -> 11928.95 | U136: =(U8+U9+U14+U19+U24+U106)*'Institutional Data'!Y21 -> 13046.55 | V136: =(V8+V9+V14+V19+V24+V106)*'Institutional Data'!Z21 -> 23647.0884 | W136: =(W8+W9+W14+W19+W24+W106)*'Institutional Data'!AA21 -> 22629.992
C137: Total Faculty Commuters | D137: Count | E137: =(SUM(E43,E44,E49,E54,E59,E112)*'Institutional Data'!I26) -> 0 | F137: =(SUM(F43,F44,F49,F54,F59,F112)*'Institutional Data'!J26) -> 0 | G137: =(SUM(G43,G44,G49,G54,G59,G112)*'Institutional Data'!K26) -> 0 | H137: =(SUM(H43,H44,H49,H54,H59,H112)*'Institutional Data'!L26) -> 0 | I137: =(SUM(I43,I44,I49,I54,I59,I112)*'Institutional Data'!M26) -> 0 | J137: =(SUM(J43,J44,J49,J54,J59,J112)*'Institutional Data'!N26) -> 0 | K137: =(SUM(K43,K44,K49,K54,K59,K112)*'Institutional Data'!O26) -> 0 | L137: =(SUM(L43,L44,L49,L54,L59,L112)*'Institutional Data'!P26) -> 0 | M137: =(SUM(M43,M44,M49,M54,M59,M112)*'Institutional Data'!Q26) -> 0 | N137: =SUM(N43,N44,N49,N54,N59,N112)*'Institutional Data'!R26 -> 1156.668 | O137: =(SUM(O43,O44,O49,O54,O59,O112)*'Institutional Data'!S26) -> 1159.6535 | P137: =(SUM(P43,P44,P49,P54,P59,P112)*'Institutional Data'!T26) -> 1176.287 | Q137: =(SUM(Q43,Q44,Q49,Q54,Q59,Q112)*'Institutional Data'!U26) -> 1154.109 | R137: =(SUM(R43,R44,R49,R54,R59,R112)*'Institutional Data'!V26) -> 1209.691 | S137: =(SUM(S43,S44,S49,S54,S59,S112)*'Institutional Data'!W26) -> 874.74 | T137: =(SUM(T43,T44,T49,T54,T59,T112)*'Institutional Data'!X26) -> 1213.19 | U137: =(SUM(U43,U44,U49,U54,U59,U112)*'Institutional Data'!Y26) -> 1397.28 | V137: =(SUM(V43,V44,V49,V54,V59,V112)*'Institutional Data'!Z26) -> 1556.1772 | W137: =(SUM(W43,W44,W49,W54,W59,W112)*'Institutional Data'!AA26) -> 1806.72
C138: Total Staff Commuters | D138: Count | E138: =(SUM(E67,E68,E73,E78,E83,E118)*'Institutional Data'!I31) -> 0 | F138: =(SUM(F67,F68,F73,F78,F83,F118)*'Institutional Data'!J31) -> 0 | G138: =(SUM(G67,G68,G73,G78,G83,G118)*'Institutional Data'!K31) -> 0 | H138: =(SUM(H67,H68,H73,H78,H83,H118)*'Institutional Data'!L31) -> 0 | I138: =(SUM(I67,I68,I73,I78,I83,I118)*'Institutional Data'!M31) -> 0 | J138: =(SUM(J67,J68,J73,J78,J83,J118)*'Institutional Data'!N31) -> 0 | K138: =(SUM(K67,K68,K73,K78,K83,K118)*'Institutional Data'!O31) -> 0 | L138: =(SUM(L67,L68,L73,L78,L83,L118)*'Institutional Data'!P31) -> 0 | M138: =(SUM(M67,M68,M73,M78,M83,M118)*'Institutional Data'!Q31) -> 0 | N138: =SUM(N67,N68,N73,N78,N83,N118)*'Institutional Data'!R31 -> 2576.913 | O138: =(SUM(O67,O68,O73,O78,O83,O118)*'Institutional Data'!S31) -> 2618.593027 | P138: =(SUM(P67,P68,P73,P78,P83,P118)*'Institutional Data'!T31) -> 2660.947204 | Q138: =(SUM(Q67,Q68,Q73,Q78,Q83,Q118)*'Institutional Data'!U31) -> 2703.986435 | R138: =(SUM(R67,R68,R73,R78,R83,R118)*'Institutional Data'!V31) -> 2702.91 | S138: =(SUM(S67,S68,S73,S78,S83,S118)*'Institutional Data'!W31) -> 1575.63 | T138: =(SUM(T67,T68,T73,T78,T83,T118)*'Institutional Data'!X31) -> 2118.06 | U138: =(SUM(U67,U68,U73,U78,U83,U118)*'Institutional Data'!Y31) -> 2084.44 | V138: =(SUM(V67,V68,V73,V78,V83,V118)*'Institutional Data'!Z31) -> 2417.8355 | W138: =(SUM(W67,W68,W73,W78,W83,W118)*'Institutional Data'!AA31) -> 2882.775
C139: Total Commuters | D139: Count | E139: =SUM(E136:E138) -> 0 | F139: =SUM(F136:F138) -> 0 | G139: 0 | H139: 0 | I139: 0 | J139: 0 | K139: 0 | L139: 0 | M139: 0 | N139: 16279.101 | O139: 16615.42153 | P139: 15458.5822 | Q139: 15427.16943 | R139: 15287.211 | S139: 13869.47 | T139: =SUM(T136:T138) -> 15260.2 | U139: =SUM(U136:U138) -> 16528.27 | V139: =SUM(V136:V138) -> 27621.1011 | W139: =SUM(W136:W138) -> 27319.487
B140: Student Carbon Commuters
C141: % of Students Carbon Commuting | D141: % | E141: =E8+E9+E14+E19+E24 -> 0 | F141: 0 | G141: 0 | H141: 0 | I141: 0 | J141: 0 | K141: 0 | L141: 0 | M141: 0 | N141: 0.65 | O141: =O8+O9+O14+O19+O24 -> 0.65 | P141: 0.59 | Q141: 0.59 | R141: 0.59 | S141: 0.44 | T141: 0.44 | U141: =U8+U9+U14+U19+U24 -> 0.44 | V141: =V8+V9+V14+V19+V24 -> 0.2966 | W141: =W8+W9+W14+W19+W24 -> 0.324
C142: Commuting Student Average Trip Distance | D142: Miles | E142: =(((E8+E9)*E12)+(E14*E17)+(E19*E22)+(E24*E27))/(E8+E9+E14+E19+E24) ->  | N142: 3 | O142: =(((O8+O9)*O12)+(O14*O17)+(O19*O22)+(O24*O27))/(O8+O9+O14+O19+O24) -> 3 | P142: 3 | Q142: 3 | R142: 3 | S142: 4.984208946 | T142: 4.984208946 | U142: =(((U8+U9)*U12)+(U14*U17)+(U19*U22)+(U24*U27))/(U8+U9+U14+U19+U24) -> 4.909090909 | V142: =(((V8+V9)*V12)+(V14*V17)+(V19*V22)+(V24*V27))/(V8+V9+V14+V19+V24) -> 2.8 | W142: =(((W8+W9)*W12)+(W14*W17)+(W19*W22)+(W24*W27))/(W8+W9+W14+W19+W24) -> 3.808641975
C143: Student Weighted Average Weeks/Year | D143: Weeks | E143: =(((E8+E9)*E11)+(E14*E17)+(E19*E22)+(E24*E27))/(E8+E9+E14+E19+E24) ->  | N143: 24.83076923 | O143: =(((O8+O9)*O11)+(O14*O17)+(O19*O22)+(O24*O27))/(O8+O9+O14+O19+O24) -> 24.83076923 | P143: 23.69491525 | Q143: 23.69491525 | R143: 23.69491525 | S143: 18.75 | T143: 18.75 | U143: =(((U8+U9)*U11)+(U14*U17)+(U19*U22)+(U24*U27))/(U8+U9+U14+U19+U24) -> 18.75 | V143: =(((V8+V9)*V11)+(V14*V17)+(V19*V22)+(V24*V27))/(V8+V9+V14+V19+V24) -> 17.95603506 | W143: =(((W8+W9)*W11)+(W14*W17)+(W19*W22)+(W24*W27))/(W8+W9+W14+W19+W24) -> 16.34259259
C144: Student Passenger Miles | D144: Miles | E144: =E29+E32+E34+E36 -> 0 | F144: 0 | G144: 0 | H144: 0 | I144: 0 | J144: 0 | K144: 0 | L144: 0 | M144: 0 | N144: 13549161.6 | O144: =O29+O32+O34+O36 -> 13864149 | P144: 12551055.84 | Q144: 12494599.92 | R144: 12284578.8 | S144: 6833140.765 | T144: 7012544.287 | U144: =U29+U32+U34+U36 -> 10677533.73 | V144: =V29+V32+V34+V36 -> 4402467.778 | W144: =W29+W32+W34+W36 -> 5513873.618
B145: Faculty Carbon Commuting
C146: % of Faculty Carbon Commuting | D146: % | E146: =E43+E44+E49+E54+E59 -> 0 | F146: 0 | G146: 0 | H146: 0 | I146: 0 | J146: 0 | K146: 0 | L146: 0 | M146: 0 | N146: 0.853 | O146: =O43+O44+O49+O54+O59 -> 0.853 | P146: 0.853 | Q146: 0.853 | R146: 0.854 | S146: 0.61 | T146: 0.61 | U146: =U43+U44+U49+U54+U59 -> 0.61 | V146: =V43+V44+V49+V54+V59 -> 0.5516 | W146: =W43+W44+W49+W54+W59 -> 0.63
C147: Commuting Faculty Average Trip Distance | D147: Miles | E147: =(((E43+E44)*E47)+(E49*E52)+(E54*E57)+(E59*E62))/(E43+E44+E49+E54+E59) ->  | N147: 3 | O147: =(((O43+O44)*O47)+(O49*O52)+(O54*O57)+(O59*O62))/(O43+O44+O49+O54+O59) -> 3 | P147: 3 | Q147: 3 | R147: 3 | S147: 6.686927707 | T147: 6.686927707 | U147: =(((U43+U44)*U47)+(U49*U52)+(U54*U57)+(U59*U62))/(U43+U44+U49+U54+U59) -> 7.016393443 | V147: =(((V43+V44)*V47)+(V49*V52)+(V54*V57)+(V59*V62))/(V43+V44+V49+V54+V59) -> 5.06 | W147: =(((W43+W44)*W47)+(W49*W52)+(W54*W57)+(W59*W62))/(W43+W44+W49+W54+W59) -> 6.777777778
C148: Faculty Weighted Average Weeks/Year | D148: Weeks | E148: =(((E43+E44)*E46)+(E49*E51)+(E54*E56)+(E59*E61))/(E43+E44+E49+E54+E59) ->  | N148: 36 | O148: =(((O43+O44)*O46)+(O49*O51)+(O54*O56)+(O59*O61))/(O43+O44+O49+O54+O59) -> 36 | P148: 36 | Q148: 36 | R148: 36 | S148: 36 | T148: 36 | U148: =(((U43+U44)*U46)+(U49*U51)+(U54*U56)+(U59*U61))/(U43+U44+U49+U54+U59) -> 36 | V148: =(((V43+V44)*V46)+(V49*V51)+(V54*V56)+(V59*V61))/(V43+V44+V49+V54+V59) -> 36 | W148: =(((W43+W44)*W46)+(W49*W51)+(W54*W56)+(W59*W61))/(W43+W44+W49+W54+W59) -> 36
B149: Staff Carbon Commuting
C150: % of Staff Carbon Commuting | D150: % | E150: =E67+E68+E73+E78+E83 -> 0 | F150: 0 | G150: 0 | H150: 0 | I150: 0 | J150: 0 | K150: 0 | L150: 0 | M150: 0 | N150: 0.853 | O150: =O67+O68+O73+O78+O83 -> 0.853 | P150: 0.853 | Q150: 0.853 | R150: 0.854 | S150: 0.61 | T150: 0.61 | U150: =U67+U68+U73+U78+U83 -> 0.61 | V150: =V67+V68+V73+V78+V83 -> 0.6961 | W150: =W67+W68+W73+W78+W83 -> 0.759
C151: Commuting Staff Average Trip Distance | D151: Miles | E151: =(((E67+E68)*E71)+(E73*E76)+(E78*E81)+(E83*E86))/(E67+E68+E73+E78+E83) ->  | N151: 3 | O151: =(((O67+O68)*O71)+(O73*O76)+(O78*O81)+(O83*O86))/(O67+O68+O73+O78+O83) -> 3 | P151: 3 | Q151: 3 | R151: 3 | S151: 6.686927707 | T151: 6.686927707 | U151: =(((U67+U68)*U71)+(U73*U76)+(U78*U81)+(U83*U86))/(U67+U68+U73+U78+U83) -> 7.016393443 | V151: =(((V67+V68)*V71)+(V73*V76)+(V78*V81)+(V83*V86))/(V67+V68+V73+V78+V83) -> 5.75 | W151: =(((W67+W68)*W71)+(W73*W76)+(W78*W81)+(W83*W86))/(W67+W68+W73+W78+W83) -> 7.420289855
C152: Staff Weighted Average Weeks/Year | D152: Weeks | E152: =(((E67+E68)*E70)+(E73*E75)+(E78*E80)+(E83*E85))/(E67+E68+E73+E78+E83) ->  | N152: 46 | O152: =(((O67+O68)*O70)+(O73*O75)+(O78*O80)+(O83*O85))/(O67+O68+O73+O78+O83) -> 46 | P152: 46 | Q152: 46 | R152: 46 | S152: 46 | T152: 46 | U152: =(((U67+U68)*U70)+(U73*U75)+(U78*U80)+(U83*U85))/(U67+U68+U73+U78+U83) -> 46 | V152: =(((V67+V68)*V70)+(V73*V75)+(V78*V80)+(V83*V85))/(V67+V68+V73+V78+V83) -> 46 | W152: =(((W67+W68)*W70)+(W73*W75)+(W78*W80)+(W83*W85))/(W67+W68+W73+W78+W83) -> 46
B153: Faculty/Staff Carbon Commuting
C154: Faculty/Staff Weighted Average Trip Distance | D154: Miles | E154: =(E137/(E137+E138)*E147)+(E138/(E138+E137)*E151) ->  | N154: 3 | O154: =((O146*'Institutional Data'!S26*O147)+(O150*'Institutional Data'!S31*O151))/((O146*'Institutional Data'!S26)+(O150*'Institutional Data'!S31)) -> 3 | P154: =((P146*'Institutional Data'!T26*P147)+(P150*'Institutional Data'!T31*P151))/((P146*'Institutional Data'!T26)+(P150*'Institutional Data'!T31)) -> 3 | Q154: =((Q146*'Institutional Data'!U26*Q147)+(Q150*'Institutional Data'!U31*Q151))/((Q146*'Institutional Data'!U26)+(Q150*'Institutional Data'!U31)) -> 3 | R154: =((R146*'Institutional Data'!V26*R147)+(R150*'Institutional Data'!V31*R151))/((R146*'Institutional Data'!V26)+(R150*'Institutional Data'!V31)) -> 3 | S154: =((S146*'Institutional Data'!W26*S147)+(S150*'Institutional Data'!W31*S151))/((S146*'Institutional Data'!W26)+(S150*'Institutional Data'!W31)) -> 6.686927707 | T154: =((T146*'Institutional Data'!X26*T147)+(T150*'Institutional Data'!X31*T151))/((T146*'Institutional Data'!X26)+(T150*'Institutional Data'!X31)) -> 6.686927707 | U154: =((U146*'Institutional Data'!Y26*U147)+(U150*'Institutional Data'!Y31*U151))/((U146*'Institutional Data'!Y26)+(U150*'Institutional Data'!Y31)) -> 7.016393443 | V154: =((V146*'Institutional Data'!Z26*V147)+(V150*'Institutional Data'!Z31*V151))/((V146*'Institutional Data'!Z26)+(V150*'Institutional Data'!Z31)) -> 5.518937409 | W154: =((W146*'Institutional Data'!AA26*W147)+(W150*'Institutional Data'!AA31*W151))/((W146*'Institutional Data'!AA26)+(W150*'Institutional Data'!AA31)) -> 7.199073086
C155: Faculty/Staff Passenger Miles | D155: Miles | E155: =E91+E94+E96+E98 -> 0 | F155: 0 | G155: 0 | H155: 0 | I155: 0 | J155: 0 | K155: 0 | L155: 0 | M155: 0 | N155: 4805341.38 | O155: 4866084.158 | P155: 4942497.102 | Q155: 4977939 | R155: 5036482.08 | S155: 6952373.327 | T155: =T91+T94+T96+T98 -> 7019187.771 | U155: =U91+U94+U96+U98 -> 7630212.8 | V155: =V91+V94+V96+V98 -> 6548613.536 | W155: =W91+W94+W96+W98 -> 10600402.4
B156: Total Carbon Commuting
C157: Total % Carbon Commuting | D157: % | E157: =(((E8+E9+E14+E19+E24)*'Institutional Data'!I21)+((E43+E44+E49+E54+E59)*'Institutional Data'!I26)+((E67+E68+E73+E78+E83)*'Institutional Data'!I31))/('Institutional Data'!I21+'Institutional Data'!I26+'Institutional Data'!I31) ->  | F157: =(((F8+F9+F14+F19+F24)*'Institutional Data'!J21)+((F43+F44+F49+F54+F59)*'Institutional Data'!J26)+((F67+F68+F73+F78+F83)*'Institutional Data'!J31))/('Institutional Data'!J21+'Institutional Data'!J26+'Institutional Data'!J31) ->  | G157: =(((G8+G9+G14+G19+G24)*'Institutional Data'!K21)+((G43+G44+G49+G54+G59)*'Institutional Data'!K26)+((G67+G68+G73+G78+G83)*'Institutional Data'!K31))/('Institutional Data'!K21+'Institutional Data'!K26+'Institutional Data'!K31) ->  | H157: =(((H8+H9+H14+H19+H24)*'Institutional Data'!L21)+((H43+H44+H49+H54+H59)*'Institutional Data'!L26)+((H67+H68+H73+H78+H83)*'Institutional Data'!L31))/('Institutional Data'!L21+'Institutional Data'!L26+'Institutional Data'!L31) ->  | I157: =(((I8+I9+I14+I19+I24)*'Institutional Data'!M21)+((I43+I44+I49+I54+I59)*'Institutional Data'!M26)+((I67+I68+I73+I78+I83)*'Institutional Data'!M31))/('Institutional Data'!M21+'Institutional Data'!M26+'Institutional Data'!M31) ->  | J157: =(((J8+J9+J14+J19+J24)*'Institutional Data'!N21)+((J43+J44+J49+J54+J59)*'Institutional Data'!N26)+((J67+J68+J73+J78+J83)*'Institutional Data'!N31))/('Institutional Data'!N21+'Institutional Data'!N26+'Institutional Data'!N31) ->  | K157: =(((K8+K9+K14+K19+K24)*'Institutional Data'!O21)+((K43+K44+K49+K54+K59)*'Institutional Data'!O26)+((K67+K68+K73+K78+K83)*'Institutional Data'!O31))/('Institutional Data'!O21+'Institutional Data'!O26+'Institutional Data'!O31) ->  | L157: =(((L8+L9+L14+L19+L24)*'Institutional Data'!P21)+((L43+L44+L49+L54+L59)*'Institutional Data'!P26)+((L67+L68+L73+L78+L83)*'Institutional Data'!P31))/('Institutional Data'!P21+'Institutional Data'!P26+'Institutional Data'!P31) ->  | M157: =(((M8+M9+M14+M19+M24)*'Institutional Data'!Q21)+((M43+M44+M49+M54+M59)*'Institutional Data'!Q26)+((M67+M68+M73+M78+M83)*'Institutional Data'!Q31))/('Institutional Data'!Q21+'Institutional Data'!Q26+'Institutional Data'!Q31) ->  | N157: =(((N8+N9+N14+N19+N24)*'Institutional Data'!R21)+((N43+N44+N49+N54+N59)*'Institutional Data'!R26)+((N67+N68+N73+N78+N83)*'Institutional Data'!R31))/('Institutional Data'!R21+'Institutional Data'!R26+'Institutional Data'!R31) -> 0.6875259103 | O157: =(((O8+O9+O14+O19+O24)*'Institutional Data'!S21)+((O43+O44+O49+O54+O59)*'Institutional Data'!S26)+((O67+O68+O73+O78+O83)*'Institutional Data'!S31))/('Institutional Data'!S21+'Institutional Data'!S26+'Institutional Data'!S31) -> 0.6871878805 | P157: =(((P8+P9+P14+P19+P24)*'Institutional Data'!T21)+((P43+P44+P49+P54+P59)*'Institutional Data'!T26)+((P67+P68+P73+P78+P83)*'Institutional Data'!T31))/('Institutional Data'!T21+'Institutional Data'!T26+'Institutional Data'!T31) -> 0.6388974876 | Q157: =(((Q8+Q9+Q14+Q19+Q24)*'Institutional Data'!U21)+((Q43+Q44+Q49+Q54+Q59)*'Institutional Data'!U26)+((Q67+Q68+Q73+Q78+Q83)*'Institutional Data'!U31))/('Institutional Data'!U21+'Institutional Data'!U26+'Institutional Data'!U31) -> 0.6392940002 | R157: =(((R8+R9+R14+R19+R24)*'Institutional Data'!V21)+((R43+R44+R49+R54+R59)*'Institutional Data'!V26)+((R67+R68+R73+R78+R83)*'Institutional Data'!V31))/('Institutional Data'!V21+'Institutional Data'!V26+'Institutional Data'!V31) -> 0.6406911423 | S157: =(((S8+S9+S14+S19+S24)*'Institutional Data'!W21)+((S43+S44+S49+S54+S59)*'Institutional Data'!W26)+((S67+S68+S73+S78+S83)*'Institutional Data'!W31))/('Institutional Data'!W21+'Institutional Data'!W26+'Institutional Data'!W31) -> 0.4675592235 | T157: =(((T8+T9+T14+T19+T24)*'Institutional Data'!X21)+((T43+T44+T49+T54+T59)*'Institutional Data'!X26)+((T67+T68+T73+T78+T83)*'Institutional Data'!X31))/('Institutional Data'!X21+'Institutional Data'!X26+'Institutional Data'!X31) -> 0.4668188261 | U157: =(((U8+U9+U14+U19+U24)*'Institutional Data'!Y21)+((U43+U44+U49+U54+U59)*'Institutional Data'!Y26)+((U67+U68+U73+U78+U83)*'Institutional Data'!Y31))/('Institutional Data'!Y21+'Institutional Data'!Y26+'Institutional Data'!Y31) -> 0.4658097043 | V157: =(((V8+V9+V14+V19+V24)*'Institutional Data'!Z21)+((V43+V44+V49+V54+V59)*'Institutional Data'!Z26)+((V67+V68+V73+V78+V83)*'Institutional Data'!Z31))/('Institutional Data'!Z21+'Institutional Data'!Z26+'Institutional Data'!Z31) -> 0.3479724842 | W157: =(((W8+W9+W14+W19+W24)*'Institutional Data'!AA21)+((W43+W44+W49+W54+W59)*'Institutional Data'!AA26)+((W67+W68+W73+W78+W83)*'Institutional Data'!AA31))/('Institutional Data'!AA21+'Institutional Data'!AA26+'Institutional Data'!AA31) -> 0.3893212589
C158: Total Weighted Average Trip Distance | D158: Miles | E158: =((E154*(E137+E138))+(E142*E136))/(E139) ->  | N158: 3 | O158: =((O154*(O137+O138))+(O142*O136))/(O139) -> 3 | P158: 3 | Q158: 3 | R158: 3 | S158: 5.285034498 | T158: 5.355906687 | U158: =((U154*(U137+U138))+(U142*U136))/(U139) -> 5.352999278 | V158: =((V154*(V137+V138))+(V142*V136))/(V139) -> 3.191189756 | W158: =((W154*(W137+W138))+(W142*W136))/(W139) -> 4.390622513
C159: Total Passenger Miles | D159: Miles | E159: =E144+E155 -> 0 | F159: 0 | G159: 0 | H159: 0 | I159: 0 | J159: 0 | K159: 0 | L159: 0 | M159: 0 | N159: 18354502.98 | O159: =O29+O32+O34+O36+O91+O94+O96+O98 -> 18730233.16 | P159: 17493552.94 | Q159: 17472538.92 | R159: 17321060.88 | S159: 13785514.09 | T159: 14031732.06 | U159: =U29+U32+U34+U36+U91+U94+U96+U98 -> 18307746.53 | V159: =V29+V32+V34+V36+V91+V94+V96+V98 -> 10951081.31 | W159: =W29+W32+W34+W36+W91+W94+W96+W98 -> 16114276.02
M161: Notes: FY11: Used data from 2009 UO Commuting Survey which has been used for the past two years. The 2012 UO Commuting Survey data should be available for the FY12 inventory. FY10: Commuting survey taken in FY09. FY09: Commuting information calculated based on the Alternative Transportation Choices 2005 survey. Updated annually to account for different number of users. FY09 data cacluation found in the commuting document in the FY09 base data

Sheet Other Scope 3 Sources
A1: ='Institutional Data'!$D$8 -> University of Oregon
A2: ='Scope 3 Commuting'!A2 -> Go-Green Measurement, Benchmarking and Analysis Summary
B4: Other Scope 3 Sources
B7: Outsourced Travel | E7: FY1995 | F7: FY1996 | G7: FY1997 | H7: FY1998 | I7: FY1999 | J7: FY2000 | K7: FY2001 | L7: FY2002 | M7: FY2003 | N7: FY2004 | O7: FY2005 | P7: FY2006 | Q7: FY2007 | R7: FY2008 | S7: FY2009 | T7: FY2010 | U7: FY2011 | V7: FY2012 | W7: FY2014
B8: Directly Financed Air Travel
C9: Faculty / Staff | D9: Miles | N9: 20993018.4 | O9: 22071869.23 | P9: 20517569.23 | Q9: 24825023.08 | R9: 27734019.52 | S9: 36547554.72 | T9: 33402583.38 | U9: 33059087 | V9: 36329770 | W9: 38380000
C10: Students | D10: Miles | N10: 0 | O10: 0 | P10: 0 | Q10: 0 | R10: 0 | S10: 0 | T10: 0 | U10: 0 | V10: 0 | W10: 0
C11: Total | D11: Miles | E11: =SUM(E9:E10) -> 0 | F11: 0 | G11: 0 | H11: 0 | I11: 0 | J11: 0 | K11: 0 | L11: 0 | M11: 0 | N11: 20993018.4 | O11: 22071869.23 | P11: 20517569.23 | Q11: 24825023.08 | R11: 27734019.52 | S11: 36547554.72 | T11: =SUM(T9:T10) -> 33402583.38 | U11: =SUM(U9:U10) -> 33059087 | V11: =SUM(V9:V10) -> 36329770 | W11: =SUM(W9:W10) -> 38380000
B12: Other
C13: Train | D13: Miles | N13: 0 | O13: 0 | P13: 0 | Q13: 0 | R13: 0 | S13: 0 | T13: 0 | U13: 0 | V13: 0 | W13: 0
C14: Taxi / Ferry / Rental Car | D14: Miles | N14: 2145910 | O14: 2145910 | P14: 2145910 | Q14: 2145910 | R14: 2145910 | S14: 2145910 | T14: 0 | U14: 0 | V14: 0 | W14: 0
C15: Bus | D15: Miles | N15: 0 | O15: 0 | P15: 0 | Q15: 0 | R15: 0 | S15: 0 | T15: 0 | U15: 0 | V15: 0 | W15: 0
C16: Alternative Fuel Bus | D16: Miles | N16: 0 | O16: 0 | P16: 0 | Q16: 0 | R16: 0 | S16: 0 | T16: 0 | U16: 0 | V16: 0 | W16: 0
C17: Personal Mileage Reimbursement | D17: Miles | N17: 1258203 | O17: 1258203 | P17: 1258203 | Q17: 1258203 | R17: 1258203 | S17: 1258203 | T17: 3068762.294 | U17: 2958558.074 | V17: ='[2]Other Directly Financed Travel'!$D$8 -> 2845461.386 | W17: =1233536+798531+279252 -> 2311319
C18: Total | D18: Miles | E18: =SUM(E13:E17) -> 0 | F18: 0 | G18: 0 | H18: 0 | I18: 0 | J18: 0 | K18: 0 | L18: 0 | M18: 0 | N18: 3404113 | O18: 3404113 | P18: 3404113 | Q18: 3404113 | R18: 3404113 | S18: 3404113 | T18: =SUM(T13:T17) -> 3068762.294 | U18: =SUM(U13:U17) -> 2958558.074 | V18: =SUM(V13:V17) -> 2845461.386 | W18: =SUM(W13:W17) -> 2311319
B19: Study Abroad Travel
C20: Air | D20: Miles | N20: 5905236 | O20: 8118720 | P20: 7717500 | Q20: 7240500 | R20: 7783300 | S20: 8130540 | T20: 7839520 | U20: 8244540 | V20: 9057562 | W20: 13170000
C21: Students Studying Abroad | D21: Count | N21: 604 | O21: 772 | P21: 746 | Q21: 690 | R21: 754 | S21: 776 | T21: 763 | U21: 811 | V21: 869 | W21: 1145
C22: Total | D22: Miles | E22: =E20 -> 0 | F22: 0 | G22: 0 | H22: 0 | I22: 0 | J22: 0 | K22: 0 | L22: 0 | M22: 0 | N22: 5905236 | O22: 8118720 | P22: 7717500 | Q22: 7240500 | R22: 7783300 | S22: 8130540 | T22: =T20 -> 7839520 | U22: =U20 -> 8244540 | V22: =V20 -> 9057562 | W22: =W20 -> 13170000
B25: Solid Waste | E25: FY1995 | F25: FY1996 | G25: FY1997 | H25: FY1998 | I25: FY1999 | J25: FY2000 | K25: FY2001 | L25: FY2002 | M25: FY2003 | N25: FY2004 | O25: FY2005 | P25: FY2006 | Q25: FY2007 | R25: FY2008 | S25: FY2009 | T25: FY2010 | U25: FY2011 | V25: FY2012 | W25: FY2014
B26: Waste Disposed
C27: Mass Burn Incinerator | D27: Short Tons | N27: 0 | O27: 0 | P27: 0 | Q27: 0 | R27: 0 | S27: 0 | T27: 0 | U27: 0 | V27: 0 | W27: 0
C28: Refuse Derived Fuel (RDF) Incinerator | D28: Short Tons | N28: 0 | O28: 0 | P28: 0 | Q28: 0 | R28: 0 | S28: 0 | T28: 0 | U28: 0 | V28: 0 | W28: 0
C29: Landfilled - no CH4 Recovery | D29: Short Tons | N29: 0 | O29: 0 | P29: 0 | Q29: 0 | R29: 0 | S29: 0 | T29: 0 | U29: 0 | V29: 0 | W29: 0
C30: Landfilled - CH4 Recovery and Flaring | D30: Short Tons | W30: 0
C31: Landfilled - CH4 Recovery and Electric Generation | D31: Short Tons | N31: 1752.99 | O31: 1727.17 | P31: 1744.8 | Q31: 1713.09 | R31: 1655.63 | S31: 1620.03 | T31: 1570 | U31: 1542.29 | V31: 1496 | W31: 1378.91
C32: Total | D32: Short Tons | E32: =SUM(E27:E31) -> 0 | F32: 0 | G32: 0 | H32: 0 | I32: 0 | J32: 0 | K32: 0 | L32: 0 | M32: 0 | N32: =SUM(N27:N31) -> 1752.99 | O32: 1727.17 | P32: 1744.8 | Q32: 1713.09 | R32: 1655.63 | S32: 1620.03 | T32: 1570 | U32: 1542.29 | V32: 1496 | W32: =SUM(W27:W31) -> 1378.91
B35: Wastewater | E35: FY1995 | F35: FY1996 | G35: FY1997 | H35: FY1998 | I35: FY1999 | J35: FY2000 | K35: FY2001 | L35: FY2002 | M35: FY2003 | N35: FY2004 | O35: FY2005 | P35: FY2006 | Q35: FY2007 | R35: FY2008 | S35: FY2009 | T35: FY2010 | U35: FY2011 | V35: FY2012 | W35: FY2014
B36: Septic and Central Treatment Systems
C37: Septic System | D37: Gallons | N37: 0 | O37: 0 | P37: 0 | Q37: 0 | R37: 0 | S37: 0 | T37: 0 | U37: 0 | V37: 0 | W37: 0
C38: Aerobic | D38: Gallons | N38: 0 | O38: 0 | P38: 0 | Q38: 0 | R38: 0 | S38: 0 | T38: 0 | U38: 0 | V38: 0 | W38: 0
C39: Anaerobic | D39: Gallons | N39: 178771025 | O39: 178771025 | P39: 178771025 | Q39: 178771025 | R39: 178771025 | S39: 178771025 | T39: 203503000 | U39: 141489795 | V39: 141182000 | W39: 146660000
C40: Anaerobic Digestion | D40: Gallons | N40: 0 | O40: 0 | P40: 0 | Q40: 0 | R40: 0 | S40: 0 | T40: 0 | U40: 0 | V40: 0 | W40: 0
C41: Total | D41: Gallons | E41: =SUM(E37:E40) -> 0 | F41: 0 | G41: 0 | H41: 0 | I41: 0 | J41: 0 | K41: 0 | L41: 0 | M41: 0 | N41: 178771025 | O41: 178771025 | P41: 178771025 | Q41: 178771025 | R41: 178771025 | S41: 178771025 | T41: =SUM(T37:T40) -> 203503000 | U41: =SUM(U37:U40) -> 141489795 | V41: =SUM(V37:V40) -> 141182000 | W41: =SUM(W37:W40) -> 146660000
B44: Paper | E44: FY1995 | F44: FY1996 | G44: FY1997 | H44: FY1998 | I44: FY1999 | J44: FY2000 | K44: FY2001 | L44: FY2002 | M44: FY2003 | N44: FY2004 | O44: FY2005 | P44: FY2006 | Q44: FY2007 | R44: FY2008 | S44: FY2009 | T44: FY2010 | U44: FY2011 | V44: FY2012 | W44: FY2014
B45: Paper Consumed
C46: Uncoated Freesheet 0% Recycled | D46: Pounds | N46: 26701.63934 | O46: 26701.63934 | P46: 26701.63934 | Q46: 26701.63934 | R46: 26701.63934 | S46: 26701.63934 | T46: 30144.82759 | U46: 58333.33333 | V46: 45000 | W46: 107143
C47: Uncoated Freesheet 30% Recycled | D47: Pounds | N47: 133508.1967 | O47: 133508.1967 | P47: 133508.1967 | Q47: 133508.1967 | R47: 133508.1967 | S47: 133508.1967 | T47: 185893.1034 | U47: 306666.6667 | V47: 323333 | W47: 492857
C48: Uncoated Freesheet 50% Recycled | D48: Pounds | N48: 13350.81967 | O48: 13350.81967 | P48: 13350.81967 | Q48: 13350.81967 | R48: 13350.81967 | S48: 13350.81967 | T48: 15072.41379 | U48: 23333.33333 | V48: 23333.33333 | W48: 28571
C49: Uncoated Freesheet 75% Recycled | D49: Pounds | N49: 0 | O49: 0 | P49: 0 | Q49: 0 | R49: 0 | S49: 0 | T49: 0 | U49: 0 | V49: 0 | W49: 0
C50: Unocated Freesheet 100% Recycled | D50: Pounds | N50: 30039.34426 | O50: 30039.34426 | P50: 30039.34426 | Q50: 30039.34426 | R50: 30039.34426 | S50: 30039.34426 | T50: 60289.65517 | U50: 93333.33333 | V50: 150000 | W50: 114286
C51: Total | D51: Pounds | E51: =SUM(E46:E50) -> 0 | F51: =SUM(F46:F50) -> 0 | G51: 0 | H51: 0 | I51: 0 | J51: 0 | K51: 0 | L51: 0 | M51: 0 | N51: 203600 | O51: 203600 | P51: 203600 | Q51: 203600 | R51: 203600 | S51: =SUM(S46:S50) -> 203600 | T51: =SUM(T46:T50) -> 291400 | U51: =SUM(U46:U50) -> 481666.6667 | V51: =SUM(V46:V50) -> 541666.3333 | W51: =SUM(W46:W50) -> 742857
B54: Other Scope 3 Sources | E54: FY1995 | F54: FY1996 | G54: FY1997 | H54: FY1998 | I54: FY1999 | J54: FY2000 | K54: FY2001 | L54: FY2002 | M54: FY2003 | N54: FY2004 | O54: FY2005 | P54: FY2006 | Q54: FY2007 | R54: FY2008 | S54: FY2009 | T54: FY2010 | U54: FY2011 | V54: FY2012 | W54: FY2014
B55: Type (Please List)
D56: MTCDE
D57: MTCDE
D58: MTCDE
D59: MTCDE
D60: MTCDE
B64: GHG Emissions | E64: FY1995 | F64: FY1996 | G64: FY1997 | H64: FY1998 | I64: FY1999 | J64: FY2000 | K64: FY2001 | L64: FY2002 | M64: FY2003 | N64: FY2004 | O64: FY2005 | P64: FY2006 | Q64: FY2007 | R64: FY2008 | S64: FY2009 | T64: FY2010 | U64: FY2011 | V64: FY2012 | W64: FY2014
C65: Directly Financed Air Travel GHG | D65: MTCDE | N65: 14520.3 | O65: 14478.6 | P65: 13082.7 | Q65: 15317.6 | R65: 16527 | S65: 20580.6 | T65: 18243 | U65: 18055.4 | V65: 19841 | W65: 26201
C66: Other Directly Financed Travel GHG | D66: MTCDE | N66: 1327.6 | O66: 1343.4 | P66: 1321.5 | Q66: 1290.2 | R66: 1276.7 | S66: 1281 | T66: 1155 | U66: 1113.6 | V66: 1071 | W66: 870.1
C67: Study Abroad Air Travel GHG | D67: MTCDE | N67: 4084.5 | O67: 5325.7 | P67: 4920.9 | Q67: 4467.5 | R67: 4638.1 | S67: 4578.5 | T67: 4281.6 | U67: 4502.8 | V67: 4946.8 | W67: 6693.9
C68: Total Outsourced Travel | D68: MTCDE | E68: =SUM(E65:E67) -> 0 | F68: 0 | G68: 0 | H68: 0 | I68: 0 | J68: 0 | K68: 0 | L68: 0 | M68: 0 | N68: 19932.4 | O68: 21147.7 | P68: 19325.1 | Q68: 21075.3 | R68: 22441.8 | S68: 26440.1 | T68: =SUM(T65:T67) -> 23679.6 | U68: =SUM(U65:U67) -> 23671.8 | V68: =SUM(V65:V67) -> 25858.8 | W68: =SUM(W65:W67) -> 33765
C69: Solid Waste GHG | D69: MTCDE | N69: 333.0681 | O69: 328.1623 | P69: 331.512 | Q69: 325.4871 | R69: 314.5697 | S69: 307.8057 | T69: 298.3 | U69: 293.0351 | V69: 284.24 | W69: 427.5
C70: Wastewater GHG | D70: MTCDE | N70: 1588.512848 | O70: 1588.512848 | P70: 1588.512848 | Q70: 1588.512848 | R70: 1588.512848 | S70: 1588.512848 | T70: 1346.481773 | U70: 1271.57423 | V70: 1254.5 | W70: 1319
C71: Purchased Paper GHG | D71: MTCDE | N71: 236.3 | O71: 236.3 | P71: 236.3 | Q71: 236.3 | R71: 236.3 | S71: 236.3 | T71: 329.9 | U71: 549.7 | V71: 595 | W71: 403.5
C72: Scope 2 T&D Losses | D72: MTCDE | N72: 1793.3 | O72: 1858.5 | P72: 2108.2 | Q72: 2680.1 | R72: 2725.1 | S72: 2599.6 | T72: 2696.3 | U72: 2807.7 | V72: 2875.9 | W72: 1569.7
C73: Total Other Scope 3 | D73: MTCDE | E73: =E56+E57+E58+E59+E60 -> 0 | F73: =F56+F57+F58+F59+F60 -> 0 | G73: 0 | H73: 0 | I73: 0 | J73: 0 | K73: 0 | L73: 0 | M73: 0 | N73: 0 | O73: 0 | P73: 0 | Q73: 0 | R73: 0 | S73: 0 | T73: =T56+T57+T58+T59+T60 -> 0 | U73: =U56+U57+U58+U59+U60 -> 0 | V73: =V56+V57+V58+V59+V60 -> 0 | W73: =W56+W57+W58+W59+W60 -> 0
U74: =SUM(U69:U72)+U67 -> 9424.80933 | V74: =SUM(V69:V72)+V67 -> 9956.44
M76: Notes: Paper and wastewater were collect for FY09, and pulled back to FY04. OUS centrally accounts for travel through a US Bank Travel Card Program. The assumption is made that air travel purchased through travel agencies as well as online dealers is purchased on the travel cards so the University can obtain a reimbursement at the end of the year. Data regarding the travel card program was obtained for FY2005 through FY2009. FY2009 Air travel was collected from Azumano, Journeys, Premier, and River City. An estimate for FY2004 airline travel was adjusted to account for the travel trends of FY05 through FY07. The adjustment is based on the average difference from year to year for three years. FY09 used 60% as a % purchased from Office Max; FY10 used 40%.. FY10 including charter planes. FY11 used 60% as a % purchased from Office Max
U81: Data Source - FY2009 Air Travel Data 6/14/2010
U82: Using a $.125 conversion rate

Sheet Water and Waste
A1: ='Institutional Data'!$D$8 -> University of Oregon
A2: ='Green Construction'!A2 -> Go-Green Measurement, Benchmarking and Analysis Summary
A4: Waste and Water
B6: Waste and Recycling | E6: FY1995 | F6: FY1996 | G6: FY1997 | H6: FY1998 | I6: FY1999 | J6: FY2000 | K6: FY2001 | L6: FY2002 | M6: FY2003 | N6: FY2004 | O6: FY2005 | P6: FY2006 | Q6: FY2007 | R6: FY2008 | S6: FY2009 | T6: FY2010 | U6: FY2011 | V6: FY2012 | W6: FY2014
B7: Waste
C8: Total Waste (exc. Recycling) | D8: Tons | E8: ='Other Scope 3 Sources'!E32 -> 0 | F8: ='Other Scope 3 Sources'!F32 -> 0 | G8: ='Other Scope 3 Sources'!G32 -> 0 | H8: ='Other Scope 3 Sources'!H32 -> 0 | I8: ='Other Scope 3 Sources'!I32 -> 0 | J8: ='Other Scope 3 Sources'!J32 -> 0 | K8: ='Other Scope 3 Sources'!K32 -> 0 | L8: ='Other Scope 3 Sources'!L32 -> 0 | M8: ='Other Scope 3 Sources'!M32 -> 0 | N8: 1504.261 | O8: 1447.989 | P8: 1337.218 | Q8: 1403.75 | R8: 1374.389 | S8: 1345.028 | T8: 1375.76 | U8: 1542.29 | V8: 1496.84 | W8: 1378.91
C9: Less Construction Waste | D9: Tons | N9: 0 | O9: 0 | P9: 0 | Q9: 0 | R9: 0 | S9: 0 | T9: 0 | U9: 0 | V9: 0 | W9: 0
C10: Total Personal Waste | D10: Tons | E10: =E8-E9 -> 0 | F10: 0 | G10: 0 | H10: 0 | I10: 0 | J10: 0 | K10: 0 | L10: 0 | M10: 0 | N10: 1504.261 | O10: 1447.989 | P10: 1337.218 | Q10: 1403.75 | R10: 1374.389 | S10: 1345.028 | T10: =T8-T9 -> 1375.76 | U10: =U8-U9 -> 1542.29 | V10: =V8-V9 -> 1496.84 | W10: =W8-W9 -> 1378.91
B11: Recycling
C12: Total Recycling | D12: Tons | N12: 1577.13 | O12: 1510.73 | P12: 1422.17 | Q12: 1494.4 | R12: 1535.22 | S12: 1450.98 | T12: 1489.42 | U12: 1603.34 | V12: 1429.66 | W12: 1734.74
C13: Total Recycling | D13: Tons | E13: =SUM(E12:E12) -> 0 | F13: 0 | G13: 0 | H13: 0 | I13: 0 | J13: 0 | K13: 0 | L13: 0 | M13: 0 | N13: 1577.13 | O13: 1510.73 | P13: 1422.17 | Q13: 1494.4 | R13: 1535.22 | S13: 1450.98 | T13: =SUM(T12:T12) -> 1489.42 | U13: =SUM(U12:U12) -> 1603.34 | V13: =SUM(V12:V12) -> 1429.66 | W13: =SUM(W12:W12) -> 1734.74
B14: Waste Calculations
C15: % of Waste Recycled | D15: % | E15: =E13/(E13+E10) ->  | N15: =N13/(N13+N10) -> 0.5118240431 | O15: 0.5106027304 | P15: 0.5153932684 | Q15: 0.5156392871 | R15: 0.527637906 | S15: 0.518947013 | T15: =T13/(T13+T10) -> 0.519834705 | U15: =U13/(U13+U10) -> 0.5097039385 | V15: =V13/(V13+V10) -> 0.4885221254 | W15: =W13/(W13+W10) -> 0.5571403337
C16: Waste per Student | D16: Tons | E16: =E10/'Institutional Data'!I21 ->  | F16: =F10/'Institutional Data'!J21 ->  | G16: =G10/'Institutional Data'!K21 ->  | H16: =H10/'Institutional Data'!L21 ->  | I16: =I10/'Institutional Data'!M21 ->  | J16: =J10/'Institutional Data'!N21 ->  | K16: =K10/'Institutional Data'!O21 ->  | L16: =L10/'Institutional Data'!P21 ->  | M16: =M10/'Institutional Data'!Q21 ->  | N16: =N10/'Institutional Data'!R21 -> 0.07793775388 | O16: =O10/'Institutional Data'!S21 -> 0.07331775488 | P16: =P10/'Institutional Data'!T21 -> 0.06788873545 | Q16: =Q10/'Institutional Data'!U21 -> 0.07158848668 | R16: =R10/'Institutional Data'!V21 -> 0.0712894341 | S16: =S10/'Institutional Data'!W21 -> 0.06478316155 | T16: =T10/'Institutional Data'!X21 -> 0.06343123242 | U16: =U10/'Institutional Data'!Y21 -> 0.06501791661 | V16: =V10/'Institutional Data'!Z21 -> 0.06097604693 | W16: =W10/'Institutional Data'!AA21 -> 0.05800807707
C17: Recycling per Student | D17: Tons | E17: =E13/'Institutional Data'!I21 ->  | F17: =F13/'Institutional Data'!J21 ->  | G17: =G13/'Institutional Data'!K21 ->  | H17: =H13/'Institutional Data'!L21 ->  | I17: =I13/'Institutional Data'!M21 ->  | J17: =J13/'Institutional Data'!N21 ->  | K17: =K13/'Institutional Data'!O21 ->  | L17: =L13/'Institutional Data'!P21 ->  | M17: =M13/'Institutional Data'!Q21 ->  | N17: =N13/'Institutional Data'!R21 -> 0.08171319324 | O17: =O13/'Institutional Data'!S21 -> 0.0764945948 | P17: =P13/'Institutional Data'!T21 -> 0.07220163272 | Q17: =Q13/'Institutional Data'!U21 -> 0.07621145824 | R17: =R13/'Institutional Data'!V21 -> 0.07963172364 | S17: =S13/'Institutional Data'!W21 -> 0.0698863308 | T17: =T13/'Institutional Data'!X21 -> 0.06867167689 | U17: =U13/'Institutional Data'!Y21 -> 0.06759158551 | V17: =V13/'Institutional Data'!Z21 -> 0.05823936777 | W17: =W13/'Institutional Data'!AA21 -> 0.07297715704
C18: Waste per Community Member | D18: Tons | E18: =E10/'Institutional Data'!I33 ->  | F18: =F10/'Institutional Data'!J33 ->  | G18: =G10/'Institutional Data'!K33 ->  | H18: =H10/'Institutional Data'!L33 ->  | I18: =I10/'Institutional Data'!M33 ->  | J18: =J10/'Institutional Data'!N33 ->  | K18: =K10/'Institutional Data'!O33 ->  | L18: =L10/'Institutional Data'!P33 ->  | M18: =M10/'Institutional Data'!Q33 ->  | N18: =N10/'Institutional Data'!R33 -> 0.06353043779 | O18: =O10/'Institutional Data'!S33 -> 0.05988656323 | P18: =P10/'Institutional Data'!T33 -> 0.05526672558 | Q18: =Q10/'Institutional Data'!U33 -> 0.05817068106 | R18: =R10/'Institutional Data'!V33 -> 0.05760101423 | S18: =S10/'Institutional Data'!W33 -> 0.05428096372 | T18: =T10/'Institutional Data'!X33 -> 0.05342446071 | U18: =U10/'Institutional Data'!Y33 -> 0.05514678013 | V18: =V10/'Institutional Data'!Z33 -> 0.05185298091 | W18: =W10/'Institutional Data'!AA33 -> 0.04816648037
C19: Recycling per Community Member | D19: Tons | E19: =E13/'Institutional Data'!I33 ->  | F19: =F13/'Institutional Data'!J33 ->  | G19: =G13/'Institutional Data'!K33 ->  | H19: =H13/'Institutional Data'!L33 ->  | I19: =I13/'Institutional Data'!M33 ->  | J19: =J13/'Institutional Data'!N33 ->  | K19: =K13/'Institutional Data'!O33 ->  | L19: =L13/'Institutional Data'!P33 ->  | M19: =M13/'Institutional Data'!Q33 ->  | N19: =N13/'Institutional Data'!R33 -> 0.06660796189 | O19: =O13/'Institutional Data'!S33 -> 0.06248143298 | P19: =P13/'Institutional Data'!T33 -> 0.05877776033 | Q19: =Q13/'Institutional Data'!U33 -> 0.06192717063 | R19: =R13/'Institutional Data'!V33 -> 0.06434148488 | S19: =S13/'Institutional Data'!W33 -> 0.05855684249 | T19: =T13/'Institutional Data'!X33 -> 0.05783818418 | U19: =U13/'Institutional Data'!Y33 -> 0.05732971002 | V19: =V13/'Institutional Data'!Z33 -> 0.04952575605 | W19: =W13/'Institutional Data'!AA33 -> 0.06059592008
B21: Water | E21: FY1995 | F21: FY1996 | G21: FY1997 | H21: FY1998 | I21: FY1999 | J21: FY2000 | K21: FY2001 | L21: FY2002 | M21: FY2003 | N21: FY2004 | O21: FY2005 | P21: FY2006 | Q21: FY2007 | R21: FY2008 | S21: FY2009 | T21: FY2010 | U21: FY2011 | V21: FY2012 | W21: FY2014
B22: Water
C23: Total Water | D23: Gallons | N23: 172190135 | O23: 177302018.2 | P23: 168282114 | Q23: 186890612.7 | R23: 194121016 | S23: 187213503 | T23: 209639696 | U23: 176767266 | V23: 175796000 | W23: 139912000
C24: Less Irrigation | D24: Gallons | N24: 0 | O24: 0 | P24: 0 | Q24: 0 | R24: 0 | S24: 0 | T24: 0 | U24: 0 | V24: 0 | W24: 0
C25: Less Utility System | D25: Gallons | N25: 0 | O25: 0 | P25: 0 | Q25: 0 | R25: 0 | S25: 0 | T25: 0 | U25: 0 | V25: 0 | W25: 0
C26: Total Personal Water | D26: Gallons | E26: =E23-E24-E25 -> 0 | F26: =F23-F24-F25 -> 0 | G26: 0 | H26: 0 | I26: 0 | J26: 0 | K26: 0 | L26: 0 | M26: 0 | N26: 172190135 | O26: 177302018.2 | P26: 168282114 | Q26: 186890612.7 | R26: 194121016 | S26: 187213503 | T26: =T23-T24-T25 -> 209639696 | U26: =U23-U24-U25 -> 176767266 | V26: =V23-V24-V25 -> 175796000 | W26: =W23-W24-W25 -> 139912000
B27: Water Calculations
C28: Water per Student | D28: Gallons | E28: =E26/'Institutional Data'!I21 ->  | F28: =F26/'Institutional Data'!J21 ->  | G28: =G26/'Institutional Data'!K21 ->  | H28: =H26/'Institutional Data'!L21 ->  | I28: =I26/'Institutional Data'!M21 ->  | J28: =J26/'Institutional Data'!N21 ->  | K28: =K26/'Institutional Data'!O21 ->  | L28: =L26/'Institutional Data'!P21 ->  | M28: =M26/'Institutional Data'!Q21 ->  | N28: =N26/'Institutional Data'!R21 -> 8921.398853 | O28: =O26/'Institutional Data'!S21 -> 8977.544656 | P28: =P26/'Institutional Data'!T21 -> 8543.453585 | Q28: =Q26/'Institutional Data'!U21 -> 9531.053349 | R28: =R26/'Institutional Data'!V21 -> 10069.03968 | S28: =S26/'Institutional Data'!W21 -> 9017.122772 | T28: =T26/'Institutional Data'!X21 -> 9665.715155 | U28: =U26/'Institutional Data'!Y21 -> 7451.931453 | V28: =V26/'Institutional Data'!Z21 -> 7161.316604 | W28: =W26/'Institutional Data'!AA21 -> 5885.827269
C29: Water per Community Member | D29: Gallons | E29: =E26/'Institutional Data'!I33 ->  | F29: =F26/'Institutional Data'!J33 ->  | G29: =G26/'Institutional Data'!K33 ->  | H29: =H26/'Institutional Data'!L33 ->  | I29: =I26/'Institutional Data'!M33 ->  | J29: =J26/'Institutional Data'!N33 ->  | K29: =K26/'Institutional Data'!O33 ->  | L29: =L26/'Institutional Data'!P33 ->  | M29: =M26/'Institutional Data'!Q33 ->  | N29: =N26/'Institutional Data'!R33 -> 7272.218491 | O29: =O26/'Institutional Data'!S33 -> 7332.93452 | P29: =P26/'Institutional Data'!T33 -> 6955.037557 | Q29: =Q26/'Institutional Data'!U33 -> 7744.651273 | R29: =R26/'Institutional Data'!V33 -> 8135.664215 | S29: =S26/'Institutional Data'!W33 -> 7555.32923 | T29: =T26/'Institutional Data'!X33 -> 8140.873192 | U29: =U26/'Institutional Data'!Y33 -> 6320.565881 | V29: =V26/'Institutional Data'!Z33 -> 6089.860394 | W29: =W26/'Institutional Data'!AA33 -> 4887.243258
M31: Notes: Water includes main campus and OIMB. Fy10 calculated numbers for Waters is in the OIMB Utilities Track for UO III in the scope 1&2 folder in electricity. FY11 Recycling from the WARM document

Sheet Offsets
A1: ='Institutional Data'!$D$8 -> University of Oregon
A2: ='Other Scope 3 Sources'!A2 -> Go-Green Measurement, Benchmarking and Analysis Summary
A4: Offsets
B6: Offsets with Additionality | E6: FY1995 | F6: FY1996 | G6: FY1997 | H6: FY1998 | I6: FY1999 | J6: FY2000 | K6: FY2001 | L6: FY2002 | M6: FY2003 | N6: FY2004 | O6: FY2005 | P6: FY2006 | Q6: FY2007 | R6: FY2008 | S6: FY2009 | T6: FY2010 | U6: FY2011 | V6: FY2012 | W6: FY2014
B7: Compost
C8: On-Campus Composting | D8: Short Tons | N8: 342 | O8: 359.44 | P8: 235.02 | Q8: 256.22 | R8: 239 | S8: 282 | T8: 359.91 | U8: 466.49 | V8: =219.5+181 -> 400.5 | W8: 828
B9: GHG Emissions
C10: On-Campus Composting GHG | D10: MTCDE | E10: =E8*-0.38474007 -> 0 | F10: =F8*-0.38474007 -> 0 | G10: 0 | H10: 0 | I10: 0 | J10: 0 | K10: 0 | L10: 0 | M10: 0 | N10: =N8*-0.384740065 -> -131.5811022 | O10: -138.290969 | P10: -90.42161008 | Q10: -98.57809945 | R10: -91.95287554 | S10: -108.4966983 | T10: =T8*-0.384740065 -> -138.4717968 | U10: =U8*-0.384740065 -> -179.4773929 | V10: =V8*-0.384740065 -> -154.088396 | W10: -30.7
C11: Forest Preservation | D11: MTCDE | N11: 0 | O11: 0 | P11: 0 | Q11: 0 | R11: 0 | S11: 0 | T11: -490 | U11: -490 | V11: -490 | W11: -91.5
C12: Retail Offsets (High End) | D12: MTCDE | N12: 0 | O12: 0 | P12: 0 | Q12: 0 | R12: 0 | S12: -540 | T12: -615 | U12: 0 | V12: -615 | W12: -525
C13: Retail Offsets (Low End) | D13: MTCDE | N13: 0 | O13: 0 | P13: 0 | Q13: 0 | R13: 0 | S13: 0 | T13: 0 | U13: 0 | V13: 0 | W13: 0
C14: Other | D14: MTCDE | N14: 0 | O14: 0 | P14: 0 | Q14: 0 | R14: 0 | S14: 0 | T14: 0 | U14: 0 | V14: 0 | W14: 0
C15: Total | D15: MTCDE | E15: =SUM(E10:E14) -> 0 | F15: =SUM(F10:F14) -> 0 | G15: 0 | H15: 0 | I15: 0 | J15: 0 | K15: 0 | L15: 0 | M15: 0 | N15: -131.5811022 | O15: -138.290969 | P15: -90.42161008 | Q15: -98.57809945 | R15: -91.95287554 | S15: =SUM(S10:S14) -> -648.4966983 | T15: =SUM(T10:T14) -> -1243.471797 | U15: =SUM(U10:U14) -> -669.4773929 | V15: =SUM(V10:V14) -> -1259.088396 | W15: =SUM(W10:W14) -> -647.2
B17: Offsets - Non-Additional/Renewable Energy Certificates (RECs) | E17: FY1995 | F17: FY1996 | G17: FY1997 | H17: FY1998 | I17: FY1999 | J17: FY2000 | K17: FY2001 | L17: FY2002 | M17: FY2003 | N17: FY2004 | O17: FY2005 | P17: FY2006 | Q17: FY2007 | R17: FY2008 | S17: FY2009 | T17: FY2010 | U17: FY2011 | V17: FY2012 | W17: FY2014
C19: Green Power Certificates | D19: kWh | N19: 253 | O19: 2280 | P19: 2280 | Q19: 2280 | R19: 2280 | S19: 0 | T19: 0 | U19: 0 | V19: 0 | W19: 700
C20: % of Electicity Mitigated | D20: % | E20: =E19/'Scope 2 Utilities'!E8 ->  | F20: =F19/'Scope 2 Utilities'!F8 ->  | G20: =G19/'Scope 2 Utilities'!G8 ->  | H20: =H19/'Scope 2 Utilities'!H8 ->  | I20: =I19/'Scope 2 Utilities'!I8 ->  | J20: =J19/'Scope 2 Utilities'!J8 ->  | K20: =K19/'Scope 2 Utilities'!K8 ->  | L20: =L19/'Scope 2 Utilities'!L8 ->  | M20: =M19/'Scope 2 Utilities'!M8 ->  | N20: =N19/'Scope 2 Utilities'!N8 -> 4.250160452e-06 | O20: =O19/'Scope 2 Utilities'!O8 -> 3.69520981e-05 | P20: =P19/'Scope 2 Utilities'!P8 -> 3.257572462e-05 | Q20: =Q19/'Scope 2 Utilities'!Q8 -> 3.310565982e-05 | R20: =R19/'Scope 2 Utilities'!R8 -> 3.25967341e-05 | S20: =S19/'Scope 2 Utilities'!S8 -> 0 | T20: =T19/'Scope 2 Utilities'!T8 -> 0 | U20: =U19/'Scope 2 Utilities'!U8 -> 0 | V20: =V19/'Scope 2 Utilities'!V8 -> 0 | W20: 0
C21: Green Power Certificates GHG | D21: MTCDE | N21: 0 | O21: 0 | P21: 0 | Q21: 0 | R21: 0 | S21: 0 | T21: 0 | U21: 0 | V21: 0 | W21: 0
C22: Retail Offsets (High End) | D22: MTCDE | N22: 0 | O22: 0 | P22: 0 | Q22: 0 | R22: 0 | S22: 0 | T22: 0 | U22: 0 | V22: 0 | W22: 0
C23: Retail Offsets (Low End) | D23: MTCDE | N23: 0 | O23: 0 | P23: 0 | Q23: 0 | R23: 0 | S23: 0 | T23: 0 | U23: 0 | V23: 0 | W23: 0
C24: Other | D24: MTCDE | N24: 0 | O24: 0 | P24: 0 | Q24: 0 | R24: 0 | S24: 0 | T24: 0 | U24: 0 | V24: 0 | W24: 0
C25: Total | D25: MTCDE | E25: =SUM(E21:E24) -> 0 | F25: =SUM(F21:F24) -> 0 | G25: 0 | H25: 0 | I25: 0 | J25: 0 | K25: 0 | L25: 0 | M25: 0 | N25: 0 | O25: 0 | P25: 0 | Q25: 0 | R25: 0 | S25: 0 | T25: =SUM(T21:T24) -> 0 | U25: =SUM(U21:U24) -> 0 | V25: =SUM(V21:V24) -> 0 | W25: =SUM(W19:W24) -> 700
B28: Total Offsets | E28: FY1995 | F28: FY1996 | G28: FY1997 | H28: FY1998 | I28: FY1999 | J28: FY2000 | K28: FY2001 | L28: FY2002 | M28: FY2003 | N28: FY2004 | O28: FY2005 | P28: FY2006 | Q28: FY2007 | R28: FY2008 | S28: FY2009 | T28: FY2010 | U28: FY2011 | V28: FY2011 | W28: FY2011
C29: Additional | D29: MTCDE | E29: =E15 -> 0 | F29: =F15 -> 0 | G29: 0 | H29: 0 | I29: 0 | J29: 0 | K29: 0 | L29: 0 | M29: 0 | N29: -131.5811022 | O29: -138.290969 | P29: -90.42161008 | Q29: -98.57809945 | R29: -91.95287554 | S29: -648.4966983 | T29: =T15 -> -1243.471797 | U29: =U15 -> -669.4773929 | V29: =V15 -> -1259.088396 | W29: =W15 -> -647.2
C30: Non-Additional | D30: MTCDE | E30: =E25 -> 0 | F30: =F25 -> 0 | G30: 0 | H30: 0 | I30: 0 | J30: 0 | K30: 0 | L30: 0 | M30: 0 | N30: 0 | O30: 0 | P30: 0 | Q30: 0 | R30: 0 | S30: 0 | T30: =T25 -> 0 | U30: =U25 -> 0 | V30: =V25 -> 0 | W30: =W25 -> 700
M32: Notes:

Sheet Green Construction
A1: ='Institutional Data'!$D$8 -> University of Oregon
A2: =Offsets!A2 -> Go-Green Measurement, Benchmarking and Analysis Summary
A4: Green Construction
B6: LEED Certification | E6: FY1995 | F6: FY1996 | G6: FY1997 | H6: FY1998 | I6: FY1999 | J6: FY2000 | K6: FY2001 | L6: FY2002 | M6: FY2003 | N6: FY2004 | O6: FY2005 | P6: FY2006 | Q6: FY2007 | R6: FY2008 | S6: FY2009 | T6: FY2010 | U6: FY2011 | V6: FY2014
B7: # of Buildings
C8: LEED Certified | D8: # | N8: 0 | O8: 0 | P8: 0 | Q8: 0 | R8: 0 | S8: 0 | T8: 0 | U8: 0 | V8: 0
C9: LEED Silver | D9: # | N9: 0 | O9: 0 | P9: 0 | Q9: 1 | R9: 1 | S9: 1 | T9: 1 | U9: 1 | V9: 1
C10: LEED Gold | D10: # | N10: 0 | O10: 0 | P10: 0 | Q10: 0 | R10: 0 | S10: 0 | T10: 0 | U10: 2 | V10: 3
C11: LEED Platinum | D11: # | N11: 0 | O11: 0 | P11: 0 | Q11: 0 | R11: 0 | S11: 0 | T11: 0 | U11: 0 | V11: 1
C12: LEED EB | D12: # | N12: 0 | O12: 0 | P12: 0 | Q12: 0 | R12: 0 | S12: 0 | T12: 0 | U12: 0 | V12: 0
C13: Other | D13: # | N13: 0 | O13: 0 | P13: 0 | Q13: 0 | R13: 0 | S13: 0 | T13: 0 | U13: 0 | V13: 0
C14: Total LEED Buildings | D14: # | E14: =SUM(E8:E13) -> 0 | F14: 0 | G14: 0 | H14: 0 | I14: 0 | J14: 0 | K14: 0 | L14: 0 | M14: 0 | N14: 0 | O14: 0 | P14: 0 | Q14: 1 | R14: 1 | S14: 1 | T14: =SUM(T8:T13) -> 1 | U14: =SUM(U8:U13) -> 3 | V14: =SUM(V8:V13) -> 5
B15: GSF
C16: LEED Certified | D16: GSF | N16: 0 | O16: 0 | P16: 0 | Q16: 0 | R16: 0 | S16: 0 | T16: 0 | U16: 0 | V16: 0
C17: LEED Silver | D17: GSF | N17: 0 | O17: 0 | P17: 0 | Q17: 135953 | R17: 135953 | S17: 135953 | T17: 135953 | U17: 142002 | V17: 143085
C18: LEED Gold | D18: GSF | N18: 0 | O18: 0 | P18: 0 | Q18: 0 | R18: 0 | S18: 0 | T18: 0 | U18: =60965+399328 -> 460293 | V18: 670218
C19: LEED Platinum | D19: GSF | N19: 0 | O19: 0 | P19: 0 | Q19: 0 | R19: 0 | S19: 0 | T19: 0 | U19: 0 | V19: 103000
C20: LEED EB | D20: GSF | N20: 0 | O20: 0 | P20: 0 | Q20: 0 | R20: 0 | S20: 0 | T20: 0 | U20: 0 | V20: 0
C21: Other | D21: GSF | N21: 0 | O21: 0 | P21: 0 | Q21: 0 | R21: 0 | S21: 0 | T21: 0 | U21: 0 | V21: 0
C22: Total LEED GSF | D22: GSF | E22: =SUM(E16:E21) -> 0 | F22: =SUM(F16:F21) -> 0 | G22: 0 | H22: 0 | I22: 0 | J22: 0 | K22: 0 | L22: 0 | M22: 0 | N22: 0 | O22: 0 | P22: 0 | Q22: 135953 | R22: 135953 | S22: 135953 | T22: =SUM(T16:T21) -> 135953 | U22: =SUM(U16:U21) -> 602295 | V22: =SUM(V16:V21) -> 916303
B23: LEED Calculations
C24: % of Total Building Space | D24: GSF | E24: =E22/'Institutional Data'!I8 ->  | F24: =F22/'Institutional Data'!J8 ->  | G24: =G22/'Institutional Data'!K8 ->  | H24: =H22/'Institutional Data'!L8 ->  | I24: =I22/'Institutional Data'!M8 ->  | J24: =J22/'Institutional Data'!N8 ->  | K24: =K22/'Institutional Data'!O8 ->  | L24: =L22/'Institutional Data'!P8 ->  | M24: =M22/'Institutional Data'!Q8 ->  | N24: =N22/'Institutional Data'!R8 -> 0 | O24: =O22/'Institutional Data'!S8 -> 0 | P24: =P22/'Institutional Data'!T8 -> 0 | Q24: =Q22/'Institutional Data'!U8 -> 0.02140267132 | R24: =R22/'Institutional Data'!V8 -> 0.02110503166 | S24: =S22/'Institutional Data'!W8 -> 0.02158650225 | T24: =T22/'Institutional Data'!X8 -> 0.02089054289 | U24: =U22/'Institutional Data'!Y8 -> 0.0816693777 | V24: =V22/'Institutional Data'!Z8 -> 0.1174652861
B26: Non-certified Green Buildings | E26: FY1995 | F26: FY1996 | G26: FY1997 | H26: FY1998 | I26: FY1999 | J26: FY2000 | K26: FY2001 | L26: FY2002 | M26: FY2003 | N26: FY2004 | O26: FY2005 | P26: FY2006 | Q26: FY2007 | R26: FY2008 | S26: FY2009 | T26: FY2010 | U26: FY2011 | V26: FY2014
B27: # of Buildings
C28: Non-certified Buildings | D28: # | N28: 0 | O28: 0 | P28: 0 | Q28: 0 | R28: 0 | S28: 0 | T28: 0 | U28: 0 | V28: =381-V14 -> 376
C29: Total Non-certified Buildings | D29: # | E29: =SUM(E28:E28) -> 0 | F29: 0 | G29: 0 | H29: 0 | I29: 0 | J29: 0 | K29: 0 | L29: 0 | M29: 0 | N29: 0 | O29: 0 | P29: 0 | Q29: 0 | R29: 0 | S29: 0 | T29: =SUM(T28:T28) -> 0 | U29: =SUM(U28:U28) -> 0 | V29: =SUM(V28:V28) -> 376
B30: GSF
C31: Non-certified GSF | D31: GSF | N31: 0 | O31: 0 | P31: 0 | Q31: 0 | R31: 0 | S31: 0 | T31: 0 | U31: 0 | V31: =7388027-V22 -> 6471724
C32: Total Non-certified GSF | D32: GSF | E32: =SUM(E31:E31) -> 0 | F32: 0 | G32: 0 | H32: 0 | I32: 0 | J32: 0 | K32: 0 | L32: 0 | M32: 0 | N32: 0 | O32: 0 | P32: 0 | Q32: 0 | R32: 0 | S32: 0 | T32: =SUM(T31:T31) -> 0 | U32: =SUM(U31:U31) -> 0 | V32: =SUM(V31:V31) -> 6471724
B33: Non-certified Calculations
C34: % of Total Building Space | D34: GSF | E34: =E32/'Institutional Data'!I8 ->  | F34: =F32/'Institutional Data'!J8 ->  | G34: =G32/'Institutional Data'!K8 ->  | H34: =H32/'Institutional Data'!L8 ->  | I34: =I32/'Institutional Data'!M8 ->  | J34: =J32/'Institutional Data'!N8 ->  | K34: =K32/'Institutional Data'!O8 ->  | L34: =L32/'Institutional Data'!P8 ->  | M34: =M32/'Institutional Data'!Q8 ->  | N34: =N32/'Institutional Data'!R8 -> 0 | O34: =O32/'Institutional Data'!S8 -> 0 | P34: =P32/'Institutional Data'!T8 -> 0 | Q34: =Q32/'Institutional Data'!U8 -> 0 | R34: =R32/'Institutional Data'!V8 -> 0 | S34: =S32/'Institutional Data'!W8 -> 0 | T34: =T32/'Institutional Data'!X8 -> 0 | U34: =U32/'Institutional Data'!Y8 -> 0 | V34: =V32/'Institutional Data'!Z8 -> 0.8296414084
B36: Total Green Buildings | E36: FY1995 | F36: FY1996 | G36: FY1997 | H36: FY1998 | I36: FY1999 | J36: FY2000 | K36: FY2001 | L36: FY2002 | M36: FY2003 | N36: FY2004 | O36: FY2005 | P36: FY2006 | Q36: FY2007 | R36: FY2008 | S36: FY2009 | T36: FY2010 | U36: FY2011 | V36: FY2014
B37: # of Buildings
C38: Total # of Green Buildings | D38: # | E38: =E14+E29 -> 0 | F38: =F14+F29 -> 0 | G38: 0 | H38: 0 | I38: 0 | J38: 0 | K38: 0 | L38: 0 | M38: 0 | N38: 0 | O38: 0 | P38: 0 | Q38: 1 | R38: 1 | S38: =S14+S29 -> 1 | T38: =T14+T29 -> 1 | U38: =U14+U29 -> 3 | V38: =V14+V29 -> 381
C39: Total # of Green Buildings | D39: # | E39: =SUM(E38:E38) -> 0 | F39: 0 | G39: 0 | H39: 0 | I39: 0 | J39: 0 | K39: 0 | L39: 0 | M39: 0 | N39: 0 | O39: 0 | P39: 0 | Q39: 1 | R39: 1 | S39: =SUM(S38:S38) -> 1 | T39: =SUM(T38:T38) -> 1 | U39: =SUM(U38:U38) -> 3 | V39: =SUM(V38:V38) -> 381
B40: GSF
C41: Total GSF of Green Buidlings | D41: GSF | E41: =E22+E32 -> 0 | F41: =F22+F32 -> 0 | G41: 0 | H41: 0 | I41: 0 | J41: 0 | K41: 0 | L41: 0 | M41: 0 | N41: 0 | O41: 0 | P41: 0 | Q41: 135953 | R41: 135953 | S41: =S22+S32 -> 135953 | T41: =T22+T32 -> 135953 | U41: =U22+U32 -> 602295 | V41: =V22+V32 -> 7388027
C42: Total GSF of Green Buidlings | D42: GSF | E42: =SUM(E41:E41) -> 0 | F42: 0 | G42: 0 | H42: 0 | I42: 0 | J42: 0 | K42: 0 | L42: 0 | M42: 0 | N42: 0 | O42: 0 | P42: 0 | Q42: 135953 | R42: 135953 | S42: =SUM(S41:S41) -> 135953 | T42: =SUM(T41:T41) -> 135953 | U42: =SUM(U41:U41) -> 602295 | V42: =SUM(V41:V41) -> 7388027
B43: Total Green Building Calculations
C44: % of Total Building Space | D44: GSF | E44: =E42/'Institutional Data'!I8 ->  | F44: =F42/'Institutional Data'!J8 ->  | G44: =G42/'Institutional Data'!K8 ->  | H44: =H42/'Institutional Data'!L8 ->  | I44: =I42/'Institutional Data'!M8 ->  | J44: =J42/'Institutional Data'!N8 ->  | K44: =K42/'Institutional Data'!O8 ->  | L44: =L42/'Institutional Data'!P8 ->  | M44: =M42/'Institutional Data'!Q8 ->  | N44: =N42/'Institutional Data'!R8 -> 0 | O44: =O42/'Institutional Data'!S8 -> 0 | P44: =P42/'Institutional Data'!T8 -> 0 | Q44: =Q42/'Institutional Data'!U8 -> 0.02140267132 | R44: =R42/'Institutional Data'!V8 -> 0.02110503166 | S44: =S42/'Institutional Data'!W8 -> 0.02158650225 | T44: =T42/'Institutional Data'!X8 -> 0.02089054289 | U44: =U42/'Institutional Data'!Y8 -> 0.0816693777 | V44: =V42/'Institutional Data'!Z8 -> 0.9471066945
C46: Notes: FY07: Lillis Business Complex (Silver) (142,002) FY11: Ford Alumni Center (Gold) (60,965sf) Matthew Knight Arena (Gold) (399,328sf) FY12 (?): Lewis Science buildings FY13: Knight Law Center, Lillis Business Complex, LEED:OBOM per Dave Smith -- Stephen Ames

Sheet Summary Scope GHG Benchmarks
A1: ='Institutional Data'!$D$8 -> University of Oregon
A2: ='GHG Summary_regional'!A2 -> Go-Green Measurement, Benchmarking and Analysis Summary
A4: GHG Benchmarks
B6: Total Emissions | E6: FY1995 | F6: FY1996 | G6: FY1997 | H6: FY1998 | I6: FY1999 | J6: FY2000 | K6: FY2001 | L6: FY2002 | M6: FY2003 | N6: FY2004 | O6: FY2005 | P6: FY2006 | Q6: FY2007 | R6: FY2008 | S6: FY2009 | T6: FY2010 | U6: FY2011 | V6: FY2012 | W6: FY2014
B7: Gross Emissions
C8: Scope 1 | D8: MTCDE | E8: ='GHG Summary_regional'!E12 -> 0 | F8: ='GHG Summary_regional'!F12 -> 0 | G8: ='GHG Summary_regional'!G12 -> 0 | H8: ='GHG Summary_regional'!H12 -> 0 | I8: ='GHG Summary_regional'!I12 -> 0 | J8: ='GHG Summary_regional'!J12 -> 0 | K8: ='GHG Summary_regional'!K12 -> 0 | L8: ='GHG Summary_regional'!L12 -> 0 | M8: ='GHG Summary_regional'!M12 -> 0 | N8: ='GHG Summary_regional'!N12 -> 29938.39799 | O8: ='GHG Summary_regional'!O12 -> 26253.09453 | P8: ='GHG Summary_regional'!P12 -> 25563.00472 | Q8: ='GHG Summary_regional'!Q12 -> 24927.11127 | R8: ='GHG Summary_regional'!R12 -> 26745.34536 | S8: ='GHG Summary_regional'!S12 -> 25875.45558 | T8: ='GHG Summary_regional'!T12 -> 23864.43385 | U8: ='GHG Summary_regional'!U12 -> 22788.6 | V8: ='GHG Summary_regional'!V12 -> 24235 | W8: ='GHG Summary_regional'!W12 -> 69459.5
C9: Scope 2 | D9: MTCDE | E9: ='GHG Summary_regional'!E17 -> 0 | F9: ='GHG Summary_regional'!F17 -> 0 | G9: ='GHG Summary_regional'!G17 -> 0 | H9: ='GHG Summary_regional'!H17 -> 0 | I9: ='GHG Summary_regional'!I17 -> 0 | J9: ='GHG Summary_regional'!J17 -> 0 | K9: ='GHG Summary_regional'!K17 -> 0 | L9: ='GHG Summary_regional'!L17 -> 0 | M9: ='GHG Summary_regional'!M17 -> 0 | N9: ='GHG Summary_regional'!N17 -> 18188.1 | O9: ='GHG Summary_regional'!O17 -> 18848.1 | P9: ='GHG Summary_regional'!P17 -> 21380.6 | Q9: ='GHG Summary_regional'!Q17 -> 27173 | R9: ='GHG Summary_regional'!R17 -> 27656.3 | S9: ='GHG Summary_regional'!S17 -> 26429.3 | T9: ='GHG Summary_regional'!T17 -> 27420.8 | U9: ='GHG Summary_regional'!U17 -> 28633.7 | V9: ='GHG Summary_regional'!V17 -> 29421 | W9: ='GHG Summary_regional'!W17 -> 21379
C10: Scope 3 | D10: MTCDE | E10: ='GHG Summary_regional'!E29 -> 0 | F10: ='GHG Summary_regional'!F29 -> 0 | G10: ='GHG Summary_regional'!G29 -> 0 | H10: ='GHG Summary_regional'!H29 -> 0 | I10: ='GHG Summary_regional'!I29 -> 0 | J10: ='GHG Summary_regional'!J29 -> 0 | K10: ='GHG Summary_regional'!K29 -> 0 | L10: ='GHG Summary_regional'!L29 -> 0 | M10: ='GHG Summary_regional'!M29 -> 0 | N10: ='GHG Summary_regional'!N29 -> 29915.38095 | O10: ='GHG Summary_regional'!O29 -> 31344.07515 | P10: ='GHG Summary_regional'!P29 -> 29237.42485 | Q10: ='GHG Summary_regional'!Q29 -> 31397.29995 | R10: ='GHG Summary_regional'!R29 -> 33098.08255 | S10: ='GHG Summary_regional'!S29 -> 39020.21855 | T10: ='GHG Summary_regional'!T29 -> 36333.58177 | U10: ='GHG Summary_regional'!U29 -> 37300.80933 | V10: ='GHG Summary_regional'!V29 -> 36927.84 | W10: ='GHG Summary_regional'!W29 -> 43292.1
C11: Total Gross Emissions | D11: MTCDE | E11: =SUM(E8:E10) -> 0 | F11: =SUM(F8:F10) -> 0 | G11: 0 | H11: 0 | I11: 0 | J11: 0 | K11: 0 | L11: 0 | M11: 0 | N11: 78041.87893 | O11: 76445.26967 | P11: 76181.02957 | Q11: 83497.41122 | R11: =SUM(R8:R10) -> 87499.72791 | S11: 91324.97413 | T11: 87618.81562 | U11: 88723.10933 | V11: 90583.84 | W11: 134130.6
B12: Net Emissions
C13: Offsets | D13: MTCDE | E13: ='GHG Summary_regional'!E37 -> 0 | F13: ='GHG Summary_regional'!F37 -> 0 | G13: ='GHG Summary_regional'!G37 -> 0 | H13: ='GHG Summary_regional'!H37 -> 0 | I13: ='GHG Summary_regional'!I37 -> 0 | J13: ='GHG Summary_regional'!J37 -> 0 | K13: ='GHG Summary_regional'!K37 -> 0 | L13: ='GHG Summary_regional'!L37 -> 0 | M13: ='GHG Summary_regional'!M37 -> 0 | N13: ='GHG Summary_regional'!N37 -> -131.5811022 | O13: ='GHG Summary_regional'!O37 -> -138.290969 | P13: ='GHG Summary_regional'!P37 -> -90.42161008 | Q13: ='GHG Summary_regional'!Q37 -> -98.57809945 | R13: ='GHG Summary_regional'!R37 -> -91.95287554 | S13: ='GHG Summary_regional'!S37 -> -648.4966983 | T13: ='GHG Summary_regional'!T37 -> -1243.471797 | U13: ='GHG Summary_regional'!U37 -> -669.4773929 | V13: ='GHG Summary_regional'!V37 -> -1259.088396 | W13: ='GHG Summary_regional'!W37 -> 52.8
C14: Total Net Emissions | D14: MTCDE | E14: =E11+E13 -> 0 | F14: =F11+F13 -> 0 | G14: 0 | H14: 0 | I14: 0 | J14: 0 | K14: 0 | L14: 0 | M14: 0 | N14: 77910.29783 | O14: 76306.97871 | P14: 76090.60796 | Q14: 83398.83312 | R14: 87407.77503 | S14: =S11+S13 -> 90676.47743 | T14: =T11+T13 -> 86375.34382 | U14: =U11+U13 -> 88053.63194 | V14: =V11+V13 -> 89324.7516 | W14: =W11+W13 -> 134183.4
B16: Emissions per FTE Student | E16: FY1995 | F16: FY1996 | G16: FY1997 | H16: FY1998 | I16: FY1999 | J16: FY2000 | K16: FY2001 | L16: FY2002 | M16: FY2003 | N16: FY2004 | O16: FY2005 | P16: FY2006 | Q16: FY2007 | R16: FY2008 | S16: FY2009 | T16: FY2010 | U16: FY2011 | V16: FY2012 | W16: FY2014
B17: Gross Emissions
C18: Scope 1 | D18: MTCDE | E18: =E8/'Institutional Data'!I$21 ->  | F18: =F8/'Institutional Data'!J$21 ->  | G18: =G8/'Institutional Data'!K$21 ->  | H18: =H8/'Institutional Data'!L$21 ->  | I18: =I8/'Institutional Data'!M$21 ->  | J18: =J8/'Institutional Data'!N$21 ->  | K18: =K8/'Institutional Data'!O$21 ->  | L18: =L8/'Institutional Data'!P$21 ->  | M18: =M8/'Institutional Data'!Q$21 ->  | N18: =N8/'Institutional Data'!R$21 -> 1.551148035 | O18: =O8/'Institutional Data'!S$21 -> 1.329304262 | P18: =P8/'Institutional Data'!T$21 -> 1.297798911 | Q18: =Q8/'Institutional Data'!U$21 -> 1.271233605 | R18: =R8/'Institutional Data'!V$21 -> 1.387278664 | S18: =S8/'Institutional Data'!W$21 -> 1.246289162 | T18: =T8/'Institutional Data'!X$21 -> 1.100301252 | U18: =U8/'Institutional Data'!Y$21 -> 0.9606930568 | V18: =V8/'Institutional Data'!Z$21 -> 0.9872494704 | W18: =W8/'Institutional Data'!AB$21 -> 
C19: Scope 2 | D19: MTCDE | E19: =E9/'Institutional Data'!I$21 ->  | F19: =F9/'Institutional Data'!J$21 ->  | G19: =G9/'Institutional Data'!K$21 ->  | H19: =H9/'Institutional Data'!L$21 ->  | I19: =I9/'Institutional Data'!M$21 ->  | J19: =J9/'Institutional Data'!N$21 ->  | K19: =K9/'Institutional Data'!O$21 ->  | L19: =L9/'Institutional Data'!P$21 ->  | M19: =M9/'Institutional Data'!Q$21 ->  | N19: =N9/'Institutional Data'!R$21 -> 0.9423495399 | O19: =O9/'Institutional Data'!S$21 -> 0.9543583382 | P19: =P9/'Institutional Data'!T$21 -> 1.085463924 | Q19: =Q9/'Institutional Data'!U$21 -> 1.385769509 | R19: =R9/'Institutional Data'!V$21 -> 1.434529799 | S19: =S9/'Institutional Data'!W$21 -> 1.272965032 | T19: =T9/'Institutional Data'!X$21 -> 1.264272212 | U19: =U9/'Institutional Data'!Y$21 -> 1.20710341 | V19: =V9/'Institutional Data'!Z$21 -> 1.198509044 | W19: =W9/'Institutional Data'!AB$21 -> 
C20: Scope 3 | D20: MTCDE | E20: =E10/'Institutional Data'!I$21 ->  | F20: =F10/'Institutional Data'!J$21 ->  | G20: =G10/'Institutional Data'!K$21 ->  | H20: =H10/'Institutional Data'!L$21 ->  | I20: =I10/'Institutional Data'!M$21 ->  | J20: =J10/'Institutional Data'!N$21 ->  | K20: =K10/'Institutional Data'!O$21 ->  | L20: =L10/'Institutional Data'!P$21 ->  | M20: =M10/'Institutional Data'!Q$21 ->  | N20: =N10/'Institutional Data'!R$21 -> 1.549955491 | O20: =O10/'Institutional Data'!S$21 -> 1.587081959 | P20: =P10/'Institutional Data'!T$21 -> 1.484344214 | Q20: =Q10/'Institutional Data'!U$21 -> 1.601200491 | R20: =R10/'Institutional Data'!V$21 -> 1.716794572 | S20: =S10/'Institutional Data'!W$21 -> 1.879405575 | T20: =T10/'Institutional Data'!X$21 -> 1.675207791 | U20: =U10/'Institutional Data'!Y$21 -> 1.572480474 | V20: =V10/'Institutional Data'!Z$21 -> 1.504311553 | W20: =W10/'Institutional Data'!AB$21 -> 
C21: Total Gross Emissions | D21: MTCDE | E21: =SUM(E18:E20) ->  | N21: 4.043453066 | O21: 3.870744559 | P21: 3.867607049 | Q21: 4.258203606 | R21: 4.538603035 | S21: 4.398659769 | T21: =SUM(T18:T20) -> 4.039781254 | U21: =SUM(U18:U20) -> 3.740276942 | V21: =SUM(V18:V20) -> 3.690070067 | W21: =SUM(W18:W20) -> 
B22: Net Emissions
C23: Offsets | D23: MTCDE | E23: =E13/'Institutional Data'!I$21 ->  | F23: =F13/'Institutional Data'!J$21 ->  | G23: =G13/'Institutional Data'!K$21 ->  | H23: =H13/'Institutional Data'!L$21 ->  | I23: =I13/'Institutional Data'!M$21 ->  | J23: =J13/'Institutional Data'!N$21 ->  | K23: =K13/'Institutional Data'!O$21 ->  | L23: =L13/'Institutional Data'!P$21 ->  | M23: =M13/'Institutional Data'!Q$21 ->  | N23: =N13/'Institutional Data'!R$21 -> -0.006817391105 | O23: =O13/'Institutional Data'!S$21 -> -0.00700225165 | P23: =P13/'Institutional Data'!T$21 -> -0.004590581914 | Q23: =Q13/'Institutional Data'!U$21 -> -0.005027289019 | R23: =R13/'Institutional Data'!V$21 -> -0.004769587403 | S23: =S13/'Institutional Data'!W$21 -> -0.03123478944 | T23: =T13/'Institutional Data'!X$21 -> -0.05733191004 | U23: =U13/'Institutional Data'!Y$21 -> -0.02822298356 | V23: =V13/'Institutional Data'!Z$21 -> -0.05129087486 | W23: =W13/'Institutional Data'!AB$21 -> 
C24: Total Net Emissions | D24: MTCDE | E24: =E21+E23 ->  | N24: 4.036635675 | O24: 3.863742308 | P24: 3.863016467 | Q24: 4.253176317 | R24: =R21+R23 -> 4.533833448 | S24: 4.36742498 | T24: 3.982449344 | U24: 3.712053958 | V24: 3.638779192
B26: Emissions per Campus User | E26: FY1995 | F26: FY1996 | G26: FY1997 | H26: FY1998 | I26: FY1999 | J26: FY2000 | K26: FY2001 | L26: FY2002 | M26: FY2003 | N26: FY2004 | O26: FY2005 | P26: FY2006 | Q26: FY2007 | R26: FY2008 | S26: FY2009 | T26: FY2010 | U26: FY2011 | V26: FY2012 | W26: FY2014
B27: Gross Emissions
C28: Scope 1 | D28: MTCDE | E28: =E8/'Institutional Data'!I$33 ->  | F28: =F8/'Institutional Data'!J$33 ->  | G28: =G8/'Institutional Data'!K$33 ->  | H28: =H8/'Institutional Data'!L$33 ->  | I28: =I8/'Institutional Data'!M$33 ->  | J28: =J8/'Institutional Data'!N$33 ->  | K28: =K8/'Institutional Data'!O$33 ->  | L28: =L8/'Institutional Data'!P$33 ->  | M28: =M8/'Institutional Data'!Q$33 ->  | N28: =N8/'Institutional Data'!R$33 -> 1.264407926 | O28: =O8/'Institutional Data'!S$33 -> 1.085786981 | P28: =P8/'Institutional Data'!T$33 -> 1.056509535 | Q28: =Q8/'Institutional Data'!U$33 -> 1.032966725 | R28: =R8/'Institutional Data'!V$33 -> 1.120904648 | S28: =S8/'Institutional Data'!W$33 -> 1.044249388 | T28: =T8/'Institutional Data'!X$33 -> 0.9267201463 | U28: =U8/'Institutional Data'!Y$33 -> 0.8148389173 | V28: =V8/'Institutional Data'!Z$33 -> 0.8395399591 | W28: =W8/'Institutional Data'!AB$33 -> 
C29: Scope 2 | D29: MTCDE | E29: =E9/'Institutional Data'!I$33 ->  | F29: =F9/'Institutional Data'!J$33 ->  | G29: =G9/'Institutional Data'!K$33 ->  | H29: =H9/'Institutional Data'!L$33 ->  | I29: =I9/'Institutional Data'!M$33 ->  | J29: =J9/'Institutional Data'!N$33 ->  | K29: =K9/'Institutional Data'!O$33 ->  | L29: =L9/'Institutional Data'!P$33 ->  | M29: =M9/'Institutional Data'!Q$33 ->  | N29: =N9/'Institutional Data'!R$33 -> 0.7681499126 | O29: =O9/'Institutional Data'!S$33 -> 0.7795279746 | P29: =P9/'Institutional Data'!T$33 -> 0.8836522937 | Q29: =Q9/'Institutional Data'!U$33 -> 1.126035203 | R29: =R9/'Institutional Data'!V$33 -> 1.159083003 | S29: =S9/'Institutional Data'!W$33 -> 1.066600751 | T29: =T9/'Institutional Data'!X$33 -> 1.064823408 | U29: =U9/'Institutional Data'!Y$33 -> 1.02383881 | V29: =V9/'Institutional Data'!Z$33 -> 1.019191464 | W29: =W9/'Institutional Data'!AB$33 -> 
C30: Scope 3 | D30: MTCDE | E30: =E10/'Institutional Data'!I$33 ->  | F30: =F10/'Institutional Data'!J$33 ->  | G30: =G10/'Institutional Data'!K$33 ->  | H30: =H10/'Institutional Data'!L$33 ->  | I30: =I10/'Institutional Data'!M$33 ->  | J30: =J10/'Institutional Data'!N$33 ->  | K30: =K10/'Institutional Data'!O$33 ->  | L30: =L10/'Institutional Data'!P$33 ->  | M30: =M10/'Institutional Data'!Q$33 ->  | N30: =N10/'Institutional Data'!R$33 -> 1.263435832 | O30: =O10/'Institutional Data'!S$33 -> 1.296341988 | P30: =P10/'Institutional Data'!T$33 -> 1.20837196 | Q30: =Q10/'Institutional Data'!U$33 -> 1.301088029 | R30: =R10/'Institutional Data'!V$33 -> 1.38714958 | S30: =S10/'Institutional Data'!W$33 -> 1.574729349 | T30: =T10/'Institutional Data'!X$33 -> 1.410930694 | U30: =U10/'Institutional Data'!Y$33 -> 1.333743674 | V30: =V10/'Institutional Data'!Z$33 -> 1.279240655 | W30: =W10/'Institutional Data'!AB$33 -> 
C31: Total Gross Emissions | D31: MTCDE | E31: =SUM(E28:E30) ->  | N31: 3.295993671 | O31: 3.161656943 | P31: 3.148533788 | Q31: 3.460089957 | R31: 3.667137231 | S31: 3.685579488 | T31: =SUM(T28:T30) -> 3.402474249 | U31: =SUM(U28:U30) -> 3.172421401 | V31: =SUM(V28:V30) -> 3.137972079 | W31: =SUM(W28:W30) -> 
B32: Net Emissions
C33: Offsets | D33: MTCDE | E33: =E13/'Institutional Data'!I33 ->  | F33: =F13/'Institutional Data'!J$33 ->  | G33: =G13/'Institutional Data'!K$33 ->  | H33: =H13/'Institutional Data'!L$33 ->  | I33: =I13/'Institutional Data'!M$33 ->  | J33: =J13/'Institutional Data'!N$33 ->  | K33: =K13/'Institutional Data'!O$33 ->  | L33: =L13/'Institutional Data'!P$33 ->  | M33: =M13/'Institutional Data'!Q$33 ->  | N33: =N13/'Institutional Data'!R$33 -> -0.005557150674 | O33: =O13/'Institutional Data'!S$33 -> -0.005719498461 | P33: =P13/'Institutional Data'!T$33 -> -0.003737091716 | Q33: =Q13/'Institutional Data'!U$33 -> -0.004085025954 | R33: =R13/'Institutional Data'!V$33 -> -0.003853769851 | S33: =S13/'Institutional Data'!W$33 -> -0.02617122153 | T33: =T13/'Institutional Data'!X$33 -> -0.04828735401 | U33: =U13/'Institutional Data'!Y$33 -> -0.02393811967 | V33: =V13/'Institutional Data'!Z$33 -> -0.04361687727 | W33: =W13/'Institutional Data'!AB$33 -> 
C34: Total Net Emissions | D34: MTCDE | E34: =E31+E33 ->  | N34: 3.29043652 | O34: 3.155937445 | P34: 3.144796697 | Q34: 3.456004931 | R34: 3.663283462 | S34: 3.659408266 | T34: =T31+T33 -> 3.354186895 | U34: =U31+U33 -> 3.148483282 | V34: =V31+V33 -> 3.094355202 | W34: =W31+W33 -> 
B36: Emissions per 1,000 GSF | E36: FY1995 | F36: FY1996 | G36: FY1997 | H36: FY1998 | I36: FY1999 | J36: FY2000 | K36: FY2001 | L36: FY2002 | M36: FY2003 | N36: FY2004 | O36: FY2005 | P36: FY2006 | Q36: FY2007 | R36: FY2008 | S36: FY2009 | T36: FY2010 | U36: FY2011 | V36: FY2012 | W36: FY2014
B37: Gross Emissions
C38: Scope 1 | D38: MTCDE | E38: =E8/'Institutional Data'!I$9*1000 ->  | F38: =F8/'Institutional Data'!J$9*1000 ->  | G38: =G8/'Institutional Data'!K$9*1000 ->  | H38: =H8/'Institutional Data'!L$9*1000 ->  | I38: =I8/'Institutional Data'!M$9*1000 ->  | J38: =J8/'Institutional Data'!N$9*1000 ->  | K38: =K8/'Institutional Data'!O$9*1000 ->  | L38: =L8/'Institutional Data'!P$9*1000 ->  | M38: =M8/'Institutional Data'!Q$9*1000 ->  | N38: =N8/'Institutional Data'!R$9*1000 -> 5.048029323 | O38: =O8/'Institutional Data'!S$9*1000 -> 4.372505285 | P38: =P8/'Institutional Data'!T$9*1000 -> 4.039847035 | Q38: =Q8/'Institutional Data'!U$9*1000 -> 3.92420005 | R38: =R8/'Institutional Data'!V$9*1000 -> 4.151886024 | S38: =S8/'Institutional Data'!W$9*1000 -> 4.108482932 | T38: =T8/'Institutional Data'!X$9*1000 -> 3.667009766 | U38: =U8/'Institutional Data'!Y$9*1000 -> 3.090065135 | V38: =V8/'Institutional Data'!Z$9*1000 -> 3.106801145 | W38: =W8/'Institutional Data'!AB$9*1000 -> 
C39: Scope 2 | D39: MTCDE | E39: =E9/'Institutional Data'!I$9*1000 ->  | F39: =F9/'Institutional Data'!J$9*1000 ->  | G39: =G9/'Institutional Data'!K$9*1000 ->  | H39: =H9/'Institutional Data'!L$9*1000 ->  | I39: =I9/'Institutional Data'!M$9*1000 ->  | J39: =J9/'Institutional Data'!N$9*1000 ->  | K39: =K9/'Institutional Data'!O$9*1000 ->  | L39: =L9/'Institutional Data'!P$9*1000 ->  | M39: =M9/'Institutional Data'!Q$9*1000 ->  | N39: =N9/'Institutional Data'!R$9*1000 -> 3.066766036 | O39: =O9/'Institutional Data'!S$9*1000 -> 3.139188669 | P39: =P9/'Institutional Data'!T$9*1000 -> 3.3788811 | Q39: =Q9/'Institutional Data'!U$9*1000 -> 4.277763548 | R39: =R9/'Institutional Data'!V$9*1000 -> 4.293300531 | S39: =S9/'Institutional Data'!W$9*1000 -> 4.19642188 | T39: =T9/'Institutional Data'!X$9*1000 -> 4.213481117 | U39: =U9/'Institutional Data'!Y$9*1000 -> 3.882642991 | V39: =V9/'Institutional Data'!Z$9*1000 -> 3.771619413 | W39: =W9/'Institutional Data'!AB$9*1000 -> 
C40: Scope 3 | D40: MTCDE | E40: =E10/'Institutional Data'!I$9*1000 ->  | F40: =F10/'Institutional Data'!J$9*1000 ->  | G40: =G10/'Institutional Data'!K$9*1000 ->  | H40: =H10/'Institutional Data'!L$9*1000 ->  | I40: =I10/'Institutional Data'!M$9*1000 ->  | J40: =J10/'Institutional Data'!N$9*1000 ->  | K40: =K10/'Institutional Data'!O$9*1000 ->  | L40: =L10/'Institutional Data'!P$9*1000 ->  | M40: =M10/'Institutional Data'!Q$9*1000 ->  | N40: =N10/'Institutional Data'!R$9*1000 -> 5.044148331 | O40: =O10/'Institutional Data'!S$9*1000 -> 5.220418267 | P40: =P10/'Institutional Data'!T$9*1000 -> 4.620533672 | Q40: =Q10/'Institutional Data'!U$9*1000 -> 4.942782366 | R40: =R10/'Institutional Data'!V$9*1000 -> 5.138070362 | S40: =S10/'Institutional Data'!W$9*1000 -> 6.195597268 | T40: =T10/'Institutional Data'!X$9*1000 -> 5.583019486 | U40: =U10/'Institutional Data'!Y$9*1000 -> 5.057876764 | V40: =V10/'Institutional Data'!Z$9*1000 -> 4.733957317 | W40: =W10/'Institutional Data'!AB$9*1000 -> 
C41: Total Gross Emissions | D41: MTCDE | E41: =SUM(E38:E40) ->  | F41: =SUM(F38:F40) ->  | N41: 13.15894369 | O41: 12.73211222 | P41: 12.03926181 | Q41: 13.14474596 | R41: 13.58325692 | S41: =SUM(S38:S40) -> 14.50050208 | T41: =SUM(T38:T40) -> 13.46351037 | U41: =SUM(U38:U40) -> 12.03058489 | V41: =SUM(V38:V40) -> 11.61237788 | W41: =SUM(W38:W40) -> 
B42: Net Emissions
C43: Offsets | D43: MTCDE | E43: =E13/'Institutional Data'!I$9*1000 ->  | F43: =F13/'Institutional Data'!J$9*1000 ->  | G43: =G13/'Institutional Data'!K$9*1000 ->  | H43: =H13/'Institutional Data'!L$9*1000 ->  | I43: =I13/'Institutional Data'!M$9*1000 ->  | J43: =J13/'Institutional Data'!N$9*1000 ->  | K43: =K13/'Institutional Data'!O$9*1000 ->  | L43: =L13/'Institutional Data'!P$9*1000 ->  | M43: =M13/'Institutional Data'!Q$9*1000 ->  | N43: =N13/'Institutional Data'!R$9*1000 -> -0.02218639964 | O43: =O13/'Institutional Data'!S$9*1000 -> -0.02303263686 | P43: =P13/'Institutional Data'!T$9*1000 -> -0.0142897706 | Q43: =Q13/'Institutional Data'!U$9*1000 -> -0.01551885329 | R43: =R13/'Institutional Data'!V$9*1000 -> -0.01427455333 | S43: =S13/'Institutional Data'!W$9*1000 -> -0.1029677568 | T43: =T13/'Institutional Data'!X$9*1000 -> -0.1910719212 | U43: =U13/'Institutional Data'!Y$9*1000 -> -0.09077910669 | V43: =V13/'Institutional Data'!Z$9*1000 -> -0.1614085938 | W43: =W13/'Institutional Data'!AB$9*1000 -> 
C44: Total Net Emissions | D44: MTCDE | E44: =E41+E43 ->  | N44: 13.13675729 | O44: 12.70907958 | P44: 12.02497204 | Q44: 13.12922711 | R44: 13.56898236 | S44: 14.39753432 | T44: =T41+T43 -> 13.27243845 | U44: =U41+U43 -> 11.93980578 | V44: =V41+V43 -> 11.45096928 | W44: =W41+W43 -> 

Sheet Scope GHG Benchmarks
A1: =CONCATENATE('Institutional Data'!$D$8) -> University of Oregon
A2: ='Summary Scope GHG Benchmarks'!A2 -> Go-Green Measurement, Benchmarking and Analysis Summary
A4: Scope GHG Benchmarks
B7: General | E7: FY1995 | F7: FY1996 | G7: FY1997 | H7: FY1998 | I7: FY1999 | J7: FY2000 | K7: FY2001 | L7: FY2002 | M7: FY2003 | N7: FY2004 | O7: FY2005 | P7: FY2006 | Q7: FY2007 | R7: FY2008 | S7: FY2009 | T7: FY2010 | U7: FY2011 | V7: FY2012 | W7: FY2014
B8: Physical Profile
C9: Student Density | D9: Total Enrollment/100,000 GSF | E9: ='Institutional Data'!I33/'Institutional Data'!I9*100000 ->  | F9: ='Institutional Data'!J33/'Institutional Data'!J9*100000 ->  | G9: ='Institutional Data'!K33/'Institutional Data'!K9*100000 ->  | H9: ='Institutional Data'!L33/'Institutional Data'!L9*100000 ->  | I9: ='Institutional Data'!M33/'Institutional Data'!M9*100000 ->  | J9: ='Institutional Data'!N33/'Institutional Data'!N9*100000 ->  | K9: ='Institutional Data'!O33/'Institutional Data'!O9*100000 ->  | L9: ='Institutional Data'!P33/'Institutional Data'!P9*100000 ->  | M9: ='Institutional Data'!Q33/'Institutional Data'!Q9*100000 ->  | N9: ='Institutional Data'!R33/'Institutional Data'!R9*100000 -> 399.2405631 | O9: ='Institutional Data'!S33/'Institutional Data'!S9*100000 -> 402.7037863 | P9: ='Institutional Data'!T33/'Institutional Data'!T9*100000 -> 382.3767702 | Q9: ='Institutional Data'!U33/'Institutional Data'!U9*100000 -> 379.8960757 | R9: ='Institutional Data'!V33/'Institutional Data'!V9*100000 -> 370.4049251 | S9: ='Institutional Data'!W33/'Institutional Data'!W9*100000 -> 393.4388643 | T9: ='Institutional Data'!X33/'Institutional Data'!X9*100000 -> 395.6976419 | U9: ='Institutional Data'!Y33/'Institutional Data'!Y9*100000 -> 379.224049 | V9: ='Institutional Data'!Z33/'Institutional Data'!Z9*100000 -> 370.059949 | W9: ='Institutional Data'!AB33/'Institutional Data'!AB9*100000 -> 
C10: Go-Green Tech Rating | D10: Tech Rating (1-5) | E10: ='Institutional Data'!I14 -> 0 | F10: ='Institutional Data'!J14 -> 0 | G10: ='Institutional Data'!K14 -> 0 | H10: ='Institutional Data'!L14 -> 0 | I10: ='Institutional Data'!M14 -> 0 | J10: ='Institutional Data'!N14 -> 0 | K10: ='Institutional Data'!O14 -> 0 | L10: ='Institutional Data'!P14 -> 0 | M10: ='Institutional Data'!Q14 -> 0 | N10: ='Institutional Data'!R14 -> 2.968997884 | O10: ='Institutional Data'!S14 -> 2.951946481 | P10: ='Institutional Data'!T14 -> 2.974538275 | Q10: ='Institutional Data'!U14 -> 2.966521921 | R10: ='Institutional Data'!V14 -> 2.970994352 | S10: ='Institutional Data'!W14 -> 2.97055629 | T10: ='Institutional Data'!X14 -> 2.97 | U10: ='Institutional Data'!Y14 -> 2.913 | V10: ='Institutional Data'!Z14 -> 2.913 | W10: ='Institutional Data'!AB14 -> 0
B11: Total Energy
C12: Total Energy | D12: Utility MMBtu | E12: =('Scope 1 Utilities'!E54)+'Scope 2 Utilities'!E61 -> 0 | F12: =('Scope 1 Utilities'!F54)+'Scope 2 Utilities'!F61 -> 0 | G12: =('Scope 1 Utilities'!G54)+'Scope 2 Utilities'!G61 -> 0 | H12: =('Scope 1 Utilities'!H54)+'Scope 2 Utilities'!H61 -> 0 | I12: =('Scope 1 Utilities'!I54)+'Scope 2 Utilities'!I61 -> 0 | J12: =('Scope 1 Utilities'!J54)+'Scope 2 Utilities'!J61 -> 0 | K12: =('Scope 1 Utilities'!K54)+'Scope 2 Utilities'!K61 -> 0 | L12: =('Scope 1 Utilities'!L54)+'Scope 2 Utilities'!L61 -> 0 | M12: =('Scope 1 Utilities'!M54)+'Scope 2 Utilities'!M61 -> 0 | N12: =('Scope 1 Utilities'!N54)+'Scope 2 Utilities'!N61 -> 741988.2072 | O12: =('Scope 1 Utilities'!O54)+'Scope 2 Utilities'!O61 -> 679730.764 | P12: =('Scope 1 Utilities'!P54)+'Scope 2 Utilities'!P61 -> 695437.6416 | Q12: =('Scope 1 Utilities'!Q54)+'Scope 2 Utilities'!Q61 -> 687790.934 | R12: =('Scope 1 Utilities'!R54)+'Scope 2 Utilities'!R61 -> 726479.4233 | S12: =('Scope 1 Utilities'!S54)+'Scope 2 Utilities'!S61 -> 713337.4277 | T12: =('Scope 1 Utilities'!T54)+'Scope 2 Utilities'!T61 -> 690538.3749 | U12: =('Scope 1 Utilities'!U54)+'Scope 2 Utilities'!U61 -> 681854.2134 | V12: =('Scope 1 Utilities'!V54)+'Scope 2 Utilities'!V61 -> 710092.9483 | W12: =('Scope 1 Utilities'!W54)+'Scope 2 Utilities'!W61 -> 805688.6433
C13: Total Energy Consumption | D13: Total Btu/GSF | E13: =E12/'Institutional Data'!I9*1000000 ->  | F13: =F12/'Institutional Data'!J9*1000000 ->  | G13: =G12/'Institutional Data'!K9*1000000 ->  | H13: =H12/'Institutional Data'!L9*1000000 ->  | I13: =I12/'Institutional Data'!M9*1000000 ->  | J13: =J12/'Institutional Data'!N9*1000000 ->  | K13: =K12/'Institutional Data'!O9*1000000 ->  | L13: =L12/'Institutional Data'!P9*1000000 ->  | M13: =M12/'Institutional Data'!Q9*1000000 ->  | N13: =N12/'Institutional Data'!R9*1000000 -> 125109.5075 | O13: =O12/'Institutional Data'!S9*1000000 -> 113210.5152 | P13: =P12/'Institutional Data'!T9*1000000 -> 109903.422 | Q13: =Q12/'Institutional Data'!U9*1000000 -> 108276.8552 | R13: =R12/'Institutional Data'!V9*1000000 -> 112776.9981 | S13: =S12/'Institutional Data'!W9*1000000 -> 113263.1129 | T13: =T12/'Institutional Data'!X9*1000000 -> 106108.1516 | U13: =U12/'Institutional Data'!Y9*1000000 -> 92457.36605 | V13: =V12/'Institutional Data'!Z9*1000000 -> 91030.22837 | W13: =W12/'Institutional Data'!AB9*1000000 -> 
C14: Total Utility Emissions (per 1,000 GSF) | D14: Utility MTCDE/1,000 GSF | E14: =('Scope 1 Utilities'!E44+'Scope 1 Utilities'!E45+'Scope 1 Utilities'!E46+'Scope 2 Utilities'!E46+'Scope 2 Utilities'!E47+'Scope 2 Utilities'!E48)/'Institutional Data'!I9*1000 ->  | F14: =('Scope 1 Utilities'!F44+'Scope 1 Utilities'!F45+'Scope 1 Utilities'!F46+'Scope 2 Utilities'!F46+'Scope 2 Utilities'!F47+'Scope 2 Utilities'!F48)/'Institutional Data'!J9*1000 ->  | G14: =('Scope 1 Utilities'!G44+'Scope 1 Utilities'!G45+'Scope 1 Utilities'!G46+'Scope 2 Utilities'!G46+'Scope 2 Utilities'!G47+'Scope 2 Utilities'!G48)/'Institutional Data'!K9*1000 ->  | H14: =('Scope 1 Utilities'!H44+'Scope 1 Utilities'!H45+'Scope 1 Utilities'!H46+'Scope 2 Utilities'!H46+'Scope 2 Utilities'!H47+'Scope 2 Utilities'!H48)/'Institutional Data'!L9*1000 ->  | I14: =('Scope 1 Utilities'!I44+'Scope 1 Utilities'!I45+'Scope 1 Utilities'!I46+'Scope 2 Utilities'!I46+'Scope 2 Utilities'!I47+'Scope 2 Utilities'!I48)/'Institutional Data'!M9*1000 ->  | J14: =('Scope 1 Utilities'!J44+'Scope 1 Utilities'!J45+'Scope 1 Utilities'!J46+'Scope 2 Utilities'!J46+'Scope 2 Utilities'!J47+'Scope 2 Utilities'!J48)/'Institutional Data'!N9*1000 ->  | K14: =('Scope 1 Utilities'!K44+'Scope 1 Utilities'!K45+'Scope 1 Utilities'!K46+'Scope 2 Utilities'!K46+'Scope 2 Utilities'!K47+'Scope 2 Utilities'!K48)/'Institutional Data'!O9*1000 ->  | L14: =('Scope 1 Utilities'!L44+'Scope 1 Utilities'!L45+'Scope 1 Utilities'!L46+'Scope 2 Utilities'!L46+'Scope 2 Utilities'!L47+'Scope 2 Utilities'!L48)/'Institutional Data'!P9*1000 ->  | M14: =('Scope 1 Utilities'!M44+'Scope 1 Utilities'!M45+'Scope 1 Utilities'!M46+'Scope 2 Utilities'!M46+'Scope 2 Utilities'!M47+'Scope 2 Utilities'!M48)/'Institutional Data'!Q9*1000 ->  | N14: =('Scope 1 Utilities'!N44+'Scope 1 Utilities'!N45+'Scope 1 Utilities'!N46+'Scope 2 Utilities'!N46+'Scope 2 Utilities'!N47+'Scope 2 Utilities'!N48)/'Institutional Data'!R9*1000 -> 7.889092962 | O14: =('Scope 1 Utilities'!O44+'Scope 1 Utilities'!O45+'Scope 1 Utilities'!O46+'Scope 2 Utilities'!O46+'Scope 2 Utilities'!O47+'Scope 2 Utilities'!O48)/'Institutional Data'!S9*1000 -> 7.28600343 | P14: =('Scope 1 Utilities'!P44+'Scope 1 Utilities'!P45+'Scope 1 Utilities'!P46+'Scope 2 Utilities'!P46+'Scope 2 Utilities'!P47+'Scope 2 Utilities'!P48)/'Institutional Data'!T9*1000 -> 7.207470951 | Q14: =('Scope 1 Utilities'!Q44+'Scope 1 Utilities'!Q45+'Scope 1 Utilities'!Q46+'Scope 2 Utilities'!Q46+'Scope 2 Utilities'!Q47+'Scope 2 Utilities'!Q48)/'Institutional Data'!U9*1000 -> 8.059111542 | R14: =('Scope 1 Utilities'!R44+'Scope 1 Utilities'!R45+'Scope 1 Utilities'!R46+'Scope 2 Utilities'!R46+'Scope 2 Utilities'!R47+'Scope 2 Utilities'!R48)/'Institutional Data'!V9*1000 -> 8.307330335 | S14: =('Scope 1 Utilities'!S44+'Scope 1 Utilities'!S45+'Scope 1 Utilities'!S46+'Scope 2 Utilities'!S46+'Scope 2 Utilities'!S47+'Scope 2 Utilities'!S48)/'Institutional Data'!W9*1000 -> 8.158706161 | T14: =('Scope 1 Utilities'!T44+'Scope 1 Utilities'!T45+'Scope 1 Utilities'!T46+'Scope 2 Utilities'!T46+'Scope 2 Utilities'!T47+'Scope 2 Utilities'!T48)/'Institutional Data'!X9*1000 -> 7.813921525 | U14: =('Scope 1 Utilities'!U44+'Scope 1 Utilities'!U45+'Scope 1 Utilities'!U46+'Scope 2 Utilities'!U46+'Scope 2 Utilities'!U47+'Scope 2 Utilities'!U48)/'Institutional Data'!Y9*1000 -> 6.904801163 | V14: =('Scope 1 Utilities'!V44+'Scope 1 Utilities'!V45+'Scope 1 Utilities'!V46+'Scope 2 Utilities'!V46+'Scope 2 Utilities'!V47+'Scope 2 Utilities'!V48)/'Institutional Data'!Z9*1000 -> 6.781197616 | W14: =('Scope 1 Utilities'!W44+'Scope 1 Utilities'!W45+'Scope 1 Utilities'!W46+'Scope 2 Utilities'!W46+'Scope 2 Utilities'!W47+'Scope 2 Utilities'!W48)/'Institutional Data'!AB9*1000 -> 
C15: Total Utility Emissions (per Campus User) | D15: Utility MTCDE/Campus User | E15: =('Scope 1 Utilities'!E44+'Scope 1 Utilities'!E45+'Scope 1 Utilities'!E46+'Scope 2 Utilities'!E46+'Scope 2 Utilities'!E47+'Scope 2 Utilities'!E48)/'Institutional Data'!I33 ->  | F15: =('Scope 1 Utilities'!F44+'Scope 1 Utilities'!F45+'Scope 1 Utilities'!F46+'Scope 2 Utilities'!F46+'Scope 2 Utilities'!F47+'Scope 2 Utilities'!F48)/'Institutional Data'!J33 ->  | G15: =('Scope 1 Utilities'!G44+'Scope 1 Utilities'!G45+'Scope 1 Utilities'!G46+'Scope 2 Utilities'!G46+'Scope 2 Utilities'!G47+'Scope 2 Utilities'!G48)/'Institutional Data'!K33 ->  | H15: =('Scope 1 Utilities'!H44+'Scope 1 Utilities'!H45+'Scope 1 Utilities'!H46+'Scope 2 Utilities'!H46+'Scope 2 Utilities'!H47+'Scope 2 Utilities'!H48)/'Institutional Data'!L33 ->  | I15: =('Scope 1 Utilities'!I44+'Scope 1 Utilities'!I45+'Scope 1 Utilities'!I46+'Scope 2 Utilities'!I46+'Scope 2 Utilities'!I47+'Scope 2 Utilities'!I48)/'Institutional Data'!M33 ->  | J15: =('Scope 1 Utilities'!J44+'Scope 1 Utilities'!J45+'Scope 1 Utilities'!J46+'Scope 2 Utilities'!J46+'Scope 2 Utilities'!J47+'Scope 2 Utilities'!J48)/'Institutional Data'!N33 ->  | K15: =('Scope 1 Utilities'!K44+'Scope 1 Utilities'!K45+'Scope 1 Utilities'!K46+'Scope 2 Utilities'!K46+'Scope 2 Utilities'!K47+'Scope 2 Utilities'!K48)/'Institutional Data'!O33 ->  | L15: =('Scope 1 Utilities'!L44+'Scope 1 Utilities'!L45+'Scope 1 Utilities'!L46+'Scope 2 Utilities'!L46+'Scope 2 Utilities'!L47+'Scope 2 Utilities'!L48)/'Institutional Data'!P33 ->  | M15: =('Scope 1 Utilities'!M44+'Scope 1 Utilities'!M45+'Scope 1 Utilities'!M46+'Scope 2 Utilities'!M46+'Scope 2 Utilities'!M47+'Scope 2 Utilities'!M48)/'Institutional Data'!Q33 ->  | N15: =('Scope 1 Utilities'!N44+'Scope 1 Utilities'!N45+'Scope 1 Utilities'!N46+'Scope 2 Utilities'!N46+'Scope 2 Utilities'!N47+'Scope 2 Utilities'!N48)/'Institutional Data'!R33 -> 1.976024906 | O15: =('Scope 1 Utilities'!O44+'Scope 1 Utilities'!O45+'Scope 1 Utilities'!O46+'Scope 2 Utilities'!O46+'Scope 2 Utilities'!O47+'Scope 2 Utilities'!O48)/'Institutional Data'!S33 -> 1.809271151 | P15: =('Scope 1 Utilities'!P44+'Scope 1 Utilities'!P45+'Scope 1 Utilities'!P46+'Scope 2 Utilities'!P46+'Scope 2 Utilities'!P47+'Scope 2 Utilities'!P48)/'Institutional Data'!T33 -> 1.884913393 | Q15: =('Scope 1 Utilities'!Q44+'Scope 1 Utilities'!Q45+'Scope 1 Utilities'!Q46+'Scope 2 Utilities'!Q46+'Scope 2 Utilities'!Q47+'Scope 2 Utilities'!Q48)/'Institutional Data'!U33 -> 2.121398997 | R15: =('Scope 1 Utilities'!R44+'Scope 1 Utilities'!R45+'Scope 1 Utilities'!R46+'Scope 2 Utilities'!R46+'Scope 2 Utilities'!R47+'Scope 2 Utilities'!R48)/'Institutional Data'!V33 -> 2.242769945 | S15: =('Scope 1 Utilities'!S44+'Scope 1 Utilities'!S45+'Scope 1 Utilities'!S46+'Scope 2 Utilities'!S46+'Scope 2 Utilities'!S47+'Scope 2 Utilities'!S48)/'Institutional Data'!W33 -> 2.07369096 | T15: =('Scope 1 Utilities'!T44+'Scope 1 Utilities'!T45+'Scope 1 Utilities'!T46+'Scope 2 Utilities'!T46+'Scope 2 Utilities'!T47+'Scope 2 Utilities'!T48)/'Institutional Data'!X33 -> 1.974720265 | U15: =('Scope 1 Utilities'!U44+'Scope 1 Utilities'!U45+'Scope 1 Utilities'!U46+'Scope 2 Utilities'!U46+'Scope 2 Utilities'!U47+'Scope 2 Utilities'!U48)/'Institutional Data'!Y33 -> 1.820770909 | V15: =('Scope 1 Utilities'!V44+'Scope 1 Utilities'!V45+'Scope 1 Utilities'!V46+'Scope 2 Utilities'!V46+'Scope 2 Utilities'!V47+'Scope 2 Utilities'!V48)/'Institutional Data'!Z33 -> 1.832459209 | W15: =('Scope 1 Utilities'!W44+'Scope 1 Utilities'!W45+'Scope 1 Utilities'!W46+'Scope 2 Utilities'!W46+'Scope 2 Utilities'!W47+'Scope 2 Utilities'!W48)/'Institutional Data'!AB33 -> 
C16: Total Utility Emissions(per Student) | D16: Utility MTCDE/Student FTE | E16: =('Scope 1 Utilities'!E44+'Scope 1 Utilities'!E45+'Scope 1 Utilities'!E46+'Scope 2 Utilities'!E46+'Scope 2 Utilities'!E47+'Scope 2 Utilities'!E48)/'Institutional Data'!I21 ->  | F16: =('Scope 1 Utilities'!F44+'Scope 1 Utilities'!F45+'Scope 1 Utilities'!F46+'Scope 2 Utilities'!F46+'Scope 2 Utilities'!F47+'Scope 2 Utilities'!F48)/'Institutional Data'!J21 ->  | G16: =('Scope 1 Utilities'!G44+'Scope 1 Utilities'!G45+'Scope 1 Utilities'!G46+'Scope 2 Utilities'!G46+'Scope 2 Utilities'!G47+'Scope 2 Utilities'!G48)/'Institutional Data'!K21 ->  | H16: =('Scope 1 Utilities'!H44+'Scope 1 Utilities'!H45+'Scope 1 Utilities'!H46+'Scope 2 Utilities'!H46+'Scope 2 Utilities'!H47+'Scope 2 Utilities'!H48)/'Institutional Data'!L21 ->  | I16: =('Scope 1 Utilities'!I44+'Scope 1 Utilities'!I45+'Scope 1 Utilities'!I46+'Scope 2 Utilities'!I46+'Scope 2 Utilities'!I47+'Scope 2 Utilities'!I48)/'Institutional Data'!M21 ->  | J16: =('Scope 1 Utilities'!J44+'Scope 1 Utilities'!J45+'Scope 1 Utilities'!J46+'Scope 2 Utilities'!J46+'Scope 2 Utilities'!J47+'Scope 2 Utilities'!J48)/'Institutional Data'!N21 ->  | K16: =('Scope 1 Utilities'!K44+'Scope 1 Utilities'!K45+'Scope 1 Utilities'!K46+'Scope 2 Utilities'!K46+'Scope 2 Utilities'!K47+'Scope 2 Utilities'!K48)/'Institutional Data'!O21 ->  | L16: =('Scope 1 Utilities'!L44+'Scope 1 Utilities'!L45+'Scope 1 Utilities'!L46+'Scope 2 Utilities'!L46+'Scope 2 Utilities'!L47+'Scope 2 Utilities'!L48)/'Institutional Data'!P21 ->  | M16: =('Scope 1 Utilities'!M44+'Scope 1 Utilities'!M45+'Scope 1 Utilities'!M46+'Scope 2 Utilities'!M46+'Scope 2 Utilities'!M47+'Scope 2 Utilities'!M48)/'Institutional Data'!Q21 ->  | N16: =('Scope 1 Utilities'!N44+'Scope 1 Utilities'!N45+'Scope 1 Utilities'!N46+'Scope 2 Utilities'!N46+'Scope 2 Utilities'!N47+'Scope 2 Utilities'!N48)/'Institutional Data'!R21 -> 2.424144208 | O16: =('Scope 1 Utilities'!O44+'Scope 1 Utilities'!O45+'Scope 1 Utilities'!O46+'Scope 2 Utilities'!O46+'Scope 2 Utilities'!O47+'Scope 2 Utilities'!O48)/'Institutional Data'!S21 -> 2.215049447 | P16: =('Scope 1 Utilities'!P44+'Scope 1 Utilities'!P45+'Scope 1 Utilities'!P46+'Scope 2 Utilities'!P46+'Scope 2 Utilities'!P47+'Scope 2 Utilities'!P48)/'Institutional Data'!T21 -> 2.315396567 | Q16: =('Scope 1 Utilities'!Q44+'Scope 1 Utilities'!Q45+'Scope 1 Utilities'!Q46+'Scope 2 Utilities'!Q46+'Scope 2 Utilities'!Q47+'Scope 2 Utilities'!Q48)/'Institutional Data'!U21 -> 2.610726591 | R16: =('Scope 1 Utilities'!R44+'Scope 1 Utilities'!R45+'Scope 1 Utilities'!R46+'Scope 2 Utilities'!R46+'Scope 2 Utilities'!R47+'Scope 2 Utilities'!R48)/'Institutional Data'!V21 -> 2.775746266 | S16: =('Scope 1 Utilities'!S44+'Scope 1 Utilities'!S45+'Scope 1 Utilities'!S46+'Scope 2 Utilities'!S46+'Scope 2 Utilities'!S47+'Scope 2 Utilities'!S48)/'Institutional Data'!W21 -> 2.474905514 | T16: =('Scope 1 Utilities'!T44+'Scope 1 Utilities'!T45+'Scope 1 Utilities'!T46+'Scope 2 Utilities'!T46+'Scope 2 Utilities'!T47+'Scope 2 Utilities'!T48)/'Institutional Data'!X21 -> 2.344599055 | U16: =('Scope 1 Utilities'!U44+'Scope 1 Utilities'!U45+'Scope 1 Utilities'!U46+'Scope 2 Utilities'!U46+'Scope 2 Utilities'!U47+'Scope 2 Utilities'!U48)/'Institutional Data'!Y21 -> 2.146684372 | V16: =('Scope 1 Utilities'!V44+'Scope 1 Utilities'!V45+'Scope 1 Utilities'!V46+'Scope 2 Utilities'!V46+'Scope 2 Utilities'!V47+'Scope 2 Utilities'!V48)/'Institutional Data'!Z21 -> 2.15486394 | W16: =('Scope 1 Utilities'!W44+'Scope 1 Utilities'!W45+'Scope 1 Utilities'!W46+'Scope 2 Utilities'!W46+'Scope 2 Utilities'!W47+'Scope 2 Utilities'!W48)/'Institutional Data'!AB21 -> 
C17: Total Utility % of Total MTCDE | D17: % of Total MTCDE | E17: =('GHG Summary_regional'!E8+'GHG Summary_regional'!E17)/'GHG Summary_regional'!E32 ->  | F17: =('GHG Summary_regional'!F8+'GHG Summary_regional'!F17)/'GHG Summary_regional'!F32 ->  | G17: =('GHG Summary_regional'!G8+'GHG Summary_regional'!G17)/'GHG Summary_regional'!G32 ->  | H17: =('GHG Summary_regional'!H8+'GHG Summary_regional'!H17)/'GHG Summary_regional'!H32 ->  | I17: =('GHG Summary_regional'!I8+'GHG Summary_regional'!I17)/'GHG Summary_regional'!I32 ->  | J17: =('GHG Summary_regional'!J8+'GHG Summary_regional'!J17)/'GHG Summary_regional'!J32 ->  | K17: =('GHG Summary_regional'!K8+'GHG Summary_regional'!K17)/'GHG Summary_regional'!K32 ->  | L17: =('GHG Summary_regional'!L8+'GHG Summary_regional'!L17)/'GHG Summary_regional'!L32 ->  | M17: =('GHG Summary_regional'!M8+'GHG Summary_regional'!M17)/'GHG Summary_regional'!M32 ->  | N17: =('GHG Summary_regional'!N8+'GHG Summary_regional'!N17)/'GHG Summary_regional'!N32 -> 0.5995232709 | O17: =('GHG Summary_regional'!O8+'GHG Summary_regional'!O17)/'GHG Summary_regional'!O32 -> 0.5722541009 | P17: =('GHG Summary_regional'!P8+'GHG Summary_regional'!P17)/'GHG Summary_regional'!P32 -> 0.5986638605 | Q17: =('GHG Summary_regional'!Q8+'GHG Summary_regional'!Q17)/'GHG Summary_regional'!Q32 -> 0.6131051573 | R17: =('GHG Summary_regional'!R8+'GHG Summary_regional'!R17)/'GHG Summary_regional'!R32 -> 0.611586042 | S17: =('GHG Summary_regional'!S8+'GHG Summary_regional'!S17)/'GHG Summary_regional'!S32 -> 0.562649908 | T17: =('GHG Summary_regional'!T8+'GHG Summary_regional'!T17)/'GHG Summary_regional'!T32 -> 0.5803777254 | U17: =('GHG Summary_regional'!U8+'GHG Summary_regional'!U17)/'GHG Summary_regional'!U32 -> 0.5741176159 | V17: =('GHG Summary_regional'!V8+'GHG Summary_regional'!V17)/'GHG Summary_regional'!V32 -> 0.5861751942 | W17: =('GHG Summary_regional'!W8+'GHG Summary_regional'!W17)/'GHG Summary_regional'!W32 -> 0.6732132712
B20: Scope 1 | E20: FY1995 | F20: FY1996 | G20: FY1997 | H20: FY1998 | I20: FY1999 | J20: FY2000 | K20: FY2001 | L20: FY2002 | M20: FY2003 | N20: FY2004 | O20: FY2005 | P20: FY2006 | Q20: FY2007 | R20: FY2008 | S20: FY2009 | T20: FY2010 | U20: FY2011 | V20: FY2012 | W20: FY2014
B21: On Campus Stationary
C22: Stationary Fuel Consumption | D22: Stationary Btu/GSF | E22: ='Scope 1 Utilities'!E56 ->  | F22: ='Scope 1 Utilities'!F56 ->  | G22: ='Scope 1 Utilities'!G56 ->  | H22: ='Scope 1 Utilities'!H56 ->  | I22: ='Scope 1 Utilities'!I56 ->  | J22: ='Scope 1 Utilities'!J56 ->  | K22: ='Scope 1 Utilities'!K56 ->  | L22: ='Scope 1 Utilities'!L56 ->  | M22: ='Scope 1 Utilities'!M56 ->  | N22: ='Scope 1 Utilities'!N56 -> 90564.90166 | O22: ='Scope 1 Utilities'!O56 -> 77851.98757 | P22: ='Scope 1 Utilities'!P56 -> 71844.77906 | Q22: ='Scope 1 Utilities'!Q56 -> 70919.92806 | R22: ='Scope 1 Utilities'!R56 -> 75238.80193 | S22: ='Scope 1 Utilities'!S56 -> 74762.17923 | T22: ='Scope 1 Utilities'!T56 -> 67437.95108 | U22: ='Scope 1 Utilities'!U56 -> 56759.77637 | V22: ='Scope 1 Utilities'!V56 -> 56935.44053 | W22: ='Scope 1 Utilities'!W56 -> 77533.02516
C23: Stationary Emissions (per 1,000 GSF) | D23: Stationary MTCDE/1,000 GSF | E23: ='Scope 1 Utilities'!E50/'Institutional Data'!I9*1000 ->  | F23: ='Scope 1 Utilities'!F50/'Institutional Data'!J9*1000 ->  | G23: ='Scope 1 Utilities'!G50/'Institutional Data'!K9*1000 ->  | H23: ='Scope 1 Utilities'!H50/'Institutional Data'!L9*1000 ->  | I23: ='Scope 1 Utilities'!I50/'Institutional Data'!M9*1000 ->  | J23: ='Scope 1 Utilities'!J50/'Institutional Data'!N9*1000 ->  | K23: ='Scope 1 Utilities'!K50/'Institutional Data'!O9*1000 ->  | L23: ='Scope 1 Utilities'!L50/'Institutional Data'!P9*1000 ->  | M23: ='Scope 1 Utilities'!M50/'Institutional Data'!Q9*1000 ->  | N23: ='Scope 1 Utilities'!N50/'Institutional Data'!R9*1000 -> 4.822326926 | O23: ='Scope 1 Utilities'!O50/'Institutional Data'!S9*1000 -> 4.146814762 | P23: ='Scope 1 Utilities'!P50/'Institutional Data'!T9*1000 -> 3.828589851 | Q23: ='Scope 1 Utilities'!Q50/'Institutional Data'!U9*1000 -> 3.781347994 | R23: ='Scope 1 Utilities'!R50/'Institutional Data'!V9*1000 -> 4.014029804 | S23: ='Scope 1 Utilities'!S50/'Institutional Data'!W9*1000 -> 3.962284281 | T23: ='Scope 1 Utilities'!T50/'Institutional Data'!X9*1000 -> 3.600440407 | U23: ='Scope 1 Utilities'!U50/'Institutional Data'!Y9*1000 -> 3.024327724 | V23: ='Scope 1 Utilities'!V50/'Institutional Data'!Z9*1000 -> 3.035268442 | W23: ='Scope 1 Utilities'!W50/'Institutional Data'!AB9*1000 -> 
C24: Statioanry Emissions (per Campus User) | D24: Stationary MTCDE/Campus User | E24: ='Scope 1 Utilities'!E50/'Institutional Data'!I33 ->  | F24: ='Scope 1 Utilities'!F50/'Institutional Data'!J33 ->  | G24: ='Scope 1 Utilities'!G50/'Institutional Data'!K33 ->  | H24: ='Scope 1 Utilities'!H50/'Institutional Data'!L33 ->  | I24: ='Scope 1 Utilities'!I50/'Institutional Data'!M33 ->  | J24: ='Scope 1 Utilities'!J50/'Institutional Data'!N33 ->  | K24: ='Scope 1 Utilities'!K50/'Institutional Data'!O33 ->  | L24: ='Scope 1 Utilities'!L50/'Institutional Data'!P33 ->  | M24: ='Scope 1 Utilities'!M50/'Institutional Data'!Q33 ->  | N24: ='Scope 1 Utilities'!N50/'Institutional Data'!R33 -> 1.207874994 | O24: ='Scope 1 Utilities'!O50/'Institutional Data'!S33 -> 1.029743177 | P24: ='Scope 1 Utilities'!P50/'Institutional Data'!T33 -> 1.001261099 | Q24: ='Scope 1 Utilities'!Q50/'Institutional Data'!U33 -> 0.9953637943 | R24: ='Scope 1 Utilities'!R50/'Institutional Data'!V33 -> 1.083686942 | S24: ='Scope 1 Utilities'!S50/'Institutional Data'!W33 -> 1.007090209 | T24: ='Scope 1 Utilities'!T50/'Institutional Data'!X33 -> 0.9098968571 | U24: ='Scope 1 Utilities'!U50/'Institutional Data'!Y33 -> 0.7975042014 | V24: ='Scope 1 Utilities'!V50/'Institutional Data'!Z33 -> 0.8202099283 | W24: ='Scope 1 Utilities'!W50/'Institutional Data'!AB33 -> 
C25: Stationary Emissions (per Student) | D25: Stationary MTCDE/Student FTE | E25: ='Scope 1 Utilities'!E50/'Institutional Data'!I21 ->  | F25: ='Scope 1 Utilities'!F50/'Institutional Data'!J21 ->  | G25: ='Scope 1 Utilities'!G50/'Institutional Data'!K21 ->  | H25: ='Scope 1 Utilities'!H50/'Institutional Data'!L21 ->  | I25: ='Scope 1 Utilities'!I50/'Institutional Data'!M21 ->  | J25: ='Scope 1 Utilities'!J50/'Institutional Data'!N21 ->  | K25: ='Scope 1 Utilities'!K50/'Institutional Data'!O21 ->  | L25: ='Scope 1 Utilities'!L50/'Institutional Data'!P21 ->  | M25: ='Scope 1 Utilities'!M50/'Institutional Data'!Q21 ->  | N25: ='Scope 1 Utilities'!N50/'Institutional Data'!R21 -> 1.481794668 | O25: ='Scope 1 Utilities'!O50/'Institutional Data'!S21 -> 1.260691109 | P25: ='Scope 1 Utilities'!P50/'Institutional Data'!T21 -> 1.229932643 | Q25: ='Scope 1 Utilities'!Q50/'Institutional Data'!U21 -> 1.224957082 | R25: ='Scope 1 Utilities'!R50/'Institutional Data'!V21 -> 1.341216467 | S25: ='Scope 1 Utilities'!S50/'Institutional Data'!W21 -> 1.201940482 | T25: ='Scope 1 Utilities'!T50/'Institutional Data'!X21 -> 1.080326844 | U25: ='Scope 1 Utilities'!U50/'Institutional Data'!Y21 -> 0.9402554698 | V25: ='Scope 1 Utilities'!V50/'Institutional Data'!Z21 -> 0.9645184944 | W25: ='Scope 1 Utilities'!W50/'Institutional Data'!AB21 -> 
C26: Stationary Fuel Carbon Intensity | D26: Stationary MTCDE/1,000 MMBTU | E26: ='Scope 1 Utilities'!E50/'Scope 1 Utilities'!E54*1000 ->  | F26: ='Scope 1 Utilities'!F50/'Scope 1 Utilities'!F54*1000 ->  | G26: ='Scope 1 Utilities'!G50/'Scope 1 Utilities'!G54*1000 ->  | H26: ='Scope 1 Utilities'!H50/'Scope 1 Utilities'!H54*1000 ->  | I26: ='Scope 1 Utilities'!I50/'Scope 1 Utilities'!I54*1000 ->  | J26: ='Scope 1 Utilities'!J50/'Scope 1 Utilities'!J54*1000 ->  | K26: ='Scope 1 Utilities'!K50/'Scope 1 Utilities'!K54*1000 ->  | L26: ='Scope 1 Utilities'!L50/'Scope 1 Utilities'!L54*1000 ->  | M26: ='Scope 1 Utilities'!M50/'Scope 1 Utilities'!M54*1000 ->  | N26: ='Scope 1 Utilities'!N55 -> 53.24719441 | O26: ='Scope 1 Utilities'!O55 -> 53.26536793 | P26: ='Scope 1 Utilities'!P55 -> 53.28974354 | Q26: ='Scope 1 Utilities'!Q55 -> 53.31855372 | R26: ='Scope 1 Utilities'!R55 -> 53.35052794 | S26: ='Scope 1 Utilities'!S55 -> 52.99851237 | T26: ='Scope 1 Utilities'!T55 -> 53.38893531 | U26: ='Scope 1 Utilities'!U55 -> 53.28293938 | V26: ='Scope 1 Utilities'!V55 -> 53.31070444 | W26: ='Scope 1 Utilities'!W55 -> 111.87078
C27: Fossil % of Total MTCDE | D27: % of Total MTCDE | E27: ='Scope 1 Utilities'!E50/'GHG Summary_regional'!E32 ->  | F27: ='Scope 1 Utilities'!F50/'GHG Summary_regional'!F32 ->  | G27: ='Scope 1 Utilities'!G50/'GHG Summary_regional'!G32 ->  | H27: ='Scope 1 Utilities'!H50/'GHG Summary_regional'!H32 ->  | I27: ='Scope 1 Utilities'!I50/'GHG Summary_regional'!I32 ->  | J27: ='Scope 1 Utilities'!J50/'GHG Summary_regional'!J32 ->  | K27: ='Scope 1 Utilities'!K50/'GHG Summary_regional'!K32 ->  | L27: ='Scope 1 Utilities'!L50/'GHG Summary_regional'!L32 ->  | M27: ='Scope 1 Utilities'!M50/'GHG Summary_regional'!M32 ->  | N27: ='Scope 1 Utilities'!N50/'GHG Summary_regional'!N32 -> 0.3664676314 | O27: ='Scope 1 Utilities'!O50/'GHG Summary_regional'!O32 -> 0.3256973148 | P27: ='Scope 1 Utilities'!P50/'GHG Summary_regional'!P32 -> 0.3180086879 | Q27: ='Scope 1 Utilities'!Q50/'GHG Summary_regional'!Q32 -> 0.287669918 | R27: ='Scope 1 Utilities'!R50/'GHG Summary_regional'!R32 -> 0.2955130591 | S27: ='Scope 1 Utilities'!S50/'GHG Summary_regional'!S32 -> 0.2732515232 | T27: ='Scope 1 Utilities'!T50/'GHG Summary_regional'!T32 -> 0.2674221142 | U27: ='Scope 1 Utilities'!U50/'GHG Summary_regional'!U32 -> 0.251386591 | V27: ='Scope 1 Utilities'!V50/'GHG Summary_regional'!V32 -> 0.2613821626 | W27: ='Scope 1 Utilities'!W50/'GHG Summary_regional'!W32 -> 0.5138238403
B28: Scope 1 Summary
C29: Scope 1 Emissions (per 1,000 GSF) | D29: MTCDE/1,000 GSF | E29: ='GHG Summary_regional'!E12/'Institutional Data'!I9*1000 ->  | F29: ='GHG Summary_regional'!F12/'Institutional Data'!J9*1000 ->  | G29: ='GHG Summary_regional'!G12/'Institutional Data'!K9*1000 ->  | H29: ='GHG Summary_regional'!H12/'Institutional Data'!L9*1000 ->  | I29: ='GHG Summary_regional'!I12/'Institutional Data'!M9*1000 ->  | J29: ='GHG Summary_regional'!J12/'Institutional Data'!N9*1000 ->  | K29: ='GHG Summary_regional'!K12/'Institutional Data'!O9*1000 ->  | L29: ='GHG Summary_regional'!L12/'Institutional Data'!P9*1000 ->  | M29: ='GHG Summary_regional'!M12/'Institutional Data'!Q9*1000 ->  | N29: ='GHG Summary_regional'!N12/'Institutional Data'!R9*1000 -> 5.048029323 | O29: ='GHG Summary_regional'!O12/'Institutional Data'!S9*1000 -> 4.372505285 | P29: ='GHG Summary_regional'!P12/'Institutional Data'!T9*1000 -> 4.039847035 | Q29: ='GHG Summary_regional'!Q12/'Institutional Data'!U9*1000 -> 3.92420005 | R29: ='GHG Summary_regional'!R12/'Institutional Data'!V9*1000 -> 4.151886024 | S29: ='GHG Summary_regional'!S12/'Institutional Data'!W9*1000 -> 4.108482932 | T29: ='GHG Summary_regional'!T12/'Institutional Data'!X9*1000 -> 3.667009766 | U29: ='GHG Summary_regional'!U12/'Institutional Data'!Y9*1000 -> 3.090065135 | V29: ='GHG Summary_regional'!V12/'Institutional Data'!Z9*1000 -> 3.106801145 | W29: ='GHG Summary_regional'!W12/'Institutional Data'!AB9*1000 -> 
C30: Scope 1 Emissions (per Campus User) | D30: MTCDE/Campus User | E30: ='GHG Summary_regional'!E12/'Institutional Data'!I33 ->  | F30: ='GHG Summary_regional'!F12/'Institutional Data'!J33 ->  | G30: ='GHG Summary_regional'!G12/'Institutional Data'!K33 ->  | H30: ='GHG Summary_regional'!H12/'Institutional Data'!L33 ->  | I30: ='GHG Summary_regional'!I12/'Institutional Data'!M33 ->  | J30: ='GHG Summary_regional'!J12/'Institutional Data'!N33 ->  | K30: ='GHG Summary_regional'!K12/'Institutional Data'!O33 ->  | L30: ='GHG Summary_regional'!L12/'Institutional Data'!P33 ->  | M30: ='GHG Summary_regional'!M12/'Institutional Data'!Q33 ->  | N30: ='GHG Summary_regional'!N12/'Institutional Data'!R33 -> 1.264407926 | O30: ='GHG Summary_regional'!O12/'Institutional Data'!S33 -> 1.085786981 | P30: ='GHG Summary_regional'!P12/'Institutional Data'!T33 -> 1.056509535 | Q30: ='GHG Summary_regional'!Q12/'Institutional Data'!U33 -> 1.032966725 | R30: ='GHG Summary_regional'!R12/'Institutional Data'!V33 -> 1.120904648 | S30: ='GHG Summary_regional'!S12/'Institutional Data'!W33 -> 1.044249388 | T30: ='GHG Summary_regional'!T12/'Institutional Data'!X33 -> 0.9267201463 | U30: ='GHG Summary_regional'!U12/'Institutional Data'!Y33 -> 0.8148389173 | V30: ='GHG Summary_regional'!V12/'Institutional Data'!Z33 -> 0.8395399591 | W30: ='GHG Summary_regional'!W12/'Institutional Data'!AB33 -> 
C31: Scope 1 Emissions (per Student) | D31: MTCDE/Student FTE | E31: ='GHG Summary_regional'!E12/'Institutional Data'!I21 ->  | F31: ='GHG Summary_regional'!F12/'Institutional Data'!J21 ->  | G31: ='GHG Summary_regional'!G12/'Institutional Data'!K21 ->  | H31: ='GHG Summary_regional'!H12/'Institutional Data'!L21 ->  | I31: ='GHG Summary_regional'!I12/'Institutional Data'!M21 ->  | J31: ='GHG Summary_regional'!J12/'Institutional Data'!N21 ->  | K31: ='GHG Summary_regional'!K12/'Institutional Data'!O21 ->  | L31: ='GHG Summary_regional'!L12/'Institutional Data'!P21 ->  | M31: ='GHG Summary_regional'!M12/'Institutional Data'!Q21 ->  | N31: ='GHG Summary_regional'!N12/'Institutional Data'!R21 -> 1.551148035 | O31: ='GHG Summary_regional'!O12/'Institutional Data'!S21 -> 1.329304262 | P31: ='GHG Summary_regional'!P12/'Institutional Data'!T21 -> 1.297798911 | Q31: ='GHG Summary_regional'!Q12/'Institutional Data'!U21 -> 1.271233605 | R31: ='GHG Summary_regional'!R12/'Institutional Data'!V21 -> 1.387278664 | S31: ='GHG Summary_regional'!S12/'Institutional Data'!W21 -> 1.246289162 | T31: ='GHG Summary_regional'!T12/'Institutional Data'!X21 -> 1.100301252 | U31: ='GHG Summary_regional'!U12/'Institutional Data'!Y21 -> 0.9606930568 | V31: ='GHG Summary_regional'!V12/'Institutional Data'!Z21 -> 0.9872494704 | W31: ='GHG Summary_regional'!W12/'Institutional Data'!AB21 -> 
C32: Scope 1 % of Total MTCDE | D32: % of MTCDE Total | E32: ='GHG Summary_regional'!E12/'GHG Summary_regional'!E32 ->  | F32: ='GHG Summary_regional'!F12/'GHG Summary_regional'!F32 ->  | G32: ='GHG Summary_regional'!G12/'GHG Summary_regional'!G32 ->  | H32: ='GHG Summary_regional'!H12/'GHG Summary_regional'!H32 ->  | I32: ='GHG Summary_regional'!I12/'GHG Summary_regional'!I32 ->  | J32: ='GHG Summary_regional'!J12/'GHG Summary_regional'!J32 ->  | K32: ='GHG Summary_regional'!K12/'GHG Summary_regional'!K32 ->  | L32: ='GHG Summary_regional'!L12/'GHG Summary_regional'!L32 ->  | M32: ='GHG Summary_regional'!M12/'GHG Summary_regional'!M32 ->  | N32: ='GHG Summary_regional'!N12/'GHG Summary_regional'!N32 -> 0.3836196462 | O32: ='GHG Summary_regional'!O12/'GHG Summary_regional'!O32 -> 0.3434234013 | P32: ='GHG Summary_regional'!P12/'GHG Summary_regional'!P32 -> 0.3355560415 | Q32: ='GHG Summary_regional'!Q12/'GHG Summary_regional'!Q32 -> 0.2985375344 | R32: ='GHG Summary_regional'!R12/'GHG Summary_regional'!R32 -> 0.3056620403 | S32: ='GHG Summary_regional'!S12/'GHG Summary_regional'!S32 -> 0.2833338397 | T32: ='GHG Summary_regional'!T12/'GHG Summary_regional'!T32 -> 0.2723665423 | U32: ='GHG Summary_regional'!U12/'GHG Summary_regional'!U32 -> 0.2568507819 | V32: ='GHG Summary_regional'!V12/'GHG Summary_regional'!V32 -> 0.2675422018 | W32: ='GHG Summary_regional'!W12/'GHG Summary_regional'!W32 -> 0.5178497673
B34: Scope 2 | E34: FY1995 | F34: FY1996 | G34: FY1997 | H34: FY1998 | I34: FY1999 | J34: FY2000 | K34: FY2001 | L34: FY2002 | M34: FY2003 | N34: FY2004 | O34: FY2005 | P34: FY2006 | Q34: FY2007 | R34: FY2008 | S34: FY2009 | T34: FY2010 | U34: FY2011 | V34: FY2012 | W34: FY2014
B35: Purchased Electricity
C36: Purchased Electricity Consumption | D36: Purchased kWh/GSF | E36: ='Scope 2 Utilities'!E8/'Institutional Data'!I9 ->  | F36: ='Scope 2 Utilities'!F8/'Institutional Data'!J9 ->  | G36: ='Scope 2 Utilities'!G8/'Institutional Data'!K9 ->  | H36: ='Scope 2 Utilities'!H8/'Institutional Data'!L9 ->  | I36: ='Scope 2 Utilities'!I8/'Institutional Data'!M9 ->  | J36: ='Scope 2 Utilities'!J8/'Institutional Data'!N9 ->  | K36: ='Scope 2 Utilities'!K8/'Institutional Data'!O9 ->  | L36: ='Scope 2 Utilities'!L8/'Institutional Data'!P9 ->  | M36: ='Scope 2 Utilities'!M8/'Institutional Data'!Q9 ->  | N36: ='Scope 2 Utilities'!N8/'Institutional Data'!R9 -> 10.03710591 | O36: ='Scope 2 Utilities'!O8/'Institutional Data'!S9 -> 10.27650849 | P36: ='Scope 2 Utilities'!P8/'Institutional Data'!T9 -> 11.06098448 | Q36: ='Scope 2 Utilities'!Q8/'Institutional Data'!U9 -> 10.84205948 | R36: ='Scope 2 Utilities'!R8/'Institutional Data'!V9 -> 10.85820332 | S36: ='Scope 2 Utilities'!S8/'Institutional Data'!W9 -> 11.0802612 | T36: ='Scope 2 Utilities'!T8/'Institutional Data'!X9 -> 11.11787765 | U36: ='Scope 2 Utilities'!U8/'Institutional Data'!Y9 -> 10.19060256 | V36: ='Scope 2 Utilities'!V8/'Institutional Data'!Z9 -> 9.830549925 | W36: ='Scope 2 Utilities'!W8/'Institutional Data'!AB9 -> 
